Workbook

Sheet КС3 №3 май-2 (hidden)
H1: Уницированная форма № КС - 3
H2: Утверждена постановлением Госкомстата России
H3: от 11.11.99г. № 100
H5: Код
G6: Форма по ОКУД | H6: 0322001
A7: Инвестор
A9: Заказчик | C9: АО «МЕТРОВАГОНМАШ»; 141009, Московская обл., г. о. Мытищи, г. Мытищи, ул. Колонцова, 4, 8 (498) 687-45-55 | G9: по ОКПО | H9: 5804803
A11: Генподрядчик | C11: ООО «КиКГЕОСТРОЙ»; 109004, г. Москва, ул. Земляной Вал, д.65, кв.59; +7 (495) 915-24-71 | G11: по ОКПО | H11: 16673706
A13: Объект: | C13: Строительство 2КЛ-0,4 кВ от ТП-10/0,4 кВ № 11223 до стены фасада здания в направлении нового ВРЩ-0,4 кВ, в т.ч. ПИР: г.Москва, ул. 5-я Парковая, д.51
A14: Стройка : | C14: Цех №8, расположенный по адресу: Московская область, г.о. Мытищи, ул.Колонцова, д.4
G15: Доп. соглашение.
F16: Вид деятельности | G16: по ОКДП
F17: Договор подряда | G17: номер | H17: МВМ/19-07
G18: дата | H18: 2023-07-19
F19: Дополнительное соглашение | G19: номер | H19: 6
G20: дата | H20: 2024-05-15
G21: Вид операции
E24: Номер документа | F24: Дата составления | G24: Отчетный период
G25: с | H25: по
E26: 3 | F26: 2024-05-23 | G26: 2024-05-03 | H26: =F26 -> 2024-05-23
E28: СПРАВКА
E29: О СТОИМОСТИ ВЫПОЛНЕННЫХ РАБОТ И ЗАТРАТ
A30: Номер | B30: Наименование пусковых комплексов, объектов, | E30: Код | F30: Стоимость выполненных работ и затрат,руб. | J30: Договор №МВМ/19-07
A31: по | B31: видов работ, оборудования, затрат | F31: с начала | H31: в том числе | J31: сумма с ндс | L31: ='кс-6а'!I828 -> 513480752.9
A32: порядку | F32: проведения | G32: с начала года | H32: за отчетный | K32: без НДС | L32: с НДС | M32: КС-3 № | N32: КС-2 № | O32: проверка
F33: работ | H33: период | J33: март 24г | K33: =ROUND((L33/1.2),2) -> 135026539.4 | L33: ='[11]кс-2 №1корр'!X580 -> 162031847.3 | M33: 1 | N33: 1
A34: 1 | B34: 2 | E34: 3 | F34: 4 | G34: 5 | H34: 6 | J34: май-1 24г | K34: ='[11]кс-2 №2 МАЙ корр ЛВ 06.05.24'!AD581/1.2 -> 32271379.58 | L34: ='[11]кс-2 №2 МАЙ корр ЛВ 06.05.24'!AD581 -> 38725655.5 | M34: 2 | N34: 2
B35: Всего работ и затрат, включаемых в стоимость работ в том числе: | E35: х | F35: =F36 -> 308461368 | G35: =G36 -> 308461368 | H35: =H36 -> 141163448.9 | J35: май-2 24г | K35: =L35/1.2 -> 141163448.9 | L35: =' кс-2 №3'!AB828 -> 169396138.7 | M35: 3 | N35: 3 | O35: =H44 -> 169396138.7 | P35: =L35-O35 -> -0.0007600188255
A36: 1 | B36: СМР | F36: =G36 -> 308461368 | G36: =K33+K34+H36 -> 308461368 | H36: =K35 -> 141163448.9
A37: 2 | B37: СМР | F37: =G37 -> 0 | G37: 0 | H37: =SUM(I37:Q37) -> 0
A38: 3 | B38: Оборудование | F38: 0 | G38: 0 | H38: =SUM(I38:Q38) -> 0
A39: 4 | B39: Оборудование ТБ
A40: 4 | B40: ПНР
A41: 5 | B41: Прочие затраты | F41: 0 | G41: 0 | H41: =SUM(I41:Q41) -> 0
E42: Итого: | H42: =H35 -> 141163448.9
E43: Налог на добавленную стоимость 20%: | H43: =ROUND(H42*0.2,2) -> 28232689.79
E44: Всего,с учетом налогов: | H44: =H42+H43 -> 169396138.7
A46: 08 | D46: НДС 18% | H46: 68388.36
D47: Оборудование с НДС 18% | H47: 437891.54
D48: Авторский надзор 2,65% | G48: 0 | H48: 0
D49: НДС 18% | G49: 0 | H49: 0
D50: Авторский надзор 2,65% с НДС 18% | G50: 0 | H50: 0
A51: 02 | D51: НДС 18% | F51: 0 | G51: 0 | H51: 0
A53: 03 | D53: Поставка продукции | F53: 0 | G53: 0 | H53: 0
D54: в т.ч. оборудование | F54: 0 | G54: 0 | H54: 0
A56: 04 | D56: НДС 18% | F56: 0 | G56: 0 | H56: 0
A58: 03 | D58: Прочие | F58: 401728.83 | G58: 401728.83 | H58: 401728.83
A60: 04 | D60: НДС 18% | F60: 72311.19 | G60: 72311.19 | H60: 72311.19
D64: Охрана | G64: 0 | H64: 0
D65: НДС 18% | G65: 0 | H65: 0
D66: Охрана с НДС 18% | G66: 0 | H66: 0
D67: Прочие от СМР | G67: 0 | H67: 0
D68: НДС 18% | G68: 0 | H68: 0
D69: Прочие с НДС 18% | G69: 0 | H69: 0
D70: Страхование 0,8% | G70: 0 | H70: 0
D71: НДС 18% | G71: 0 | H71: 0
D72: Страхование 0,8% с НДС 18% | G72: 0 | H72: 0
D73: Согласование и услуги 0,15% | G73: 0 | H73: 0
D74: НДС 18% | G74: 0 | H74: 0
D75: Согласование и услуги 0,15% с НДС | G75: 0 | H75: 0
A76: 25 | D76: Всего с НДС 18%:
G77: Итого | H77: 379935.31
G78: Сумма НДС | H78: 68388.36
F79: Всего с учетом НДС | H79: 448323.67
E81: Зачет аванса 50% | H81: =H44/2 -> 84698069.37
E82: К оплате, с учетом авансового платежа 50% | H82: =H81 -> 84698069.37
E83: В т.ч. НДС 20% | H83: =H82/120*20 -> 14116344.89 | K83: =SUM(K33:K82) -> 308461368 | L83: =SUM(L33:L82) -> 370153641.6 | O83: =F35-K83 -> 0
J85: остаток по Договору | L85: =L31-L83 -> 143327111.3
A86: Заказчик | C86: Генеральный директор АО «МЕТРОВАГОНМАШ» | H86: А.Б. Степнов
C87: должность | F87: подпись | H87: расшифровка подписи
B91: М.П.
A96: Генподрядчик | C96: Генеральный директор ООО «КиКГЕОСТРОЙ» | H96: Ю.Ф. Кесслер
D97: должность | F97: подпись | H97: расшифровка подписи
B99: М.П.

Sheet кс-2 №3 (hidden)
A2: Инвестор | N2: Код | T2: Код | Z2: Код
B3: (организация, адрес, телефон, факс) | M3: Форма по ОКУД | N3: 0322005 | S3: Форма по ОКУД | T3: 0322005 | Y3: Форма по ОКУД | Z3: 0322005
A4: Заказчик (Генподрядчик) | B4: АО «МЕТРОВАГОНМАШ», 141009, Московская обл., г. о. Мытищи, г. Мытищи, ул. Колонцова, 4, 8 (498) 687-45-55
B5: (организация, адрес, телефон, факс) | M5: по ОКПО | S5: по ОКПО | Y5: по ОКПО
A6: Подрядчик (Субподрядчик) | B6: ООО «КиКГЕОСТРОЙ», 109004, г. Москва, ул. Земляной Вал, д.65, кв.59; +7 (495) 915-24-71
B7: (организация, адрес, телефон, факс) | M7: по ОКПО | N7: 05804803 | S7: по ОКПО | T7: 05804803 | Y7: по ОКПО | Z7: 05804803
A8: Стройка | B8: Цех №8, расположенный по адресу: Московская область, г.о. Мытищи, ул.Колонцова, д.4
B9: (наименование, адрес) | M9: по ОКПО | N9: 16673706 | S9: по ОКПО | T9: 16673706 | Y9: по ОКПО | Z9: 16673706
A10: Объект | B10: Ремонт цеха №8, расположенного по адресу: Московская область, г.о. Мытищи, ул.Колонцова, д.4
B11: (наименование)
M14: Вид деятельности по ОКДП | S14: Вид деятельности по ОКДП | Y14: Вид деятельности по ОКДП
L15: Договор подряда (контракт) | M15: номер | N15: МВМ/19-07 | R15: Договор подряда (контракт) | S15: номер | T15: МВМ/19-07 | X15: Договор подряда (контракт) | Y15: номер | Z15: МВМ/19-07
M16: дата | N16: 19.07.2023 | S16: дата | T16: 19.07.2023 | Y16: дата | Z16: 19.07.2023
L17: Дополнительное соглашение | M17: номер | N17: 4 | R17: Дополнительное соглашение | S17: номер | T17: 4 | X17: Дополнительное соглашение | Y17: номер | Z17: 6
M18: дата | N18: 08.02.2024 | S18: дата | T18: 08.02.2024 | Y18: дата | Z18: 15.05.2024
M19: Вид операции | S19: Вид операции | Y19: Вид операции
M21: Номер документа | N21: Дата составления | O21: Отчетный период | S21: Номер документа | T21: Дата составления | U21: Отчетный период | Y21: Номер документа | Z21: Дата составления | AA21: Отчетный период
O22: с | P22: по | U22: с | V22: по | AA22: с | AB22: по
M23: 1 | N23: =P23 -> 2024-03-20 | O23: 2023-07-19 | P23: 2024-03-20 | S23: 2 | T23: =V23 -> 2024-05-02 | U23: 2024-03-21 | V23: 2024-05-02 | Y23: 3 | Z23: =AB23 -> 2024-05-23 | AA23: 2024-05-03 | AB23: 2024-05-23
K25: АКТ | Q25: АКТ | W25: АКТ
K26: О ПРИЕМКЕ ВЫПОЛНЕННЫХ РАБОТ | Q26: О ПРИЕМКЕ ВЫПОЛНЕННЫХ РАБОТ | W26: О ПРИЕМКЕ ВЫПОЛНЕННЫХ РАБОТ
K27: за МАРТ 2024 г. | Q27: за МАЙ 2024 г. | W27: за МАЙ 2024 г.
K28: кс-3 №1 от 20.03.24г. | Q28: кс-3 №2 от 02.05.24г. | W28: кс-3 №3 от 23.05.24г. | AC28: кс-3 № | AI28: кс-3 № | AO28: кс-3 № | AU28: кс-3 № | BA28: кс-3 № | BH28: Выполнено ВСЕГО | BN28: ОСТАТОК
E29: Стоимость работ, руб. с НДС | G29: Стоимость материалов, руб. с НДС | L29: Стоимость работ, руб. с НДС | N29: Стоимость материалов, руб. с НДС | R29: Стоимость работ, руб. с НДС | T29: Стоимость материалов, руб. с НДС | X29: Стоимость работ, руб. с НДС | Z29: Стоимость материалов, руб. с НДС | AD29: Стоимость работ, руб. с НДС | AF29: Стоимость материалов, руб. с НДС | AJ29: Стоимость работ, руб. с НДС | AL29: Стоимость материалов, руб. с НДС | AP29: Стоимость работ, руб. с НДС | AR29: Стоимость материалов, руб. с НДС | AV29: Стоимость работ, руб. с НДС | AX29: Стоимость материалов, руб. с НДС | BB29: Стоимость работ, руб. с НДС | BD29: Стоимость материалов, руб. с НДС | BI29: Стоимость работ, руб. с НДС | BK29: Стоимость материалов, руб. с НДС | BO29: Стоимость работ, руб. с НДС | BQ29: Стоимость материалов, руб. с НДС
A30: № | B30: Наименовение | C30: Ед.изм | D30: Кол-во | E30: за ед. | F30: Итого | G30: за ед. | H30: Итого | I30: Итого, руб. с НДС | K30: Кол-во | L30: за ед. | M30: Итого | N30: за ед. | O30: Итого | P30: Итого, руб. с НДС | Q30: Кол-во | R30: за ед. | S30: Итого | T30: за ед. | U30: Итого | V30: Итого, руб. с НДС | W30: Кол-во | X30: за ед. | Y30: Итого | Z30: за ед. | AA30: Итого | AB30: Итого, руб. с НДС | AC30: Кол-во | AD30: за ед. | AE30: Итого | AF30: за ед. | AG30: Итого | AH30: Итого, руб. с НДС | AI30: Кол-во | AJ30: за ед. | AK30: Итого | AL30: за ед. | AM30: Итого | AN30: Итого, руб. с НДС | AO30: Кол-во | AP30: за ед. | AQ30: Итого | AR30: за ед. | AS30: Итого | AT30: Итого, руб. с НДС | AU30: Кол-во | AV30: за ед. | AW30: Итого | AX30: за ед. | AY30: Итого | AZ30: Итого, руб. с НДС | BA30: Кол-во | BB30: за ед. | BC30: Итого | BD30: за ед. | BE30: Итого | BF30: Итого, руб. с НДС | BH30: Кол-во | BI30: за ед. | BJ30: Итого | BK30: за ед. | BL30: Итого | BM30: Итого, руб. с НДС | BN30: Кол-во | BO30: за ед. | BP30: Итого | BQ30: за ед. | BR30: Итого | BS30: Итого, руб. с НДС
A31: 1 | B31: Основные объекты строительства, реконструкции, капитального ремонта, в том числе:
A32: 1.1 | B32: 130-23-АС3 Архитектурно-строительные решения | F32: =F34+F35+F36+F37+F39+F40+F42+F43+F44+F45+F46+F47+F48+F49+F51+F52+F53+F54+F55+F56+F57+F58+F59+F60+F61+F62+F63+F64+F65+F66+F67+F68+F69+F70+F71+F72+F74+F75+F76+F77+F79+F80+F81+F82+F83+F84+F85+F86+F87+F88+F89+F90+F91+F92+F93 -> 23834068.02 | H32: =H34+H35+H36+H37+H39+H40+H42+H43+H44+H45+H46+H47+H48+H49+H51+H52+H53+H54+H55+H56+H57+H58+H59+H60+H61+H62+H63+H64+H65+H66+H67+H68+H69+H70+H71+H72+H74+H75+H76+H77+H79+H80+H81+H82+H83+H84+H85+H86+H87+H88+H89+H90+H91+H92+H93 -> 21868543.3 | I32: =I34+I35+I36+I37+I39+I40+I42+I43+I44+I45+I46+I47+I48+I49+I51+I52+I53+I54+I55+I56+I57+I58+I59+I60+I61+I62+I63+I64+I65+I66+I67+I68+I69+I70+I71+I72+I74+I75+I76+I77+I79+I80+I81+I82+I83+I84+I85+I86+I87+I88+I89+I90+I91+I92+I93 -> 45702611.32 | M32: =M34+M35+M36+M37+M39+M40+M42+M43+M44+M45+M46+M47+M48+M49+M51+M52+M53+M54+M55+M56+M57+M58+M59+M60+M61+M62+M63+M64+M65+M66+M67+M68+M69+M70+M71+M72+M74+M75+M76+M77+M79+M80+M81+M82+M83+M84+M85+M86+M87+M88+M89+M90+M91+M92+M93 -> 6476170 | O32: =O34+O35+O36+O37+O39+O40+O42+O43+O44+O45+O46+O47+O48+O49+O51+O52+O53+O54+O55+O56+O57+O58+O59+O60+O61+O62+O63+O64+O65+O66+O67+O68+O69+O70+O71+O72+O74+O75+O76+O77+O79+O80+O81+O82+O83+O84+O85+O86+O87+O88+O89+O90+O91+O92+O93 -> 6962719.645 | P32: =P34+P35+P36+P37+P39+P40+P42+P43+P44+P45+P46+P47+P48+P49+P51+P52+P53+P54+P55+P56+P57+P58+P59+P60+P61+P62+P63+P64+P65+P66+P67+P68+P69+P70+P71+P72+P74+P75+P76+P77+P79+P80+P81+P82+P83+P84+P85+P86+P87+P88+P89+P90+P91+P92+P93 -> 13438889.64 | S32: =S34+S35+S36+S37+S39+S40+S42+S43+S44+S45+S46+S47+S48+S49+S51+S52+S53+S54+S55+S56+S57+S58+S59+S60+S61+S62+S63+S64+S65+S66+S67+S68+S69+S70+S71+S72+S74+S75+S76+S77+S79+S80+S81+S82+S83+S84+S85+S86+S87+S88+S89+S90+S91+S92+S93 -> 1864348.8 | U32: =U34+U35+U36+U37+U39+U40+U42+U43+U44+U45+U46+U47+U48+U49+U51+U52+U53+U54+U55+U56+U57+U58+U59+U60+U61+U62+U63+U64+U65+U66+U67+U68+U69+U70+U71+U72+U74+U75+U76+U77+U79+U80+U81+U82+U83+U84+U85+U86+U87+U88+U89+U90+U91+U92+U93 -> 1794786.96 | V32: =V34+V35+V36+V37+V39+V40+V42+V43+V44+V45+V46+V47+V48+V49+V51+V52+V53+V54+V55+V56+V57+V58+V59+V60+V61+V62+V63+V64+V65+V66+V67+V68+V69+V70+V71+V72+V74+V75+V76+V77+V79+V80+V81+V82+V83+V84+V85+V86+V87+V88+V89+V90+V91+V92+V93 -> 3659135.76 | Y32: =Y34+Y35+Y36+Y37+Y39+Y40+Y42+Y43+Y44+Y45+Y46+Y47+Y48+Y49+Y51+Y52+Y53+Y54+Y55+Y56+Y57+Y58+Y59+Y60+Y61+Y62+Y63+Y64+Y65+Y66+Y67+Y68+Y69+Y70+Y71+Y72+Y74+Y75+Y76+Y77+Y79+Y80+Y81+Y82+Y83+Y84+Y85+Y86+Y87+Y88+Y89+Y90+Y91+Y92+Y93 -> 10720245.66 | AA32: =AA34+AA35+AA36+AA37+AA39+AA40+AA42+AA43+AA44+AA45+AA46+AA47+AA48+AA49+AA51+AA52+AA53+AA54+AA55+AA56+AA57+AA58+AA59+AA60+AA61+AA62+AA63+AA64+AA65+AA66+AA67+AA68+AA69+AA70+AA71+AA72+AA74+AA75+AA76+AA77+AA79+AA80+AA81+AA82+AA83+AA84+AA85+AA86+AA87+AA88+AA89+AA90+AA91+AA92+AA93 -> 8589710.39 | AB32: =AB34+AB35+AB36+AB37+AB39+AB40+AB42+AB43+AB44+AB45+AB46+AB47+AB48+AB49+AB51+AB52+AB53+AB54+AB55+AB56+AB57+AB58+AB59+AB60+AB61+AB62+AB63+AB64+AB65+AB66+AB67+AB68+AB69+AB70+AB71+AB72+AB74+AB75+AB76+AB77+AB79+AB80+AB81+AB82+AB83+AB84+AB85+AB86+AB87+AB88+AB89+AB90+AB91+AB92+AB93 -> 19309956.05 | AE32: =AE34+AE35+AE36+AE37+AE39+AE40+AE42+AE43+AE44+AE45+AE46+AE47+AE48+AE49+AE51+AE52+AE53+AE54+AE55+AE56+AE57+AE58+AE59+AE60+AE61+AE62+AE63+AE64+AE65+AE66+AE67+AE68+AE69+AE70+AE71+AE72+AE74+AE75+AE76+AE77+AE79+AE80+AE81+AE82+AE83+AE84+AE85+AE86+AE87+AE88+AE89+AE90+AE91+AE92+AE93 -> 0 | AG32: =AG34+AG35+AG36+AG37+AG39+AG40+AG42+AG43+AG44+AG45+AG46+AG47+AG48+AG49+AG51+AG52+AG53+AG54+AG55+AG56+AG57+AG58+AG59+AG60+AG61+AG62+AG63+AG64+AG65+AG66+AG67+AG68+AG69+AG70+AG71+AG72+AG74+AG75+AG76+AG77+AG79+AG80+AG81+AG82+AG83+AG84+AG85+AG86+AG87+AG88+AG89+AG90+AG91+AG92+AG93 -> 0 | AH32: =AH34+AH35+AH36+AH37+AH39+AH40+AH42+AH43+AH44+AH45+AH46+AH47+AH48+AH49+AH51+AH52+AH53+AH54+AH55+AH56+AH57+AH58+AH59+AH60+AH61+AH62+AH63+AH64+AH65+AH66+AH67+AH68+AH69+AH70+AH71+AH72+AH74+AH75+AH76+AH77+AH79+AH80+AH81+AH82+AH83+AH84+AH85+AH86+AH87+AH88+AH89+AH90+AH91+AH92+AH93 -> 0 | AK32: =AK34+AK35+AK36+AK37+AK39+AK40+AK42+AK43+AK44+AK45+AK46+AK47+AK48+AK49+AK51+AK52+AK53+AK54+AK55+AK56+AK57+AK58+AK59+AK60+AK61+AK62+AK63+AK64+AK65+AK66+AK67+AK68+AK69+AK70+AK71+AK72+AK74+AK75+AK76+AK77+AK79+AK80+AK81+AK82+AK83+AK84+AK85+AK86+AK87+AK88+AK89+AK90+AK91+AK92+AK93 -> 0 | AM32: =AM34+AM35+AM36+AM37+AM39+AM40+AM42+AM43+AM44+AM45+AM46+AM47+AM48+AM49+AM51+AM52+AM53+AM54+AM55+AM56+AM57+AM58+AM59+AM60+AM61+AM62+AM63+AM64+AM65+AM66+AM67+AM68+AM69+AM70+AM71+AM72+AM74+AM75+AM76+AM77+AM79+AM80+AM81+AM82+AM83+AM84+AM85+AM86+AM87+AM88+AM89+AM90+AM91+AM92+AM93 -> 0 | AN32: =AN34+AN35+AN36+AN37+AN39+AN40+AN42+AN43+AN44+AN45+AN46+AN47+AN48+AN49+AN51+AN52+AN53+AN54+AN55+AN56+AN57+AN58+AN59+AN60+AN61+AN62+AN63+AN64+AN65+AN66+AN67+AN68+AN69+AN70+AN71+AN72+AN74+AN75+AN76+AN77+AN79+AN80+AN81+AN82+AN83+AN84+AN85+AN86+AN87+AN88+AN89+AN90+AN91+AN92+AN93 -> 0 | AQ32: =AQ34+AQ35+AQ36+AQ37+AQ39+AQ40+AQ42+AQ43+AQ44+AQ45+AQ46+AQ47+AQ48+AQ49+AQ51+AQ52+AQ53+AQ54+AQ55+AQ56+AQ57+AQ58+AQ59+AQ60+AQ61+AQ62+AQ63+AQ64+AQ65+AQ66+AQ67+AQ68+AQ69+AQ70+AQ71+AQ72+AQ74+AQ75+AQ76+AQ77+AQ79+AQ80+AQ81+AQ82+AQ83+AQ84+AQ85+AQ86+AQ87+AQ88+AQ89+AQ90+AQ91+AQ92+AQ93 -> 0 | AS32: =AS34+AS35+AS36+AS37+AS39+AS40+AS42+AS43+AS44+AS45+AS46+AS47+AS48+AS49+AS51+AS52+AS53+AS54+AS55+AS56+AS57+AS58+AS59+AS60+AS61+AS62+AS63+AS64+AS65+AS66+AS67+AS68+AS69+AS70+AS71+AS72+AS74+AS75+AS76+AS77+AS79+AS80+AS81+AS82+AS83+AS84+AS85+AS86+AS87+AS88+AS89+AS90+AS91+AS92+AS93 -> 0 | AT32: =AT34+AT35+AT36+AT37+AT39+AT40+AT42+AT43+AT44+AT45+AT46+AT47+AT48+AT49+AT51+AT52+AT53+AT54+AT55+AT56+AT57+AT58+AT59+AT60+AT61+AT62+AT63+AT64+AT65+AT66+AT67+AT68+AT69+AT70+AT71+AT72+AT74+AT75+AT76+AT77+AT79+AT80+AT81+AT82+AT83+AT84+AT85+AT86+AT87+AT88+AT89+AT90+AT91+AT92+AT93 -> 0 | AW32: =AW34+AW35+AW36+AW37+AW39+AW40+AW42+AW43+AW44+AW45+AW46+AW47+AW48+AW49+AW51+AW52+AW53+AW54+AW55+AW56+AW57+AW58+AW59+AW60+AW61+AW62+AW63+AW64+AW65+AW66+AW67+AW68+AW69+AW70+AW71+AW72+AW74+AW75+AW76+AW77+AW79+AW80+AW81+AW82+AW83+AW84+AW85+AW86+AW87+AW88+AW89+AW90+AW91+AW92+AW93 -> 0 | AY32: =AY34+AY35+AY36+AY37+AY39+AY40+AY42+AY43+AY44+AY45+AY46+AY47+AY48+AY49+AY51+AY52+AY53+AY54+AY55+AY56+AY57+AY58+AY59+AY60+AY61+AY62+AY63+AY64+AY65+AY66+AY67+AY68+AY69+AY70+AY71+AY72+AY74+AY75+AY76+AY77+AY79+AY80+AY81+AY82+AY83+AY84+AY85+AY86+AY87+AY88+AY89+AY90+AY91+AY92+AY93 -> 0 | AZ32: =AZ34+AZ35+AZ36+AZ37+AZ39+AZ40+AZ42+AZ43+AZ44+AZ45+AZ46+AZ47+AZ48+AZ49+AZ51+AZ52+AZ53+AZ54+AZ55+AZ56+AZ57+AZ58+AZ59+AZ60+AZ61+AZ62+AZ63+AZ64+AZ65+AZ66+AZ67+AZ68+AZ69+AZ70+AZ71+AZ72+AZ74+AZ75+AZ76+AZ77+AZ79+AZ80+AZ81+AZ82+AZ83+AZ84+AZ85+AZ86+AZ87+AZ88+AZ89+AZ90+AZ91+AZ92+AZ93 -> 0 | BC32: =BC34+BC35+BC36+BC37+BC39+BC40+BC42+BC43+BC44+BC45+BC46+BC47+BC48+BC49+BC51+BC52+BC53+BC54+BC55+BC56+BC57+BC58+BC59+BC60+BC61+BC62+BC63+BC64+BC65+BC66+BC67+BC68+BC69+BC70+BC71+BC72+BC74+BC75+BC76+BC77+BC79+BC80+BC81+BC82+BC83+BC84+BC85+BC86+BC87+BC88+BC89+BC90+BC91+BC92+BC93 -> 0 | BE32: =BE34+BE35+BE36+BE37+BE39+BE40+BE42+BE43+BE44+BE45+BE46+BE47+BE48+BE49+BE51+BE52+BE53+BE54+BE55+BE56+BE57+BE58+BE59+BE60+BE61+BE62+BE63+BE64+BE65+BE66+BE67+BE68+BE69+BE70+BE71+BE72+BE74+BE75+BE76+BE77+BE79+BE80+BE81+BE82+BE83+BE84+BE85+BE86+BE87+BE88+BE89+BE90+BE91+BE92+BE93 -> 0 | BF32: =BF34+BF35+BF36+BF37+BF39+BF40+BF42+BF43+BF44+BF45+BF46+BF47+BF48+BF49+BF51+BF52+BF53+BF54+BF55+BF56+BF57+BF58+BF59+BF60+BF61+BF62+BF63+BF64+BF65+BF66+BF67+BF68+BF69+BF70+BF71+BF72+BF74+BF75+BF76+BF77+BF79+BF80+BF81+BF82+BF83+BF84+BF85+BF86+BF87+BF88+BF89+BF90+BF91+BF92+BF93 -> 0 | BJ32: =BJ34+BJ35+BJ36+BJ37+BJ39+BJ40+BJ42+BJ43+BJ44+BJ45+BJ46+BJ47+BJ48+BJ49+BJ51+BJ52+BJ53+BJ54+BJ55+BJ56+BJ57+BJ58+BJ59+BJ60+BJ61+BJ62+BJ63+BJ64+BJ65+BJ66+BJ67+BJ68+BJ69+BJ70+BJ71+BJ72+BJ74+BJ75+BJ76+BJ77+BJ79+BJ80+BJ81+BJ82+BJ83+BJ84+BJ85+BJ86+BJ87+BJ88+BJ89+BJ90+BJ91+BJ92+BJ93 -> 19060764.46 | BL32: =BL34+BL35+BL36+BL37+BL39+BL40+BL42+BL43+BL44+BL45+BL46+BL47+BL48+BL49+BL51+BL52+BL53+BL54+BL55+BL56+BL57+BL58+BL59+BL60+BL61+BL62+BL63+BL64+BL65+BL66+BL67+BL68+BL69+BL70+BL71+BL72+BL74+BL75+BL76+BL77+BL79+BL80+BL81+BL82+BL83+BL84+BL85+BL86+BL87+BL88+BL89+BL90+BL91+BL92+BL93 -> 17347216.99 | BM32: =BM34+BM35+BM36+BM37+BM39+BM40+BM42+BM43+BM44+BM45+BM46+BM47+BM48+BM49+BM51+BM52+BM53+BM54+BM55+BM56+BM57+BM58+BM59+BM60+BM61+BM62+BM63+BM64+BM65+BM66+BM67+BM68+BM69+BM70+BM71+BM72+BM74+BM75+BM76+BM77+BM79+BM80+BM81+BM82+BM83+BM84+BM85+BM86+BM87+BM88+BM89+BM90+BM91+BM92+BM93 -> 36407981.45 | BP32: =BP34+BP35+BP36+BP37+BP39+BP40+BP42+BP43+BP44+BP45+BP46+BP47+BP48+BP49+BP51+BP52+BP53+BP54+BP55+BP56+BP57+BP58+BP59+BP60+BP61+BP62+BP63+BP64+BP65+BP66+BP67+BP68+BP69+BP70+BP71+BP72+BP74+BP75+BP76+BP77+BP79+BP80+BP81+BP82+BP83+BP84+BP85+BP86+BP87+BP88+BP89+BP90+BP91+BP92+BP93 -> 4773303.559 | BR32: =BR34+BR35+BR36+BR37+BR39+BR40+BR42+BR43+BR44+BR45+BR46+BR47+BR48+BR49+BR51+BR52+BR53+BR54+BR55+BR56+BR57+BR58+BR59+BR60+BR61+BR62+BR63+BR64+BR65+BR66+BR67+BR68+BR69+BR70+BR71+BR72+BR74+BR75+BR76+BR77+BR79+BR80+BR81+BR82+BR83+BR84+BR85+BR86+BR87+BR88+BR89+BR90+BR91+BR92+BR93 -> 4521326.306 | BS32: =BS34+BS35+BS36+BS37+BS39+BS40+BS42+BS43+BS44+BS45+BS46+BS47+BS48+BS49+BS51+BS52+BS53+BS54+BS55+BS56+BS57+BS58+BS59+BS60+BS61+BS62+BS63+BS64+BS65+BS66+BS67+BS68+BS69+BS70+BS71+BS72+BS74+BS75+BS76+BS77+BS79+BS80+BS81+BS82+BS83+BS84+BS85+BS86+BS87+BS88+BS89+BS90+BS91+BS92+BS93 -> 9294629.866
A33: 1.1.1 | B33: Демонтажные работы | BH33: =K33+Q33+W33+AC33+AI33+AO33+AU33+BA33 -> 0 | BN33: =D33-BH33 -> 0
A34: 1.1.1.1 | B34: Частичный демонтаж крестовых связей | C34: тн | D34: 0.44 | E34: 49415 | F34: =D34*E34 -> 21742.6 | G34: 0 | I34: =E34*D34+G34*D34 -> 21742.6 | K34: 0.44 | L34: 49415 | M34: =K34*L34 -> 21742.6 | N34: 0 | P34: =L34*K34+N34*K34 -> 21742.6 | R34: 49415 | S34: =Q34*R34 -> 0 | T34: 0 | V34: =R34*Q34+T34*Q34 -> 0 | X34: 49415 | Y34: =W34*X34 -> 0 | Z34: 0 | AB34: =X34*W34+Z34*W34 -> 0 | AD34: 49415 | AE34: =AC34*AD34 -> 0 | AF34: 0 | AH34: =AD34*AC34+AF34*AC34 -> 0 | AJ34: 49415 | AK34: =AI34*AJ34 -> 0 | AL34: 0 | AN34: =AJ34*AI34+AL34*AI34 -> 0 | AP34: 49415 | AQ34: =AO34*AP34 -> 0 | AR34: 0 | AT34: =AP34*AO34+AR34*AO34 -> 0 | AV34: 49415 | AW34: =AU34*AV34 -> 0 | AX34: 0 | AZ34: =AV34*AU34+AX34*AU34 -> 0 | BB34: 49415 | BC34: =BA34*BB34 -> 0 | BD34: 0 | BF34: =BB34*BA34+BD34*BA34 -> 0 | BH34: =K34+Q34+W34+AC34+AI34+AO34+AU34+BA34 -> 0.44 | BI34: 49415 | BJ34: =BH34*BI34 -> 21742.6 | BK34: 0 | BM34: =BI34*BH34+BK34*BH34 -> 21742.6 | BN34: =D34-BH34 -> 0 | BO34: 49415 | BP34: =BN34*BO34 -> 0 | BQ34: 0 | BS34: =BO34*BN34+BQ34*BN34 -> 0
A35: 1.1.1.2 | B35: Демонтаж сэндвич панелей | C35: м2 | D35: 389.4 | E35: 990 | F35: =D35*E35 -> 385506 | G35: 0 | I35: =E35*D35+G35*D35 -> 385506 | K35: 389.4 | L35: 990 | M35: =K35*L35 -> 385506 | N35: 0 | P35: =L35*K35+N35*K35 -> 385506 | R35: 990 | S35: =Q35*R35 -> 0 | T35: 0 | V35: =R35*Q35+T35*Q35 -> 0 | X35: 990 | Y35: =W35*X35 -> 0 | Z35: 0 | AB35: =X35*W35+Z35*W35 -> 0 | AD35: 990 | AE35: =AC35*AD35 -> 0 | AF35: 0 | AH35: =AD35*AC35+AF35*AC35 -> 0 | AJ35: 990 | AK35: =AI35*AJ35 -> 0 | AL35: 0 | AN35: =AJ35*AI35+AL35*AI35 -> 0 | AP35: 990 | AQ35: =AO35*AP35 -> 0 | AR35: 0 | AT35: =AP35*AO35+AR35*AO35 -> 0 | AV35: 990 | AW35: =AU35*AV35 -> 0 | AX35: 0 | AZ35: =AV35*AU35+AX35*AU35 -> 0 | BB35: 990 | BC35: =BA35*BB35 -> 0 | BD35: 0 | BF35: =BB35*BA35+BD35*BA35 -> 0 | BH35: 389.4 | BI35: 990 | BJ35: =BH35*BI35 -> 385506 | BK35: 0 | BM35: =BI35*BH35+BK35*BH35 -> 385506 | BN35: 0 | BO35: 990 | BP35: =BN35*BO35 -> 0 | BQ35: 0 | BS35: =BO35*BN35+BQ35*BN35 -> 0
A36: 1.1.2 | B36: Устройство фахверка | C36: тн | D36: 0.34 | E36: 95478 | F36: =D36*E36 -> 32462.52 | G36: 229000 | H36: =D36*G36 -> 77860 | I36: =E36*D36+G36*D36 -> 110322.52 | L36: 95478 | M36: =K36*L36 -> 0 | N36: 229000 | O36: =K36*N36 -> 0 | P36: =L36*K36+N36*K36 -> 0 | R36: 95478 | S36: =Q36*R36 -> 0 | T36: 229000 | U36: =Q36*T36 -> 0 | V36: =R36*Q36+T36*Q36 -> 0 | X36: 95478 | Y36: =W36*X36 -> 0 | Z36: 229000 | AA36: =W36*Z36 -> 0 | AB36: =X36*W36+Z36*W36 -> 0 | AD36: 95478 | AE36: =AC36*AD36 -> 0 | AF36: 229000 | AG36: =AC36*AF36 -> 0 | AH36: =AD36*AC36+AF36*AC36 -> 0 | AJ36: 95478 | AK36: =AI36*AJ36 -> 0 | AL36: 229000 | AM36: =AI36*AL36 -> 0 | AN36: =AJ36*AI36+AL36*AI36 -> 0 | AP36: 95478 | AQ36: =AO36*AP36 -> 0 | AR36: 229000 | AS36: =AO36*AR36 -> 0 | AT36: =AP36*AO36+AR36*AO36 -> 0 | AV36: 95478 | AW36: =AU36*AV36 -> 0 | AX36: 229000 | AY36: =AU36*AX36 -> 0 | AZ36: =AV36*AU36+AX36*AU36 -> 0 | BB36: 95478 | BC36: =BA36*BB36 -> 0 | BD36: 229000 | BE36: =BA36*BD36 -> 0 | BF36: =BB36*BA36+BD36*BA36 -> 0 | BH36: 0 | BI36: 95478 | BJ36: =BH36*BI36 -> 0 | BK36: 229000 | BL36: =BH36*BK36 -> 0 | BM36: =BI36*BH36+BK36*BH36 -> 0 | BN36: 0.34 | BO36: 95478 | BP36: =BN36*BO36 -> 32462.52 | BQ36: 229000 | BR36: =BN36*BQ36 -> 77860 | BS36: =BO36*BN36+BQ36*BN36 -> 110322.52
A37: 1.1.3 | B37: Устройство сэндвич панелей | C37: м2 | D37: 389.4 | E37: 2711 | F37: =D37*E37 -> 1055663.4 | G37: 6573 | H37: =D37*G37 -> 2559526.2 | I37: =E37*D37+G37*D37 -> 3615189.6 | K37: 389.4 | L37: 2711 | M37: =K37*L37 -> 1055663.4 | N37: 6573 | O37: =K37*N37 -> 2559526.2 | P37: =L37*K37+N37*K37 -> 3615189.6 | R37: 2711 | S37: =Q37*R37 -> 0 | T37: 6573 | U37: =Q37*T37 -> 0 | V37: =R37*Q37+T37*Q37 -> 0 | X37: 2711 | Y37: =W37*X37 -> 0 | Z37: 6573 | AA37: =W37*Z37 -> 0 | AB37: =X37*W37+Z37*W37 -> 0 | AD37: 2711 | AE37: =AC37*AD37 -> 0 | AF37: 6573 | AG37: =AC37*AF37 -> 0 | AH37: =AD37*AC37+AF37*AC37 -> 0 | AJ37: 2711 | AK37: =AI37*AJ37 -> 0 | AL37: 6573 | AM37: =AI37*AL37 -> 0 | AN37: =AJ37*AI37+AL37*AI37 -> 0 | AP37: 2711 | AQ37: =AO37*AP37 -> 0 | AR37: 6573 | AS37: =AO37*AR37 -> 0 | AT37: =AP37*AO37+AR37*AO37 -> 0 | AV37: 2711 | AW37: =AU37*AV37 -> 0 | AX37: 6573 | AY37: =AU37*AX37 -> 0 | AZ37: =AV37*AU37+AX37*AU37 -> 0 | BB37: 2711 | BC37: =BA37*BB37 -> 0 | BD37: 6573 | BE37: =BA37*BD37 -> 0 | BF37: =BB37*BA37+BD37*BA37 -> 0 | BH37: 389.4 | BI37: 2711 | BJ37: =BH37*BI37 -> 1055663.4 | BK37: 6573 | BL37: =BH37*BK37 -> 2559526.2 | BM37: =BI37*BH37+BK37*BH37 -> 3615189.6 | BN37: 0 | BO37: 2711 | BP37: =BN37*BO37 -> 0 | BQ37: 6573 | BR37: =BN37*BQ37 -> 0 | BS37: =BO37*BN37+BQ37*BN37 -> 0
A38: 1.1.4 | B38: Устройство перегородок | E38: 0 | G38: 0 | L38: 0 | N38: 0 | R38: 0 | T38: 0 | X38: 0 | Z38: 0 | AD38: 0 | AF38: 0 | AJ38: 0 | AL38: 0 | AP38: 0 | AR38: 0 | AV38: 0 | AX38: 0 | BB38: 0 | BD38: 0 | BH38: 0 | BI38: 0 | BK38: 0 | BN38: 0 | BO38: 0 | BQ38: 0
A39: 1.1.4.1 | B39: Перегородки гипсокартонные типа С112 комплексной системы КНАУФ толщиной 100 мм с облицовкой 2мя листами ГКЛ (толщиной 12,5мм) со звукоизолирующим слоем из минераловатных плит Лайт Баттс толщиной 50 мм | C39: м2 | D39: 536 | E39: 4955 | F39: =D39*E39 -> 2655880 | G39: 4501 | H39: =D39*G39 -> 2412536 | I39: =E39*D39+G39*D39 -> 5068416 | K39: 428.8 | L39: 4955 | M39: =K39*L39 -> 2124704 | N39: 4501 | O39: =K39*N39 -> 1930028.8 | P39: =L39*K39+N39*K39 -> 4054732.8 | Q39: 96.96 | R39: 4955 | S39: =Q39*R39 -> 480436.8 | T39: 4501 | U39: =Q39*T39 -> 436416.96 | V39: =R39*Q39+T39*Q39 -> 916853.76 | X39: 4955 | Y39: =W39*X39 -> 0 | Z39: 4501 | AA39: =W39*Z39 -> 0 | AB39: =X39*W39+Z39*W39 -> 0 | AD39: 4955 | AE39: =AC39*AD39 -> 0 | AF39: 4501 | AG39: =AC39*AF39 -> 0 | AH39: =AD39*AC39+AF39*AC39 -> 0 | AJ39: 4955 | AK39: =AI39*AJ39 -> 0 | AL39: 4501 | AM39: =AI39*AL39 -> 0 | AN39: =AJ39*AI39+AL39*AI39 -> 0 | AP39: 4955 | AQ39: =AO39*AP39 -> 0 | AR39: 4501 | AS39: =AO39*AR39 -> 0 | AT39: =AP39*AO39+AR39*AO39 -> 0 | AV39: 4955 | AW39: =AU39*AV39 -> 0 | AX39: 4501 | AY39: =AU39*AX39 -> 0 | AZ39: =AV39*AU39+AX39*AU39 -> 0 | BB39: 4955 | BC39: =BA39*BB39 -> 0 | BD39: 4501 | BE39: =BA39*BD39 -> 0 | BF39: =BB39*BA39+BD39*BA39 -> 0 | BH39: 525.76 | BI39: 4955 | BJ39: =BH39*BI39 -> 2605140.8 | BK39: 4501 | BL39: =BH39*BK39 -> 2366445.76 | BM39: =BI39*BH39+BK39*BH39 -> 4971586.56 | BN39: 10.24 | BO39: 4955 | BP39: =BN39*BO39 -> 50739.2 | BQ39: 4501 | BR39: =BN39*BQ39 -> 46090.24 | BS39: =BO39*BN39+BQ39*BN39 -> 96829.44
A40: 1.1.4.2 | B40: Устройство отверстий под воздуховоды | C40: шт | D40: 2 | E40: 8577.88 | F40: =D40*E40 -> 17155.76 | G40: 4657.25 | H40: =D40*G40 -> 9314.5 | I40: =E40*D40+G40*D40 -> 26470.26 | L40: 8577.88 | M40: =K40*L40 -> 0 | N40: 4657.25 | O40: =K40*N40 -> 0 | P40: =L40*K40+N40*K40 -> 0 | R40: 8577.88 | S40: =Q40*R40 -> 0 | T40: 4657.25 | U40: =Q40*T40 -> 0 | V40: =R40*Q40+T40*Q40 -> 0 | X40: 8577.88 | Y40: =W40*X40 -> 0 | Z40: 4657.25 | AA40: =W40*Z40 -> 0 | AB40: =X40*W40+Z40*W40 -> 0 | AD40: 8577.88 | AE40: =AC40*AD40 -> 0 | AF40: 4657.25 | AG40: =AC40*AF40 -> 0 | AH40: =AD40*AC40+AF40*AC40 -> 0 | AJ40: 8577.88 | AK40: =AI40*AJ40 -> 0 | AL40: 4657.25 | AM40: =AI40*AL40 -> 0 | AN40: =AJ40*AI40+AL40*AI40 -> 0 | AP40: 8577.88 | AQ40: =AO40*AP40 -> 0 | AR40: 4657.25 | AS40: =AO40*AR40 -> 0 | AT40: =AP40*AO40+AR40*AO40 -> 0 | AV40: 8577.88 | AW40: =AU40*AV40 -> 0 | AX40: 4657.25 | AY40: =AU40*AX40 -> 0 | AZ40: =AV40*AU40+AX40*AU40 -> 0 | BB40: 8577.88 | BC40: =BA40*BB40 -> 0 | BD40: 4657.25 | BE40: =BA40*BD40 -> 0 | BF40: =BB40*BA40+BD40*BA40 -> 0 | BH40: 0 | BI40: 8577.88 | BJ40: =BH40*BI40 -> 0 | BK40: 4657.25 | BL40: =BH40*BK40 -> 0 | BM40: =BI40*BH40+BK40*BH40 -> 0 | BN40: 2 | BO40: 8577.88 | BP40: =BN40*BO40 -> 17155.76 | BQ40: 4657.25 | BR40: =BN40*BQ40 -> 9314.5 | BS40: =BO40*BN40+BQ40*BN40 -> 26470.26
A41: 1.1.5 | B41: Отделка потолков помещений | E41: 0 | G41: 0 | L41: 0 | N41: 0 | R41: 0 | T41: 0 | AD41: 0 | AF41: 0 | AJ41: 0 | AL41: 0 | AP41: 0 | AR41: 0 | AV41: 0 | AX41: 0 | BB41: 0 | BD41: 0 | BH41: 0 | BI41: 0 | BK41: 0 | BN41: 0 | BO41: 0 | BQ41: 0
A42: 1.1.5.1 | B42: Подвесной потолок системы "Армстронг" | C42: м2 | D42: 301.4 | E42: 3957.07 | F42: =D42*E42 -> 1192660.898 | G42: 0 | I42: =E42*D42+G42*D42 -> 1192660.898 | L42: 3957.07 | M42: =K42*L42 -> 0 | N42: 0 | P42: =L42*K42+N42*K42 -> 0 | R42: 3957.07 | S42: =Q42*R42 -> 0 | T42: 0 | V42: =R42*Q42+T42*Q42 -> 0 | W42: 301.4 | X42: 3957.07 | Y42: =W42*X42 -> 1192660.898 | Z42: 0 | AB42: =X42*W42+Z42*W42 -> 1192660.898 | AD42: 3957.07 | AE42: =AC42*AD42 -> 0 | AF42: 0 | AH42: =AD42*AC42+AF42*AC42 -> 0 | AJ42: 3957.07 | AK42: =AI42*AJ42 -> 0 | AL42: 0 | AN42: =AJ42*AI42+AL42*AI42 -> 0 | AP42: 3957.07 | AQ42: =AO42*AP42 -> 0 | AR42: 0 | AT42: =AP42*AO42+AR42*AO42 -> 0 | AV42: 3957.07 | AW42: =AU42*AV42 -> 0 | AX42: 0 | AZ42: =AV42*AU42+AX42*AU42 -> 0 | BB42: 3957.07 | BC42: =BA42*BB42 -> 0 | BD42: 0 | BF42: =BB42*BA42+BD42*BA42 -> 0 | BH42: 301.4 | BI42: 3957.07 | BJ42: =BH42*BI42 -> 1192660.898 | BK42: 0 | BM42: =BI42*BH42+BK42*BH42 -> 1192660.898 | BN42: 0 | BO42: 3957.07 | BP42: =BN42*BO42 -> 0 | BQ42: 0 | BS42: =BO42*BN42+BQ42*BN42 -> 0
A43: 1.1.5.2 | B43: Подвесной потолок системы с шумоглушением | C43: м2 | D43: 168.8 | E43: 1131.76 | F43: 191041.088 | G43: 3051.39 | H43: =D43*G43 -> 515074.632 | I43: 706115.72 | L43: 1131.76 | M43: 0 | N43: 3051.39 | O43: =K43*N43 -> 0 | P43: 0 | R43: 1131.76 | S43: 0 | T43: 3051.39 | U43: =Q43*T43 -> 0 | V43: 0 | W43: 168.8 | X43: 1131.76 | Y43: 191041.088 | Z43: 3051.39 | AA43: =W43*Z43 -> 515074.632 | AB43: 706115.72 | AD43: 1131.76 | AE43: 0 | AF43: 3051.39 | AG43: =AC43*AF43 -> 0 | AH43: 0 | AJ43: 1131.76 | AK43: 0 | AL43: 3051.39 | AM43: =AI43*AL43 -> 0 | AN43: 0 | AP43: 1131.76 | AQ43: 0 | AR43: 3051.39 | AS43: =AO43*AR43 -> 0 | AT43: 0 | AV43: 1131.76 | AW43: 0 | AX43: 3051.39 | AY43: =AU43*AX43 -> 0 | AZ43: 0 | BB43: 1131.76 | BC43: 0 | BD43: 3051.39 | BE43: =BA43*BD43 -> 0 | BF43: 0 | BH43: 168.8 | BI43: 1131.76 | BJ43: 191041.088 | BK43: 3051.39 | BL43: =BH43*BK43 -> 515074.632 | BM43: 706115.72 | BN43: 0 | BO43: 1131.76 | BP43: 0 | BQ43: 3051.39 | BR43: =BN43*BQ43 -> 0 | BS43: 0
A44: 1.1.5.3 | B44: Реечный алюминиевый потолок | C44: м2 | D44: 111.8 | E44: 7888.98 | F44: 881987.964 | G44: 0 | I44: 881987.964 | L44: 7888.98 | M44: 0 | N44: 0 | P44: 0 | R44: 7888.98 | S44: 0 | T44: 0 | V44: 0 | W44: 111.8 | X44: 7888.98 | Y44: 881987.964 | Z44: 0 | AB44: 881987.964 | AD44: 7888.98 | AE44: 0 | AF44: 0 | AH44: 0 | AJ44: 7888.98 | AK44: 0 | AL44: 0 | AN44: 0 | AP44: 7888.98 | AQ44: 0 | AR44: 0 | AT44: 0 | AV44: 7888.98 | AW44: 0 | AX44: 0 | AZ44: 0 | BB44: 7888.98 | BC44: 0 | BD44: 0 | BF44: 0 | BH44: 111.8 | BI44: 7888.98 | BJ44: 881987.964 | BK44: 0 | BM44: 881987.964 | BN44: 0 | BO44: 7888.98 | BP44: 0 | BQ44: 0 | BS44: 0
A45: 1.1.5.4 | B45: Затирка бетонной поверхности перекрытия перед устройством потолка | C45: м2 | D45: 206.75 | E45: 1134.79 | F45: 234617.8325 | G45: 719.09 | H45: =D45*G45 -> 148671.8575 | I45: 383289.69 | L45: 1134.79 | M45: 0 | N45: 719.09 | O45: =K45*N45 -> 0 | P45: 0 | R45: 1134.79 | S45: 0 | T45: 719.09 | U45: =Q45*T45 -> 0 | V45: 0 | X45: 1134.79 | Y45: 0 | Z45: 719.09 | AA45: =W45*Z45 -> 0 | AB45: 0 | AD45: 1134.79 | AE45: 0 | AF45: 719.09 | AG45: =AC45*AF45 -> 0 | AH45: 0 | AJ45: 1134.79 | AK45: 0 | AL45: 719.09 | AM45: =AI45*AL45 -> 0 | AN45: 0 | AP45: 1134.79 | AQ45: 0 | AR45: 719.09 | AS45: =AO45*AR45 -> 0 | AT45: 0 | AV45: 1134.79 | AW45: 0 | AX45: 719.09 | AY45: =AU45*AX45 -> 0 | AZ45: 0 | BB45: 1134.79 | BC45: 0 | BD45: 719.09 | BE45: =BA45*BD45 -> 0 | BF45: 0 | BH45: 0 | BI45: 1134.79 | BJ45: 0 | BK45: 719.09 | BL45: =BH45*BK45 -> 0 | BM45: 0 | BN45: 206.75 | BO45: 1134.79 | BP45: 234617.8325 | BQ45: 719.09 | BR45: =BN45*BQ45 -> 148671.8575 | BS45: 383289.69
A46: 1.1.5.5 | B46: Устроиство базового слоя шпаклевки | C46: м2 | D46: 69.4 | E46: 888.18 | F46: 61639.692 | G46: 462.8 | H46: =D46*G46 -> 32118.32 | I46: 93758.012 | L46: 888.18 | M46: 0 | N46: 462.8 | O46: =K46*N46 -> 0 | P46: 0 | R46: 888.18 | S46: 0 | T46: 462.8 | U46: =Q46*T46 -> 0 | V46: 0 | X46: 888.18 | Y46: 0 | Z46: 462.8 | AA46: =W46*Z46 -> 0 | AB46: 0 | AD46: 888.18 | AE46: 0 | AF46: 462.8 | AG46: =AC46*AF46 -> 0 | AH46: 0 | AJ46: 888.18 | AK46: 0 | AL46: 462.8 | AM46: =AI46*AL46 -> 0 | AN46: 0 | AP46: 888.18 | AQ46: 0 | AR46: 462.8 | AS46: =AO46*AR46 -> 0 | AT46: 0 | AV46: 888.18 | AW46: 0 | AX46: 462.8 | AY46: =AU46*AX46 -> 0 | AZ46: 0 | BB46: 888.18 | BC46: 0 | BD46: 462.8 | BE46: =BA46*BD46 -> 0 | BF46: 0 | BH46: 0 | BI46: 888.18 | BJ46: 0 | BK46: 462.8 | BL46: =BH46*BK46 -> 0 | BM46: 0 | BN46: 69.4 | BO46: 888.18 | BP46: 61639.692 | BQ46: 462.8 | BR46: =BN46*BQ46 -> 32118.32 | BS46: 93758.012
A47: 1.1.5.6 | B47: Устроиство финишного слоя шпаклевки | C47: м2 | D47: 69.4 | E47: 1277.25 | F47: 88641.15 | G47: 397.79 | H47: =D47*G47 -> 27606.626 | I47: 116247.776 | L47: 1277.25 | M47: 0 | N47: 397.79 | O47: =K47*N47 -> 0 | P47: 0 | R47: 1277.25 | S47: 0 | T47: 397.79 | U47: =Q47*T47 -> 0 | V47: 0 | X47: 1277.25 | Y47: 0 | Z47: 397.79 | AA47: =W47*Z47 -> 0 | AB47: 0 | AD47: 1277.25 | AE47: 0 | AF47: 397.79 | AG47: =AC47*AF47 -> 0 | AH47: 0 | AJ47: 1277.25 | AK47: 0 | AL47: 397.79 | AM47: =AI47*AL47 -> 0 | AN47: 0 | AP47: 1277.25 | AQ47: 0 | AR47: 397.79 | AS47: =AO47*AR47 -> 0 | AT47: 0 | AV47: 1277.25 | AW47: 0 | AX47: 397.79 | AY47: =AU47*AX47 -> 0 | AZ47: 0 | BB47: 1277.25 | BC47: 0 | BD47: 397.79 | BE47: =BA47*BD47 -> 0 | BF47: 0 | BH47: 0 | BI47: 1277.25 | BJ47: 0 | BK47: 397.79 | BL47: =BH47*BK47 -> 0 | BM47: 0 | BN47: 69.4 | BO47: 1277.25 | BP47: 88641.15 | BQ47: 397.79 | BR47: =BN47*BQ47 -> 27606.626 | BS47: 116247.776
A48: 1.1.5.7 | B48: Окраска потолка силикатной краской за 2 раза | C48: м2 | D48: 69.4 | E48: 635.48 | F48: =D48*E48 -> 44102.312 | G48: 740.97 | H48: =D48*G48 -> 51423.318 | I48: 95525.63 | L48: 635.48 | M48: =K48*L48 -> 0 | N48: 740.97 | O48: =K48*N48 -> 0 | P48: 0 | R48: 635.48 | S48: =Q48*R48 -> 0 | T48: 740.97 | U48: =Q48*T48 -> 0 | V48: 0 | X48: 635.48 | Y48: =W48*X48 -> 0 | Z48: 740.97 | AA48: =W48*Z48 -> 0 | AB48: 0 | AD48: 635.48 | AE48: =AC48*AD48 -> 0 | AF48: 740.97 | AG48: =AC48*AF48 -> 0 | AH48: 0 | AJ48: 635.48 | AK48: =AI48*AJ48 -> 0 | AL48: 740.97 | AM48: =AI48*AL48 -> 0 | AN48: 0 | AP48: 635.48 | AQ48: =AO48*AP48 -> 0 | AR48: 740.97 | AS48: =AO48*AR48 -> 0 | AT48: 0 | AV48: 635.48 | AW48: =AU48*AV48 -> 0 | AX48: 740.97 | AY48: =AU48*AX48 -> 0 | AZ48: 0 | BB48: 635.48 | BC48: =BA48*BB48 -> 0 | BD48: 740.97 | BE48: =BA48*BD48 -> 0 | BF48: 0 | BH48: 0 | BI48: 635.48 | BJ48: =BH48*BI48 -> 0 | BK48: 740.97 | BL48: =BH48*BK48 -> 0 | BM48: 0 | BN48: 69.4 | BO48: 635.48 | BP48: =BN48*BO48 -> 44102.312 | BQ48: 740.97 | BR48: =BN48*BQ48 -> 51423.318 | BS48: 95525.63
A49: 1.1.5.8 | B49: Грунтовка поверхностей перед окрашиванием | C49: м2 | D49: 69.4 | E49: 75.65 | F49: =D49*E49 -> 5250.11 | G49: 42.3 | H49: =D49*G49 -> 2935.62 | I49: 8185.73 | L49: 75.65 | M49: =K49*L49 -> 0 | N49: 42.3 | O49: =K49*N49 -> 0 | P49: 0 | R49: 75.65 | S49: =Q49*R49 -> 0 | T49: 42.3 | U49: =Q49*T49 -> 0 | V49: 0 | X49: 75.65 | Y49: =W49*X49 -> 0 | Z49: 42.3 | AA49: =W49*Z49 -> 0 | AB49: 0 | AD49: 75.65 | AE49: =AC49*AD49 -> 0 | AF49: 42.3 | AG49: =AC49*AF49 -> 0 | AH49: 0 | AJ49: 75.65 | AK49: =AI49*AJ49 -> 0 | AL49: 42.3 | AM49: =AI49*AL49 -> 0 | AN49: 0 | AP49: 75.65 | AQ49: =AO49*AP49 -> 0 | AR49: 42.3 | AS49: =AO49*AR49 -> 0 | AT49: 0 | AV49: 75.65 | AW49: =AU49*AV49 -> 0 | AX49: 42.3 | AY49: =AU49*AX49 -> 0 | AZ49: 0 | BB49: 75.65 | BC49: =BA49*BB49 -> 0 | BD49: 42.3 | BE49: =BA49*BD49 -> 0 | BF49: 0 | BH49: 0 | BI49: 75.65 | BJ49: =BH49*BI49 -> 0 | BK49: 42.3 | BL49: =BH49*BK49 -> 0 | BM49: 0 | BN49: 69.4 | BO49: 75.65 | BP49: =BN49*BO49 -> 5250.11 | BQ49: 42.3 | BR49: =BN49*BQ49 -> 2935.62 | BS49: 8185.73
A50: 1.1.6 | B50: Полы помещений | E50: 0 | G50: 0 | L50: 0 | N50: 0 | R50: 0 | T50: 0 | X50: 0 | Z50: 0 | AD50: 0 | AF50: 0 | AJ50: 0 | AL50: 0 | AP50: 0 | AR50: 0 | AV50: 0 | AX50: 0 | BB50: 0 | BD50: 0 | BH50: 0 | BI50: 0 | BK50: 0 | BN50: 0 | BO50: 0 | BQ50: 0
A51: 1.1.6.1 | B51: Очистка поверхности от грязи и мусора | C51: м2 | D51: 352.5 | E51: 378 | F51: =D51*E51 -> 133245 | G51: 72.93 | H51: =D51*G51 -> 25707.825 | I51: =E51*D51+G51*D51 -> 158952.825 | K51: 352.5 | L51: 378 | M51: =K51*L51 -> 133245 | N51: 72.93 | O51: =K51*N51 -> 25707.825 | P51: =L51*K51+N51*K51 -> 158952.825 | R51: 378 | S51: =Q51*R51 -> 0 | T51: 72.93 | U51: =Q51*T51 -> 0 | V51: =R51*Q51+T51*Q51 -> 0 | X51: 378 | Y51: =W51*X51 -> 0 | Z51: 72.93 | AA51: =W51*Z51 -> 0 | AB51: =X51*W51+Z51*W51 -> 0 | AD51: 378 | AE51: =AC51*AD51 -> 0 | AF51: 72.93 | AG51: =AC51*AF51 -> 0 | AH51: =AD51*AC51+AF51*AC51 -> 0 | AJ51: 378 | AK51: =AI51*AJ51 -> 0 | AL51: 72.93 | AM51: =AI51*AL51 -> 0 | AN51: =AJ51*AI51+AL51*AI51 -> 0 | AP51: 378 | AQ51: =AO51*AP51 -> 0 | AR51: 72.93 | AS51: =AO51*AR51 -> 0 | AT51: =AP51*AO51+AR51*AO51 -> 0 | AV51: 378 | AW51: =AU51*AV51 -> 0 | AX51: 72.93 | AY51: =AU51*AX51 -> 0 | AZ51: =AV51*AU51+AX51*AU51 -> 0 | BB51: 378 | BC51: =BA51*BB51 -> 0 | BD51: 72.93 | BE51: =BA51*BD51 -> 0 | BF51: =BB51*BA51+BD51*BA51 -> 0 | BH51: 352.5 | BI51: 378 | BJ51: =BH51*BI51 -> 133245 | BK51: 72.93 | BL51: =BH51*BK51 -> 25707.825 | BM51: =BI51*BH51+BK51*BH51 -> 158952.825 | BN51: 0 | BO51: 378 | BP51: =BN51*BO51 -> 0 | BQ51: 72.93 | BR51: =BN51*BQ51 -> 0 | BS51: =BO51*BN51+BQ51*BN51 -> 0
A52: 1.1.6.2 | B52: Устройство пола из бетона кл. В25 толщиной до 100 мм | C52: м3 | D52: 7.87 | E52: 13208 | F52: 103946.96 | G52: 14998 | H52: 118034.26 | I52: 221981.22 | K52: 7.87 | L52: 13208 | M52: 103946.96 | N52: 14998 | O52: 118034.26 | P52: 221981.22 | R52: 13208 | S52: 0 | T52: 14998 | U52: 0 | V52: 0 | X52: 13208 | Y52: 0 | Z52: 14998 | AA52: 0 | AB52: 0 | AD52: 13208 | AE52: 0 | AF52: 14998 | AG52: 0 | AH52: 0 | AJ52: 13208 | AK52: 0 | AL52: 14998 | AM52: 0 | AN52: 0 | AP52: 13208 | AQ52: 0 | AR52: 14998 | AS52: 0 | AT52: 0 | AV52: 13208 | AW52: 0 | AX52: 14998 | AY52: 0 | AZ52: 0 | BB52: 13208 | BC52: 0 | BD52: 14998 | BE52: 0 | BF52: 0 | BH52: 7.87 | BI52: 13208 | BJ52: 103946.96 | BK52: 14998 | BL52: 118034.26 | BM52: 221981.22 | BN52: 0 | BO52: 13208 | BP52: 0 | BQ52: 14998 | BR52: 0 | BS52: 0
A53: 1.1.6.3 | B53: Керамогранитная плитка | C53: м2 | D53: 187.8 | E53: 4772 | F53: 896181.6 | G53: 2131 | H53: 400201.8 | I53: 1296383.4 | L53: 4772 | M53: 0 | N53: 2131 | O53: 0 | P53: 0 | R53: 4772 | S53: 0 | T53: 2131 | U53: 0 | V53: 0 | W53: 187.8 | X53: 4772 | Y53: 896181.6 | Z53: 2131 | AA53: 400201.8 | AB53: 1296383.4 | AD53: 4772 | AE53: 0 | AF53: 2131 | AG53: 0 | AH53: 0 | AJ53: 4772 | AK53: 0 | AL53: 2131 | AM53: 0 | AN53: 0 | AP53: 4772 | AQ53: 0 | AR53: 2131 | AS53: 0 | AT53: 0 | AV53: 4772 | AW53: 0 | AX53: 2131 | AY53: 0 | AZ53: 0 | BB53: 4772 | BC53: 0 | BD53: 2131 | BE53: 0 | BF53: 0 | BH53: 187.8 | BI53: 4772 | BJ53: 896181.6 | BK53: 2131 | BL53: 400201.8 | BM53: 1296383.4 | BN53: 0 | BO53: 4772 | BP53: 0 | BQ53: 2131 | BR53: 0 | BS53: 0
A54: 1.1.6.4 | B54: Напольная керамическая плитка | C54: м2 | D54: 332.1 | E54: 2629 | F54: 873090.9 | G54: 3034 | H54: 1007591.4 | I54: 1880682.3 | L54: 2629 | M54: 0 | N54: 3034 | O54: 0 | P54: 0 | R54: 2629 | S54: 0 | T54: 3034 | U54: 0 | V54: 0 | X54: 2629 | Y54: 0 | Z54: 3034 | AA54: 0 | AB54: 0 | AD54: 2629 | AE54: 0 | AF54: 3034 | AG54: 0 | AH54: 0 | AJ54: 2629 | AK54: 0 | AL54: 3034 | AM54: 0 | AN54: 0 | AP54: 2629 | AQ54: 0 | AR54: 3034 | AS54: 0 | AT54: 0 | AV54: 2629 | AW54: 0 | AX54: 3034 | AY54: 0 | AZ54: 0 | BB54: 2629 | BC54: 0 | BD54: 3034 | BE54: 0 | BF54: 0 | BH54: 0 | BI54: 2629 | BJ54: 0 | BK54: 3034 | BL54: 0 | BM54: 0 | BN54: 332.1 | BO54: 2629 | BP54: 873090.9 | BQ54: 3034 | BR54: 1007591.4 | BS54: 1880682.3
A55: 1.1.6.5 | B55: Коммерческий линолеум (33-34 кл.) | C55: м2 | D55: 121.8 | E55: 708.11 | F55: 86247.798 | G55: 2641.52 | H55: 321737.136 | I55: 407984.934 | L55: 708.11 | M55: 0 | N55: 2641.52 | O55: 0 | P55: 0 | R55: 708.11 | S55: 0 | T55: 2641.52 | U55: 0 | V55: 0 | W55: 121.8 | X55: 708.11 | Y55: 86247.798 | Z55: 2641.52 | AA55: 321737.136 | AB55: 407984.934 | AD55: 708.11 | AE55: 0 | AF55: 2641.52 | AG55: 0 | AH55: 0 | AJ55: 708.11 | AK55: 0 | AL55: 2641.52 | AM55: 0 | AN55: 0 | AP55: 708.11 | AQ55: 0 | AR55: 2641.52 | AS55: 0 | AT55: 0 | AV55: 708.11 | AW55: 0 | AX55: 2641.52 | AY55: 0 | AZ55: 0 | BB55: 708.11 | BC55: 0 | BD55: 2641.52 | BE55: 0 | BF55: 0 | BH55: 121.8 | BI55: 708.11 | BJ55: 86247.798 | BK55: 2641.52 | BL55: 321737.136 | BM55: 407984.934 | BN55: 0 | BO55: 708.11 | BP55: 0 | BQ55: 2641.52 | BR55: 0 | BS55: 0
A56: 1.1.6.6 | B56: Гидроизоляция Гидроизол | C56: м2 | D56: 141.3 | E56: 680.87 | F56: 96206.931 | G56: 1083.74 | H56: 153132.462 | I56: 249339.393 | L56: 680.87 | M56: 0 | N56: 1083.74 | O56: 0 | P56: 0 | R56: 680.87 | S56: 0 | T56: 1083.74 | U56: 0 | V56: 0 | W56: 141.3 | X56: 680.87 | Y56: 96206.931 | Z56: 1083.74 | AA56: 153132.462 | AB56: 249339.393 | AD56: 680.87 | AE56: 0 | AF56: 1083.74 | AG56: 0 | AH56: 0 | AJ56: 680.87 | AK56: 0 | AL56: 1083.74 | AM56: 0 | AN56: 0 | AP56: 680.87 | AQ56: 0 | AR56: 1083.74 | AS56: 0 | AT56: 0 | AV56: 680.87 | AW56: 0 | AX56: 1083.74 | AY56: 0 | AZ56: 0 | BB56: 680.87 | BC56: 0 | BD56: 1083.74 | BE56: 0 | BF56: 0 | BH56: 141.3 | BI56: 680.87 | BJ56: 96206.931 | BK56: 1083.74 | BL56: 153132.462 | BM56: 249339.393 | BN56: 0 | BO56: 680.87 | BP56: 0 | BQ56: 1083.74 | BR56: 0 | BS56: 0
A57: 1.1.6.7 | B57: Наливной пол толщиной до 50мм | C57: м2 | D57: 355.6 | E57: 3576 | F57: 1271625.6 | G57: 1630 | H57: 579628 | I57: 1851253.6 | L57: 3576 | M57: 0 | N57: 1630 | O57: 0 | P57: 0 | R57: 3576 | S57: 0 | T57: 1630 | U57: 0 | V57: 0 | W57: 355.6 | X57: 3576 | Y57: 1271625.6 | Z57: 1630 | AA57: 579628 | AB57: 1851253.6 | AD57: 3576 | AE57: 0 | AF57: 1630 | AG57: 0 | AH57: 0 | AJ57: 3576 | AK57: 0 | AL57: 1630 | AM57: 0 | AN57: 0 | AP57: 3576 | AQ57: 0 | AR57: 1630 | AS57: 0 | AT57: 0 | AV57: 3576 | AW57: 0 | AX57: 1630 | AY57: 0 | AZ57: 0 | BB57: 3576 | BC57: 0 | BD57: 1630 | BE57: 0 | BF57: 0 | BH57: 355.6 | BI57: 3576 | BJ57: 1271625.6 | BK57: 1630 | BL57: 579628 | BM57: 1851253.6 | BN57: 0 | BO57: 3576 | BP57: 0 | BQ57: 1630 | BR57: 0 | BS57: 0
A58: 1.1.6.8 | B58: Керамогранитная плитка с шероховатой поверхностью | C58: м2 | D58: 2 | E58: 4149 | F58: 8298 | G58: 2131 | H58: 4262 | I58: 12560 | L58: 4149 | M58: 0 | N58: 2131 | O58: 0 | P58: 0 | R58: 4149 | S58: 0 | T58: 2131 | U58: 0 | V58: 0 | X58: 4149 | Y58: 0 | Z58: 2131 | AA58: 0 | AB58: 0 | AD58: 4149 | AE58: 0 | AF58: 2131 | AG58: 0 | AH58: 0 | AJ58: 4149 | AK58: 0 | AL58: 2131 | AM58: 0 | AN58: 0 | AP58: 4149 | AQ58: 0 | AR58: 2131 | AS58: 0 | AT58: 0 | AV58: 4149 | AW58: 0 | AX58: 2131 | AY58: 0 | AZ58: 0 | BB58: 4149 | BC58: 0 | BD58: 2131 | BE58: 0 | BF58: 0 | BH58: 0 | BI58: 4149 | BJ58: 0 | BK58: 2131 | BL58: 0 | BM58: 0 | BN58: 2 | BO58: 4149 | BP58: 8298 | BQ58: 2131 | BR58: 4262 | BS58: 12560
A59: 1.1.6.9 | B59: Наливной пол толщиной до 45мм армированный сеткой d4 В500 100х100 | C59: м2 | D59: 141.3 | E59: 3470 | F59: 490311 | G59: 1590 | H59: 224667 | I59: 714978 | L59: 3470 | M59: 0 | N59: 1590 | O59: 0 | P59: 0 | R59: 3470 | S59: 0 | T59: 1590 | U59: 0 | V59: 0 | X59: 3470 | Y59: 0 | Z59: 1590 | AA59: 0 | AB59: 0 | AD59: 3470 | AE59: 0 | AF59: 1590 | AG59: 0 | AH59: 0 | AJ59: 3470 | AK59: 0 | AL59: 1590 | AM59: 0 | AN59: 0 | AP59: 3470 | AQ59: 0 | AR59: 1590 | AS59: 0 | AT59: 0 | AV59: 3470 | AW59: 0 | AX59: 1590 | AY59: 0 | AZ59: 0 | BB59: 3470 | BC59: 0 | BD59: 1590 | BE59: 0 | BF59: 0 | BH59: 0 | BI59: 3470 | BJ59: 0 | BK59: 1590 | BL59: 0 | BM59: 0 | BN59: 141.3 | BO59: 3470 | BP59: 490311 | BQ59: 1590 | BR59: 224667 | BS59: 714978
A60: 1.1.6.10 | B60: Грунтовка поверхностей перед финишным покрытием | C60: м2 | D60: 1140.6 | E60: 75.65 | F60: 86286.39 | G60: 42.3 | H60: 48247.38 | I60: 134533.77 | L60: 75.65 | M60: 0 | N60: 42.3 | O60: 0 | P60: 0 | R60: 75.65 | S60: 0 | T60: 42.3 | U60: 0 | V60: 0 | X60: 75.65 | Y60: 0 | Z60: 42.3 | AA60: 0 | AB60: 0 | AD60: 75.65 | AE60: 0 | AF60: 42.3 | AG60: 0 | AH60: 0 | AJ60: 75.65 | AK60: 0 | AL60: 42.3 | AM60: 0 | AN60: 0 | AP60: 75.65 | AQ60: 0 | AR60: 42.3 | AS60: 0 | AT60: 0 | AV60: 75.65 | AW60: 0 | AX60: 42.3 | AY60: 0 | AZ60: 0 | BB60: 75.65 | BC60: 0 | BD60: 42.3 | BE60: 0 | BF60: 0 | BH60: 0 | BI60: 75.65 | BJ60: 0 | BK60: 42.3 | BL60: 0 | BM60: 0 | BN60: 1140.6 | BO60: 75.65 | BP60: 86286.39 | BQ60: 42.3 | BR60: 48247.38 | BS60: 134533.77
A61: 1.1.7 | B61: Отделка стен помещений | C61: м2 | D61: 1194.52 | E61: 4448 | F61: 5313224.96 | G61: 3702 | H61: 4422113.04 | I61: 9735338 | K61: 98.58 | L61: 4448 | M61: 438483.84 | N61: 3702 | O61: 364943.16 | P61: 803427 | R61: 4448 | S61: 0 | T61: 3702 | U61: 0 | V61: 0 | W61: 1095.94 | X61: 4448 | Y61: 4874741.12 | Z61: 3702 | AA61: 4057169.88 | AB61: 8931911 | AD61: 4448 | AE61: 0 | AF61: 3702 | AG61: 0 | AH61: 0 | AJ61: 4448 | AK61: 0 | AL61: 3702 | AM61: 0 | AN61: 0 | AP61: 4448 | AQ61: 0 | AR61: 3702 | AS61: 0 | AT61: 0 | AV61: 4448 | AW61: 0 | AX61: 3702 | AY61: 0 | AZ61: 0 | BB61: 4448 | BC61: 0 | BD61: 3702 | BE61: 0 | BF61: 0 | BH61: 1194.52 | BI61: 4448 | BJ61: 5313224.96 | BK61: 3702 | BL61: 4422113.04 | BM61: 9735338 | BN61: 0 | BO61: 4448 | BP61: 0 | BQ61: 3702 | BR61: 0 | BS61: 0
A62: 1.1.8 | B62: Установка потивопожарных окон | C62: шт | D62: 11 | E62: 34209 | F62: 376299 | G62: 89433 | H62: 983763 | I62: 1360062 | L62: 34209 | M62: 0 | N62: 89433 | O62: 0 | P62: 0 | R62: 34209 | S62: 0 | T62: 89433 | U62: 0 | V62: 0 | W62: 11 | X62: 34209 | Y62: 376299 | Z62: 89433 | AA62: 983763 | AB62: 1360062 | AD62: 34209 | AE62: 0 | AF62: 89433 | AG62: 0 | AH62: 0 | AJ62: 34209 | AK62: 0 | AL62: 89433 | AM62: 0 | AN62: 0 | AP62: 34209 | AQ62: 0 | AR62: 89433 | AS62: 0 | AT62: 0 | AV62: 34209 | AW62: 0 | AX62: 89433 | AY62: 0 | AZ62: 0 | BB62: 34209 | BC62: 0 | BD62: 89433 | BE62: 0 | BF62: 0 | BH62: 11 | BI62: 34209 | BJ62: 376299 | BK62: 89433 | BL62: 983763 | BM62: 1360062 | BN62: 0 | BO62: 34209 | BP62: 0 | BQ62: 89433 | BR62: 0 | BS62: 0
A63: 1.1.9 | B63: Установка внутренних окон | C63: шт | D63: 6 | E63: 18204 | F63: 109224 | G63: 79865 | H63: 479190 | I63: 588414 | L63: 18204 | M63: 0 | N63: 79865 | O63: 0 | P63: 0 | R63: 18204 | S63: 0 | T63: 79865 | U63: 0 | V63: 0 | W63: 6 | X63: 18204 | Y63: 109224 | Z63: 79865 | AA63: 479190 | AB63: 588414 | AD63: 18204 | AE63: 0 | AF63: 79865 | AG63: 0 | AH63: 0 | AJ63: 18204 | AK63: 0 | AL63: 79865 | AM63: 0 | AN63: 0 | AP63: 18204 | AQ63: 0 | AR63: 79865 | AS63: 0 | AT63: 0 | AV63: 18204 | AW63: 0 | AX63: 79865 | AY63: 0 | AZ63: 0 | BB63: 18204 | BC63: 0 | BD63: 79865 | BE63: 0 | BF63: 0 | BH63: 6 | BI63: 18204 | BJ63: 109224 | BK63: 79865 | BL63: 479190 | BM63: 588414 | BN63: 0 | BO63: 18204 | BP63: 0 | BQ63: 79865 | BR63: 0 | BS63: 0
A64: 1.1.10 | B64: Установка потивопожарных дверей | C64: шт | D64: 42 | E64: 14176 | F64: 595392 | G64: 34900 | H64: 1465800 | I64: 2061192 | L64: 14176 | M64: 0 | N64: 34900 | O64: 0 | P64: 0 | R64: 14176 | S64: 0 | T64: 34900 | U64: 0 | V64: 0 | W64: 5 | X64: 14176 | Y64: 70880 | Z64: 34900 | AA64: 174500 | AB64: 245380 | AD64: 14176 | AE64: 0 | AF64: 34900 | AG64: 0 | AH64: 0 | AJ64: 14176 | AK64: 0 | AL64: 34900 | AM64: 0 | AN64: 0 | AP64: 14176 | AQ64: 0 | AR64: 34900 | AS64: 0 | AT64: 0 | AV64: 14176 | AW64: 0 | AX64: 34900 | AY64: 0 | AZ64: 0 | BB64: 14176 | BC64: 0 | BD64: 34900 | BE64: 0 | BF64: 0 | BH64: 5 | BI64: 14176 | BJ64: 70880 | BK64: 34900 | BL64: 174500 | BM64: 245380 | BN64: 37 | BO64: 14176 | BP64: 524512 | BQ64: 34900 | BR64: 1291300 | BS64: 1815812
A65: 1.1.11 | B65: Лестничная клетка | C65: шт | D65: 1 | E65: 504288.43 | F65: 504288.43 | G65: 855301.2 | H65: 855301.2 | I65: 1359589.63 | L65: 504288.43 | M65: 0 | N65: 855301.2 | O65: 0 | P65: 0 | R65: 504288.43 | S65: 0 | T65: 855301.2 | U65: 0 | V65: 0 | W65: 0.9 | X65: 504288.43 | Y65: 453859.587 | Z65: 855301.2 | AA65: 769771.08 | AB65: 1223630.667 | AD65: 504288.43 | AE65: 0 | AF65: 855301.2 | AG65: 0 | AH65: 0 | AJ65: 504288.43 | AK65: 0 | AL65: 855301.2 | AM65: 0 | AN65: 0 | AP65: 504288.43 | AQ65: 0 | AR65: 855301.2 | AS65: 0 | AT65: 0 | AV65: 504288.43 | AW65: 0 | AX65: 855301.2 | AY65: 0 | AZ65: 0 | BB65: 504288.43 | BC65: 0 | BD65: 855301.2 | BE65: 0 | BF65: 0 | BH65: 0.9 | BI65: 504288.43 | BJ65: 453859.587 | BK65: 855301.2 | BL65: 769771.08 | BM65: 1223630.667 | BN65: 0.1 | BO65: 504288.43 | BP65: 50428.843 | BQ65: 855301.2 | BR65: 85530.12 | BS65: 135958.963
A66: 1.1.12 | B66: Устройство перекрытия | C66: м3 | D66: 41.2 | E66: 44343.5 | F66: 1826952.2 | G66: 47372 | H66: 1951726.4 | I66: 3778678.6 | K66: 41.2 | L66: 44343.5 | M66: 1826952.2 | N66: 47372 | O66: 1951726.4 | P66: 3778678.6 | R66: 44343.5 | S66: 0 | T66: 47372 | U66: 0 | V66: 0 | X66: 44343.5 | Y66: 0 | Z66: 47372 | AA66: 0 | AB66: 0 | AD66: 44343.5 | AE66: 0 | AF66: 47372 | AG66: 0 | AH66: 0 | AJ66: 44343.5 | AK66: 0 | AL66: 47372 | AM66: 0 | AN66: 0 | AP66: 44343.5 | AQ66: 0 | AR66: 47372 | AS66: 0 | AT66: 0 | AV66: 44343.5 | AW66: 0 | AX66: 47372 | AY66: 0 | AZ66: 0 | BB66: 44343.5 | BC66: 0 | BD66: 47372 | BE66: 0 | BF66: 0 | BH66: 41.2 | BI66: 44343.5 | BJ66: 1826952.2 | BK66: 47372 | BL66: 1951726.4 | BM66: 3778678.6 | BN66: 0 | BO66: 44343.5 | BP66: 0 | BQ66: 47372 | BR66: 0 | BS66: 0
A67: 1.1.13 | B67: Пол АБК | C67: м2 | D67: 387 | E67: 3576 | F67: 1383912 | G67: 3510 | H67: 1358370 | I67: 2742282 | L67: 3576 | M67: 0 | N67: 3510 | O67: 0 | P67: 0 | Q67: 387 | R67: 3576 | S67: 1383912 | T67: 3510 | U67: 1358370 | V67: 2742282 | X67: 3576 | Y67: 0 | Z67: 3510 | AA67: 0 | AB67: 0 | AD67: 3576 | AE67: 0 | AF67: 3510 | AG67: 0 | AH67: 0 | AJ67: 3576 | AK67: 0 | AL67: 3510 | AM67: 0 | AN67: 0 | AP67: 3576 | AQ67: 0 | AR67: 3510 | AS67: 0 | AT67: 0 | AV67: 3576 | AW67: 0 | AX67: 3510 | AY67: 0 | AZ67: 0 | BB67: 3576 | BC67: 0 | BD67: 3510 | BE67: 0 | BF67: 0 | BH67: 387 | BI67: 3576 | BJ67: 1383912 | BK67: 3510 | BL67: 1358370 | BM67: 2742282 | BN67: 0 | BO67: 3576 | BP67: 0 | BQ67: 3510 | BR67: 0 | BS67: 0
A68: 1.1.14 | B68: Прорезка проёмов дверных и оконных | C68: шт | D68: 15 | E68: 25728.4 | F68: 385926 | G68: 850.2 | H68: 12753 | I68: 398679 | K68: 15 | L68: 25728.4 | M68: 385926 | N68: 850.2 | O68: 12753 | P68: 398679 | R68: 25728.4 | S68: 0 | T68: 850.2 | U68: 0 | V68: 0 | X68: 25728.4 | Y68: 0 | Z68: 850.2 | AA68: 0 | AB68: 0 | AD68: 25728.4 | AE68: 0 | AF68: 850.2 | AG68: 0 | AH68: 0 | AJ68: 25728.4 | AK68: 0 | AL68: 850.2 | AM68: 0 | AN68: 0 | AP68: 25728.4 | AQ68: 0 | AR68: 850.2 | AS68: 0 | AT68: 0 | AV68: 25728.4 | AW68: 0 | AX68: 850.2 | AY68: 0 | AZ68: 0 | BB68: 25728.4 | BC68: 0 | BD68: 850.2 | BE68: 0 | BF68: 0 | BH68: 15 | BI68: 25728.4 | BJ68: 385926 | BK68: 850.2 | BL68: 12753 | BM68: 398679 | BN68: 0 | BO68: 25728.4 | BP68: 0 | BQ68: 850.2 | BR68: 0 | BS68: 0
A69: 1.1.15 | B69: Устройство отверстия на кровле в осях В/32-34 | C69: шт | D69: 1 | E69: 89509.68 | F69: 89509.68 | G69: 73184.8 | H69: 73184.8 | I69: 162694.48 | L69: 89509.68 | M69: 0 | N69: 73184.8 | O69: 0 | P69: 0 | R69: 89509.68 | S69: 0 | T69: 73184.8 | U69: 0 | V69: 0 | X69: 89509.68 | Y69: 0 | Z69: 73184.8 | AA69: 0 | AB69: 0 | AD69: 89509.68 | AE69: 0 | AF69: 73184.8 | AG69: 0 | AH69: 0 | AJ69: 89509.68 | AK69: 0 | AL69: 73184.8 | AM69: 0 | AN69: 0 | AP69: 89509.68 | AQ69: 0 | AR69: 73184.8 | AS69: 0 | AT69: 0 | AV69: 89509.68 | AW69: 0 | AX69: 73184.8 | AY69: 0 | AZ69: 0 | BB69: 89509.68 | BC69: 0 | BD69: 73184.8 | BE69: 0 | BF69: 0 | BH69: 0 | BI69: 89509.68 | BJ69: 0 | BK69: 73184.8 | BL69: 0 | BM69: 0 | BN69: 1 | BO69: 89509.68 | BP69: 89509.68 | BQ69: 73184.8 | BR69: 73184.8 | BS69: 162694.48
A70: 1.1.16 | B70: Проходка воздуховодов сквозь кровлю АБК | C70: шт | D70: 12 | E70: 11909.97 | F70: 142919.64 | G70: 4538.73 | H70: 54464.76 | I70: 197384.4 | L70: 11909.97 | M70: 0 | N70: 4538.73 | O70: 0 | P70: 0 | R70: 11909.97 | S70: 0 | T70: 4538.73 | U70: 0 | V70: 0 | X70: 11909.97 | Y70: 0 | Z70: 4538.73 | AA70: 0 | AB70: 0 | AD70: 11909.97 | AE70: 0 | AF70: 4538.73 | AG70: 0 | AH70: 0 | AJ70: 11909.97 | AK70: 0 | AL70: 4538.73 | AM70: 0 | AN70: 0 | AP70: 11909.97 | AQ70: 0 | AR70: 4538.73 | AS70: 0 | AT70: 0 | AV70: 11909.97 | AW70: 0 | AX70: 4538.73 | AY70: 0 | AZ70: 0 | BB70: 11909.97 | BC70: 0 | BD70: 4538.73 | BE70: 0 | BF70: 0 | BH70: 0 | BI70: 11909.97 | BJ70: 0 | BK70: 4538.73 | BL70: 0 | BM70: 0 | BN70: 12 | BO70: 11909.97 | BP70: 142919.64 | BQ70: 4538.73 | BR70: 54464.76 | BS70: 197384.4
A71: 1.1.17 | B71: Устройство мк отверстий диам. 400 мм в покрытии здания | C71: шт | D71: 5 | E71: 43829.72 | F71: 219148.6 | G71: 26306.28 | H71: 131531.4 | I71: 350680 | L71: 43829.72 | M71: 0 | N71: 26306.28 | O71: 0 | P71: 0 | R71: 43829.72 | S71: 0 | T71: 26306.28 | U71: 0 | V71: 0 | X71: 43829.72 | Y71: 0 | Z71: 26306.28 | AA71: 0 | AB71: 0 | AD71: 43829.72 | AE71: 0 | AF71: 26306.28 | AG71: 0 | AH71: 0 | AJ71: 43829.72 | AK71: 0 | AL71: 26306.28 | AM71: 0 | AN71: 0 | AP71: 43829.72 | AQ71: 0 | AR71: 26306.28 | AS71: 0 | AT71: 0 | AV71: 43829.72 | AW71: 0 | AX71: 26306.28 | AY71: 0 | AZ71: 0 | BB71: 43829.72 | BC71: 0 | BD71: 26306.28 | BE71: 0 | BF71: 0 | BH71: 0 | BI71: 43829.72 | BJ71: 0 | BK71: 26306.28 | BL71: 0 | BM71: 0 | BN71: 5 | BO71: 43829.72 | BP71: 219148.6 | BQ71: 26306.28 | BR71: 131531.4 | BS71: 350680
A72: 1.1.18 | B72: Устройство дверного проёма в стене цеха (пож.выход) | C72: шт | D72: 1 | E72: 219290.07 | F72: 219290.07 | G72: 155542.4 | H72: 155542.4 | I72: 374832.47 | L72: 219290.07 | M72: 0 | N72: 155542.4 | O72: 0 | P72: 0 | R72: 219290.07 | S72: 0 | T72: 155542.4 | U72: 0 | V72: 0 | W72: 1 | X72: 219290.07 | Y72: 219290.07 | Z72: 155542.4 | AA72: 155542.4 | AB72: 374832.47 | AD72: 219290.07 | AE72: 0 | AF72: 155542.4 | AG72: 0 | AH72: 0 | AJ72: 219290.07 | AK72: 0 | AL72: 155542.4 | AM72: 0 | AN72: 0 | AP72: 219290.07 | AQ72: 0 | AR72: 155542.4 | AS72: 0 | AT72: 0 | AV72: 219290.07 | AW72: 0 | AX72: 155542.4 | AY72: 0 | AZ72: 0 | BB72: 219290.07 | BC72: 0 | BD72: 155542.4 | BE72: 0 | BF72: 0 | BH72: 1 | BI72: 219290.07 | BJ72: 219290.07 | BK72: 155542.4 | BL72: 155542.4 | BM72: 374832.47 | BN72: 0 | BO72: 219290.07 | BP72: 0 | BQ72: 155542.4 | BR72: 0 | BS72: 0
A73: 1.1.19 | B73: Дополнительные работы | E73: 0 | G73: 0 | L73: 0 | N73: 0 | R73: 0 | T73: 0 | X73: 0 | Z73: 0 | AD73: 0 | AF73: 0 | AJ73: 0 | AL73: 0 | AP73: 0 | AR73: 0 | AV73: 0 | AX73: 0 | BB73: 0 | BD73: 0 | BH73: 0 | BI73: 0 | BK73: 0 | BN73: 0 | BO73: 0 | BQ73: 0
A74: 1.1.19.1 | B74: Обшивка стен Гипсокартон ГКЛ толщиной 12,5 мм в 2 слоя | C74: м2 | D74: 76 | E74: 2955 | F74: =D74*E74 -> 224580 | G74: 3501 | H74: =D74*G74 -> 266076 | I74: =E74*D74+G74*D74 -> 490656 | L74: 2955 | M74: =K74*L74 -> 0 | N74: 3501 | O74: =K74*N74 -> 0 | P74: =L74*K74+N74*K74 -> 0 | R74: 2955 | S74: =Q74*R74 -> 0 | T74: 3501 | U74: =Q74*T74 -> 0 | V74: =R74*Q74+T74*Q74 -> 0 | X74: 2955 | Y74: =W74*X74 -> 0 | Z74: 3501 | AA74: =W74*Z74 -> 0 | AB74: =X74*W74+Z74*W74 -> 0 | AD74: 2955 | AE74: =AC74*AD74 -> 0 | AF74: 3501 | AG74: =AC74*AF74 -> 0 | AH74: =AD74*AC74+AF74*AC74 -> 0 | AJ74: 2955 | AK74: =AI74*AJ74 -> 0 | AL74: 3501 | AM74: =AI74*AL74 -> 0 | AN74: =AJ74*AI74+AL74*AI74 -> 0 | AP74: 2955 | AQ74: =AO74*AP74 -> 0 | AR74: 3501 | AS74: =AO74*AR74 -> 0 | AT74: =AP74*AO74+AR74*AO74 -> 0 | AV74: 2955 | AW74: =AU74*AV74 -> 0 | AX74: 3501 | AY74: =AU74*AX74 -> 0 | AZ74: =AV74*AU74+AX74*AU74 -> 0 | BB74: 2955 | BC74: =BA74*BB74 -> 0 | BD74: 3501 | BE74: =BA74*BD74 -> 0 | BF74: =BB74*BA74+BD74*BA74 -> 0 | BH74: 0 | BI74: 2955 | BJ74: =BH74*BI74 -> 0 | BK74: 3501 | BL74: =BH74*BK74 -> 0 | BM74: =BI74*BH74+BK74*BH74 -> 0 | BN74: 76 | BO74: 2955 | BP74: =BN74*BO74 -> 224580 | BQ74: 3501 | BR74: =BN74*BQ74 -> 266076 | BS74: =BO74*BN74+BQ74*BN74 -> 490656
A75: 1.1.19.2 | B75: Перенос дверных проёмов | C75: шт | D75: 4 | E75: 42024.27 | F75: =D75*E75 -> 168097.08 | G75: 15381.6 | H75: =D75*G75 -> 61526.4 | I75: =E75*D75+G75*D75 -> 229623.48 | L75: 42024.27 | M75: =K75*L75 -> 0 | N75: 15381.6 | O75: =K75*N75 -> 0 | P75: =L75*K75+N75*K75 -> 0 | R75: 42024.27 | S75: =Q75*R75 -> 0 | T75: 15381.6 | U75: =Q75*T75 -> 0 | V75: =R75*Q75+T75*Q75 -> 0 | X75: 42024.27 | Y75: =W75*X75 -> 0 | Z75: 15381.6 | AA75: =W75*Z75 -> 0 | AB75: =X75*W75+Z75*W75 -> 0 | AD75: 42024.27 | AE75: =AC75*AD75 -> 0 | AF75: 15381.6 | AG75: =AC75*AF75 -> 0 | AH75: =AD75*AC75+AF75*AC75 -> 0 | AJ75: 42024.27 | AK75: =AI75*AJ75 -> 0 | AL75: 15381.6 | AM75: =AI75*AL75 -> 0 | AN75: =AJ75*AI75+AL75*AI75 -> 0 | AP75: 42024.27 | AQ75: =AO75*AP75 -> 0 | AR75: 15381.6 | AS75: =AO75*AR75 -> 0 | AT75: =AP75*AO75+AR75*AO75 -> 0 | AV75: 42024.27 | AW75: =AU75*AV75 -> 0 | AX75: 15381.6 | AY75: =AU75*AX75 -> 0 | AZ75: =AV75*AU75+AX75*AU75 -> 0 | BB75: 42024.27 | BC75: =BA75*BB75 -> 0 | BD75: 15381.6 | BE75: =BA75*BD75 -> 0 | BF75: =BB75*BA75+BD75*BA75 -> 0 | BH75: 0 | BI75: 42024.27 | BJ75: =BH75*BI75 -> 0 | BK75: 15381.6 | BL75: =BH75*BK75 -> 0 | BM75: =BI75*BH75+BK75*BH75 -> 0 | BN75: 4 | BO75: 42024.27 | BP75: =BN75*BO75 -> 168097.08 | BQ75: 15381.6 | BR75: =BN75*BQ75 -> 61526.4 | BS75: =BO75*BN75+BQ75*BN75 -> 229623.48
A76: 1.1.19.3 | B76: Обрамление оконных проёмов | C76: шт | D76: 11 | E76: 10938.3 | F76: =D76*E76 -> 120321.3 | G76: 8970 | H76: =D76*G76 -> 98670 | I76: =E76*D76+G76*D76 -> 218991.3 | L76: 10938.3 | M76: =K76*L76 -> 0 | N76: 8970 | O76: =K76*N76 -> 0 | P76: =L76*K76+N76*K76 -> 0 | R76: 10938.3 | S76: =Q76*R76 -> 0 | T76: 8970 | U76: =Q76*T76 -> 0 | V76: =R76*Q76+T76*Q76 -> 0 | X76: 10938.3 | Y76: =W76*X76 -> 0 | Z76: 8970 | AA76: =W76*Z76 -> 0 | AB76: =X76*W76+Z76*W76 -> 0 | AD76: 10938.3 | AE76: =AC76*AD76 -> 0 | AF76: 8970 | AG76: =AC76*AF76 -> 0 | AH76: =AD76*AC76+AF76*AC76 -> 0 | AJ76: 10938.3 | AK76: =AI76*AJ76 -> 0 | AL76: 8970 | AM76: =AI76*AL76 -> 0 | AN76: =AJ76*AI76+AL76*AI76 -> 0 | AP76: 10938.3 | AQ76: =AO76*AP76 -> 0 | AR76: 8970 | AS76: =AO76*AR76 -> 0 | AT76: =AP76*AO76+AR76*AO76 -> 0 | AV76: 10938.3 | AW76: =AU76*AV76 -> 0 | AX76: 8970 | AY76: =AU76*AX76 -> 0 | AZ76: =AV76*AU76+AX76*AU76 -> 0 | BB76: 10938.3 | BC76: =BA76*BB76 -> 0 | BD76: 8970 | BE76: =BA76*BD76 -> 0 | BF76: =BB76*BA76+BD76*BA76 -> 0 | BH76: 0 | BI76: 10938.3 | BJ76: =BH76*BI76 -> 0 | BK76: 8970 | BL76: =BH76*BK76 -> 0 | BM76: =BI76*BH76+BK76*BH76 -> 0 | BN76: 11 | BO76: 10938.3 | BP76: =BN76*BO76 -> 120321.3 | BQ76: 8970 | BR76: =BN76*BQ76 -> 98670 | BS76: =BO76*BN76+BQ76*BN76 -> 218991.3
A77: 1.1.19.4 | B77: Демонтаж и монтаж временных ворот | C77: шт | D77: 1 | E77: 73821.12 | F77: =D77*E77 -> 73821.12 | G77: 4750.2 | H77: =D77*G77 -> 4750.2 | I77: =E77*D77+G77*D77 -> 78571.32 | L77: 73821.12 | M77: =K77*L77 -> 0 | N77: 4750.2 | O77: =K77*N77 -> 0 | P77: =L77*K77+N77*K77 -> 0 | R77: 73821.12 | S77: =Q77*R77 -> 0 | T77: 4750.2 | U77: =Q77*T77 -> 0 | V77: =R77*Q77+T77*Q77 -> 0 | X77: 73821.12 | Y77: =W77*X77 -> 0 | Z77: 4750.2 | AA77: =W77*Z77 -> 0 | AB77: =X77*W77+Z77*W77 -> 0 | AD77: 73821.12 | AE77: =AC77*AD77 -> 0 | AF77: 4750.2 | AG77: =AC77*AF77 -> 0 | AH77: =AD77*AC77+AF77*AC77 -> 0 | AJ77: 73821.12 | AK77: =AI77*AJ77 -> 0 | AL77: 4750.2 | AM77: =AI77*AL77 -> 0 | AN77: =AJ77*AI77+AL77*AI77 -> 0 | AP77: 73821.12 | AQ77: =AO77*AP77 -> 0 | AR77: 4750.2 | AS77: =AO77*AR77 -> 0 | AT77: =AP77*AO77+AR77*AO77 -> 0 | AV77: 73821.12 | AW77: =AU77*AV77 -> 0 | AX77: 4750.2 | AY77: =AU77*AX77 -> 0 | AZ77: =AV77*AU77+AX77*AU77 -> 0 | BB77: 73821.12 | BC77: =BA77*BB77 -> 0 | BD77: 4750.2 | BE77: =BA77*BD77 -> 0 | BF77: =BB77*BA77+BD77*BA77 -> 0 | BH77: 0 | BI77: 73821.12 | BJ77: =BH77*BI77 -> 0 | BK77: 4750.2 | BL77: =BH77*BK77 -> 0 | BM77: =BI77*BH77+BK77*BH77 -> 0 | BN77: 1 | BO77: 73821.12 | BP77: =BN77*BO77 -> 73821.12 | BQ77: 4750.2 | BR77: =BN77*BQ77 -> 4750.2 | BS77: =BO77*BN77+BQ77*BN77 -> 78571.32
A78: 1.1.20 | B78: Монтаж фасоных элементов | E78: 0 | G78: 0 | L78: 0 | N78: 0 | R78: 0 | T78: 0 | X78: 0 | Z78: 0 | AD78: 0 | AF78: 0 | AJ78: 0 | AL78: 0 | AP78: 0 | AR78: 0 | AV78: 0 | AX78: 0 | BB78: 0 | BD78: 0 | BH78: 0 | BI78: 0 | BK78: 0 | BO78: 0 | BQ78: 0
A79: 1.1.20.1 | B79: Монтаж фасоного элемента Дз-1 | C79: м.п. | D79: 7.45 | E79: 600 | F79: =D79*E79 -> 4470 | G79: 1345.5 | H79: =D79*G79 -> 10023.975 | I79: =E79*D79+G79*D79 -> 14493.975 | L79: 600 | M79: =K79*L79 -> 0 | N79: 1345.5 | O79: =K79*N79 -> 0 | P79: =L79*K79+N79*K79 -> 0 | R79: 600 | S79: =Q79*R79 -> 0 | T79: 1345.5 | U79: =Q79*T79 -> 0 | V79: =R79*Q79+T79*Q79 -> 0 | X79: 600 | Y79: =W79*X79 -> 0 | Z79: 1345.5 | AA79: =W79*Z79 -> 0 | AB79: =X79*W79+Z79*W79 -> 0 | AD79: 600 | AE79: =AC79*AD79 -> 0 | AF79: 1345.5 | AG79: =AC79*AF79 -> 0 | AH79: =AD79*AC79+AF79*AC79 -> 0 | AJ79: 600 | AK79: =AI79*AJ79 -> 0 | AL79: 1345.5 | AM79: =AI79*AL79 -> 0 | AN79: =AJ79*AI79+AL79*AI79 -> 0 | AP79: 600 | AQ79: =AO79*AP79 -> 0 | AR79: 1345.5 | AS79: =AO79*AR79 -> 0 | AT79: =AP79*AO79+AR79*AO79 -> 0 | AV79: 600 | AW79: =AU79*AV79 -> 0 | AX79: 1345.5 | AY79: =AU79*AX79 -> 0 | AZ79: =AV79*AU79+AX79*AU79 -> 0 | BB79: 600 | BC79: =BA79*BB79 -> 0 | BD79: 1345.5 | BE79: =BA79*BD79 -> 0 | BF79: =BB79*BA79+BD79*BA79 -> 0 | BH79: 0 | BI79: 600 | BJ79: =BH79*BI79 -> 0 | BK79: 1345.5 | BL79: =BH79*BK79 -> 0 | BM79: =BI79*BH79+BK79*BH79 -> 0 | BN79: 7.45 | BO79: 600 | BP79: =BN79*BO79 -> 4470 | BQ79: 1345.5 | BR79: =BN79*BQ79 -> 10023.975 | BS79: =BO79*BN79+BQ79*BN79 -> 14493.975
A80: 1.1.20.2 | B80: Монтаж фасоного элемента Дз-2 | C80: м.п. | D80: 15 | E80: 600 | F80: 9000 | G80: 678.6 | H80: 10179 | I80: 19179 | L80: 600 | M80: 0 | N80: 678.6 | O80: 0 | P80: 0 | R80: 600 | S80: 0 | T80: 678.6 | U80: 0 | V80: 0 | X80: 600 | Y80: 0 | Z80: 678.6 | AA80: 0 | AB80: 0 | AD80: 600 | AE80: 0 | AF80: 678.6 | AG80: 0 | AH80: 0 | AJ80: 600 | AK80: 0 | AL80: 678.6 | AM80: 0 | AN80: 0 | AP80: 600 | AQ80: 0 | AR80: 678.6 | AS80: 0 | AT80: 0 | AV80: 600 | AW80: 0 | AX80: 678.6 | AY80: 0 | AZ80: 0 | BB80: 600 | BC80: 0 | BD80: 678.6 | BE80: 0 | BF80: 0 | BH80: 0 | BI80: 600 | BJ80: 0 | BK80: 678.6 | BL80: 0 | BM80: 0 | BN80: 15 | BO80: 600 | BP80: 9000 | BQ80: 678.6 | BR80: 10179 | BS80: 19179
A81: 1.1.20.3 | B81: Монтаж фасоного элемента Дз-3 | C81: м.п. | D81: 64 | E81: 600 | F81: 38400 | G81: 508.3 | H81: 32531.2 | I81: 70931.2 | L81: 600 | M81: 0 | N81: 508.3 | O81: 0 | P81: 0 | R81: 600 | S81: 0 | T81: 508.3 | U81: 0 | V81: 0 | X81: 600 | Y81: 0 | Z81: 508.3 | AA81: 0 | AB81: 0 | AD81: 600 | AE81: 0 | AF81: 508.3 | AG81: 0 | AH81: 0 | AJ81: 600 | AK81: 0 | AL81: 508.3 | AM81: 0 | AN81: 0 | AP81: 600 | AQ81: 0 | AR81: 508.3 | AS81: 0 | AT81: 0 | AV81: 600 | AW81: 0 | AX81: 508.3 | AY81: 0 | AZ81: 0 | BB81: 600 | BC81: 0 | BD81: 508.3 | BE81: 0 | BF81: 0 | BH81: 0 | BI81: 600 | BJ81: 0 | BK81: 508.3 | BL81: 0 | BM81: 0 | BN81: 64 | BO81: 600 | BP81: 38400 | BQ81: 508.3 | BR81: 32531.2 | BS81: 70931.2
A82: 1.1.20.4 | B82: Монтаж фасоного элемента Дз-4 | C82: м.п. | D82: 64 | E82: 600 | F82: 38400 | G82: 491.4 | H82: 31449.6 | I82: 69849.6 | L82: 600 | M82: 0 | N82: 491.4 | O82: 0 | P82: 0 | R82: 600 | S82: 0 | T82: 491.4 | U82: 0 | V82: 0 | X82: 600 | Y82: 0 | Z82: 491.4 | AA82: 0 | AB82: 0 | AD82: 600 | AE82: 0 | AF82: 491.4 | AG82: 0 | AH82: 0 | AJ82: 600 | AK82: 0 | AL82: 491.4 | AM82: 0 | AN82: 0 | AP82: 600 | AQ82: 0 | AR82: 491.4 | AS82: 0 | AT82: 0 | AV82: 600 | AW82: 0 | AX82: 491.4 | AY82: 0 | AZ82: 0 | BB82: 600 | BC82: 0 | BD82: 491.4 | BE82: 0 | BF82: 0 | BH82: 0 | BI82: 600 | BJ82: 0 | BK82: 491.4 | BL82: 0 | BM82: 0 | BN82: 64 | BO82: 600 | BP82: 38400 | BQ82: 491.4 | BR82: 31449.6 | BS82: 69849.6
A83: 1.1.20.5 | B83: Монтаж фасоного элемента Дз-5 | C83: м.п. | D83: 64 | E83: 600 | F83: 38400 | G83: 565.5 | H83: 36192 | I83: 74592 | L83: 600 | M83: 0 | N83: 565.5 | O83: 0 | P83: 0 | R83: 600 | S83: 0 | T83: 565.5 | U83: 0 | V83: 0 | X83: 600 | Y83: 0 | Z83: 565.5 | AA83: 0 | AB83: 0 | AD83: 600 | AE83: 0 | AF83: 565.5 | AG83: 0 | AH83: 0 | AJ83: 600 | AK83: 0 | AL83: 565.5 | AM83: 0 | AN83: 0 | AP83: 600 | AQ83: 0 | AR83: 565.5 | AS83: 0 | AT83: 0 | AV83: 600 | AW83: 0 | AX83: 565.5 | AY83: 0 | AZ83: 0 | BB83: 600 | BC83: 0 | BD83: 565.5 | BE83: 0 | BF83: 0 | BH83: 0 | BI83: 600 | BJ83: 0 | BK83: 565.5 | BL83: 0 | BM83: 0 | BN83: 64 | BO83: 600 | BP83: 38400 | BQ83: 565.5 | BR83: 36192 | BS83: 74592
A84: 1.1.20.6 | B84: Монтаж колонн (усиление перегородок) | C84: шт | D84: 7 | E84: 36465 | F84: 255255 | G84: 8931 | H84: 62517 | I84: 317772 | L84: 36465 | M84: 0 | N84: 8931 | O84: 0 | P84: 0 | R84: 36465 | S84: 0 | T84: 8931 | U84: 0 | V84: 0 | X84: 36465 | Y84: 0 | Z84: 8931 | AA84: 0 | AB84: 0 | AD84: 36465 | AE84: 0 | AF84: 8931 | AG84: 0 | AH84: 0 | AJ84: 36465 | AK84: 0 | AL84: 8931 | AM84: 0 | AN84: 0 | AP84: 36465 | AQ84: 0 | AR84: 8931 | AS84: 0 | AT84: 0 | AV84: 36465 | AW84: 0 | AX84: 8931 | AY84: 0 | AZ84: 0 | BB84: 36465 | BC84: 0 | BD84: 8931 | BE84: 0 | BF84: 0 | BH84: 0 | BI84: 36465 | BJ84: 0 | BK84: 8931 | BL84: 0 | BM84: 0 | BN84: 7 | BO84: 36465 | BP84: 255255 | BQ84: 8931 | BR84: 62517 | BS84: 317772
A85: 1.1.20.7 | B85: Демонтаж ГКЛ 2 слоя | C85: м2 | D85: 36 | E85: 1166 | F85: 41976 | G85: 0 | I85: 41976 | L85: 1166 | M85: 0 | N85: 0 | P85: 0 | R85: 1166 | S85: 0 | T85: 0 | V85: 0 | X85: 1166 | Y85: 0 | Z85: 0 | AB85: 0 | AD85: 1166 | AE85: 0 | AF85: 0 | AH85: 0 | AJ85: 1166 | AK85: 0 | AL85: 0 | AN85: 0 | AP85: 1166 | AQ85: 0 | AR85: 0 | AT85: 0 | AV85: 1166 | AW85: 0 | AX85: 0 | AZ85: 0 | BB85: 1166 | BC85: 0 | BD85: 0 | BF85: 0 | BH85: 0 | BI85: 1166 | BJ85: 0 | BK85: 0 | BM85: 0 | BN85: 36 | BO85: 1166 | BP85: 41976 | BQ85: 0 | BS85: 41976
A86: 1.1.20.8 | B86: Монтаж профильной трубы 40х40 | C86: м.п. | D86: 12 | E86: 904 | F86: 10848 | G86: 453 | H86: =D86*G86 -> 5436 | I86: 16284 | L86: 904 | M86: 0 | N86: 453 | O86: =K86*N86 -> 0 | P86: 0 | R86: 904 | S86: 0 | T86: 453 | U86: =Q86*T86 -> 0 | V86: 0 | X86: 904 | Y86: 0 | Z86: 453 | AA86: =W86*Z86 -> 0 | AB86: 0 | AD86: 904 | AE86: 0 | AF86: 453 | AG86: =AC86*AF86 -> 0 | AH86: 0 | AJ86: 904 | AK86: 0 | AL86: 453 | AM86: =AI86*AL86 -> 0 | AN86: 0 | AP86: 904 | AQ86: 0 | AR86: 453 | AS86: =AO86*AR86 -> 0 | AT86: 0 | AV86: 904 | AW86: 0 | AX86: 453 | AY86: =AU86*AX86 -> 0 | AZ86: 0 | BB86: 904 | BC86: 0 | BD86: 453 | BE86: =BA86*BD86 -> 0 | BF86: 0 | BH86: 0 | BI86: 904 | BJ86: 0 | BK86: 453 | BL86: =BH86*BK86 -> 0 | BM86: 0 | BN86: 12 | BO86: 904 | BP86: 10848 | BQ86: 453 | BR86: =BN86*BQ86 -> 5436 | BS86: 16284
A87: 1.1.20.9 | B87: Монтаж ГКЛ 2 слоя | C87: м2 | D87: 36 | E87: 1690 | F87: 60840 | G87: 1625 | H87: 58500 | I87: 119340 | L87: 1690 | M87: 0 | N87: 1625 | O87: 0 | P87: 0 | R87: 1690 | S87: 0 | T87: 1625 | U87: 0 | V87: 0 | X87: 1690 | Y87: 0 | Z87: 1625 | AA87: 0 | AB87: 0 | AD87: 1690 | AE87: 0 | AF87: 1625 | AG87: 0 | AH87: 0 | AJ87: 1690 | AK87: 0 | AL87: 1625 | AM87: 0 | AN87: 0 | AP87: 1690 | AQ87: 0 | AR87: 1625 | AS87: 0 | AT87: 0 | AV87: 1690 | AW87: 0 | AX87: 1625 | AY87: 0 | AZ87: 0 | BB87: 1690 | BC87: 0 | BD87: 1625 | BE87: 0 | BF87: 0 | BH87: 0 | BI87: 1690 | BJ87: 0 | BK87: 1625 | BL87: 0 | BM87: 0 | BN87: 36 | BO87: 1690 | BP87: 60840 | BQ87: 1625 | BR87: 58500 | BS87: 119340
A88: 1.1.20.10 | B88: Увеличение дверных проёмов | C88: шт | D88: 12 | E88: 7585 | F88: 91020 | G88: 1716 | H88: 20592 | I88: 111612 | L88: 7585 | M88: 0 | N88: 1716 | O88: 0 | P88: 0 | R88: 7585 | S88: 0 | T88: 1716 | U88: 0 | V88: 0 | X88: 7585 | Y88: 0 | Z88: 1716 | AA88: 0 | AB88: 0 | AD88: 7585 | AE88: 0 | AF88: 1716 | AG88: 0 | AH88: 0 | AJ88: 7585 | AK88: 0 | AL88: 1716 | AM88: 0 | AN88: 0 | AP88: 7585 | AQ88: 0 | AR88: 1716 | AS88: 0 | AT88: 0 | AV88: 7585 | AW88: 0 | AX88: 1716 | AY88: 0 | AZ88: 0 | BB88: 7585 | BC88: 0 | BD88: 1716 | BE88: 0 | BF88: 0 | BH88: 0 | BI88: 7585 | BJ88: 0 | BK88: 1716 | BL88: 0 | BM88: 0 | BN88: 12 | BO88: 7585 | BP88: 91020 | BQ88: 1716 | BR88: 20592 | BS88: 111612
A89: 1.1.20.11 | B89: Наливной пол толщиной до 50мм | C89: м2 | D89: 125.1 | E89: 1286 | F89: 160878.6 | G89: 2430 | H89: 303993 | I89: 464871.6 | L89: 1286 | M89: 0 | N89: 2430 | O89: 0 | P89: 0 | R89: 1286 | S89: 0 | T89: 2430 | U89: 0 | V89: 0 | X89: 1286 | Y89: 0 | Z89: 2430 | AA89: 0 | AB89: 0 | AD89: 1286 | AE89: 0 | AF89: 2430 | AG89: 0 | AH89: 0 | AJ89: 1286 | AK89: 0 | AL89: 2430 | AM89: 0 | AN89: 0 | AP89: 1286 | AQ89: 0 | AR89: 2430 | AS89: 0 | AT89: 0 | AV89: 1286 | AW89: 0 | AX89: 2430 | AY89: 0 | AZ89: 0 | BB89: 1286 | BC89: 0 | BD89: 2430 | BE89: 0 | BF89: 0 | BH89: 0 | BI89: 1286 | BJ89: 0 | BK89: 2430 | BL89: 0 | BM89: 0 | BN89: 125.1 | BO89: 1286 | BP89: 160878.6 | BQ89: 2430 | BR89: 303993 | BS89: 464871.6
A90: 1.1.20.12 | B90: Усиление площадки лестничного марша | C90: шт | D90: 4 | E90: 36465 | F90: 145860 | G90: 7524 | H90: 30096 | I90: 175956 | L90: 36465 | M90: 0 | N90: 7524 | O90: 0 | P90: 0 | R90: 36465 | S90: 0 | T90: 7524 | U90: 0 | V90: 0 | X90: 36465 | Y90: 0 | Z90: 7524 | AA90: 0 | AB90: 0 | AD90: 36465 | AE90: 0 | AF90: 7524 | AG90: 0 | AH90: 0 | AJ90: 36465 | AK90: 0 | AL90: 7524 | AM90: 0 | AN90: 0 | AP90: 36465 | AQ90: 0 | AR90: 7524 | AS90: 0 | AT90: 0 | AV90: 36465 | AW90: 0 | AX90: 7524 | AY90: 0 | AZ90: 0 | BB90: 36465 | BC90: 0 | BD90: 7524 | BE90: 0 | BF90: 0 | BH90: 0 | BI90: 36465 | BJ90: 0 | BK90: 7524 | BL90: 0 | BM90: 0 | BN90: 4 | BO90: 36465 | BP90: 145860 | BQ90: 7524 | BR90: 30096 | BS90: 175956
A91: 1.1.20.13 | B91: Устройство стен из газобетонных блоков | C91: м3 | D91: 1.87 | E91: 6809 | F91: 12732.83 | G91: 13857 | H91: 25912.59 | I91: 38645.42 | L91: 6809 | M91: 0 | N91: 13857 | O91: 0 | P91: 0 | R91: 6809 | S91: 0 | T91: 13857 | U91: 0 | V91: 0 | X91: 6809 | Y91: 0 | Z91: 13857 | AA91: 0 | AB91: 0 | AD91: 6809 | AE91: 0 | AF91: 13857 | AG91: 0 | AH91: 0 | AJ91: 6809 | AK91: 0 | AL91: 13857 | AM91: 0 | AN91: 0 | AP91: 6809 | AQ91: 0 | AR91: 13857 | AS91: 0 | AT91: 0 | AV91: 6809 | AW91: 0 | AX91: 13857 | AY91: 0 | AZ91: 0 | BB91: 6809 | BC91: 0 | BD91: 13857 | BE91: 0 | BF91: 0 | BH91: 0 | BI91: 6809 | BJ91: 0 | BK91: 13857 | BL91: 0 | BM91: 0 | BN91: 1.87 | BO91: 6809 | BP91: 12732.83 | BQ91: 13857 | BR91: 25912.59 | BS91: 38645.42
A92: 1.1.20.14 | B92: Облицовка ступеней плиткой на лестнечной клетке | C92: шт | D92: 24 | E92: 3710 | F92: 89040 | G92: 2543 | H92: 61032 | I92: 150072 | L92: 3710 | M92: 0 | N92: 2543 | O92: 0 | P92: 0 | R92: 3710 | S92: 0 | T92: 2543 | U92: 0 | V92: 0 | X92: 3710 | Y92: 0 | Z92: 2543 | AA92: 0 | AB92: 0 | AD92: 3710 | AE92: 0 | AF92: 2543 | AG92: 0 | AH92: 0 | AJ92: 3710 | AK92: 0 | AL92: 2543 | AM92: 0 | AN92: 0 | AP92: 3710 | AQ92: 0 | AR92: 2543 | AS92: 0 | AT92: 0 | AV92: 3710 | AW92: 0 | AX92: 2543 | AY92: 0 | AZ92: 0 | BB92: 3710 | BC92: 0 | BD92: 2543 | BE92: 0 | BF92: 0 | BH92: 0 | BI92: 3710 | BJ92: 0 | BK92: 2543 | BL92: 0 | BM92: 0 | BN92: 24 | BO92: 3710 | BP92: 89040 | BQ92: 2543 | BR92: 61032 | BS92: 150072
A93: 1.1.20.15 | B93: Штукатурка откосов Ролл ворот в цеху | C93: м.п. | D93: 150 | E93: 1135 | F93: 170250 | G93: 567 | H93: 85050 | I93: 255300 | L93: 1135 | M93: 0 | N93: 567 | O93: 0 | P93: 0 | R93: 1135 | S93: 0 | T93: 567 | U93: 0 | V93: 0 | X93: 1135 | Y93: 0 | Z93: 567 | AA93: 0 | AB93: 0 | AD93: 1135 | AE93: 0 | AF93: 567 | AG93: 0 | AH93: 0 | AJ93: 1135 | AK93: 0 | AL93: 567 | AM93: 0 | AN93: 0 | AP93: 1135 | AQ93: 0 | AR93: 567 | AS93: 0 | AT93: 0 | AV93: 1135 | AW93: 0 | AX93: 567 | AY93: 0 | AZ93: 0 | BB93: 1135 | BC93: 0 | BD93: 567 | BE93: 0 | BF93: 0 | BH93: 0 | BI93: 1135 | BJ93: 0 | BK93: 567 | BL93: 0 | BM93: 0 | BN93: 150 | BO93: 1135 | BP93: 170250 | BQ93: 567 | BR93: 85050 | BS93: 255300
A94: 1.2 | B94: 130-23-АС1 Архитектурно-строительные решения | F94: =F96+F97+F99+F101+F102+F105+F106+F108 -> 9370353.48 | H94: =H96+H97+H99+H101+H102+H105+H106+H108 -> 19579106 | I94: =I96+I97+I99+I101+I102+I105+I106+I108 -> 28949459.48 | M94: =M96+M97+M99+M101+M102+M105+M106+M108 -> 4084784.62 | O94: =O96+O97+O99+O101+O102+O105+O106+O108 -> 10885660 | P94: =P96+P97+P99+P101+P102+P105+P106+P108 -> 14970444.62 | S94: =S96+S97+S99+S101+S102+S105+S106+S108 -> 813300 | U94: =U96+U97+U99+U101+U102+U105+U106+U108 -> 2211900 | V94: =V96+V97+V99+V101+V102+V105+V106+V108 -> 3025200 | Y94: =Y96+Y97+Y99+Y101+Y102+Y105+Y106+Y108 -> 3109117.4 | AA94: =AA96+AA97+AA99+AA101+AA102+AA105+AA106+AA108 -> 4828757 | AB94: =AB96+AB97+AB99+AB101+AB102+AB105+AB106+AB108 -> 7937874.4 | AE94: =AE96+AE97+AE99+AE101+AE102+AE105+AE106+AE108 -> 0 | AG94: =AG96+AG97+AG99+AG101+AG102+AG105+AG106+AG108 -> 0 | AH94: =AH96+AH97+AH99+AH101+AH102+AH105+AH106+AH108 -> 0 | AK94: =AK96+AK97+AK99+AK101+AK102+AK105+AK106+AK108 -> 0 | AM94: =AM96+AM97+AM99+AM101+AM102+AM105+AM106+AM108 -> 0 | AN94: =AN96+AN97+AN99+AN101+AN102+AN105+AN106+AN108 -> 0 | AQ94: =AQ96+AQ97+AQ99+AQ101+AQ102+AQ105+AQ106+AQ108 -> 0 | AS94: =AS96+AS97+AS99+AS101+AS102+AS105+AS106+AS108 -> 0 | AT94: =AT96+AT97+AT99+AT101+AT102+AT105+AT106+AT108 -> 0 | AW94: =AW96+AW97+AW99+AW101+AW102+AW105+AW106+AW108 -> 0 | AY94: =AY96+AY97+AY99+AY101+AY102+AY105+AY106+AY108 -> 0 | AZ94: =AZ96+AZ97+AZ99+AZ101+AZ102+AZ105+AZ106+AZ108 -> 0 | BC94: =BC96+BC97+BC99+BC101+BC102+BC105+BC106+BC108 -> 0 | BE94: =BE96+BE97+BE99+BE101+BE102+BE105+BE106+BE108 -> 0 | BF94: =BF96+BF97+BF99+BF101+BF102+BF105+BF106+BF108 -> 0 | BH94: 0 | BJ94: =BJ96+BJ97+BJ99+BJ101+BJ102+BJ105+BJ106+BJ108 -> 8007202.02 | BL94: =BL96+BL97+BL99+BL101+BL102+BL105+BL106+BL108 -> 17926317 | BM94: =BM96+BM97+BM99+BM101+BM102+BM105+BM106+BM108 -> 25933519.02 | BN94: 0 | BP94: =BP96+BP97+BP99+BP101+BP102+BP105+BP106+BP108 -> 1363151.46 | BR94: =BR96+BR97+BR99+BR101+BR102+BR105+BR106+BR108 -> 1652789 | BS94: =BS96+BS97+BS99+BS101+BS102+BS105+BS106+BS108 -> 3015940.46
A95: 1.2.1 | B95: Металлоконструкции огрунтованные КМ | BH95: 0 | BN95: 0
A96: 1.2.1.1 | B96: Монтаж фахверковых стоек массой до 1,0 т. | C96: т. | D96: 10.5 | E96: 95478 | F96: =D96*E96 -> 1002519 | G96: 229000 | H96: =D96*G96 -> 2404500 | I96: =E96*D96+G96*D96 -> 3407019 | K96: 6.95 | L96: 95478 | M96: =K96*L96 -> 663572.1 | N96: 229000 | O96: =K96*N96 -> 1591550 | P96: =L96*K96+N96*K96 -> 2255122.1 | R96: 95478 | S96: =Q96*R96 -> 0 | T96: 229000 | U96: =Q96*T96 -> 0 | V96: =R96*Q96+T96*Q96 -> 0 | W96: =D96-K96 -> 3.55 | X96: 95478 | Y96: =W96*X96 -> 338946.9 | Z96: 229000 | AA96: =W96*Z96 -> 812950 | AB96: =X96*W96+Z96*W96 -> 1151896.9 | AD96: 95478 | AE96: =AC96*AD96 -> 0 | AF96: 229000 | AG96: =AC96*AF96 -> 0 | AH96: =AD96*AC96+AF96*AC96 -> 0 | AJ96: 95478 | AK96: =AI96*AJ96 -> 0 | AL96: 229000 | AM96: =AI96*AL96 -> 0 | AN96: =AJ96*AI96+AL96*AI96 -> 0 | AP96: 95478 | AQ96: =AO96*AP96 -> 0 | AR96: 229000 | AS96: =AO96*AR96 -> 0 | AT96: =AP96*AO96+AR96*AO96 -> 0 | AV96: 95478 | AW96: =AU96*AV96 -> 0 | AX96: 229000 | AY96: =AU96*AX96 -> 0 | AZ96: =AV96*AU96+AX96*AU96 -> 0 | BB96: 95478 | BC96: =BA96*BB96 -> 0 | BD96: 229000 | BE96: =BA96*BD96 -> 0 | BF96: =BB96*BA96+BD96*BA96 -> 0 | BH96: 10.5 | BI96: 95478 | BJ96: =BH96*BI96 -> 1002519 | BK96: 229000 | BL96: =BH96*BK96 -> 2404500 | BM96: =BI96*BH96+BK96*BH96 -> 3407019 | BN96: 0 | BO96: 95478 | BP96: =BN96*BO96 -> 0 | BQ96: 229000 | BR96: =BN96*BQ96 -> 0 | BS96: =BO96*BN96+BQ96*BN96 -> 0
A97: 1.2.1.2 | B97: Монтаж распорок, ригелей, в том числе: Профили стальные гнутые замкнутые квадратные 100х4 | C97: т. | D97: 0.66 | E97: 95478 | F97: =D97*E97 -> 63015.48 | G97: 229000 | H97: =D97*G97 -> 151140 | I97: =E97*D97+G97*D97 -> 214155.48 | K97: 0.34 | L97: 95478 | M97: =K97*L97 -> 32462.52 | N97: 229000 | O97: =K97*N97 -> 77860 | P97: =L97*K97+N97*K97 -> 110322.52 | R97: 95478 | S97: =Q97*R97 -> 0 | T97: 229000 | U97: =Q97*T97 -> 0 | V97: =R97*Q97+T97*Q97 -> 0 | X97: 95478 | Y97: =W97*X97 -> 0 | Z97: 229000 | AA97: =W97*Z97 -> 0 | AB97: =X97*W97+Z97*W97 -> 0 | AD97: 95478 | AE97: =AC97*AD97 -> 0 | AF97: 229000 | AG97: =AC97*AF97 -> 0 | AH97: =AD97*AC97+AF97*AC97 -> 0 | AJ97: 95478 | AK97: =AI97*AJ97 -> 0 | AL97: 229000 | AM97: =AI97*AL97 -> 0 | AN97: =AJ97*AI97+AL97*AI97 -> 0 | AP97: 95478 | AQ97: =AO97*AP97 -> 0 | AR97: 229000 | AS97: =AO97*AR97 -> 0 | AT97: =AP97*AO97+AR97*AO97 -> 0 | AV97: 95478 | AW97: =AU97*AV97 -> 0 | AX97: 229000 | AY97: =AU97*AX97 -> 0 | AZ97: =AV97*AU97+AX97*AU97 -> 0 | BB97: 95478 | BC97: =BA97*BB97 -> 0 | BD97: 229000 | BE97: =BA97*BD97 -> 0 | BF97: =BB97*BA97+BD97*BA97 -> 0 | BH97: 0.34 | BI97: 95478 | BJ97: =BH97*BI97 -> 32462.52 | BK97: 229000 | BL97: =BH97*BK97 -> 77860 | BM97: =BI97*BH97+BK97*BH97 -> 110322.52 | BN97: 0.32 | BO97: 95478 | BP97: =BN97*BO97 -> 30552.96 | BQ97: 229000 | BR97: =BN97*BQ97 -> 73280 | BS97: =BO97*BN97+BQ97*BN97 -> 103832.96
A98: 1.2.2 | B98: Окраска металлоконструкций | BH98: =K98+Q98+W98+AC98+AI98+AO98+AU98+BA98 -> 0 | BN98: =D98-BH98 -> 0
A99: 1.2.2.1 | B99: Устройство огнезащитной краски по металлу | C99: м2 | D99: 384.2 | E99: 4150 | F99: =D99*E99 -> 1594430 | G99: 665 | H99: =D99*G99 -> 255493 | I99: =E99*D99+G99*D99 -> 1849923 | L99: 4150 | M99: =K99*L99 -> 0 | N99: 665 | O99: =K99*N99 -> 0 | P99: =L99*K99+N99*K99 -> 0 | R99: 4150 | S99: =Q99*R99 -> 0 | T99: 665 | U99: =Q99*T99 -> 0 | V99: =R99*Q99+T99*Q99 -> 0 | W99: 300 | X99: 4150 | Y99: =W99*X99 -> 1245000 | Z99: 665 | AA99: =W99*Z99 -> 199500 | AB99: =X99*W99+Z99*W99 -> 1444500 | AD99: 4150 | AE99: =AC99*AD99 -> 0 | AF99: 665 | AG99: =AC99*AF99 -> 0 | AH99: =AD99*AC99+AF99*AC99 -> 0 | AJ99: 4150 | AK99: =AI99*AJ99 -> 0 | AL99: 665 | AM99: =AI99*AL99 -> 0 | AN99: =AJ99*AI99+AL99*AI99 -> 0 | AP99: 4150 | AQ99: =AO99*AP99 -> 0 | AR99: 665 | AS99: =AO99*AR99 -> 0 | AT99: =AP99*AO99+AR99*AO99 -> 0 | AV99: 4150 | AW99: =AU99*AV99 -> 0 | AX99: 665 | AY99: =AU99*AX99 -> 0 | AZ99: =AV99*AU99+AX99*AU99 -> 0 | BB99: 4150 | BC99: =BA99*BB99 -> 0 | BD99: 665 | BE99: =BA99*BD99 -> 0 | BF99: =BB99*BA99+BD99*BA99 -> 0 | BH99: 300 | BI99: 4150 | BJ99: =BH99*BI99 -> 1245000 | BK99: 665 | BL99: =BH99*BK99 -> 199500 | BM99: =BI99*BH99+BK99*BH99 -> 1444500 | BN99: 84.2 | BO99: 4150 | BP99: =BN99*BO99 -> 349430 | BQ99: 665 | BR99: =BN99*BQ99 -> 55993 | BS99: =BO99*BN99+BQ99*BN99 -> 405423
A100: 1.2.3 | B100: Крепление металлоконструкций | BH100: 0 | BN100: 0
A101: 1.2.3.1 | B101: Сверление отверстий в железобетонных конструкциях | C101: шт. | D101: 811 | E101: 393 | F101: =D101*E101 -> 318723 | G101: 0 | I101: =E101*D101+G101*D101 -> 318723 | L101: 393 | M101: =K101*L101 -> 0 | N101: 0 | P101: =L101*K101+N101*K101 -> 0 | R101: 393 | S101: =Q101*R101 -> 0 | T101: 0 | V101: =R101*Q101+T101*Q101 -> 0 | W101: 100 | X101: 393 | Y101: =W101*X101 -> 39300 | Z101: 0 | AB101: =X101*W101+Z101*W101 -> 39300 | AD101: 393 | AE101: =AC101*AD101 -> 0 | AF101: 0 | AH101: =AD101*AC101+AF101*AC101 -> 0 | AJ101: 393 | AK101: =AI101*AJ101 -> 0 | AL101: 0 | AN101: =AJ101*AI101+AL101*AI101 -> 0 | AP101: 393 | AQ101: =AO101*AP101 -> 0 | AR101: 0 | AT101: =AP101*AO101+AR101*AO101 -> 0 | AV101: 393 | AW101: =AU101*AV101 -> 0 | AX101: 0 | AZ101: =AV101*AU101+AX101*AU101 -> 0 | BB101: 393 | BC101: =BA101*BB101 -> 0 | BD101: 0 | BF101: =BB101*BA101+BD101*BA101 -> 0 | BH101: 100 | BI101: 393 | BJ101: =BH101*BI101 -> 39300 | BK101: 0 | BM101: =BI101*BH101+BK101*BH101 -> 39300 | BN101: 711 | BO101: 393 | BP101: =BN101*BO101 -> 279423 | BQ101: 0 | BS101: =BO101*BN101+BQ101*BN101 -> 279423
A102: 1.2.3.2 | B102: Устройство высокопрочных анкеров, закладных | C102: компл. | D102: 1 | E102: 260741 | F102: =D102*E102 -> 260741 | G102: 259614 | H102: =D102*G102 -> 259614 | I102: 520355 | L102: 260741 | M102: =K102*L102 -> 0 | N102: 259614 | O102: =K102*N102 -> 0 | P102: 0 | R102: 260741 | S102: =Q102*R102 -> 0 | T102: 259614 | U102: =Q102*T102 -> 0 | V102: 0 | W102: 0.5 | X102: 260741 | Y102: =W102*X102 -> 130370.5 | Z102: 259614 | AA102: =W102*Z102 -> 129807 | AB102: 260177.5 | AD102: 260741 | AE102: =AC102*AD102 -> 0 | AF102: 259614 | AG102: =AC102*AF102 -> 0 | AH102: 0 | AJ102: 260741 | AK102: =AI102*AJ102 -> 0 | AL102: 259614 | AM102: =AI102*AL102 -> 0 | AN102: 0 | AP102: 260741 | AQ102: =AO102*AP102 -> 0 | AR102: 259614 | AS102: =AO102*AR102 -> 0 | AT102: 0 | AV102: 260741 | AW102: =AU102*AV102 -> 0 | AX102: 259614 | AY102: =AU102*AX102 -> 0 | AZ102: 0 | BB102: 260741 | BC102: =BA102*BB102 -> 0 | BD102: 259614 | BE102: =BA102*BD102 -> 0 | BF102: 0 | BH102: 0.5 | BI102: 260741 | BJ102: =BH102*BI102 -> 130370.5 | BK102: 259614 | BL102: =BH102*BK102 -> 129807 | BM102: 260177.5 | BN102: 0.5 | BO102: 260741 | BP102: =BN102*BO102 -> 130370.5 | BQ102: 259614 | BR102: =BN102*BQ102 -> 129807 | BS102: 260177.5
A103: 1.2.4 | B103: Демонтаж металлоконструкций | BH103: 0 | BN103: 0
A104: 1.2.5 | B104: Устройство перегородки | BH104: 0 | BN104: 0
A105: 1.2.5.1 | B105: Стеновые сэндвич-панели 100-1000-Г-Г | C105: м2 | D105: 2215 | E105: 2711 | F105: =D105*E105 -> 6004865 | G105: 7373 | H105: =D105*G105 -> 16331195 | I105: =E105*D105+G105*D105 -> 22336060 | K105: 1250 | L105: 2711 | M105: =K105*L105 -> 3388750 | N105: 7373 | O105: =K105*N105 -> 9216250 | P105: =L105*K105+N105*K105 -> 12605000 | Q105: 300 | R105: 2711 | S105: =Q105*R105 -> 813300 | T105: 7373 | U105: =Q105*T105 -> 2211900 | V105: =R105*Q105+T105*Q105 -> 3025200 | W105: 500 | X105: 2711 | Y105: =W105*X105 -> 1355500 | Z105: 7373 | AA105: =W105*Z105 -> 3686500 | AB105: =X105*W105+Z105*W105 -> 5042000 | AD105: 2711 | AE105: =AC105*AD105 -> 0 | AF105: 7373 | AG105: =AC105*AF105 -> 0 | AH105: =AD105*AC105+AF105*AC105 -> 0 | AJ105: 2711 | AK105: =AI105*AJ105 -> 0 | AL105: 7373 | AM105: =AI105*AL105 -> 0 | AN105: =AJ105*AI105+AL105*AI105 -> 0 | AP105: 2711 | AQ105: =AO105*AP105 -> 0 | AR105: 7373 | AS105: =AO105*AR105 -> 0 | AT105: =AP105*AO105+AR105*AO105 -> 0 | AV105: 2711 | AW105: =AU105*AV105 -> 0 | AX105: 7373 | AY105: =AU105*AX105 -> 0 | AZ105: =AV105*AU105+AX105*AU105 -> 0 | BB105: 2711 | BC105: =BA105*BB105 -> 0 | BD105: 7373 | BE105: =BA105*BD105 -> 0 | BF105: =BB105*BA105+BD105*BA105 -> 0 | BH105: 2050 | BI105: 2711 | BJ105: =BH105*BI105 -> 5557550 | BK105: 7373 | BL105: =BH105*BK105 -> 15114650 | BM105: =BI105*BH105+BK105*BH105 -> 20672200 | BN105: 165 | BO105: 2711 | BP105: =BN105*BO105 -> 447315 | BQ105: 7373 | BR105: =BN105*BQ105 -> 1216545 | BS105: =BO105*BN105+BQ105*BN105 -> 1663860
A106: 1.2.5.2 | B106: Устройство противопожарной перегородки «Knauf» С112 с двухслойной обшивкой с каждой стороны | C106: м2 | D106: 4 | E106: 5055 | F106: =D106*E106 -> 20220 | G106: 4601 | H106: =D106*G106 -> 18404 | I106: =E106*D106+G106*D106 -> 38624 | L106: 5055 | M106: =K106*L106 -> 0 | N106: 4601 | O106: =K106*N106 -> 0 | P106: =L106*K106+N106*K106 -> 0 | R106: 5055 | S106: =Q106*R106 -> 0 | T106: 4601 | U106: =Q106*T106 -> 0 | V106: =R106*Q106+T106*Q106 -> 0 | X106: 5055 | Y106: =W106*X106 -> 0 | Z106: 4601 | AA106: =W106*Z106 -> 0 | AB106: =X106*W106+Z106*W106 -> 0 | AD106: 5055 | AE106: =AC106*AD106 -> 0 | AF106: 4601 | AG106: =AC106*AF106 -> 0 | AH106: =AD106*AC106+AF106*AC106 -> 0 | AJ106: 5055 | AK106: =AI106*AJ106 -> 0 | AL106: 4601 | AM106: =AI106*AL106 -> 0 | AN106: =AJ106*AI106+AL106*AI106 -> 0 | AP106: 5055 | AQ106: =AO106*AP106 -> 0 | AR106: 4601 | AS106: =AO106*AR106 -> 0 | AT106: =AP106*AO106+AR106*AO106 -> 0 | AV106: 5055 | AW106: =AU106*AV106 -> 0 | AX106: 4601 | AY106: =AU106*AX106 -> 0 | AZ106: =AV106*AU106+AX106*AU106 -> 0 | BB106: 5055 | BC106: =BA106*BB106 -> 0 | BD106: 4601 | BE106: =BA106*BD106 -> 0 | BF106: =BB106*BA106+BD106*BA106 -> 0 | BH106: 0 | BI106: 5055 | BJ106: =BH106*BI106 -> 0 | BK106: 4601 | BL106: =BH106*BK106 -> 0 | BM106: =BI106*BH106+BK106*BH106 -> 0 | BN106: 4 | BO106: 5055 | BP106: =BN106*BO106 -> 20220 | BQ106: 4601 | BR106: =BN106*BQ106 -> 18404 | BS106: =BO106*BN106+BQ106*BN106 -> 38624
A107: 1.2.6 | B107: Устройство бетонного плинтуса | BH107: 0 | BN107: 0
A108: 1.2.6.1 | B108: Устройство плинтуса из фасонного элемента | C108: м/п | D108: 378 | E108: 280 | F108: =D108*E108 -> 105840 | G108: 420 | H108: =D108*G108 -> 158760 | I108: =E108*D108+G108*D108 -> 264600 | L108: 280 | M108: =K108*L108 -> 0 | N108: 420 | O108: =K108*N108 -> 0 | P108: =L108*K108+N108*K108 -> 0 | R108: 280 | S108: =Q108*R108 -> 0 | T108: 420 | U108: =Q108*T108 -> 0 | V108: =R108*Q108+T108*Q108 -> 0 | X108: 280 | Y108: =W108*X108 -> 0 | Z108: 420 | AA108: =W108*Z108 -> 0 | AB108: =X108*W108+Z108*W108 -> 0 | AD108: 280 | AE108: =AC108*AD108 -> 0 | AF108: 420 | AG108: =AC108*AF108 -> 0 | AH108: =AD108*AC108+AF108*AC108 -> 0 | AJ108: 280 | AK108: =AI108*AJ108 -> 0 | AL108: 420 | AM108: =AI108*AL108 -> 0 | AN108: =AJ108*AI108+AL108*AI108 -> 0 | AP108: 280 | AQ108: =AO108*AP108 -> 0 | AR108: 420 | AS108: =AO108*AR108 -> 0 | AT108: =AP108*AO108+AR108*AO108 -> 0 | AV108: 280 | AW108: =AU108*AV108 -> 0 | AX108: 420 | AY108: =AU108*AX108 -> 0 | AZ108: =AV108*AU108+AX108*AU108 -> 0 | BB108: 280 | BC108: =BA108*BB108 -> 0 | BD108: 420 | BE108: =BA108*BD108 -> 0 | BF108: =BB108*BA108+BD108*BA108 -> 0 | BH108: 0 | BI108: 280 | BJ108: =BH108*BI108 -> 0 | BK108: 420 | BL108: =BH108*BK108 -> 0 | BM108: =BI108*BH108+BK108*BH108 -> 0 | BN108: 378 | BO108: 280 | BP108: =BN108*BO108 -> 105840 | BQ108: 420 | BR108: =BN108*BQ108 -> 158760 | BS108: =BO108*BN108+BQ108*BN108 -> 264600
A109: 1.3 | B109: 130-23-ВК Внутренние трубопроводы | F109: =SUM(F110:F113) -> 3943362 | H109: =SUM(H110:H113) -> 7445174 | I109: =SUM(I110:I113) -> 11388536 | M109: =SUM(M110:M113) -> 0 | O109: =SUM(O110:O113) -> 0 | P109: =SUM(P110:P113) -> 0 | S109: =SUM(S110:S113) -> 175081.5 | U109: =SUM(U110:U113) -> 369598.5 | V109: =SUM(V110:V113) -> 544680 | Y109: =SUM(Y110:Y113) -> 2979608.1 | AA109: =SUM(AA110:AA113) -> 5586540.7 | AB109: =SUM(AB110:AB113) -> 8566148.8 | AE109: =SUM(AE110:AE113) -> 0 | AG109: =SUM(AG110:AG113) -> 0 | AH109: =SUM(AH110:AH113) -> 0 | AK109: =SUM(AK110:AK113) -> 0 | AM109: =SUM(AM110:AM113) -> 0 | AN109: =SUM(AN110:AN113) -> 0 | AQ109: =SUM(AQ110:AQ113) -> 0 | AS109: =SUM(AS110:AS113) -> 0 | AT109: =SUM(AT110:AT113) -> 0 | AW109: =SUM(AW110:AW113) -> 0 | AY109: =SUM(AY110:AY113) -> 0 | AZ109: =SUM(AZ110:AZ113) -> 0 | BC109: =SUM(BC110:BC113) -> 0 | BE109: =SUM(BE110:BE113) -> 0 | BF109: =SUM(BF110:BF113) -> 0 | BH109: 0 | BJ109: =SUM(BJ110:BJ113) -> 3154689.6 | BL109: =SUM(BL110:BL113) -> 5956139.2 | BM109: =SUM(BM110:BM113) -> 9110828.8 | BN109: 0 | BP109: =SUM(BP110:BP113) -> 788672.4 | BR109: =SUM(BR110:BR113) -> 1489034.8 | BS109: =SUM(BS110:BS113) -> 2277707.2
A110: 1.3.1 | B110: Хозяйственно-питьевой водопровод В1. | C110: сис | D110: 1 | E110: 910581 | F110: =D110*E110 -> 910581 | G110: 979867 | H110: =D110*G110 -> 979867 | I110: =E110*D110+G110*D110 -> 1890448 | L110: 910581 | M110: =K110*L110 -> 0 | N110: 979867 | O110: =K110*N110 -> 0 | P110: =L110*K110+N110*K110 -> 0 | R110: 910581 | S110: =Q110*R110 -> 0 | T110: 979867 | U110: =Q110*T110 -> 0 | V110: =R110*Q110+T110*Q110 -> 0 | W110: 0.8 | X110: 910581 | Y110: =W110*X110 -> 728464.8 | Z110: 979867 | AA110: =W110*Z110 -> 783893.6 | AB110: =X110*W110+Z110*W110 -> 1512358.4 | AD110: 910581 | AE110: =AC110*AD110 -> 0 | AF110: 979867 | AG110: =AC110*AF110 -> 0 | AH110: =AD110*AC110+AF110*AC110 -> 0 | AJ110: 910581 | AK110: =AI110*AJ110 -> 0 | AL110: 979867 | AM110: =AI110*AL110 -> 0 | AN110: =AJ110*AI110+AL110*AI110 -> 0 | AP110: 910581 | AQ110: =AO110*AP110 -> 0 | AR110: 979867 | AS110: =AO110*AR110 -> 0 | AT110: =AP110*AO110+AR110*AO110 -> 0 | AV110: 910581 | AW110: =AU110*AV110 -> 0 | AX110: 979867 | AY110: =AU110*AX110 -> 0 | AZ110: =AV110*AU110+AX110*AU110 -> 0 | BB110: 910581 | BC110: =BA110*BB110 -> 0 | BD110: 979867 | BE110: =BA110*BD110 -> 0 | BF110: =BB110*BA110+BD110*BA110 -> 0 | BH110: 0.8 | BI110: 910581 | BJ110: =BH110*BI110 -> 728464.8 | BK110: 979867 | BL110: =BH110*BK110 -> 783893.6 | BM110: =BI110*BH110+BK110*BH110 -> 1512358.4 | BN110: 0.2 | BO110: 910581 | BP110: =BN110*BO110 -> 182116.2 | BQ110: 979867 | BR110: =BN110*BQ110 -> 195973.4 | BS110: =BO110*BN110+BQ110*BN110 -> 378089.6
A111: 1.3.2 | B111: Горячее водоснабжение (Т3, Т4) | C111: сис | D111: 1 | E111: 1137342 | F111: =D111*E111 -> 1137342 | G111: 1607675 | H111: =D111*G111 -> 1607675 | I111: =E111*D111+G111*D111 -> 2745017 | L111: 1137342 | M111: =K111*L111 -> 0 | N111: 1607675 | O111: =K111*N111 -> 0 | P111: =L111*K111+N111*K111 -> 0 | R111: 1137342 | S111: =Q111*R111 -> 0 | T111: 1607675 | U111: =Q111*T111 -> 0 | V111: =R111*Q111+T111*Q111 -> 0 | W111: 0.8 | X111: 1137342 | Y111: =W111*X111 -> 909873.6 | Z111: 1607675 | AA111: =W111*Z111 -> 1286140 | AB111: =X111*W111+Z111*W111 -> 2196013.6 | AD111: 1137342 | AE111: =AC111*AD111 -> 0 | AF111: 1607675 | AG111: =AC111*AF111 -> 0 | AH111: =AD111*AC111+AF111*AC111 -> 0 | AJ111: 1137342 | AK111: =AI111*AJ111 -> 0 | AL111: 1607675 | AM111: =AI111*AL111 -> 0 | AN111: =AJ111*AI111+AL111*AI111 -> 0 | AP111: 1137342 | AQ111: =AO111*AP111 -> 0 | AR111: 1607675 | AS111: =AO111*AR111 -> 0 | AT111: =AP111*AO111+AR111*AO111 -> 0 | AV111: 1137342 | AW111: =AU111*AV111 -> 0 | AX111: 1607675 | AY111: =AU111*AX111 -> 0 | AZ111: =AV111*AU111+AX111*AU111 -> 0 | BB111: 1137342 | BC111: =BA111*BB111 -> 0 | BD111: 1607675 | BE111: =BA111*BD111 -> 0 | BF111: =BB111*BA111+BD111*BA111 -> 0 | BH111: 0.8 | BI111: 1137342 | BJ111: =BH111*BI111 -> 909873.6 | BK111: 1607675 | BL111: =BH111*BK111 -> 1286140 | BM111: =BI111*BH111+BK111*BH111 -> 2196013.6 | BN111: 0.2 | BO111: 1137342 | BP111: =BN111*BO111 -> 227468.4 | BQ111: 1607675 | BR111: =BN111*BQ111 -> 321535 | BS111: =BO111*BN111+BQ111*BN111 -> 549003.4
A112: 1.3.3 | B112: Противопожарный водопровод, В2 | C112: сис | D112: 1 | E112: 1545276 | F112: =D112*E112 -> 1545276 | G112: 4118435 | H112: =D112*G112 -> 4118435 | I112: =E112*D112+G112*D112 -> 5663711 | L112: 1545276 | M112: =K112*L112 -> 0 | N112: 4118435 | O112: =K112*N112 -> 0 | P112: =L112*K112+N112*K112 -> 0 | R112: 1545276 | S112: =Q112*R112 -> 0 | T112: 4118435 | U112: =Q112*T112 -> 0 | V112: =R112*Q112+T112*Q112 -> 0 | W112: 0.8 | X112: 1545276 | Y112: =W112*X112 -> 1236220.8 | Z112: 4118435 | AA112: =W112*Z112 -> 3294748 | AB112: =X112*W112+Z112*W112 -> 4530968.8 | AD112: 1545276 | AE112: =AC112*AD112 -> 0 | AF112: 4118435 | AG112: =AC112*AF112 -> 0 | AH112: =AD112*AC112+AF112*AC112 -> 0 | AJ112: 1545276 | AK112: =AI112*AJ112 -> 0 | AL112: 4118435 | AM112: =AI112*AL112 -> 0 | AN112: =AJ112*AI112+AL112*AI112 -> 0 | AP112: 1545276 | AQ112: =AO112*AP112 -> 0 | AR112: 4118435 | AS112: =AO112*AR112 -> 0 | AT112: =AP112*AO112+AR112*AO112 -> 0 | AV112: 1545276 | AW112: =AU112*AV112 -> 0 | AX112: 4118435 | AY112: =AU112*AX112 -> 0 | AZ112: =AV112*AU112+AX112*AU112 -> 0 | BB112: 1545276 | BC112: =BA112*BB112 -> 0 | BD112: 4118435 | BE112: =BA112*BD112 -> 0 | BF112: =BB112*BA112+BD112*BA112 -> 0 | BH112: 0.8 | BI112: 1545276 | BJ112: =BH112*BI112 -> 1236220.8 | BK112: 4118435 | BL112: =BH112*BK112 -> 3294748 | BM112: =BI112*BH112+BK112*BH112 -> 4530968.8 | BN112: 0.2 | BO112: 1545276 | BP112: =BN112*BO112 -> 309055.2 | BQ112: 4118435 | BR112: =BN112*BQ112 -> 823687 | BS112: =BO112*BN112+BQ112*BN112 -> 1132742.2
A113: 1.3.4 | B113: Бытовая канализация К1 | C113: сис | D113: 1 | E113: 350163 | F113: =D113*E113 -> 350163 | G113: 739197 | H113: =D113*G113 -> 739197 | I113: =E113*D113+G113*D113 -> 1089360 | L113: 350163 | M113: =K113*L113 -> 0 | N113: 739197 | O113: =K113*N113 -> 0 | P113: =L113*K113+N113*K113 -> 0 | Q113: 0.5 | R113: 350163 | S113: =Q113*R113 -> 175081.5 | T113: 739197 | U113: =Q113*T113 -> 369598.5 | V113: =R113*Q113+T113*Q113 -> 544680 | W113: 0.3 | X113: 350163 | Y113: =W113*X113 -> 105048.9 | Z113: 739197 | AA113: =W113*Z113 -> 221759.1 | AB113: =X113*W113+Z113*W113 -> 326808 | AD113: 350163 | AE113: =AC113*AD113 -> 0 | AF113: 739197 | AG113: =AC113*AF113 -> 0 | AH113: =AD113*AC113+AF113*AC113 -> 0 | AJ113: 350163 | AK113: =AI113*AJ113 -> 0 | AL113: 739197 | AM113: =AI113*AL113 -> 0 | AN113: =AJ113*AI113+AL113*AI113 -> 0 | AP113: 350163 | AQ113: =AO113*AP113 -> 0 | AR113: 739197 | AS113: =AO113*AR113 -> 0 | AT113: =AP113*AO113+AR113*AO113 -> 0 | AV113: 350163 | AW113: =AU113*AV113 -> 0 | AX113: 739197 | AY113: =AU113*AX113 -> 0 | AZ113: =AV113*AU113+AX113*AU113 -> 0 | BB113: 350163 | BC113: =BA113*BB113 -> 0 | BD113: 739197 | BE113: =BA113*BD113 -> 0 | BF113: =BB113*BA113+BD113*BA113 -> 0 | BH113: 0.8 | BI113: 350163 | BJ113: =BH113*BI113 -> 280130.4 | BK113: 739197 | BL113: =BH113*BK113 -> 591357.6 | BM113: =BI113*BH113+BK113*BH113 -> 871488 | BN113: 0.2 | BO113: 350163 | BP113: =BN113*BO113 -> 70032.6 | BQ113: 739197 | BR113: =BN113*BQ113 -> 147839.4 | BS113: =BO113*BN113+BQ113*BN113 -> 217872
A114: 1.4 | B114: 130-23-ПС Пожарная сигнализация | Y114: =Y115+Y116+Y117+Y118+Y119+Y120+Y121+Y122+Y123+Y124+SUM(Y125:Y131)+Y132+Y133+Y134+Y135+Y136+Y137+Y138+Y139+Y140+Y141+Y142+Y143+Y144+Y145+Y146+Y147+Y148+Y149+Y150+Y151+Y152+Y153+Y154+SUM(Y155:Y166)+Y167+Y168+Y169+Y170+Y171+Y172+Y173+Y174+Y175+Y176+Y177+Y178+Y179+Y180+Y181+SUM(Y183:Y197) -> 460596 | AA114: =AA115+AA116+AA117+AA118+AA119+AA120+AA121+AA122+AA123+AA124+SUM(AA125:AA131)+AA132+AA133+AA134+AA135+AA136+AA137+AA138+AA139+AA140+AA141+AA142+AA143+AA144+AA145+AA146+AA147+AA148+AA149+AA150+AA151+AA152+AA153+AA154+SUM(AA155:AA166)+AA167+AA168+AA169+AA170+AA171+AA172+AA173+AA174+AA175+AA176+AA177+AA178+AA179+AA180+AA181+SUM(AA183:AA197) -> 1030533.96 | AB114: =AB115+AB116+AB117+AB118+AB119+AB120+AB121+AB122+AB123+AB124+SUM(AB125:AB131)+AB132+AB133+AB134+AB135+AB136+AB137+AB138+AB139+AB140+AB141+AB142+AB143+AB144+AB145+AB146+AB147+AB148+AB149+AB150+AB151+AB152+AB153+AB154+SUM(AB155:AB166)+AB167+AB168+AB169+AB170+AB171+AB172+AB173+AB174+AB175+AB176+AB177+AB178+AB179+AB180+AB181+SUM(AB183:AB197) -> 1491129.96 | AE114: =AE115+AE116+AE117+AE118+AE119+AE120+AE121+AE122+AE123+AE124+SUM(AE125:AE131)+AE132+AE133+AE134+AE135+AE136+AE137+AE138+AE139+AE140+AE141+AE142+AE143+AE144+AE145+AE146+AE147+AE148+AE149+AE150+AE151+AE152+AE153+AE154+SUM(AE155:AE166)+AE167+AE168+AE169+AE170+AE171+AE172+AE173+AE174+AE175+AE176+AE177+AE178+AE179+AE180+AE181+SUM(AE183:AE197) -> 0 | AG114: =AG115+AG116+AG117+AG118+AG119+AG120+AG121+AG122+AG123+AG124+SUM(AG125:AG131)+AG132+AG133+AG134+AG135+AG136+AG137+AG138+AG139+AG140+AG141+AG142+AG143+AG144+AG145+AG146+AG147+AG148+AG149+AG150+AG151+AG152+AG153+AG154+SUM(AG155:AG166)+AG167+AG168+AG169+AG170+AG171+AG172+AG173+AG174+AG175+AG176+AG177+AG178+AG179+AG180+AG181+SUM(AG183:AG197) -> 0 | AH114: =AH115+AH116+AH117+AH118+AH119+AH120+AH121+AH122+AH123+AH124+SUM(AH125:AH131)+AH132+AH133+AH134+AH135+AH136+AH137+AH138+AH139+AH140+AH141+AH142+AH143+AH144+AH145+AH146+AH147+AH148+AH149+AH150+AH151+AH152+AH153+AH154+SUM(AH155:AH166)+AH167+AH168+AH169+AH170+AH171+AH172+AH173+AH174+AH175+AH176+AH177+AH178+AH179+AH180+AH181+SUM(AH183:AH197) -> 0 | AK114: =AK115+AK116+AK117+AK118+AK119+AK120+AK121+AK122+AK123+AK124+SUM(AK125:AK131)+AK132+AK133+AK134+AK135+AK136+AK137+AK138+AK139+AK140+AK141+AK142+AK143+AK144+AK145+AK146+AK147+AK148+AK149+AK150+AK151+AK152+AK153+AK154+SUM(AK155:AK166)+AK167+AK168+AK169+AK170+AK171+AK172+AK173+AK174+AK175+AK176+AK177+AK178+AK179+AK180+AK181+SUM(AK183:AK197) -> 0 | AM114: =AM115+AM116+AM117+AM118+AM119+AM120+AM121+AM122+AM123+AM124+SUM(AM125:AM131)+AM132+AM133+AM134+AM135+AM136+AM137+AM138+AM139+AM140+AM141+AM142+AM143+AM144+AM145+AM146+AM147+AM148+AM149+AM150+AM151+AM152+AM153+AM154+SUM(AM155:AM166)+AM167+AM168+AM169+AM170+AM171+AM172+AM173+AM174+AM175+AM176+AM177+AM178+AM179+AM180+AM181+SUM(AM183:AM197) -> 0 | AN114: =AN115+AN116+AN117+AN118+AN119+AN120+AN121+AN122+AN123+AN124+SUM(AN125:AN131)+AN132+AN133+AN134+AN135+AN136+AN137+AN138+AN139+AN140+AN141+AN142+AN143+AN144+AN145+AN146+AN147+AN148+AN149+AN150+AN151+AN152+AN153+AN154+SUM(AN155:AN166)+AN167+AN168+AN169+AN170+AN171+AN172+AN173+AN174+AN175+AN176+AN177+AN178+AN179+AN180+AN181+SUM(AN183:AN197) -> 0 | AQ114: =AQ115+AQ116+AQ117+AQ118+AQ119+AQ120+AQ121+AQ122+AQ123+AQ124+SUM(AQ125:AQ131)+AQ132+AQ133+AQ134+AQ135+AQ136+AQ137+AQ138+AQ139+AQ140+AQ141+AQ142+AQ143+AQ144+AQ145+AQ146+AQ147+AQ148+AQ149+AQ150+AQ151+AQ152+AQ153+AQ154+SUM(AQ155:AQ166)+AQ167+AQ168+AQ169+AQ170+AQ171+AQ172+AQ173+AQ174+AQ175+AQ176+AQ177+AQ178+AQ179+AQ180+AQ181+SUM(AQ183:AQ197) -> 0 | AS114: =AS115+AS116+AS117+AS118+AS119+AS120+AS121+AS122+AS123+AS124+SUM(AS125:AS131)+AS132+AS133+AS134+AS135+AS136+AS137+AS138+AS139+AS140+AS141+AS142+AS143+AS144+AS145+AS146+AS147+AS148+AS149+AS150+AS151+AS152+AS153+AS154+SUM(AS155:AS166)+AS167+AS168+AS169+AS170+AS171+AS172+AS173+AS174+AS175+AS176+AS177+AS178+AS179+AS180+AS181+SUM(AS183:AS197) -> 0 | AT114: =AT115+AT116+AT117+AT118+AT119+AT120+AT121+AT122+AT123+AT124+SUM(AT125:AT131)+AT132+AT133+AT134+AT135+AT136+AT137+AT138+AT139+AT140+AT141+AT142+AT143+AT144+AT145+AT146+AT147+AT148+AT149+AT150+AT151+AT152+AT153+AT154+SUM(AT155:AT166)+AT167+AT168+AT169+AT170+AT171+AT172+AT173+AT174+AT175+AT176+AT177+AT178+AT179+AT180+AT181+SUM(AT183:AT197) -> 0 | AW114: =AW115+AW116+AW117+AW118+AW119+AW120+AW121+AW122+AW123+AW124+SUM(AW125:AW131)+AW132+AW133+AW134+AW135+AW136+AW137+AW138+AW139+AW140+AW141+AW142+AW143+AW144+AW145+AW146+AW147+AW148+AW149+AW150+AW151+AW152+AW153+AW154+SUM(AW155:AW166)+AW167+AW168+AW169+AW170+AW171+AW172+AW173+AW174+AW175+AW176+AW177+AW178+AW179+AW180+AW181+SUM(AW183:AW197) -> 0 | AY114: =AY115+AY116+AY117+AY118+AY119+AY120+AY121+AY122+AY123+AY124+SUM(AY125:AY131)+AY132+AY133+AY134+AY135+AY136+AY137+AY138+AY139+AY140+AY141+AY142+AY143+AY144+AY145+AY146+AY147+AY148+AY149+AY150+AY151+AY152+AY153+AY154+SUM(AY155:AY166)+AY167+AY168+AY169+AY170+AY171+AY172+AY173+AY174+AY175+AY176+AY177+AY178+AY179+AY180+AY181+SUM(AY183:AY197) -> 0 | AZ114: =AZ115+AZ116+AZ117+AZ118+AZ119+AZ120+AZ121+AZ122+AZ123+AZ124+SUM(AZ125:AZ131)+AZ132+AZ133+AZ134+AZ135+AZ136+AZ137+AZ138+AZ139+AZ140+AZ141+AZ142+AZ143+AZ144+AZ145+AZ146+AZ147+AZ148+AZ149+AZ150+AZ151+AZ152+AZ153+AZ154+SUM(AZ155:AZ166)+AZ167+AZ168+AZ169+AZ170+AZ171+AZ172+AZ173+AZ174+AZ175+AZ176+AZ177+AZ178+AZ179+AZ180+AZ181+SUM(AZ183:AZ197) -> 0 | BC114: =BC115+BC116+BC117+BC118+BC119+BC120+BC121+BC122+BC123+BC124+SUM(BC125:BC131)+BC132+BC133+BC134+BC135+BC136+BC137+BC138+BC139+BC140+BC141+BC142+BC143+BC144+BC145+BC146+BC147+BC148+BC149+BC150+BC151+BC152+BC153+BC154+SUM(BC155:BC166)+BC167+BC168+BC169+BC170+BC171+BC172+BC173+BC174+BC175+BC176+BC177+BC178+BC179+BC180+BC181+SUM(BC183:BC197) -> 0 | BE114: =BE115+BE116+BE117+BE118+BE119+BE120+BE121+BE122+BE123+BE124+SUM(BE125:BE131)+BE132+BE133+BE134+BE135+BE136+BE137+BE138+BE139+BE140+BE141+BE142+BE143+BE144+BE145+BE146+BE147+BE148+BE149+BE150+BE151+BE152+BE153+BE154+SUM(BE155:BE166)+BE167+BE168+BE169+BE170+BE171+BE172+BE173+BE174+BE175+BE176+BE177+BE178+BE179+BE180+BE181+SUM(BE183:BE197) -> 0 | BF114: =BF115+BF116+BF117+BF118+BF119+BF120+BF121+BF122+BF123+BF124+SUM(BF125:BF131)+BF132+BF133+BF134+BF135+BF136+BF137+BF138+BF139+BF140+BF141+BF142+BF143+BF144+BF145+BF146+BF147+BF148+BF149+BF150+BF151+BF152+BF153+BF154+SUM(BF155:BF166)+BF167+BF168+BF169+BF170+BF171+BF172+BF173+BF174+BF175+BF176+BF177+BF178+BF179+BF180+BF181+SUM(BF183:BF197) -> 0 | BH114: 0 | BJ114: =BJ115+BJ116+BJ117+BJ118+BJ119+BJ120+BJ121+BJ122+BJ123+BJ124+SUM(BJ125:BJ131)+BJ132+BJ133+BJ134+BJ135+BJ136+BJ137+BJ138+BJ139+BJ140+BJ141+BJ142+BJ143+BJ144+BJ145+BJ146+BJ147+BJ148+BJ149+BJ150+BJ151+BJ152+BJ153+BJ154+SUM(BJ155:BJ166)+BJ167+BJ168+BJ169+BJ170+BJ171+BJ172+BJ173+BJ174+BJ175+BJ176+BJ177+BJ178+BJ179+BJ180+BJ181+SUM(BJ183:BJ197) -> 460596 | BL114: =BL115+BL116+BL117+BL118+BL119+BL120+BL121+BL122+BL123+BL124+SUM(BL125:BL131)+BL132+BL133+BL134+BL135+BL136+BL137+BL138+BL139+BL140+BL141+BL142+BL143+BL144+BL145+BL146+BL147+BL148+BL149+BL150+BL151+BL152+BL153+BL154+SUM(BL155:BL166)+BL167+BL168+BL169+BL170+BL171+BL172+BL173+BL174+BL175+BL176+BL177+BL178+BL179+BL180+BL181+SUM(BL183:BL197) -> 1030533.96 | BM114: =BM115+BM116+BM117+BM118+BM119+BM120+BM121+BM122+BM123+BM124+SUM(BM125:BM131)+BM132+BM133+BM134+BM135+BM136+BM137+BM138+BM139+BM140+BM141+BM142+BM143+BM144+BM145+BM146+BM147+BM148+BM149+BM150+BM151+BM152+BM153+BM154+SUM(BM155:BM166)+BM167+BM168+BM169+BM170+BM171+BM172+BM173+BM174+BM175+BM176+BM177+BM178+BM179+BM180+BM181+SUM(BM183:BM197) -> 1491129.96 | BN114: 0 | BP114: =BP115+BP116+BP117+BP118+BP119+BP120+BP121+BP122+BP123+BP124+SUM(BP125:BP131)+BP132+BP133+BP134+BP135+BP136+BP137+BP138+BP139+BP140+BP141+BP142+BP143+BP144+BP145+BP146+BP147+BP148+BP149+BP150+BP151+BP152+BP153+BP154+SUM(BP155:BP166)+BP167+BP168+BP169+BP170+BP171+BP172+BP173+BP174+BP175+BP176+BP177+BP178+BP179+BP180+BP181+SUM(BP183:BP197) -> 5107329.5 | BR114: =BR115+BR116+BR117+BR118+BR119+BR120+BR121+BR122+BR123+BR124+SUM(BR125:BR131)+BR132+BR133+BR134+BR135+BR136+BR137+BR138+BR139+BR140+BR141+BR142+BR143+BR144+BR145+BR146+BR147+BR148+BR149+BR150+BR151+BR152+BR153+BR154+SUM(BR155:BR166)+BR167+BR168+BR169+BR170+BR171+BR172+BR173+BR174+BR175+BR176+BR177+BR178+BR179+BR180+BR181+SUM(BR183:BR197) -> 5115565.14 | BS114: =BS115+BS116+BS117+BS118+BS119+BS120+BS121+BS122+BS123+BS124+SUM(BS125:BS131)+BS132+BS133+BS134+BS135+BS136+BS137+BS138+BS139+BS140+BS141+BS142+BS143+BS144+BS145+BS146+BS147+BS148+BS149+BS150+BS151+BS152+BS153+BS154+SUM(BS155:BS166)+BS167+BS168+BS169+BS170+BS171+BS172+BS173+BS174+BS175+BS176+BS177+BS178+BS179+BS180+BS181+SUM(BS183:BS197) -> 10222894.64
A115: 1.4.1 | B115: Сервер "Орион Про" | C115: компл. | D115: 1 | E115: 50304 | F115: =D115*E115 -> 50304 | G115: 0 | I115: =E115*D115+G115*D115 -> 50304 | L115: 50304 | M115: =K115*L115 -> 0 | N115: 0 | P115: =L115*K115+N115*K115 -> 0 | R115: 50304 | S115: =Q115*R115 -> 0 | T115: 0 | V115: =R115*Q115+T115*Q115 -> 0 | X115: 50304 | Y115: =W115*X115 -> 0 | Z115: 0 | AB115: =X115*W115+Z115*W115 -> 0 | AD115: 50304 | AE115: =AC115*AD115 -> 0 | AF115: 0 | AH115: =AD115*AC115+AF115*AC115 -> 0 | AJ115: 50304 | AK115: =AI115*AJ115 -> 0 | AL115: 0 | AN115: =AJ115*AI115+AL115*AI115 -> 0 | AP115: 50304 | AQ115: =AO115*AP115 -> 0 | AR115: 0 | AT115: =AP115*AO115+AR115*AO115 -> 0 | AV115: 50304 | AW115: =AU115*AV115 -> 0 | AX115: 0 | AZ115: =AV115*AU115+AX115*AU115 -> 0 | BB115: 50304 | BC115: =BA115*BB115 -> 0 | BD115: 0 | BF115: =BB115*BA115+BD115*BA115 -> 0 | BH115: 0 | BI115: 50304 | BJ115: =BH115*BI115 -> 0 | BK115: 0 | BM115: =BI115*BH115+BK115*BH115 -> 0 | BN115: 1 | BO115: 50304 | BP115: =BN115*BO115 -> 50304 | BQ115: 0 | BS115: =BO115*BN115+BQ115*BN115 -> 50304
A116: 1.4.2 | B116: Шкаф пожарной сигнализации | C116: шт. | D116: 4 | E116: 5502 | F116: 22008 | G116: 36625.68 | H116: =D116*G116 -> 146502.72 | I116: 168510.72 | L116: 5502 | M116: 0 | N116: 36625.68 | O116: =K116*N116 -> 0 | P116: 0 | R116: 5502 | S116: 0 | T116: 36625.68 | U116: =Q116*T116 -> 0 | V116: 0 | W116: 3 | X116: 5502 | Y116: 16506 | Z116: 36625.68 | AA116: =W116*Z116 -> 109877.04 | AB116: 126383.04 | AD116: 5502 | AE116: 0 | AF116: 36625.68 | AG116: =AC116*AF116 -> 0 | AH116: 0 | AJ116: 5502 | AK116: 0 | AL116: 36625.68 | AM116: =AI116*AL116 -> 0 | AN116: 0 | AP116: 5502 | AQ116: 0 | AR116: 36625.68 | AS116: =AO116*AR116 -> 0 | AT116: 0 | AV116: 5502 | AW116: 0 | AX116: 36625.68 | AY116: =AU116*AX116 -> 0 | AZ116: 0 | BB116: 5502 | BC116: 0 | BD116: 36625.68 | BE116: =BA116*BD116 -> 0 | BF116: 0 | BH116: 3 | BI116: 5502 | BJ116: 16506 | BK116: 36625.68 | BL116: =BH116*BK116 -> 109877.04 | BM116: 126383.04 | BN116: 1 | BO116: 5502 | BP116: 5502 | BQ116: 36625.68 | BR116: =BN116*BQ116 -> 36625.68 | BS116: 42127.68
A117: 1.4.3 | B117: Монтажный комплект | C117: шт. | D117: 4 | E117: 2358 | F117: 9432 | G117: 1456 | H117: 5824 | I117: 15256 | L117: 2358 | M117: 0 | N117: 1456 | O117: 0 | P117: 0 | R117: 2358 | S117: 0 | T117: 1456 | U117: 0 | V117: 0 | X117: 2358 | Y117: 0 | Z117: 1456 | AA117: 0 | AB117: 0 | AD117: 2358 | AE117: 0 | AF117: 1456 | AG117: 0 | AH117: 0 | AJ117: 2358 | AK117: 0 | AL117: 1456 | AM117: 0 | AN117: 0 | AP117: 2358 | AQ117: 0 | AR117: 1456 | AS117: 0 | AT117: 0 | AV117: 2358 | AW117: 0 | AX117: 1456 | AY117: 0 | AZ117: 0 | BB117: 2358 | BC117: 0 | BD117: 1456 | BE117: 0 | BF117: 0 | BH117: 0 | BI117: 2358 | BJ117: 0 | BK117: 1456 | BL117: 0 | BM117: 0 | BN117: 4 | BO117: 2358 | BP117: 9432 | BQ117: 1456 | BR117: 5824 | BS117: 15256
A118: 1.4.5 | B118: Прибор приемно-контрольный и управления пожарный | C118: шт. | D118: 1 | E118: 5502 | F118: 5502 | G118: 42033.68 | H118: 42033.68 | I118: 47535.68 | L118: 5502 | M118: 0 | N118: 42033.68 | O118: 0 | P118: 0 | R118: 5502 | S118: 0 | T118: 42033.68 | U118: 0 | V118: 0 | X118: 5502 | Y118: 0 | Z118: 42033.68 | AA118: 0 | AB118: 0 | AD118: 5502 | AE118: 0 | AF118: 42033.68 | AG118: 0 | AH118: 0 | AJ118: 5502 | AK118: 0 | AL118: 42033.68 | AM118: 0 | AN118: 0 | AP118: 5502 | AQ118: 0 | AR118: 42033.68 | AS118: 0 | AT118: 0 | AV118: 5502 | AW118: 0 | AX118: 42033.68 | AY118: 0 | AZ118: 0 | BB118: 5502 | BC118: 0 | BD118: 42033.68 | BE118: 0 | BF118: 0 | BH118: 0 | BI118: 5502 | BJ118: 0 | BK118: 42033.68 | BL118: 0 | BM118: 0 | BN118: 1 | BO118: 5502 | BP118: 5502 | BQ118: 42033.68 | BR118: 42033.68 | BS118: 47535.68
A119: 1.4.6 | B119: Аккумулятор 12 В, 17 А/ч | C119: шт. | D119: 10 | E119: 524 | F119: 5240 | G119: 7368.4 | H119: 73684 | I119: 78924 | L119: 524 | M119: 0 | N119: 7368.4 | O119: 0 | P119: 0 | R119: 524 | S119: 0 | T119: 7368.4 | U119: 0 | V119: 0 | X119: 524 | Y119: 0 | Z119: 7368.4 | AA119: 0 | AB119: 0 | AD119: 524 | AE119: 0 | AF119: 7368.4 | AG119: 0 | AH119: 0 | AJ119: 524 | AK119: 0 | AL119: 7368.4 | AM119: 0 | AN119: 0 | AP119: 524 | AQ119: 0 | AR119: 7368.4 | AS119: 0 | AT119: 0 | AV119: 524 | AW119: 0 | AX119: 7368.4 | AY119: 0 | AZ119: 0 | BB119: 524 | BC119: 0 | BD119: 7368.4 | BE119: 0 | BF119: 0 | BH119: 0 | BI119: 524 | BJ119: 0 | BK119: 7368.4 | BL119: 0 | BM119: 0 | BN119: 10 | BO119: 524 | BP119: 5240 | BQ119: 7368.4 | BR119: 73684 | BS119: 78924
A120: 1.4.7 | B120: Пульт контроля и управления | C120: шт. | D120: 1 | E120: 3406 | F120: 3406 | G120: 14788.18 | H120: 14788.18 | I120: 18194.18 | L120: 3406 | M120: 0 | N120: 14788.18 | O120: 0 | P120: 0 | R120: 3406 | S120: 0 | T120: 14788.18 | U120: 0 | V120: 0 | X120: 3406 | Y120: 0 | Z120: 14788.18 | AA120: 0 | AB120: 0 | AD120: 3406 | AE120: 0 | AF120: 14788.18 | AG120: 0 | AH120: 0 | AJ120: 3406 | AK120: 0 | AL120: 14788.18 | AM120: 0 | AN120: 0 | AP120: 3406 | AQ120: 0 | AR120: 14788.18 | AS120: 0 | AT120: 0 | AV120: 3406 | AW120: 0 | AX120: 14788.18 | AY120: 0 | AZ120: 0 | BB120: 3406 | BC120: 0 | BD120: 14788.18 | BE120: 0 | BF120: 0 | BH120: 0 | BI120: 3406 | BJ120: 0 | BK120: 14788.18 | BL120: 0 | BM120: 0 | BN120: 1 | BO120: 3406 | BP120: 3406 | BQ120: 14788.18 | BR120: 14788.18 | BS120: 18194.18
A121: 1.4.8 | B121: Контроллер двухпроводной линиии связи | C121: шт. | D121: 11 | E121: 3406 | F121: 37466 | G121: 6507.85 | H121: 71586.35 | I121: 109052.35 | L121: 3406 | M121: 0 | N121: 6507.85 | O121: 0 | P121: 0 | R121: 3406 | S121: 0 | T121: 6507.85 | U121: 0 | V121: 0 | X121: 3406 | Y121: 0 | Z121: 6507.85 | AA121: 0 | AB121: 0 | AD121: 3406 | AE121: 0 | AF121: 6507.85 | AG121: 0 | AH121: 0 | AJ121: 3406 | AK121: 0 | AL121: 6507.85 | AM121: 0 | AN121: 0 | AP121: 3406 | AQ121: 0 | AR121: 6507.85 | AS121: 0 | AT121: 0 | AV121: 3406 | AW121: 0 | AX121: 6507.85 | AY121: 0 | AZ121: 0 | BB121: 3406 | BC121: 0 | BD121: 6507.85 | BE121: 0 | BF121: 0 | BH121: 0 | BI121: 3406 | BJ121: 0 | BK121: 6507.85 | BL121: 0 | BM121: 0 | BN121: 11 | BO121: 3406 | BP121: 37466 | BQ121: 6507.85 | BR121: 71586.35 | BS121: 109052.35
A122: 1.4.9 | B122: Блок контрольно-пусковой | C122: шт. | D122: 4 | E122: 3406 | F122: 13624 | G122: 5933.93 | H122: 23735.72 | I122: 37359.72 | L122: 3406 | M122: 0 | N122: 5933.93 | O122: 0 | P122: 0 | R122: 3406 | S122: 0 | T122: 5933.93 | U122: 0 | V122: 0 | X122: 3406 | Y122: 0 | Z122: 5933.93 | AA122: 0 | AB122: 0 | AD122: 3406 | AE122: 0 | AF122: 5933.93 | AG122: 0 | AH122: 0 | AJ122: 3406 | AK122: 0 | AL122: 5933.93 | AM122: 0 | AN122: 0 | AP122: 3406 | AQ122: 0 | AR122: 5933.93 | AS122: 0 | AT122: 0 | AV122: 3406 | AW122: 0 | AX122: 5933.93 | AY122: 0 | AZ122: 0 | BB122: 3406 | BC122: 0 | BD122: 5933.93 | BE122: 0 | BF122: 0 | BH122: 0 | BI122: 3406 | BJ122: 0 | BK122: 5933.93 | BL122: 0 | BM122: 0 | BN122: 4 | BO122: 3406 | BP122: 13624 | BQ122: 5933.93 | BR122: 23735.72 | BS122: 37359.72
A123: 1.4.10 | B123: Извещатель пожарный дымовой оптико-электронный аналого-адресный | C123: шт. | D123: 137 | E123: 1572 | F123: 215364 | G123: 2472.34 | H123: 338710.58 | I123: 554074.58 | L123: 1572 | M123: 0 | N123: 2472.34 | O123: 0 | P123: 0 | R123: 1572 | S123: 0 | T123: 2472.34 | U123: 0 | V123: 0 | W123: 50 | X123: 1572 | Y123: 78600 | Z123: 2472.34 | AA123: 123617 | AB123: 202217 | AD123: 1572 | AE123: 0 | AF123: 2472.34 | AG123: 0 | AH123: 0 | AJ123: 1572 | AK123: 0 | AL123: 2472.34 | AM123: 0 | AN123: 0 | AP123: 1572 | AQ123: 0 | AR123: 2472.34 | AS123: 0 | AT123: 0 | AV123: 1572 | AW123: 0 | AX123: 2472.34 | AY123: 0 | AZ123: 0 | BB123: 1572 | BC123: 0 | BD123: 2472.34 | BE123: 0 | BF123: 0 | BH123: 50 | BI123: 1572 | BJ123: 78600 | BK123: 2472.34 | BL123: 123617 | BM123: 202217 | BN123: 87 | BO123: 1572 | BP123: 136764 | BQ123: 2472.34 | BR123: 215093.58 | BS123: 351857.58
A124: 1.4.11 | B124: Извещатель пожарный линейный однопозиционный адресный | C124: шт. | D124: 24 | E124: 4454 | F124: 106896 | G124: 37518 | H124: 900432 | I124: 1007328 | L124: 4454 | M124: 0 | N124: 37518 | O124: 0 | P124: 0 | R124: 4454 | S124: 0 | T124: 37518 | U124: 0 | V124: 0 | W124: 10 | X124: 4454 | Y124: 44540 | Z124: 37518 | AA124: 375180 | AB124: 419720 | AD124: 4454 | AE124: 0 | AF124: 37518 | AG124: 0 | AH124: 0 | AJ124: 4454 | AK124: 0 | AL124: 37518 | AM124: 0 | AN124: 0 | AP124: 4454 | AQ124: 0 | AR124: 37518 | AS124: 0 | AT124: 0 | AV124: 4454 | AW124: 0 | AX124: 37518 | AY124: 0 | AZ124: 0 | BB124: 4454 | BC124: 0 | BD124: 37518 | BE124: 0 | BF124: 0 | BH124: 10 | BI124: 4454 | BJ124: 44540 | BK124: 37518 | BL124: 375180 | BM124: 419720 | BN124: 14 | BO124: 4454 | BP124: 62356 | BQ124: 37518 | BR124: 525252 | BS124: 587608
A125: 1.4.13 | B125: Извещатель пожарный ручной адресный | C125: шт. | D125: 15 | E125: 1572 | F125: 23580 | G125: 1458.34 | H125: 21875.1 | I125: 45455.1 | L125: 1572 | M125: 0 | N125: 1458.34 | O125: 0 | P125: 0 | R125: 1572 | S125: 0 | T125: 1458.34 | U125: 0 | V125: 0 | W125: 5 | X125: 1572 | Y125: 7860 | Z125: 1458.34 | AA125: 7291.7 | AB125: 15151.7 | AD125: 1572 | AE125: 0 | AF125: 1458.34 | AG125: 0 | AH125: 0 | AJ125: 1572 | AK125: 0 | AL125: 1458.34 | AM125: 0 | AN125: 0 | AP125: 1572 | AQ125: 0 | AR125: 1458.34 | AS125: 0 | AT125: 0 | AV125: 1572 | AW125: 0 | AX125: 1458.34 | AY125: 0 | AZ125: 0 | BB125: 1572 | BC125: 0 | BD125: 1458.34 | BE125: 0 | BF125: 0 | BH125: 5 | BI125: 1572 | BJ125: 7860 | BK125: 1458.34 | BL125: 7291.7 | BM125: 15151.7 | BN125: 10 | BO125: 1572 | BP125: 15720 | BQ125: 1458.34 | BR125: 14583.4 | BS125: 30303.4
A126: 1.4.14 | B126: Аккумулятор 12 В, 40 А/ч | C126: шт. | D126: 4 | E126: 524 | F126: 2096 | G126: 8196.4 | H126: 32785.6 | I126: 34881.6 | L126: 524 | M126: 0 | N126: 8196.4 | O126: 0 | P126: 0 | R126: 524 | S126: 0 | T126: 8196.4 | U126: 0 | V126: 0 | X126: 524 | Y126: 0 | Z126: 8196.4 | AA126: 0 | AB126: 0 | AD126: 524 | AE126: 0 | AF126: 8196.4 | AG126: 0 | AH126: 0 | AJ126: 524 | AK126: 0 | AL126: 8196.4 | AM126: 0 | AN126: 0 | AP126: 524 | AQ126: 0 | AR126: 8196.4 | AS126: 0 | AT126: 0 | AV126: 524 | AW126: 0 | AX126: 8196.4 | AY126: 0 | AZ126: 0 | BB126: 524 | BC126: 0 | BD126: 8196.4 | BE126: 0 | BF126: 0 | BH126: 0 | BI126: 524 | BJ126: 0 | BK126: 8196.4 | BL126: 0 | BM126: 0 | BN126: 4 | BO126: 524 | BP126: 2096 | BQ126: 8196.4 | BR126: 32785.6 | BS126: 34881.6
A127: 1.4.15 | B127: Источник питания резервированный | C127: шт. | D127: 4 | E127: 3930 | F127: 15720 | G127: 16396.07 | H127: 65584.28 | I127: 81304.28 | L127: 3930 | M127: 0 | N127: 16396.07 | O127: 0 | P127: 0 | R127: 3930 | S127: 0 | T127: 16396.07 | U127: 0 | V127: 0 | X127: 3930 | Y127: 0 | Z127: 16396.07 | AA127: 0 | AB127: 0 | AD127: 3930 | AE127: 0 | AF127: 16396.07 | AG127: 0 | AH127: 0 | AJ127: 3930 | AK127: 0 | AL127: 16396.07 | AM127: 0 | AN127: 0 | AP127: 3930 | AQ127: 0 | AR127: 16396.07 | AS127: 0 | AT127: 0 | AV127: 3930 | AW127: 0 | AX127: 16396.07 | AY127: 0 | AZ127: 0 | BB127: 3930 | BC127: 0 | BD127: 16396.07 | BE127: 0 | BF127: 0 | BH127: 0 | BI127: 3930 | BJ127: 0 | BK127: 16396.07 | BL127: 0 | BM127: 0 | BN127: 4 | BO127: 3930 | BP127: 15720 | BQ127: 16396.07 | BR127: 65584.28 | BS127: 81304.28
A128: 1.4.16 | B128: Аккумулятор 12 В, 7 А/ч | C128: шт. | D128: 4 | E128: 524 | F128: 2096 | G128: 3129.1 | H128: 12516.4 | I128: 14612.4 | L128: 524 | M128: 0 | N128: 3129.1 | O128: 0 | P128: 0 | R128: 524 | S128: 0 | T128: 3129.1 | U128: 0 | V128: 0 | X128: 524 | Y128: 0 | Z128: 3129.1 | AA128: 0 | AB128: 0 | AD128: 524 | AE128: 0 | AF128: 3129.1 | AG128: 0 | AH128: 0 | AJ128: 524 | AK128: 0 | AL128: 3129.1 | AM128: 0 | AN128: 0 | AP128: 524 | AQ128: 0 | AR128: 3129.1 | AS128: 0 | AT128: 0 | AV128: 524 | AW128: 0 | AX128: 3129.1 | AY128: 0 | AZ128: 0 | BB128: 524 | BC128: 0 | BD128: 3129.1 | BE128: 0 | BF128: 0 | BH128: 0 | BI128: 524 | BJ128: 0 | BK128: 3129.1 | BL128: 0 | BM128: 0 | BN128: 4 | BO128: 524 | BP128: 2096 | BQ128: 3129.1 | BR128: 12516.4 | BS128: 14612.4
A129: 1.4.17 | B129: Блок контроля и индикации | C129: шт. | D129: 2 | E129: 3930 | F129: 7860 | G129: 11731.38 | H129: 23462.76 | I129: 31322.76 | L129: 3930 | M129: 0 | N129: 11731.38 | O129: 0 | P129: 0 | R129: 3930 | S129: 0 | T129: 11731.38 | U129: 0 | V129: 0 | X129: 3930 | Y129: 0 | Z129: 11731.38 | AA129: 0 | AB129: 0 | AD129: 3930 | AE129: 0 | AF129: 11731.38 | AG129: 0 | AH129: 0 | AJ129: 3930 | AK129: 0 | AL129: 11731.38 | AM129: 0 | AN129: 0 | AP129: 3930 | AQ129: 0 | AR129: 11731.38 | AS129: 0 | AT129: 0 | AV129: 3930 | AW129: 0 | AX129: 11731.38 | AY129: 0 | AZ129: 0 | BB129: 3930 | BC129: 0 | BD129: 11731.38 | BE129: 0 | BF129: 0 | BH129: 0 | BI129: 3930 | BJ129: 0 | BK129: 11731.38 | BL129: 0 | BM129: 0 | BN129: 2 | BO129: 3930 | BP129: 7860 | BQ129: 11731.38 | BR129: 23462.76 | BS129: 31322.76
A130: 1.4.18 | B130: Блок разветвительно-изолирующий | C130: шт. | D130: 4 | E130: 1310 | F130: 5240 | G130: 833.51 | H130: 3334.04 | I130: 8574.04 | L130: 1310 | M130: 0 | N130: 833.51 | O130: 0 | P130: 0 | R130: 1310 | S130: 0 | T130: 833.51 | U130: 0 | V130: 0 | X130: 1310 | Y130: 0 | Z130: 833.51 | AA130: 0 | AB130: 0 | AD130: 1310 | AE130: 0 | AF130: 833.51 | AG130: 0 | AH130: 0 | AJ130: 1310 | AK130: 0 | AL130: 833.51 | AM130: 0 | AN130: 0 | AP130: 1310 | AQ130: 0 | AR130: 833.51 | AS130: 0 | AT130: 0 | AV130: 1310 | AW130: 0 | AX130: 833.51 | AY130: 0 | AZ130: 0 | BB130: 1310 | BC130: 0 | BD130: 833.51 | BE130: 0 | BF130: 0 | BH130: 0 | BI130: 1310 | BJ130: 0 | BK130: 833.51 | BL130: 0 | BM130: 0 | BN130: 4 | BO130: 1310 | BP130: 5240 | BQ130: 833.51 | BR130: 3334.04 | BS130: 8574.04
A131: 1.4.19 | B131: Преобразователь интерфейсов | C131: шт. | D131: 4 | E131: 4192 | F131: 16768 | G131: 15047.76 | H131: 60191.04 | I131: 76959.04 | L131: 4192 | M131: 0 | N131: 15047.76 | O131: 0 | P131: 0 | R131: 4192 | S131: 0 | T131: 15047.76 | U131: 0 | V131: 0 | X131: 4192 | Y131: 0 | Z131: 15047.76 | AA131: 0 | AB131: 0 | AD131: 4192 | AE131: 0 | AF131: 15047.76 | AG131: 0 | AH131: 0 | AJ131: 4192 | AK131: 0 | AL131: 15047.76 | AM131: 0 | AN131: 0 | AP131: 4192 | AQ131: 0 | AR131: 15047.76 | AS131: 0 | AT131: 0 | AV131: 4192 | AW131: 0 | AX131: 15047.76 | AY131: 0 | AZ131: 0 | BB131: 4192 | BC131: 0 | BD131: 15047.76 | BE131: 0 | BF131: 0 | BH131: 0 | BI131: 4192 | BJ131: 0 | BK131: 15047.76 | BL131: 0 | BM131: 0 | BN131: 4 | BO131: 4192 | BP131: 16768 | BQ131: 15047.76 | BR131: 60191.04 | BS131: 76959.04
A132: 1.4.20 | B132: Патч-корд волоконно-оптический LC/UPC-LC/UPC 50 м | C132: шт. | D132: 4 | E132: 393 | F132: 1572 | G132: 3672.55 | H132: 14690.2 | I132: 16262.2 | L132: 393 | M132: 0 | N132: 3672.55 | O132: 0 | P132: 0 | R132: 393 | S132: 0 | T132: 3672.55 | U132: 0 | V132: 0 | X132: 393 | Y132: 0 | Z132: 3672.55 | AA132: 0 | AB132: 0 | AD132: 393 | AE132: 0 | AF132: 3672.55 | AG132: 0 | AH132: 0 | AJ132: 393 | AK132: 0 | AL132: 3672.55 | AM132: 0 | AN132: 0 | AP132: 393 | AQ132: 0 | AR132: 3672.55 | AS132: 0 | AT132: 0 | AV132: 393 | AW132: 0 | AX132: 3672.55 | AY132: 0 | AZ132: 0 | BB132: 393 | BC132: 0 | BD132: 3672.55 | BE132: 0 | BF132: 0 | BH132: 0 | BI132: 393 | BJ132: 0 | BK132: 3672.55 | BL132: 0 | BM132: 0 | BN132: 4 | BO132: 393 | BP132: 1572 | BQ132: 3672.55 | BR132: 14690.2 | BS132: 16262.2
A133: 1.4.21 | B133: Патч-корд волоконно-оптический LC/UPC-LC/UPC 1 м | C133: шт. | D133: 4 | E133: 393 | F133: 1572 | G133: 1027 | H133: 4108 | I133: 5680 | L133: 393 | M133: 0 | N133: 1027 | O133: 0 | P133: 0 | R133: 393 | S133: 0 | T133: 1027 | U133: 0 | V133: 0 | X133: 393 | Y133: 0 | Z133: 1027 | AA133: 0 | AB133: 0 | AD133: 393 | AE133: 0 | AF133: 1027 | AG133: 0 | AH133: 0 | AJ133: 393 | AK133: 0 | AL133: 1027 | AM133: 0 | AN133: 0 | AP133: 393 | AQ133: 0 | AR133: 1027 | AS133: 0 | AT133: 0 | AV133: 393 | AW133: 0 | AX133: 1027 | AY133: 0 | AZ133: 0 | BB133: 393 | BC133: 0 | BD133: 1027 | BE133: 0 | BF133: 0 | BH133: 0 | BI133: 393 | BJ133: 0 | BK133: 1027 | BL133: 0 | BM133: 0 | BN133: 4 | BO133: 393 | BP133: 1572 | BQ133: 1027 | BR133: 4108 | BS133: 5680
A134: 1.4.22 | B134: Устройство коммутационное | C134: шт. | D134: 24 | E134: 3406 | F134: 81744 | G134: 1774.5 | H134: 42588 | I134: 124332 | L134: 3406 | M134: 0 | N134: 1774.5 | O134: 0 | P134: 0 | R134: 3406 | S134: 0 | T134: 1774.5 | U134: 0 | V134: 0 | X134: 3406 | Y134: 0 | Z134: 1774.5 | AA134: 0 | AB134: 0 | AD134: 3406 | AE134: 0 | AF134: 1774.5 | AG134: 0 | AH134: 0 | AJ134: 3406 | AK134: 0 | AL134: 1774.5 | AM134: 0 | AN134: 0 | AP134: 3406 | AQ134: 0 | AR134: 1774.5 | AS134: 0 | AT134: 0 | AV134: 3406 | AW134: 0 | AX134: 1774.5 | AY134: 0 | AZ134: 0 | BB134: 3406 | BC134: 0 | BD134: 1774.5 | BE134: 0 | BF134: 0 | BH134: 0 | BI134: 3406 | BJ134: 0 | BK134: 1774.5 | BL134: 0 | BM134: 0 | BN134: 24 | BO134: 3406 | BP134: 81744 | BQ134: 1774.5 | BR134: 42588 | BS134: 124332
A135: 1.4.23 | B135: Оповещатель охранно-пожарный световой (табло) ЛЮКС-24 "Выход" | C135: шт. | D135: 10 | E135: 1572 | F135: 15720 | G135: 478.4 | H135: 4784 | I135: 20504 | L135: 1572 | M135: 0 | N135: 478.4 | O135: 0 | P135: 0 | R135: 1572 | S135: 0 | T135: 478.4 | U135: 0 | V135: 0 | X135: 1572 | Y135: 0 | Z135: 478.4 | AA135: 0 | AB135: 0 | AD135: 1572 | AE135: 0 | AF135: 478.4 | AG135: 0 | AH135: 0 | AJ135: 1572 | AK135: 0 | AL135: 478.4 | AM135: 0 | AN135: 0 | AP135: 1572 | AQ135: 0 | AR135: 478.4 | AS135: 0 | AT135: 0 | AV135: 1572 | AW135: 0 | AX135: 478.4 | AY135: 0 | AZ135: 0 | BB135: 1572 | BC135: 0 | BD135: 478.4 | BE135: 0 | BF135: 0 | BH135: 0 | BI135: 1572 | BJ135: 0 | BK135: 478.4 | BL135: 0 | BM135: 0 | BN135: 10 | BO135: 1572 | BP135: 15720 | BQ135: 478.4 | BR135: 4784 | BS135: 20504
A136: 1.4.24 | B136: Оповещатель охранно-пожарный световой (табло) ЛЮКС-24 "Стрелка влево" | C136: шт. | D136: 9 | E136: 1572 | F136: 14148 | G136: 478.4 | H136: 4305.6 | I136: 18453.6 | L136: 1572 | M136: 0 | N136: 478.4 | O136: 0 | P136: 0 | R136: 1572 | S136: 0 | T136: 478.4 | U136: 0 | V136: 0 | X136: 1572 | Y136: 0 | Z136: 478.4 | AA136: 0 | AB136: 0 | AD136: 1572 | AE136: 0 | AF136: 478.4 | AG136: 0 | AH136: 0 | AJ136: 1572 | AK136: 0 | AL136: 478.4 | AM136: 0 | AN136: 0 | AP136: 1572 | AQ136: 0 | AR136: 478.4 | AS136: 0 | AT136: 0 | AV136: 1572 | AW136: 0 | AX136: 478.4 | AY136: 0 | AZ136: 0 | BB136: 1572 | BC136: 0 | BD136: 478.4 | BE136: 0 | BF136: 0 | BH136: 0 | BI136: 1572 | BJ136: 0 | BK136: 478.4 | BL136: 0 | BM136: 0 | BN136: 9 | BO136: 1572 | BP136: 14148 | BQ136: 478.4 | BR136: 4305.6 | BS136: 18453.6
A137: 1.4.25 | B137: Оповещатель охранно-пожарный световой (табло) ЛЮКС-24 "Стрелка вправо" | C137: шт. | D137: 9 | E137: 1572 | F137: 14148 | G137: 478.4 | H137: 4305.6 | I137: 18453.6 | L137: 1572 | M137: 0 | N137: 478.4 | O137: 0 | P137: 0 | R137: 1572 | S137: 0 | T137: 478.4 | U137: 0 | V137: 0 | X137: 1572 | Y137: 0 | Z137: 478.4 | AA137: 0 | AB137: 0 | AD137: 1572 | AE137: 0 | AF137: 478.4 | AG137: 0 | AH137: 0 | AJ137: 1572 | AK137: 0 | AL137: 478.4 | AM137: 0 | AN137: 0 | AP137: 1572 | AQ137: 0 | AR137: 478.4 | AS137: 0 | AT137: 0 | AV137: 1572 | AW137: 0 | AX137: 478.4 | AY137: 0 | AZ137: 0 | BB137: 1572 | BC137: 0 | BD137: 478.4 | BE137: 0 | BF137: 0 | BH137: 0 | BI137: 1572 | BJ137: 0 | BK137: 478.4 | BL137: 0 | BM137: 0 | BN137: 9 | BO137: 1572 | BP137: 14148 | BQ137: 478.4 | BR137: 4305.6 | BS137: 18453.6
A138: 1.4.26 | B138: Оповещатель охранно-пожарный звуковой Маяк-24-ЗМ2 | C138: шт. | D138: 54 | E138: 1572 | F138: 84888 | G138: 351 | H138: 18954 | I138: 103842 | L138: 1572 | M138: 0 | N138: 351 | O138: 0 | P138: 0 | R138: 1572 | S138: 0 | T138: 351 | U138: 0 | V138: 0 | X138: 1572 | Y138: 0 | Z138: 351 | AA138: 0 | AB138: 0 | AD138: 1572 | AE138: 0 | AF138: 351 | AG138: 0 | AH138: 0 | AJ138: 1572 | AK138: 0 | AL138: 351 | AM138: 0 | AN138: 0 | AP138: 1572 | AQ138: 0 | AR138: 351 | AS138: 0 | AT138: 0 | AV138: 1572 | AW138: 0 | AX138: 351 | AY138: 0 | AZ138: 0 | BB138: 1572 | BC138: 0 | BD138: 351 | BE138: 0 | BF138: 0 | BH138: 0 | BI138: 1572 | BJ138: 0 | BK138: 351 | BL138: 0 | BM138: 0 | BN138: 54 | BO138: 1572 | BP138: 84888 | BQ138: 351 | BR138: 18954 | BS138: 103842
A139: 1.4.27 | B139: Комбинированный оповещатель со стробовспышкой Г-24КПР | C139: шт. | D139: 30 | E139: 1572 | F139: 47160 | G139: 708.55 | H139: 21256.5 | I139: 68416.5 | L139: 1572 | M139: 0 | N139: 708.55 | O139: 0 | P139: 0 | R139: 1572 | S139: 0 | T139: 708.55 | U139: 0 | V139: 0 | X139: 1572 | Y139: 0 | Z139: 708.55 | AA139: 0 | AB139: 0 | AD139: 1572 | AE139: 0 | AF139: 708.55 | AG139: 0 | AH139: 0 | AJ139: 1572 | AK139: 0 | AL139: 708.55 | AM139: 0 | AN139: 0 | AP139: 1572 | AQ139: 0 | AR139: 708.55 | AS139: 0 | AT139: 0 | AV139: 1572 | AW139: 0 | AX139: 708.55 | AY139: 0 | AZ139: 0 | BB139: 1572 | BC139: 0 | BD139: 708.55 | BE139: 0 | BF139: 0 | BH139: 0 | BI139: 1572 | BJ139: 0 | BK139: 708.55 | BL139: 0 | BM139: 0 | BN139: 30 | BO139: 1572 | BP139: 47160 | BQ139: 708.55 | BR139: 21256.5 | BS139: 68416.5
A140: 1.4.28 | B140: Оповещатель охранно-пожарный комбинированный свето-звуковой Маяк-24-КПМ2 | C140: шт. | D140: 39 | E140: 1572 | F140: 61308 | G140: 852.8 | H140: 33259.2 | I140: 94567.2 | L140: 1572 | M140: 0 | N140: 852.8 | O140: 0 | P140: 0 | R140: 1572 | S140: 0 | T140: 852.8 | U140: 0 | V140: 0 | X140: 1572 | Y140: 0 | Z140: 852.8 | AA140: 0 | AB140: 0 | AD140: 1572 | AE140: 0 | AF140: 852.8 | AG140: 0 | AH140: 0 | AJ140: 1572 | AK140: 0 | AL140: 852.8 | AM140: 0 | AN140: 0 | AP140: 1572 | AQ140: 0 | AR140: 852.8 | AS140: 0 | AT140: 0 | AV140: 1572 | AW140: 0 | AX140: 852.8 | AY140: 0 | AZ140: 0 | BB140: 1572 | BC140: 0 | BD140: 852.8 | BE140: 0 | BF140: 0 | BH140: 0 | BI140: 1572 | BJ140: 0 | BK140: 852.8 | BL140: 0 | BM140: 0 | BN140: 39 | BO140: 1572 | BP140: 61308 | BQ140: 852.8 | BR140: 33259.2 | BS140: 94567.2
A141: 1.4.29 | B141: Полка 19" перфорированная консольная 1U | C141: шт. | D141: 1 | E141: 2620 | F141: 2620 | G141: 1900.6 | H141: 1900.6 | I141: 4520.6 | L141: 2620 | M141: 0 | N141: 1900.6 | O141: 0 | P141: 0 | R141: 2620 | S141: 0 | T141: 1900.6 | U141: 0 | V141: 0 | X141: 2620 | Y141: 0 | Z141: 1900.6 | AA141: 0 | AB141: 0 | AD141: 2620 | AE141: 0 | AF141: 1900.6 | AG141: 0 | AH141: 0 | AJ141: 2620 | AK141: 0 | AL141: 1900.6 | AM141: 0 | AN141: 0 | AP141: 2620 | AQ141: 0 | AR141: 1900.6 | AS141: 0 | AT141: 0 | AV141: 2620 | AW141: 0 | AX141: 1900.6 | AY141: 0 | AZ141: 0 | BB141: 2620 | BC141: 0 | BD141: 1900.6 | BE141: 0 | BF141: 0 | BH141: 0 | BI141: 2620 | BJ141: 0 | BK141: 1900.6 | BL141: 0 | BM141: 0 | BN141: 1 | BO141: 2620 | BP141: 2620 | BQ141: 1900.6 | BR141: 1900.6 | BS141: 4520.6
A142: 1.4.30 | B142: Модуль подключения нагрузки | C142: шт. | D142: 87 | E142: 131 | F142: 11397 | G142: 93.29 | H142: 8116.23 | I142: 19513.23 | L142: 131 | M142: 0 | N142: 93.29 | O142: 0 | P142: 0 | R142: 131 | S142: 0 | T142: 93.29 | U142: 0 | V142: 0 | X142: 131 | Y142: 0 | Z142: 93.29 | AA142: 0 | AB142: 0 | AD142: 131 | AE142: 0 | AF142: 93.29 | AG142: 0 | AH142: 0 | AJ142: 131 | AK142: 0 | AL142: 93.29 | AM142: 0 | AN142: 0 | AP142: 131 | AQ142: 0 | AR142: 93.29 | AS142: 0 | AT142: 0 | AV142: 131 | AW142: 0 | AX142: 93.29 | AY142: 0 | AZ142: 0 | BB142: 131 | BC142: 0 | BD142: 93.29 | BE142: 0 | BF142: 0 | BH142: 0 | BI142: 131 | BJ142: 0 | BK142: 93.29 | BL142: 0 | BM142: 0 | BN142: 87 | BO142: 131 | BP142: 11397 | BQ142: 93.29 | BR142: 8116.23 | BS142: 19513.23
A143: 1.4.31 | B143: Блок сигнально-пусковой адресный | C143: шт. | D143: 96 | E143: 4192 | F143: 402432 | G143: 4800.12 | H143: 460811.52 | I143: 863243.52 | L143: 4192 | M143: 0 | N143: 4800.12 | O143: 0 | P143: 0 | R143: 4192 | S143: 0 | T143: 4800.12 | U143: 0 | V143: 0 | W143: 40 | X143: 4192 | Y143: 167680 | Z143: 4800.12 | AA143: 192004.8 | AB143: 359684.8 | AD143: 4192 | AE143: 0 | AF143: 4800.12 | AG143: 0 | AH143: 0 | AJ143: 4192 | AK143: 0 | AL143: 4800.12 | AM143: 0 | AN143: 0 | AP143: 4192 | AQ143: 0 | AR143: 4800.12 | AS143: 0 | AT143: 0 | AV143: 4192 | AW143: 0 | AX143: 4800.12 | AY143: 0 | AZ143: 0 | BB143: 4192 | BC143: 0 | BD143: 4800.12 | BE143: 0 | BF143: 0 | BH143: 40 | BI143: 4192 | BJ143: 167680 | BK143: 4800.12 | BL143: 192004.8 | BM143: 359684.8 | BN143: 56 | BO143: 4192 | BP143: 234752 | BQ143: 4800.12 | BR143: 268806.72 | BS143: 503558.72
A144: 1.4.32 | B144: Кнопка "ТЕСТ" | C144: шт. | D144: 96 | E144: 1572 | F144: 150912 | G144: 1625 | H144: 156000 | I144: 306912 | L144: 1572 | M144: 0 | N144: 1625 | O144: 0 | P144: 0 | R144: 1572 | S144: 0 | T144: 1625 | U144: 0 | V144: 0 | W144: 40 | X144: 1572 | Y144: 62880 | Z144: 1625 | AA144: 65000 | AB144: 127880 | AD144: 1572 | AE144: 0 | AF144: 1625 | AG144: 0 | AH144: 0 | AJ144: 1572 | AK144: 0 | AL144: 1625 | AM144: 0 | AN144: 0 | AP144: 1572 | AQ144: 0 | AR144: 1625 | AS144: 0 | AT144: 0 | AV144: 1572 | AW144: 0 | AX144: 1625 | AY144: 0 | AZ144: 0 | BB144: 1572 | BC144: 0 | BD144: 1625 | BE144: 0 | BF144: 0 | BH144: 40 | BI144: 1572 | BJ144: 62880 | BK144: 1625 | BL144: 65000 | BM144: 127880 | BN144: 56 | BO144: 1572 | BP144: 88032 | BQ144: 1625 | BR144: 91000 | BS144: 179032
A145: 1.4.33 | B145: Шкаф контрольно пусковой ШКП-10RS (М) | C145: шт. | D145: 1 | E145: 5895 | F145: 5895 | G145: 40714.13 | H145: 40714.13 | I145: 46609.13 | L145: 5895 | M145: 0 | N145: 40714.13 | O145: 0 | P145: 0 | R145: 5895 | S145: 0 | T145: 40714.13 | U145: 0 | V145: 0 | X145: 5895 | Y145: 0 | Z145: 40714.13 | AA145: 0 | AB145: 0 | AD145: 5895 | AE145: 0 | AF145: 40714.13 | AG145: 0 | AH145: 0 | AJ145: 5895 | AK145: 0 | AL145: 40714.13 | AM145: 0 | AN145: 0 | AP145: 5895 | AQ145: 0 | AR145: 40714.13 | AS145: 0 | AT145: 0 | AV145: 5895 | AW145: 0 | AX145: 40714.13 | AY145: 0 | AZ145: 0 | BB145: 5895 | BC145: 0 | BD145: 40714.13 | BE145: 0 | BF145: 0 | BH145: 0 | BI145: 5895 | BJ145: 0 | BK145: 40714.13 | BL145: 0 | BM145: 0 | BN145: 1 | BO145: 5895 | BP145: 5895 | BQ145: 40714.13 | BR145: 40714.13 | BS145: 46609.13
A146: 1.4.34 | B146: Шкаф контрольно пусковой ШКП-18RS (М) | C146: шт. | D146: 1 | E146: 5895 | F146: 5895 | G146: 42423.73 | H146: 42423.73 | I146: 48318.73 | L146: 5895 | M146: 0 | N146: 42423.73 | O146: 0 | P146: 0 | R146: 5895 | S146: 0 | T146: 42423.73 | U146: 0 | V146: 0 | X146: 5895 | Y146: 0 | Z146: 42423.73 | AA146: 0 | AB146: 0 | AD146: 5895 | AE146: 0 | AF146: 42423.73 | AG146: 0 | AH146: 0 | AJ146: 5895 | AK146: 0 | AL146: 42423.73 | AM146: 0 | AN146: 0 | AP146: 5895 | AQ146: 0 | AR146: 42423.73 | AS146: 0 | AT146: 0 | AV146: 5895 | AW146: 0 | AX146: 42423.73 | AY146: 0 | AZ146: 0 | BB146: 5895 | BC146: 0 | BD146: 42423.73 | BE146: 0 | BF146: 0 | BH146: 0 | BI146: 5895 | BJ146: 0 | BK146: 42423.73 | BL146: 0 | BM146: 0 | BN146: 1 | BO146: 5895 | BP146: 5895 | BQ146: 42423.73 | BR146: 42423.73 | BS146: 48318.73
A147: 1.4.35 | B147: Преобразователь интерфейса | C147: шт. | D147: 1 | E147: 3406 | F147: 3406 | G147: 4581.25 | H147: 4581.25 | I147: 7987.25 | L147: 3406 | M147: 0 | N147: 4581.25 | O147: 0 | P147: 0 | R147: 3406 | S147: 0 | T147: 4581.25 | U147: 0 | V147: 0 | X147: 3406 | Y147: 0 | Z147: 4581.25 | AA147: 0 | AB147: 0 | AD147: 3406 | AE147: 0 | AF147: 4581.25 | AG147: 0 | AH147: 0 | AJ147: 3406 | AK147: 0 | AL147: 4581.25 | AM147: 0 | AN147: 0 | AP147: 3406 | AQ147: 0 | AR147: 4581.25 | AS147: 0 | AT147: 0 | AV147: 3406 | AW147: 0 | AX147: 4581.25 | AY147: 0 | AZ147: 0 | BB147: 3406 | BC147: 0 | BD147: 4581.25 | BE147: 0 | BF147: 0 | BH147: 0 | BI147: 3406 | BJ147: 0 | BK147: 4581.25 | BL147: 0 | BM147: 0 | BN147: 1 | BO147: 3406 | BP147: 3406 | BQ147: 4581.25 | BR147: 4581.25 | BS147: 7987.25
A148: 1.4.36 | B148: Коммутатор сетевой гигабитный 6 портовый | C148: шт. | D148: 1 | E148: 3406 | F148: 3406 | G148: 11700 | H148: 11700 | I148: 15106 | L148: 3406 | M148: 0 | N148: 11700 | O148: 0 | P148: 0 | R148: 3406 | S148: 0 | T148: 11700 | U148: 0 | V148: 0 | X148: 3406 | Y148: 0 | Z148: 11700 | AA148: 0 | AB148: 0 | AD148: 3406 | AE148: 0 | AF148: 11700 | AG148: 0 | AH148: 0 | AJ148: 3406 | AK148: 0 | AL148: 11700 | AM148: 0 | AN148: 0 | AP148: 3406 | AQ148: 0 | AR148: 11700 | AS148: 0 | AT148: 0 | AV148: 3406 | AW148: 0 | AX148: 11700 | AY148: 0 | AZ148: 0 | BB148: 3406 | BC148: 0 | BD148: 11700 | BE148: 0 | BF148: 0 | BH148: 0 | BI148: 3406 | BJ148: 0 | BK148: 11700 | BL148: 0 | BM148: 0 | BN148: 1 | BO148: 3406 | BP148: 3406 | BQ148: 11700 | BR148: 11700 | BS148: 15106
A149: 1.4.37 | B149: Блок питания | C149: шт. | D149: 1 | E149: 3930 | F149: 3930 | G149: 3325.4 | H149: 3325.4 | I149: 7255.4 | L149: 3930 | M149: 0 | N149: 3325.4 | O149: 0 | P149: 0 | R149: 3930 | S149: 0 | T149: 3325.4 | U149: 0 | V149: 0 | X149: 3930 | Y149: 0 | Z149: 3325.4 | AA149: 0 | AB149: 0 | AD149: 3930 | AE149: 0 | AF149: 3325.4 | AG149: 0 | AH149: 0 | AJ149: 3930 | AK149: 0 | AL149: 3325.4 | AM149: 0 | AN149: 0 | AP149: 3930 | AQ149: 0 | AR149: 3325.4 | AS149: 0 | AT149: 0 | AV149: 3930 | AW149: 0 | AX149: 3325.4 | AY149: 0 | AZ149: 0 | BB149: 3930 | BC149: 0 | BD149: 3325.4 | BE149: 0 | BF149: 0 | BH149: 0 | BI149: 3930 | BJ149: 0 | BK149: 3325.4 | BL149: 0 | BM149: 0 | BN149: 1 | BO149: 3930 | BP149: 3930 | BQ149: 3325.4 | BR149: 3325.4 | BS149: 7255.4
A150: 1.4.38 | B150: Лоток перфорированный 100х50х3000 | C150: м | D150: 585 | E150: 497.8 | F150: =D150*E150 -> 291213 | G150: 699.4 | H150: =D150*G150 -> 409149 | I150: 700362 | L150: 497.8 | M150: =K150*L150 -> 0 | N150: 699.4 | O150: =K150*N150 -> 0 | P150: 0 | R150: 497.8 | S150: =Q150*R150 -> 0 | T150: 699.4 | U150: =Q150*T150 -> 0 | V150: 0 | X150: 497.8 | Y150: =W150*X150 -> 0 | Z150: 699.4 | AA150: =W150*Z150 -> 0 | AB150: 0 | AD150: 497.8 | AE150: =AC150*AD150 -> 0 | AF150: 699.4 | AG150: =AC150*AF150 -> 0 | AH150: 0 | AJ150: 497.8 | AK150: =AI150*AJ150 -> 0 | AL150: 699.4 | AM150: =AI150*AL150 -> 0 | AN150: 0 | AP150: 497.8 | AQ150: =AO150*AP150 -> 0 | AR150: 699.4 | AS150: =AO150*AR150 -> 0 | AT150: 0 | AV150: 497.8 | AW150: =AU150*AV150 -> 0 | AX150: 699.4 | AY150: =AU150*AX150 -> 0 | AZ150: 0 | BB150: 497.8 | BC150: =BA150*BB150 -> 0 | BD150: 699.4 | BE150: =BA150*BD150 -> 0 | BF150: 0 | BH150: 0 | BI150: 497.8 | BJ150: =BH150*BI150 -> 0 | BK150: 699.4 | BL150: =BH150*BK150 -> 0 | BM150: 0 | BN150: 585 | BO150: 497.8 | BP150: =BN150*BO150 -> 291213 | BQ150: 699.4 | BR150: =BN150*BQ150 -> 409149 | BS150: 700362
A151: 1.4.39 | B151: Перегородка для лотка | C151: м | D151: 585 | E151: 131 | F151: =D151*E151 -> 76635 | G151: 380.64 | H151: =D151*G151 -> 222674.4 | I151: 299309.4 | L151: 131 | M151: =K151*L151 -> 0 | N151: 380.64 | O151: =K151*N151 -> 0 | P151: 0 | R151: 131 | S151: =Q151*R151 -> 0 | T151: 380.64 | U151: =Q151*T151 -> 0 | V151: 0 | X151: 131 | Y151: =W151*X151 -> 0 | Z151: 380.64 | AA151: =W151*Z151 -> 0 | AB151: 0 | AD151: 131 | AE151: =AC151*AD151 -> 0 | AF151: 380.64 | AG151: =AC151*AF151 -> 0 | AH151: 0 | AJ151: 131 | AK151: =AI151*AJ151 -> 0 | AL151: 380.64 | AM151: =AI151*AL151 -> 0 | AN151: 0 | AP151: 131 | AQ151: =AO151*AP151 -> 0 | AR151: 380.64 | AS151: =AO151*AR151 -> 0 | AT151: 0 | AV151: 131 | AW151: =AU151*AV151 -> 0 | AX151: 380.64 | AY151: =AU151*AX151 -> 0 | AZ151: 0 | BB151: 131 | BC151: =BA151*BB151 -> 0 | BD151: 380.64 | BE151: =BA151*BD151 -> 0 | BF151: 0 | BH151: 0 | BI151: 131 | BJ151: =BH151*BI151 -> 0 | BK151: 380.64 | BL151: =BH151*BK151 -> 0 | BM151: 0 | BN151: 585 | BO151: 131 | BP151: =BN151*BO151 -> 76635 | BQ151: 380.64 | BR151: =BN151*BQ151 -> 222674.4 | BS151: 299309.4
A152: 1.4.40 | B152: Крышка с заземлением на лоток основание 100 L3000 | C152: м | D152: 585 | E152: 157.2 | F152: =D152*E152 -> 91962 | G152: 271.99 | H152: =D152*G152 -> 159114.15 | I152: 251076.15 | L152: 157.2 | M152: =K152*L152 -> 0 | N152: 271.99 | O152: =K152*N152 -> 0 | P152: 0 | R152: 157.2 | S152: =Q152*R152 -> 0 | T152: 271.99 | U152: =Q152*T152 -> 0 | V152: 0 | X152: 157.2 | Y152: =W152*X152 -> 0 | Z152: 271.99 | AA152: =W152*Z152 -> 0 | AB152: 0 | AD152: 157.2 | AE152: =AC152*AD152 -> 0 | AF152: 271.99 | AG152: =AC152*AF152 -> 0 | AH152: 0 | AJ152: 157.2 | AK152: =AI152*AJ152 -> 0 | AL152: 271.99 | AM152: =AI152*AL152 -> 0 | AN152: 0 | AP152: 157.2 | AQ152: =AO152*AP152 -> 0 | AR152: 271.99 | AS152: =AO152*AR152 -> 0 | AT152: 0 | AV152: 157.2 | AW152: =AU152*AV152 -> 0 | AX152: 271.99 | AY152: =AU152*AX152 -> 0 | AZ152: 0 | BB152: 157.2 | BC152: =BA152*BB152 -> 0 | BD152: 271.99 | BE152: =BA152*BD152 -> 0 | BF152: 0 | BH152: 0 | BI152: 157.2 | BJ152: =BH152*BI152 -> 0 | BK152: 271.99 | BL152: =BH152*BK152 -> 0 | BM152: 0 | BN152: 585 | BO152: 157.2 | BP152: =BN152*BO152 -> 91962 | BQ152: 271.99 | BR152: =BN152*BQ152 -> 159114.15 | BS152: 251076.15
A153: 1.4.41 | B153: Угол CPO 90 горизонтальный 90° 100х50 | C153: шт. | D153: 10 | E153: 1572 | F153: =D153*E153 -> 15720 | G153: 2107.04 | H153: =D153*G153 -> 21070.4 | I153: 36790.4 | L153: 1572 | M153: =K153*L153 -> 0 | N153: 2107.04 | O153: =K153*N153 -> 0 | P153: 0 | R153: 1572 | S153: =Q153*R153 -> 0 | T153: 2107.04 | U153: =Q153*T153 -> 0 | V153: 0 | X153: 1572 | Y153: =W153*X153 -> 0 | Z153: 2107.04 | AA153: =W153*Z153 -> 0 | AB153: 0 | AD153: 1572 | AE153: =AC153*AD153 -> 0 | AF153: 2107.04 | AG153: =AC153*AF153 -> 0 | AH153: 0 | AJ153: 1572 | AK153: =AI153*AJ153 -> 0 | AL153: 2107.04 | AM153: =AI153*AL153 -> 0 | AN153: 0 | AP153: 1572 | AQ153: =AO153*AP153 -> 0 | AR153: 2107.04 | AS153: =AO153*AR153 -> 0 | AT153: 0 | AV153: 1572 | AW153: =AU153*AV153 -> 0 | AX153: 2107.04 | AY153: =AU153*AX153 -> 0 | AZ153: 0 | BB153: 1572 | BC153: =BA153*BB153 -> 0 | BD153: 2107.04 | BE153: =BA153*BD153 -> 0 | BF153: 0 | BH153: 0 | BI153: 1572 | BJ153: =BH153*BI153 -> 0 | BK153: 2107.04 | BL153: =BH153*BK153 -> 0 | BM153: 0 | BN153: 10 | BO153: 1572 | BP153: =BN153*BO153 -> 15720 | BQ153: 2107.04 | BR153: =BN153*BQ153 -> 21070.4 | BS153: 36790.4
A154: 1.4.42 | B154: Угол CS 90 вертикальный внутренний 90° 100х50 | C154: шт. | D154: 12 | E154: 1572 | F154: =D154*E154 -> 18864 | G154: 2459.6 | H154: =D154*G154 -> 29515.2 | I154: 48379.2 | L154: 1572 | M154: =K154*L154 -> 0 | N154: 2459.6 | O154: =K154*N154 -> 0 | P154: 0 | R154: 1572 | S154: =Q154*R154 -> 0 | T154: 2459.6 | U154: =Q154*T154 -> 0 | V154: 0 | X154: 1572 | Y154: =W154*X154 -> 0 | Z154: 2459.6 | AA154: =W154*Z154 -> 0 | AB154: 0 | AD154: 1572 | AE154: =AC154*AD154 -> 0 | AF154: 2459.6 | AG154: =AC154*AF154 -> 0 | AH154: 0 | AJ154: 1572 | AK154: =AI154*AJ154 -> 0 | AL154: 2459.6 | AM154: =AI154*AL154 -> 0 | AN154: 0 | AP154: 1572 | AQ154: =AO154*AP154 -> 0 | AR154: 2459.6 | AS154: =AO154*AR154 -> 0 | AT154: 0 | AV154: 1572 | AW154: =AU154*AV154 -> 0 | AX154: 2459.6 | AY154: =AU154*AX154 -> 0 | AZ154: 0 | BB154: 1572 | BC154: =BA154*BB154 -> 0 | BD154: 2459.6 | BE154: =BA154*BD154 -> 0 | BF154: 0 | BH154: 0 | BI154: 1572 | BJ154: =BH154*BI154 -> 0 | BK154: 2459.6 | BL154: =BH154*BK154 -> 0 | BM154: 0 | BN154: 12 | BO154: 1572 | BP154: =BN154*BO154 -> 18864 | BQ154: 2459.6 | BR154: =BN154*BQ154 -> 29515.2 | BS154: 48379.2
A155: 1.4.43 | B155: Лоток 50х50 L=3000 перфорированный | C155: м. | D155: 150 | E155: 838.4 | F155: 125760 | G155: 487.5 | H155: 73125 | I155: 198885 | L155: 838.4 | M155: 0 | N155: 487.5 | O155: 0 | P155: 0 | R155: 838.4 | S155: 0 | T155: 487.5 | U155: 0 | V155: 0 | X155: 838.4 | Y155: 0 | Z155: 487.5 | AA155: 0 | AB155: 0 | AD155: 838.4 | AE155: 0 | AF155: 487.5 | AG155: 0 | AH155: 0 | AJ155: 838.4 | AK155: 0 | AL155: 487.5 | AM155: 0 | AN155: 0 | AP155: 838.4 | AQ155: 0 | AR155: 487.5 | AS155: 0 | AT155: 0 | AV155: 838.4 | AW155: 0 | AX155: 487.5 | AY155: 0 | AZ155: 0 | BB155: 838.4 | BC155: 0 | BD155: 487.5 | BE155: 0 | BF155: 0 | BH155: 0 | BI155: 838.4 | BJ155: 0 | BK155: 487.5 | BL155: 0 | BM155: 0 | BN155: 150 | BO155: 838.4 | BP155: 125760 | BQ155: 487.5 | BR155: 73125 | BS155: 198885
A156: 1.4.44 | B156: Крышка с заземлением на лоток основание 50 L3000 | C156: м. | D156: 150 | E156: 157.2 | F156: 23580 | G156: 223.15 | H156: 33472.5 | I156: 57052.5 | L156: 157.2 | M156: 0 | N156: 223.15 | O156: 0 | P156: 0 | R156: 157.2 | S156: 0 | T156: 223.15 | U156: 0 | V156: 0 | X156: 157.2 | Y156: 0 | Z156: 223.15 | AA156: 0 | AB156: 0 | AD156: 157.2 | AE156: 0 | AF156: 223.15 | AG156: 0 | AH156: 0 | AJ156: 157.2 | AK156: 0 | AL156: 223.15 | AM156: 0 | AN156: 0 | AP156: 157.2 | AQ156: 0 | AR156: 223.15 | AS156: 0 | AT156: 0 | AV156: 157.2 | AW156: 0 | AX156: 223.15 | AY156: 0 | AZ156: 0 | BB156: 157.2 | BC156: 0 | BD156: 223.15 | BE156: 0 | BF156: 0 | BH156: 0 | BI156: 157.2 | BJ156: 0 | BK156: 223.15 | BL156: 0 | BM156: 0 | BN156: 150 | BO156: 157.2 | BP156: 23580 | BQ156: 223.15 | BR156: 33472.5 | BS156: 57052.5
A157: 1.4.45 | B157: Крышка S5 CPO90 90х100 угла горизонтального | C157: шт. | D157: 10 | E157: 157.2 | F157: 1572 | G157: 1091.22 | H157: 10912.2 | I157: 12484.2 | L157: 157.2 | M157: 0 | N157: 1091.22 | O157: 0 | P157: 0 | R157: 157.2 | S157: 0 | T157: 1091.22 | U157: 0 | V157: 0 | X157: 157.2 | Y157: 0 | Z157: 1091.22 | AA157: 0 | AB157: 0 | AD157: 157.2 | AE157: 0 | AF157: 1091.22 | AG157: 0 | AH157: 0 | AJ157: 157.2 | AK157: 0 | AL157: 1091.22 | AM157: 0 | AN157: 0 | AP157: 157.2 | AQ157: 0 | AR157: 1091.22 | AS157: 0 | AT157: 0 | AV157: 157.2 | AW157: 0 | AX157: 1091.22 | AY157: 0 | AZ157: 0 | BB157: 157.2 | BC157: 0 | BD157: 1091.22 | BE157: 0 | BF157: 0 | BH157: 0 | BI157: 157.2 | BJ157: 0 | BK157: 1091.22 | BL157: 0 | BM157: 0 | BN157: 10 | BO157: 157.2 | BP157: 1572 | BQ157: 1091.22 | BR157: 10912.2 | BS157: 12484.2
A158: 1.4.46 | B158: Крышка S5 CS90 90x100 угла вертикального внутреннего | C158: шт. | D158: 12 | E158: 157.2 | F158: 1886.4 | G158: 837.23 | H158: 10046.76 | I158: 11933.16 | L158: 157.2 | M158: 0 | N158: 837.23 | O158: 0 | P158: 0 | R158: 157.2 | S158: 0 | T158: 837.23 | U158: 0 | V158: 0 | X158: 157.2 | Y158: 0 | Z158: 837.23 | AA158: 0 | AB158: 0 | AD158: 157.2 | AE158: 0 | AF158: 837.23 | AG158: 0 | AH158: 0 | AJ158: 157.2 | AK158: 0 | AL158: 837.23 | AM158: 0 | AN158: 0 | AP158: 157.2 | AQ158: 0 | AR158: 837.23 | AS158: 0 | AT158: 0 | AV158: 157.2 | AW158: 0 | AX158: 837.23 | AY158: 0 | AZ158: 0 | BB158: 157.2 | BC158: 0 | BD158: 837.23 | BE158: 0 | BF158: 0 | BH158: 0 | BI158: 157.2 | BJ158: 0 | BK158: 837.23 | BL158: 0 | BM158: 0 | BN158: 12 | BO158: 157.2 | BP158: 1886.4 | BQ158: 837.23 | BR158: 10046.76 | BS158: 11933.16
A159: 1.4.47 | B159: Ответвитель S5 DL 100x50 горизонтальный | C159: шт. | D159: 5 | E159: 1572 | F159: 7860 | G159: 2626.01 | H159: 13130.05 | I159: 20990.05 | L159: 1572 | M159: 0 | N159: 2626.01 | O159: 0 | P159: 0 | R159: 1572 | S159: 0 | T159: 2626.01 | U159: 0 | V159: 0 | X159: 1572 | Y159: 0 | Z159: 2626.01 | AA159: 0 | AB159: 0 | AD159: 1572 | AE159: 0 | AF159: 2626.01 | AG159: 0 | AH159: 0 | AJ159: 1572 | AK159: 0 | AL159: 2626.01 | AM159: 0 | AN159: 0 | AP159: 1572 | AQ159: 0 | AR159: 2626.01 | AS159: 0 | AT159: 0 | AV159: 1572 | AW159: 0 | AX159: 2626.01 | AY159: 0 | AZ159: 0 | BB159: 1572 | BC159: 0 | BD159: 2626.01 | BE159: 0 | BF159: 0 | BH159: 0 | BI159: 1572 | BJ159: 0 | BK159: 2626.01 | BL159: 0 | BM159: 0 | BN159: 5 | BO159: 1572 | BP159: 7860 | BQ159: 2626.01 | BR159: 13130.05 | BS159: 20990.05
A160: 1.4.48 | B160: Крышка S5 DL 100х50 ответвителя горизонтального | C160: шт. | D160: 5 | E160: 157.2 | F160: 786 | G160: 1305.85 | H160: 6529.25 | I160: 7315.25 | L160: 157.2 | M160: 0 | N160: 1305.85 | O160: 0 | P160: 0 | R160: 157.2 | S160: 0 | T160: 1305.85 | U160: 0 | V160: 0 | X160: 157.2 | Y160: 0 | Z160: 1305.85 | AA160: 0 | AB160: 0 | AD160: 157.2 | AE160: 0 | AF160: 1305.85 | AG160: 0 | AH160: 0 | AJ160: 157.2 | AK160: 0 | AL160: 1305.85 | AM160: 0 | AN160: 0 | AP160: 157.2 | AQ160: 0 | AR160: 1305.85 | AS160: 0 | AT160: 0 | AV160: 157.2 | AW160: 0 | AX160: 1305.85 | AY160: 0 | AZ160: 0 | BB160: 157.2 | BC160: 0 | BD160: 1305.85 | BE160: 0 | BF160: 0 | BH160: 0 | BI160: 157.2 | BJ160: 0 | BK160: 1305.85 | BL160: 0 | BM160: 0 | BN160: 5 | BO160: 157.2 | BP160: 786 | BQ160: 1305.85 | BR160: 6529.25 | BS160: 7315.25
A161: 1.4.49 | B161: Угол S5 CD90 90x50x50 вертикальный внешний | C161: шт. | D161: 16 | E161: 1572 | F161: 25152 | G161: 2555.81 | H161: 40892.96 | I161: 66044.96 | L161: 1572 | M161: 0 | N161: 2555.81 | O161: 0 | P161: 0 | R161: 1572 | S161: 0 | T161: 2555.81 | U161: 0 | V161: 0 | X161: 1572 | Y161: 0 | Z161: 2555.81 | AA161: 0 | AB161: 0 | AD161: 1572 | AE161: 0 | AF161: 2555.81 | AG161: 0 | AH161: 0 | AJ161: 1572 | AK161: 0 | AL161: 2555.81 | AM161: 0 | AN161: 0 | AP161: 1572 | AQ161: 0 | AR161: 2555.81 | AS161: 0 | AT161: 0 | AV161: 1572 | AW161: 0 | AX161: 2555.81 | AY161: 0 | AZ161: 0 | BB161: 1572 | BC161: 0 | BD161: 2555.81 | BE161: 0 | BF161: 0 | BH161: 0 | BI161: 1572 | BJ161: 0 | BK161: 2555.81 | BL161: 0 | BM161: 0 | BN161: 16 | BO161: 1572 | BP161: 25152 | BQ161: 2555.81 | BR161: 40892.96 | BS161: 66044.96
A162: 1.4.50 | B162: Крышка S5 CD90 90x50 угла вертикального внешнего | C162: шт. | D162: 16 | E162: 157.2 | F162: 2515.2 | G162: 829.61 | H162: 13273.76 | I162: 15788.96 | L162: 157.2 | M162: 0 | N162: 829.61 | O162: 0 | P162: 0 | R162: 157.2 | S162: 0 | T162: 829.61 | U162: 0 | V162: 0 | X162: 157.2 | Y162: 0 | Z162: 829.61 | AA162: 0 | AB162: 0 | AD162: 157.2 | AE162: 0 | AF162: 829.61 | AG162: 0 | AH162: 0 | AJ162: 157.2 | AK162: 0 | AL162: 829.61 | AM162: 0 | AN162: 0 | AP162: 157.2 | AQ162: 0 | AR162: 829.61 | AS162: 0 | AT162: 0 | AV162: 157.2 | AW162: 0 | AX162: 829.61 | AY162: 0 | AZ162: 0 | BB162: 157.2 | BC162: 0 | BD162: 829.61 | BE162: 0 | BF162: 0 | BH162: =K162+Q162+W162+AC162+AI162+AO162+AU162+BA162 -> 0 | BI162: 157.2 | BJ162: 0 | BK162: 829.61 | BL162: 0 | BM162: 0 | BN162: =D162-BH162 -> 16 | BO162: 157.2 | BP162: 2515.2 | BQ162: 829.61 | BR162: 13273.76 | BS162: 15788.96
A163: 1.4.51 | B163: Ответвитель S5 DL 50x50 горизонтальный | C163: шт. | D163: 16 | E163: 1572 | F163: 25152 | G163: 2373.29 | H163: 37972.64 | I163: 63124.64 | L163: 1572 | M163: 0 | N163: 2373.29 | O163: 0 | P163: 0 | R163: 1572 | S163: 0 | T163: 2373.29 | U163: 0 | V163: 0 | X163: 1572 | Y163: 0 | Z163: 2373.29 | AA163: 0 | AB163: 0 | AD163: 1572 | AE163: 0 | AF163: 2373.29 | AG163: 0 | AH163: 0 | AJ163: 1572 | AK163: 0 | AL163: 2373.29 | AM163: 0 | AN163: 0 | AP163: 1572 | AQ163: 0 | AR163: 2373.29 | AS163: 0 | AT163: 0 | AV163: 1572 | AW163: 0 | AX163: 2373.29 | AY163: 0 | AZ163: 0 | BB163: 1572 | BC163: 0 | BD163: 2373.29 | BE163: 0 | BF163: 0 | BH163: 0 | BI163: 1572 | BJ163: 0 | BK163: 2373.29 | BL163: 0 | BM163: 0 | BN163: 16 | BO163: 1572 | BP163: 25152 | BQ163: 2373.29 | BR163: 37972.64 | BS163: 63124.64
A164: 1.4.52 | B164: Крышка S5 DL 50х50 ответвителя горизонтального | C164: шт. | D164: 16 | E164: 157.2 | F164: 2515.2 | G164: 1109.56 | H164: 17752.96 | I164: 20268.16 | L164: 157.2 | M164: 0 | N164: 1109.56 | O164: 0 | P164: 0 | R164: 157.2 | S164: 0 | T164: 1109.56 | U164: 0 | V164: 0 | X164: 157.2 | Y164: 0 | Z164: 1109.56 | AA164: 0 | AB164: 0 | AD164: 157.2 | AE164: 0 | AF164: 1109.56 | AG164: 0 | AH164: 0 | AJ164: 157.2 | AK164: 0 | AL164: 1109.56 | AM164: 0 | AN164: 0 | AP164: 157.2 | AQ164: 0 | AR164: 1109.56 | AS164: 0 | AT164: 0 | AV164: 157.2 | AW164: 0 | AX164: 1109.56 | AY164: 0 | AZ164: 0 | BB164: 157.2 | BC164: 0 | BD164: 1109.56 | BE164: 0 | BF164: 0 | BH164: 0 | BI164: 157.2 | BJ164: 0 | BK164: 1109.56 | BL164: 0 | BM164: 0 | BN164: 16 | BO164: 157.2 | BP164: 2515.2 | BQ164: 1109.56 | BR164: 17752.96 | BS164: 20268.16
A165: 1.4.53 | B165: Кронштейн индивидуального изготовления L=1250 | C165: шт. | D165: 210 | E165: 540.77 | F165: 113561.7 | G165: 2018.64 | H165: 423914.4 | I165: 537476.1 | L165: 540.77 | M165: 0 | N165: 2018.64 | O165: 0 | P165: 0 | R165: 540.77 | S165: 0 | T165: 2018.64 | U165: 0 | V165: 0 | X165: 540.77 | Y165: 0 | Z165: 2018.64 | AA165: 0 | AB165: 0 | AD165: 540.77 | AE165: 0 | AF165: 2018.64 | AG165: 0 | AH165: 0 | AJ165: 540.77 | AK165: 0 | AL165: 2018.64 | AM165: 0 | AN165: 0 | AP165: 540.77 | AQ165: 0 | AR165: 2018.64 | AS165: 0 | AT165: 0 | AV165: 540.77 | AW165: 0 | AX165: 2018.64 | AY165: 0 | AZ165: 0 | BB165: 540.77 | BC165: 0 | BD165: 2018.64 | BE165: 0 | BF165: 0 | BH165: 0 | BI165: 540.77 | BJ165: 0 | BK165: 2018.64 | BL165: 0 | BM165: 0 | BN165: 210 | BO165: 540.77 | BP165: 113561.7 | BQ165: 2018.64 | BR165: 423914.4 | BS165: 537476.1
A166: 1.4.54 | B166: Кронштейн юстировочный для монтажа линейного извещателя | C166: шт. | D166: 24 | E166: 1572 | F166: 37728 | G166: 1560 | H166: 37440 | I166: 75168 | L166: 1572 | M166: 0 | N166: 1560 | O166: 0 | P166: 0 | R166: 1572 | S166: 0 | T166: 1560 | U166: 0 | V166: 0 | X166: 1572 | Y166: 0 | Z166: 1560 | AA166: 0 | AB166: 0 | AD166: 1572 | AE166: 0 | AF166: 1560 | AG166: 0 | AH166: 0 | AJ166: 1572 | AK166: 0 | AL166: 1560 | AM166: 0 | AN166: 0 | AP166: 1572 | AQ166: 0 | AR166: 1560 | AS166: 0 | AT166: 0 | AV166: 1572 | AW166: 0 | AX166: 1560 | AY166: 0 | AZ166: 0 | BB166: 1572 | BC166: 0 | BD166: 1560 | BE166: 0 | BF166: 0 | BH166: 0 | BI166: 1572 | BJ166: 0 | BK166: 1560 | BL166: 0 | BM166: 0 | BN166: 24 | BO166: 1572 | BP166: 37728 | BQ166: 1560 | BR166: 37440 | BS166: 75168
A167: 1.4.55 | B167: Стандартный анкер с болтом М8 | C167: шт. | D167: 800 | E167: 32.75 | F167: 26200 | G167: 107.93 | H167: 86344 | I167: 112544 | L167: 32.75 | M167: 0 | N167: 107.93 | O167: 0 | P167: 0 | R167: 32.75 | S167: 0 | T167: 107.93 | U167: 0 | V167: 0 | X167: 32.75 | Y167: 0 | Z167: 107.93 | AA167: 0 | AB167: 0 | AD167: 32.75 | AE167: 0 | AF167: 107.93 | AG167: 0 | AH167: 0 | AJ167: 32.75 | AK167: 0 | AL167: 107.93 | AM167: 0 | AN167: 0 | AP167: 32.75 | AQ167: 0 | AR167: 107.93 | AS167: 0 | AT167: 0 | AV167: 32.75 | AW167: 0 | AX167: 107.93 | AY167: 0 | AZ167: 0 | BB167: 32.75 | BC167: 0 | BD167: 107.93 | BE167: 0 | BF167: 0 | BH167: 0 | BI167: 32.75 | BJ167: 0 | BK167: 107.93 | BL167: 0 | BM167: 0 | BN167: 800 | BO167: 32.75 | BP167: 26200 | BQ167: 107.93 | BR167: 86344 | BS167: 112544
A168: 1.4.56 | B168: Винт для электрического соединения М5х8 | C168: шт. | D168: 100 | E168: 19.65 | F168: 1965 | G168: 13.26 | H168: 1326 | I168: 3291 | L168: 19.65 | M168: 0 | N168: 13.26 | O168: 0 | P168: 0 | R168: 19.65 | S168: 0 | T168: 13.26 | U168: 0 | V168: 0 | X168: 19.65 | Y168: 0 | Z168: 13.26 | AA168: 0 | AB168: 0 | AD168: 19.65 | AE168: 0 | AF168: 13.26 | AG168: 0 | AH168: 0 | AJ168: 19.65 | AK168: 0 | AL168: 13.26 | AM168: 0 | AN168: 0 | AP168: 19.65 | AQ168: 0 | AR168: 13.26 | AS168: 0 | AT168: 0 | AV168: 19.65 | AW168: 0 | AX168: 13.26 | AY168: 0 | AZ168: 0 | BB168: 19.65 | BC168: 0 | BD168: 13.26 | BE168: 0 | BF168: 0 | BH168: 0 | BI168: 19.65 | BJ168: 0 | BK168: 13.26 | BL168: 0 | BM168: 0 | BN168: 100 | BO168: 19.65 | BP168: 1965 | BQ168: 13.26 | BR168: 1326 | BS168: 3291
A169: 1.4.57 | B169: Коробка огнестойкая 100х100х50мм | C169: шт. | D169: 175 | E169: 1048 | F169: 183400 | G169: 1383.16 | H169: 242053 | I169: 425453 | L169: 1048 | M169: 0 | N169: 1383.16 | O169: 0 | P169: 0 | R169: 1048 | S169: 0 | T169: 1383.16 | U169: 0 | V169: 0 | X169: 1048 | Y169: 0 | Z169: 1383.16 | AA169: 0 | AB169: 0 | AD169: 1048 | AE169: 0 | AF169: 1383.16 | AG169: 0 | AH169: 0 | AJ169: 1048 | AK169: 0 | AL169: 1383.16 | AM169: 0 | AN169: 0 | AP169: 1048 | AQ169: 0 | AR169: 1383.16 | AS169: 0 | AT169: 0 | AV169: 1048 | AW169: 0 | AX169: 1383.16 | AY169: 0 | AZ169: 0 | BB169: 1048 | BC169: 0 | BD169: 1383.16 | BE169: 0 | BF169: 0 | BH169: 0 | BI169: 1048 | BJ169: 0 | BK169: 1383.16 | BL169: 0 | BM169: 0 | BN169: 175 | BO169: 1048 | BP169: 183400 | BQ169: 1383.16 | BR169: 242053 | BS169: 425453
A170: 1.4.58 | B170: Кабель огнестойкий КПСЭнг(А)-FRHF 1х2х1,0 | C170: м | D170: 6400 | E170: 162.44 | F170: 1039616 | G170: 53.35 | H170: 341440 | I170: 1381056 | L170: 162.44 | M170: 0 | N170: 53.35 | O170: 0 | P170: 0 | R170: 162.44 | S170: 0 | T170: 53.35 | U170: 0 | V170: 0 | X170: 162.44 | Y170: 0 | Z170: 53.35 | AA170: 0 | AB170: 0 | AD170: 162.44 | AE170: 0 | AF170: 53.35 | AG170: 0 | AH170: 0 | AJ170: 162.44 | AK170: 0 | AL170: 53.35 | AM170: 0 | AN170: 0 | AP170: 162.44 | AQ170: 0 | AR170: 53.35 | AS170: 0 | AT170: 0 | AV170: 162.44 | AW170: 0 | AX170: 53.35 | AY170: 0 | AZ170: 0 | BB170: 162.44 | BC170: 0 | BD170: 53.35 | BE170: 0 | BF170: 0 | BH170: 0 | BI170: 162.44 | BJ170: 0 | BK170: 53.35 | BL170: 0 | BM170: 0 | BN170: 6400 | BO170: 162.44 | BP170: 1039616 | BQ170: 53.35 | BR170: 341440 | BS170: 1381056
A171: 1.4.59 | B171: Кабель огнестойкий КПСЭнг(А)-FRHF 1х2х1,5 | C171: м | D171: 2500 | E171: 162.44 | F171: 406100 | G171: 107.82 | H171: 269550 | I171: 675650 | L171: 162.44 | M171: 0 | N171: 107.82 | O171: 0 | P171: 0 | R171: 162.44 | S171: 0 | T171: 107.82 | U171: 0 | V171: 0 | X171: 162.44 | Y171: 0 | Z171: 107.82 | AA171: 0 | AB171: 0 | AD171: 162.44 | AE171: 0 | AF171: 107.82 | AG171: 0 | AH171: 0 | AJ171: 162.44 | AK171: 0 | AL171: 107.82 | AM171: 0 | AN171: 0 | AP171: 162.44 | AQ171: 0 | AR171: 107.82 | AS171: 0 | AT171: 0 | AV171: 162.44 | AW171: 0 | AX171: 107.82 | AY171: 0 | AZ171: 0 | BB171: 162.44 | BC171: 0 | BD171: 107.82 | BE171: 0 | BF171: 0 | BH171: 0 | BI171: 162.44 | BJ171: 0 | BK171: 107.82 | BL171: 0 | BM171: 0 | BN171: 2500 | BO171: 162.44 | BP171: 406100 | BQ171: 107.82 | BR171: 269550 | BS171: 675650
A172: 1.4.60 | B172: Кабель огнестойкий КПСЭнг(А)-FRHF 2х2х0,75 | C172: м | D172: 400 | E172: 162.44 | F172: 64976 | G172: 101.09 | H172: 40436 | I172: 105412 | L172: 162.44 | M172: 0 | N172: 101.09 | O172: 0 | P172: 0 | R172: 162.44 | S172: 0 | T172: 101.09 | U172: 0 | V172: 0 | X172: 162.44 | Y172: 0 | Z172: 101.09 | AA172: 0 | AB172: 0 | AD172: 162.44 | AE172: 0 | AF172: 101.09 | AG172: 0 | AH172: 0 | AJ172: 162.44 | AK172: 0 | AL172: 101.09 | AM172: 0 | AN172: 0 | AP172: 162.44 | AQ172: 0 | AR172: 101.09 | AS172: 0 | AT172: 0 | AV172: 162.44 | AW172: 0 | AX172: 101.09 | AY172: 0 | AZ172: 0 | BB172: 162.44 | BC172: 0 | BD172: 101.09 | BE172: 0 | BF172: 0 | BH172: 0 | BI172: 162.44 | BJ172: 0 | BK172: 101.09 | BL172: 0 | BM172: 0 | BN172: 400 | BO172: 162.44 | BP172: 64976 | BQ172: 101.09 | BR172: 40436 | BS172: 105412
A173: 1.4.61 | B173: Кабель огнестойкий КПСЭнг(А)-FRHF 2х2х0,5 | C173: м | D173: 750 | E173: 162.44 | F173: 121830 | G173: 111.72 | H173: 83790 | I173: 205620 | L173: 162.44 | M173: 0 | N173: 111.72 | O173: 0 | P173: 0 | R173: 162.44 | S173: 0 | T173: 111.72 | U173: 0 | V173: 0 | X173: 162.44 | Y173: 0 | Z173: 111.72 | AA173: 0 | AB173: 0 | AD173: 162.44 | AE173: 0 | AF173: 111.72 | AG173: 0 | AH173: 0 | AJ173: 162.44 | AK173: 0 | AL173: 111.72 | AM173: 0 | AN173: 0 | AP173: 162.44 | AQ173: 0 | AR173: 111.72 | AS173: 0 | AT173: 0 | AV173: 162.44 | AW173: 0 | AX173: 111.72 | AY173: 0 | AZ173: 0 | BB173: 162.44 | BC173: 0 | BD173: 111.72 | BE173: 0 | BF173: 0 | BH173: 0 | BI173: 162.44 | BJ173: 0 | BK173: 111.72 | BL173: 0 | BM173: 0 | BN173: 750 | BO173: 162.44 | BP173: 121830 | BQ173: 111.72 | BR173: 83790 | BS173: 205620
A174: 1.4.62 | B174: Кабель силовой огнестойкий ППГ нг(А)-FRHF 3х1.5 | C174: м | D174: 1300 | E174: 162.44 | F174: 211172 | G174: 131.98 | H174: 171574 | I174: 382746 | L174: 162.44 | M174: 0 | N174: 131.98 | O174: 0 | P174: 0 | R174: 162.44 | S174: 0 | T174: 131.98 | U174: 0 | V174: 0 | X174: 162.44 | Y174: 0 | Z174: 131.98 | AA174: 0 | AB174: 0 | AD174: 162.44 | AE174: 0 | AF174: 131.98 | AG174: 0 | AH174: 0 | AJ174: 162.44 | AK174: 0 | AL174: 131.98 | AM174: 0 | AN174: 0 | AP174: 162.44 | AQ174: 0 | AR174: 131.98 | AS174: 0 | AT174: 0 | AV174: 162.44 | AW174: 0 | AX174: 131.98 | AY174: 0 | AZ174: 0 | BB174: 162.44 | BC174: 0 | BD174: 131.98 | BE174: 0 | BF174: 0 | BH174: 0 | BI174: 162.44 | BJ174: 0 | BK174: 131.98 | BL174: 0 | BM174: 0 | BN174: 1300 | BO174: 162.44 | BP174: 211172 | BQ174: 131.98 | BR174: 171574 | BS174: 382746
A175: 1.4.63 | B175: Труба гофрированная ПВХ легкая серая D20 | C175: м | D175: 4000 | E175: 45.85 | F175: 183400 | G175: 28.08 | H175: 112320 | I175: 295720 | L175: 45.85 | M175: 0 | N175: 28.08 | O175: 0 | P175: 0 | R175: 45.85 | S175: 0 | T175: 28.08 | U175: 0 | V175: 0 | X175: 45.85 | Y175: 0 | Z175: 28.08 | AA175: 0 | AB175: 0 | AD175: 45.85 | AE175: 0 | AF175: 28.08 | AG175: 0 | AH175: 0 | AJ175: 45.85 | AK175: 0 | AL175: 28.08 | AM175: 0 | AN175: 0 | AP175: 45.85 | AQ175: 0 | AR175: 28.08 | AS175: 0 | AT175: 0 | AV175: 45.85 | AW175: 0 | AX175: 28.08 | AY175: 0 | AZ175: 0 | BB175: 45.85 | BC175: 0 | BD175: 28.08 | BE175: 0 | BF175: 0 | BH175: 0 | BI175: 45.85 | BJ175: 0 | BK175: 28.08 | BL175: 0 | BM175: 0 | BN175: 4000 | BO175: 45.85 | BP175: 183400 | BQ175: 28.08 | BR175: 112320 | BS175: 295720
A176: 1.4.64 | B176: Скоба металлическая однолапковая Д20 | C176: шт. | D176: 8000 | E176: 6.55 | F176: 52400 | G176: 3.38 | H176: 27040 | I176: 79440 | L176: 6.55 | M176: 0 | N176: 3.38 | O176: 0 | P176: 0 | R176: 6.55 | S176: 0 | T176: 3.38 | U176: 0 | V176: 0 | X176: 6.55 | Y176: 0 | Z176: 3.38 | AA176: 0 | AB176: 0 | AD176: 6.55 | AE176: 0 | AF176: 3.38 | AG176: 0 | AH176: 0 | AJ176: 6.55 | AK176: 0 | AL176: 3.38 | AM176: 0 | AN176: 0 | AP176: 6.55 | AQ176: 0 | AR176: 3.38 | AS176: 0 | AT176: 0 | AV176: 6.55 | AW176: 0 | AX176: 3.38 | AY176: 0 | AZ176: 0 | BB176: 6.55 | BC176: 0 | BD176: 3.38 | BE176: 0 | BF176: 0 | BH176: 0 | BI176: 6.55 | BJ176: 0 | BK176: 3.38 | BL176: 0 | BM176: 0 | BN176: 8000 | BO176: 6.55 | BP176: 52400 | BQ176: 3.38 | BR176: 27040 | BS176: 79440
A177: 1.4.65 | B177: Металлический дюбель для газобетона 6х32 | C177: шт. | D177: 8000 | E177: 6.55 | F177: 52400 | G177: 19.34 | H177: 154720 | I177: 207120 | L177: 6.55 | M177: 0 | N177: 19.34 | O177: 0 | P177: 0 | R177: 6.55 | S177: 0 | T177: 19.34 | U177: 0 | V177: 0 | X177: 6.55 | Y177: 0 | Z177: 19.34 | AA177: 0 | AB177: 0 | AD177: 6.55 | AE177: 0 | AF177: 19.34 | AG177: 0 | AH177: 0 | AJ177: 6.55 | AK177: 0 | AL177: 19.34 | AM177: 0 | AN177: 0 | AP177: 6.55 | AQ177: 0 | AR177: 19.34 | AS177: 0 | AT177: 0 | AV177: 6.55 | AW177: 0 | AX177: 19.34 | AY177: 0 | AZ177: 0 | BB177: 6.55 | BC177: 0 | BD177: 19.34 | BE177: 0 | BF177: 0 | BH177: 0 | BI177: 6.55 | BJ177: 0 | BK177: 19.34 | BL177: 0 | BM177: 0 | BN177: 8000 | BO177: 6.55 | BP177: 52400 | BQ177: 19.34 | BR177: 154720 | BS177: 207120
A178: 1.4.66 | B178: Саморез с пресс-шайбой 4.2х32 | C178: шт. | D178: 8000 | E178: 6.55 | F178: 52400 | G178: 2.37 | H178: 18960 | I178: 71360 | L178: 6.55 | M178: 0 | N178: 2.37 | O178: 0 | P178: 0 | R178: 6.55 | S178: 0 | T178: 2.37 | U178: 0 | V178: 0 | X178: 6.55 | Y178: 0 | Z178: 2.37 | AA178: 0 | AB178: 0 | AD178: 6.55 | AE178: 0 | AF178: 2.37 | AG178: 0 | AH178: 0 | AJ178: 6.55 | AK178: 0 | AL178: 2.37 | AM178: 0 | AN178: 0 | AP178: 6.55 | AQ178: 0 | AR178: 2.37 | AS178: 0 | AT178: 0 | AV178: 6.55 | AW178: 0 | AX178: 2.37 | AY178: 0 | AZ178: 0 | BB178: 6.55 | BC178: 0 | BD178: 2.37 | BE178: 0 | BF178: 0 | BH178: 0 | BI178: 6.55 | BJ178: 0 | BK178: 2.37 | BL178: 0 | BM178: 0 | BN178: 8000 | BO178: 6.55 | BP178: 52400 | BQ178: 2.37 | BR178: 18960 | BS178: 71360
A179: 1.4.67 | B179: Аксессуары (расходные материалы, крепеж) | C179: компл. | D179: 1 | E179: 0 | G179: 53352 | H179: 53352 | I179: =E179*D179+G179*D179 -> 53352 | L179: 0 | N179: 53352 | O179: 0 | P179: =L179*K179+N179*K179 -> 0 | R179: 0 | T179: 53352 | U179: 0 | V179: =R179*Q179+T179*Q179 -> 0 | X179: 0 | Y179: 0 | Z179: 53352 | AA179: 0 | AB179: =X179*W179+Z179*W179 -> 0 | AD179: 0 | AF179: 53352 | AG179: 0 | AH179: =AD179*AC179+AF179*AC179 -> 0 | AJ179: 0 | AL179: 53352 | AM179: 0 | AN179: =AJ179*AI179+AL179*AI179 -> 0 | AP179: 0 | AR179: 53352 | AS179: 0 | AT179: =AP179*AO179+AR179*AO179 -> 0 | AV179: 0 | AX179: 53352 | AY179: 0 | AZ179: =AV179*AU179+AX179*AU179 -> 0 | BB179: 0 | BD179: 53352 | BE179: 0 | BF179: =BB179*BA179+BD179*BA179 -> 0 | BH179: 0 | BI179: 0 | BK179: 53352 | BL179: 0 | BM179: =BI179*BH179+BK179*BH179 -> 0 | BN179: 1 | BO179: 0 | BQ179: 53352 | BR179: 53352 | BS179: =BO179*BN179+BQ179*BN179 -> 53352
A180: 1.4.68 | B180: Пуско-наладочные работы, приемо-сдаточные работы | C180: компл. | D180: 1 | E180: 515458.8 | F180: =D180*E180 -> 515458.8 | G180: 0 | I180: 515458.8 | L180: 515458.8 | M180: =K180*L180 -> 0 | N180: 0 | P180: 0 | R180: 515458.8 | S180: =Q180*R180 -> 0 | T180: 0 | V180: 0 | X180: 515458.8 | Y180: =W180*X180 -> 0 | Z180: 0 | AB180: 0 | AD180: 515458.8 | AE180: =AC180*AD180 -> 0 | AF180: 0 | AH180: 0 | AJ180: 515458.8 | AK180: =AI180*AJ180 -> 0 | AL180: 0 | AN180: 0 | AP180: 515458.8 | AQ180: =AO180*AP180 -> 0 | AR180: 0 | AT180: 0 | AV180: 515458.8 | AW180: =AU180*AV180 -> 0 | AX180: 0 | AZ180: 0 | BB180: 515458.8 | BC180: =BA180*BB180 -> 0 | BD180: 0 | BF180: 0 | BH180: 0 | BI180: 515458.8 | BJ180: =BH180*BI180 -> 0 | BK180: 0 | BM180: 0 | BN180: 1 | BO180: 515458.8 | BP180: =BN180*BO180 -> 515458.8 | BQ180: 0 | BS180: 515458.8
A181: 1.4.69 | B181: Аренда вышки 28 м | C181: ч | D181: 152 | E181: 0 | G181: 0 | L181: 0 | N181: 0 | R181: 0 | T181: 0 | X181: 0 | Z181: 0 | AD181: 0 | AF181: 0 | AJ181: 0 | AL181: 0 | AP181: 0 | AR181: 0 | AV181: 0 | AX181: 0 | BB181: 0 | BD181: 0 | BH181: 0 | BI181: 0 | BK181: 0 | BN181: 152 | BO181: 0 | BQ181: 0
A182: 1.4.70 | B182: Автоматизация управления воротами | E182: 0 | G182: 0 | L182: 0 | N182: 0 | R182: 0 | T182: 0 | X182: 0 | Z182: 0 | AD182: 0 | AF182: 0 | AJ182: 0 | AL182: 0 | AP182: 0 | AR182: 0 | AV182: 0 | AX182: 0 | BB182: 0 | BD182: 0 | BH182: 0 | BI182: 0 | BK182: 0 | BN182: 0 | BO182: 0 | BQ182: 0
A183: 1.4.70.1 | B183: Пульт контроля и управления | C183: шт. | D183: 1 | E183: 3406 | F183: =D183*E183 -> 3406 | G183: 14788.18 | H183: =D183*G183 -> 14788.18 | I183: =E183*D183+G183*D183 -> 18194.18 | L183: 3406 | M183: =K183*L183 -> 0 | N183: 14788.18 | O183: =K183*N183 -> 0 | P183: =L183*K183+N183*K183 -> 0 | R183: 3406 | S183: =Q183*R183 -> 0 | T183: 14788.18 | U183: =Q183*T183 -> 0 | V183: =R183*Q183+T183*Q183 -> 0 | W183: 1 | X183: 3406 | Y183: =W183*X183 -> 3406 | Z183: 14788.18 | AA183: =W183*Z183 -> 14788.18 | AB183: =X183*W183+Z183*W183 -> 18194.18 | AD183: 3406 | AE183: =AC183*AD183 -> 0 | AF183: 14788.18 | AG183: =AC183*AF183 -> 0 | AH183: =AD183*AC183+AF183*AC183 -> 0 | AJ183: 3406 | AK183: =AI183*AJ183 -> 0 | AL183: 14788.18 | AM183: =AI183*AL183 -> 0 | AN183: =AJ183*AI183+AL183*AI183 -> 0 | AP183: 3406 | AQ183: =AO183*AP183 -> 0 | AR183: 14788.18 | AS183: =AO183*AR183 -> 0 | AT183: =AP183*AO183+AR183*AO183 -> 0 | AV183: 3406 | AW183: =AU183*AV183 -> 0 | AX183: 14788.18 | AY183: =AU183*AX183 -> 0 | AZ183: =AV183*AU183+AX183*AU183 -> 0 | BB183: 3406 | BC183: =BA183*BB183 -> 0 | BD183: 14788.18 | BE183: =BA183*BD183 -> 0 | BF183: =BB183*BA183+BD183*BA183 -> 0 | BH183: 1 | BI183: 3406 | BJ183: =BH183*BI183 -> 3406 | BK183: 14788.18 | BL183: =BH183*BK183 -> 14788.18 | BM183: =BI183*BH183+BK183*BH183 -> 18194.18 | BN183: 0 | BO183: 3406 | BP183: =BN183*BO183 -> 0 | BQ183: 14788.18 | BR183: =BN183*BQ183 -> 0 | BS183: =BO183*BN183+BQ183*BN183 -> 0
A184: 1.4.70.2 | B184: Прибор приемно-контрольный охранно-пожарный | C184: шт. | D184: 2 | E184: 3406 | F184: 6812 | G184: 4655.04 | H184: 9310.08 | I184: 16122.08 | L184: 3406 | M184: 0 | N184: 4655.04 | O184: 0 | P184: 0 | R184: 3406 | S184: 0 | T184: 4655.04 | U184: 0 | V184: 0 | W184: 2 | X184: 3406 | Y184: 6812 | Z184: 4655.04 | AA184: 9310.08 | AB184: 16122.08 | AD184: 3406 | AE184: 0 | AF184: 4655.04 | AG184: 0 | AH184: 0 | AJ184: 3406 | AK184: 0 | AL184: 4655.04 | AM184: 0 | AN184: 0 | AP184: 3406 | AQ184: 0 | AR184: 4655.04 | AS184: 0 | AT184: 0 | AV184: 3406 | AW184: 0 | AX184: 4655.04 | AY184: 0 | AZ184: 0 | BB184: 3406 | BC184: 0 | BD184: 4655.04 | BE184: 0 | BF184: 0 | BH184: 2 | BI184: 3406 | BJ184: 6812 | BK184: 4655.04 | BL184: 9310.08 | BM184: 16122.08 | BN184: 0 | BO184: 3406 | BP184: 0 | BQ184: 4655.04 | BR184: 0 | BS184: 0
A185: 1.4.70.3 | B185: Щит с монтажной панелью 600х600х250 ЩМПг-60.60.25 IP54 | C185: шт. | D185: 2 | E185: 6550 | F185: 13100 | G185: 19718.4 | H185: 39436.8 | I185: 52536.8 | L185: 6550 | M185: 0 | N185: 19718.4 | O185: 0 | P185: 0 | R185: 6550 | S185: 0 | T185: 19718.4 | U185: 0 | V185: 0 | W185: 2 | X185: 6550 | Y185: 13100 | Z185: 19718.4 | AA185: 39436.8 | AB185: 52536.8 | AD185: 6550 | AE185: 0 | AF185: 19718.4 | AG185: 0 | AH185: 0 | AJ185: 6550 | AK185: 0 | AL185: 19718.4 | AM185: 0 | AN185: 0 | AP185: 6550 | AQ185: 0 | AR185: 19718.4 | AS185: 0 | AT185: 0 | AV185: 6550 | AW185: 0 | AX185: 19718.4 | AY185: 0 | AZ185: 0 | BB185: 6550 | BC185: 0 | BD185: 19718.4 | BE185: 0 | BF185: 0 | BH185: 2 | BI185: 6550 | BJ185: 13100 | BK185: 19718.4 | BL185: 39436.8 | BM185: 52536.8 | BN185: 0 | BO185: 6550 | BP185: 0 | BQ185: 19718.4 | BR185: 0 | BS185: 0
A186: 1.4.70.4 | B186: Источник питания резервированный | C186: шт. | D186: 2 | E186: 3930 | F186: 7860 | G186: 10308.48 | H186: 20616.96 | I186: 28476.96 | L186: 3930 | M186: 0 | N186: 10308.48 | O186: 0 | P186: 0 | R186: 3930 | S186: 0 | T186: 10308.48 | U186: 0 | V186: 0 | X186: 3930 | Y186: 0 | Z186: 10308.48 | AA186: 0 | AB186: 0 | AD186: 3930 | AE186: 0 | AF186: 10308.48 | AG186: 0 | AH186: 0 | AJ186: 3930 | AK186: 0 | AL186: 10308.48 | AM186: 0 | AN186: 0 | AP186: 3930 | AQ186: 0 | AR186: 10308.48 | AS186: 0 | AT186: 0 | AV186: 3930 | AW186: 0 | AX186: 10308.48 | AY186: 0 | AZ186: 0 | BB186: 3930 | BC186: 0 | BD186: 10308.48 | BE186: 0 | BF186: 0 | BH186: 0 | BI186: 3930 | BJ186: 0 | BK186: 10308.48 | BL186: 0 | BM186: 0 | BN186: 2 | BO186: 3930 | BP186: 7860 | BQ186: 10308.48 | BR186: 20616.96 | BS186: 28476.96
A187: 1.4.70.5 | B187: Аккумулятор 12 В, 17 А/ч | C187: шт. | D187: 2 | E187: 524 | F187: 1048 | G187: 7368.4 | H187: 14736.8 | I187: 15784.8 | L187: 524 | M187: 0 | N187: 7368.4 | O187: 0 | P187: 0 | R187: 524 | S187: 0 | T187: 7368.4 | U187: 0 | V187: 0 | X187: 524 | Y187: 0 | Z187: 7368.4 | AA187: 0 | AB187: 0 | AD187: 524 | AE187: 0 | AF187: 7368.4 | AG187: 0 | AH187: 0 | AJ187: 524 | AK187: 0 | AL187: 7368.4 | AM187: 0 | AN187: 0 | AP187: 524 | AQ187: 0 | AR187: 7368.4 | AS187: 0 | AT187: 0 | AV187: 524 | AW187: 0 | AX187: 7368.4 | AY187: 0 | AZ187: 0 | BB187: 524 | BC187: 0 | BD187: 7368.4 | BE187: 0 | BF187: 0 | BH187: 0 | BI187: 524 | BJ187: 0 | BK187: 7368.4 | BL187: 0 | BM187: 0 | BN187: 2 | BO187: 524 | BP187: 1048 | BQ187: 7368.4 | BR187: 14736.8 | BS187: 15784.8
A188: 1.4.70.6 | B188: Светофор двухцветный светодиодный | C188: шт. | D188: 4 | E188: 5502 | F188: 22008 | G188: 19958.64 | H188: 79834.56 | I188: 101842.56 | L188: 5502 | M188: 0 | N188: 19958.64 | O188: 0 | P188: 0 | R188: 5502 | S188: 0 | T188: 19958.64 | U188: 0 | V188: 0 | W188: 4 | X188: 5502 | Y188: 22008 | Z188: 19958.64 | AA188: 79834.56 | AB188: 101842.56 | AD188: 5502 | AE188: 0 | AF188: 19958.64 | AG188: 0 | AH188: 0 | AJ188: 5502 | AK188: 0 | AL188: 19958.64 | AM188: 0 | AN188: 0 | AP188: 5502 | AQ188: 0 | AR188: 19958.64 | AS188: 0 | AT188: 0 | AV188: 5502 | AW188: 0 | AX188: 19958.64 | AY188: 0 | AZ188: 0 | BB188: 5502 | BC188: 0 | BD188: 19958.64 | BE188: 0 | BF188: 0 | BH188: 4 | BI188: 5502 | BJ188: 22008 | BK188: 19958.64 | BL188: 79834.56 | BM188: 101842.56 | BN188: 0 | BO188: 5502 | BP188: 0 | BQ188: 19958.64 | BR188: 0 | BS188: 0
A189: 1.4.70.7 | B189: Устройство коммутационное | C189: шт. | D189: 6 | E189: 3406 | F189: 20436 | G189: 1774.5 | H189: 10647 | I189: 31083 | L189: 3406 | M189: 0 | N189: 1774.5 | O189: 0 | P189: 0 | R189: 3406 | S189: 0 | T189: 1774.5 | U189: 0 | V189: 0 | W189: 6 | X189: 3406 | Y189: 20436 | Z189: 1774.5 | AA189: 10647 | AB189: 31083 | AD189: 3406 | AE189: 0 | AF189: 1774.5 | AG189: 0 | AH189: 0 | AJ189: 3406 | AK189: 0 | AL189: 1774.5 | AM189: 0 | AN189: 0 | AP189: 3406 | AQ189: 0 | AR189: 1774.5 | AS189: 0 | AT189: 0 | AV189: 3406 | AW189: 0 | AX189: 1774.5 | AY189: 0 | AZ189: 0 | BB189: 3406 | BC189: 0 | BD189: 1774.5 | BE189: 0 | BF189: 0 | BH189: 6 | BI189: 3406 | BJ189: 20436 | BK189: 1774.5 | BL189: 10647 | BM189: 31083 | BN189: 0 | BO189: 3406 | BP189: 0 | BQ189: 1774.5 | BR189: 0 | BS189: 0
A190: 1.4.70.8 | B190: Извещатель охранный точечный магнитоконтактный | C190: шт. | D190: 6 | E190: 2358 | F190: 14148 | G190: 496.08 | H190: 2976.48 | I190: 17124.48 | L190: 2358 | M190: 0 | N190: 496.08 | O190: 0 | P190: 0 | R190: 2358 | S190: 0 | T190: 496.08 | U190: 0 | V190: 0 | W190: 6 | X190: 2358 | Y190: 14148 | Z190: 496.08 | AA190: 2976.48 | AB190: 17124.48 | AD190: 2358 | AE190: 0 | AF190: 496.08 | AG190: 0 | AH190: 0 | AJ190: 2358 | AK190: 0 | AL190: 496.08 | AM190: 0 | AN190: 0 | AP190: 2358 | AQ190: 0 | AR190: 496.08 | AS190: 0 | AT190: 0 | AV190: 2358 | AW190: 0 | AX190: 496.08 | AY190: 0 | AZ190: 0 | BB190: 2358 | BC190: 0 | BD190: 496.08 | BE190: 0 | BF190: 0 | BH190: 6 | BI190: 2358 | BJ190: 14148 | BK190: 496.08 | BL190: 2976.48 | BM190: 17124.48 | BN190: 0 | BO190: 2358 | BP190: 0 | BQ190: 496.08 | BR190: 0 | BS190: 0
A191: 1.4.70.9 | B191: Кабель силовой ППГнг(А)-FRHF 3х1.5 | C191: м | D191: 80 | E191: 162.44 | F191: 12995.2 | G191: 131.98 | H191: 10558.4 | I191: 23553.6 | L191: 162.44 | M191: 0 | N191: 131.98 | O191: 0 | P191: 0 | R191: 162.44 | S191: 0 | T191: 131.98 | U191: 0 | V191: 0 | X191: 162.44 | Y191: 0 | Z191: 131.98 | AA191: 0 | AB191: 0 | AD191: 162.44 | AE191: 0 | AF191: 131.98 | AG191: 0 | AH191: 0 | AJ191: 162.44 | AK191: 0 | AL191: 131.98 | AM191: 0 | AN191: 0 | AP191: 162.44 | AQ191: 0 | AR191: 131.98 | AS191: 0 | AT191: 0 | AV191: 162.44 | AW191: 0 | AX191: 131.98 | AY191: 0 | AZ191: 0 | BB191: 162.44 | BC191: 0 | BD191: 131.98 | BE191: 0 | BF191: 0 | BH191: 0 | BI191: 162.44 | BJ191: 0 | BK191: 131.98 | BL191: 0 | BM191: 0 | BN191: 80 | BO191: 162.44 | BP191: 12995.2 | BQ191: 131.98 | BR191: 10558.4 | BS191: 23553.6
A192: 1.4.70.10 | B192: Кабель огнестойкий КПСЭнг(А)-FRHF 2х2х0,75 | C192: м | D192: 350 | E192: 162.44 | F192: 56854 | G192: 101.09 | H192: 35381.5 | I192: 92235.5 | L192: 162.44 | M192: 0 | N192: 101.09 | O192: 0 | P192: 0 | R192: 162.44 | S192: 0 | T192: 101.09 | U192: 0 | V192: 0 | X192: 162.44 | Y192: 0 | Z192: 101.09 | AA192: 0 | AB192: 0 | AD192: 162.44 | AE192: 0 | AF192: 101.09 | AG192: 0 | AH192: 0 | AJ192: 162.44 | AK192: 0 | AL192: 101.09 | AM192: 0 | AN192: 0 | AP192: 162.44 | AQ192: 0 | AR192: 101.09 | AS192: 0 | AT192: 0 | AV192: 162.44 | AW192: 0 | AX192: 101.09 | AY192: 0 | AZ192: 0 | BB192: 162.44 | BC192: 0 | BD192: 101.09 | BE192: 0 | BF192: 0 | BH192: 0 | BI192: 162.44 | BJ192: 0 | BK192: 101.09 | BL192: 0 | BM192: 0 | BN192: 350 | BO192: 162.44 | BP192: 56854 | BQ192: 101.09 | BR192: 35381.5 | BS192: 92235.5
A193: 1.4.70.11 | B193: Кабель огнестойкий КПСЭнг(А)-FRHF 1х2х1,0 | C193: м | D193: 250 | E193: 162.44 | F193: 40610 | G193: 53.35 | H193: 13337.5 | I193: 53947.5 | L193: 162.44 | M193: 0 | N193: 53.35 | O193: 0 | P193: 0 | R193: 162.44 | S193: 0 | T193: 53.35 | U193: 0 | V193: 0 | X193: 162.44 | Y193: 0 | Z193: 53.35 | AA193: 0 | AB193: 0 | AD193: 162.44 | AE193: 0 | AF193: 53.35 | AG193: 0 | AH193: 0 | AJ193: 162.44 | AK193: 0 | AL193: 53.35 | AM193: 0 | AN193: 0 | AP193: 162.44 | AQ193: 0 | AR193: 53.35 | AS193: 0 | AT193: 0 | AV193: 162.44 | AW193: 0 | AX193: 53.35 | AY193: 0 | AZ193: 0 | BB193: 162.44 | BC193: 0 | BD193: 53.35 | BE193: 0 | BF193: 0 | BH193: 0 | BI193: 162.44 | BJ193: 0 | BK193: 53.35 | BL193: 0 | BM193: 0 | BN193: 250 | BO193: 162.44 | BP193: 40610 | BQ193: 53.35 | BR193: 13337.5 | BS193: 53947.5
A194: 1.4.70.12 | B194: Коробка ответвительная с кабельными вводами IP55, 100х100х50 | C194: шт. | D194: 10 | E194: 655 | F194: 6550 | G194: 142.58 | H194: 1425.8 | I194: 7975.8 | L194: 655 | M194: 0 | N194: 142.58 | O194: 0 | P194: 0 | R194: 655 | S194: 0 | T194: 142.58 | U194: 0 | V194: 0 | W194: 4 | X194: 655 | Y194: 2620 | Z194: 142.58 | AA194: 570.32 | AB194: 3190.32 | AD194: 655 | AE194: 0 | AF194: 142.58 | AG194: 0 | AH194: 0 | AJ194: 655 | AK194: 0 | AL194: 142.58 | AM194: 0 | AN194: 0 | AP194: 655 | AQ194: 0 | AR194: 142.58 | AS194: 0 | AT194: 0 | AV194: 655 | AW194: 0 | AX194: 142.58 | AY194: 0 | AZ194: 0 | BB194: 655 | BC194: 0 | BD194: 142.58 | BE194: 0 | BF194: 0 | BH194: 4 | BI194: 655 | BJ194: 2620 | BK194: 142.58 | BL194: 570.32 | BM194: 3190.32 | BN194: 6 | BO194: 655 | BP194: 3930 | BQ194: 142.58 | BR194: 855.48 | BS194: 4785.48
A195: 1.4.70.13 | B195: Труба гофрированная ПВХ легкая серая D20 | C195: м | D195: 300 | E195: 45.85 | F195: 13755 | G195: 28.08 | H195: 8424 | I195: 22179 | L195: 45.85 | M195: 0 | N195: 28.08 | O195: 0 | P195: 0 | R195: 45.85 | S195: 0 | T195: 28.08 | U195: 0 | V195: 0 | X195: 45.85 | Y195: 0 | Z195: 28.08 | AA195: 0 | AB195: 0 | AD195: 45.85 | AE195: 0 | AF195: 28.08 | AG195: 0 | AH195: 0 | AJ195: 45.85 | AK195: 0 | AL195: 28.08 | AM195: 0 | AN195: 0 | AP195: 45.85 | AQ195: 0 | AR195: 28.08 | AS195: 0 | AT195: 0 | AV195: 45.85 | AW195: 0 | AX195: 28.08 | AY195: 0 | AZ195: 0 | BB195: 45.85 | BC195: 0 | BD195: 28.08 | BE195: 0 | BF195: 0 | BH195: 0 | BI195: 45.85 | BJ195: 0 | BK195: 28.08 | BL195: 0 | BM195: 0 | BN195: 300 | BO195: 45.85 | BP195: 13755 | BQ195: 28.08 | BR195: 8424 | BS195: 22179
A196: 1.4.70.14 | B196: Аксессуары (расходные материалы, крепеж) | C196: компл | D196: 1 | E196: 0 | G196: 6864 | H196: 6864 | I196: 6864 | L196: 0 | N196: 6864 | O196: 0 | P196: 0 | R196: 0 | T196: 6864 | U196: 0 | V196: 0 | X196: 0 | Z196: 6864 | AA196: 0 | AB196: 0 | AD196: 0 | AF196: 6864 | AG196: 0 | AH196: 0 | AJ196: 0 | AL196: 6864 | AM196: 0 | AN196: 0 | AP196: 0 | AR196: 6864 | AS196: 0 | AT196: 0 | AV196: 0 | AX196: 6864 | AY196: 0 | AZ196: 0 | BB196: 0 | BD196: 6864 | BE196: 0 | BF196: 0 | BH196: 0 | BI196: 0 | BK196: 6864 | BL196: 0 | BM196: 0 | BN196: 1 | BO196: 0 | BQ196: 6864 | BR196: 6864 | BS196: 6864
A197: 1.4.70.15 | B197: Пуско-наладочные работы | C197: компл | D197: 1 | E197: 119808 | F197: =D197*E197 -> 119808 | G197: 0 | I197: 119808 | L197: 119808 | M197: =K197*L197 -> 0 | N197: 0 | P197: 0 | R197: 119808 | S197: =Q197*R197 -> 0 | T197: 0 | V197: 0 | X197: 119808 | Y197: =W197*X197 -> 0 | Z197: 0 | AB197: 0 | AD197: 119808 | AE197: =AC197*AD197 -> 0 | AF197: 0 | AH197: 0 | AJ197: 119808 | AK197: =AI197*AJ197 -> 0 | AL197: 0 | AN197: 0 | AP197: 119808 | AQ197: =AO197*AP197 -> 0 | AR197: 0 | AT197: 0 | AV197: 119808 | AW197: =AU197*AV197 -> 0 | AX197: 0 | AZ197: 0 | BB197: 119808 | BC197: =BA197*BB197 -> 0 | BD197: 0 | BF197: 0 | BH197: 0 | BI197: 119808 | BJ197: =BH197*BI197 -> 0 | BK197: 0 | BM197: 0 | BN197: 1 | BO197: 119808 | BP197: =BN197*BO197 -> 119808 | BQ197: 0 | BS197: 119808
A198: 1.5 | B198: 130-23-ОВ2 Отопление и вентиляция | Y198: =Y199+Y200+Y201+Y202+Y203+Y204+Y205+Y207+Y206+Y209+Y210+Y211 -> 4846329.15 | AA198: =AA199+AA200+AA201+AA202+AA203+AA204+AA205+AA207+AA206+AA209+AA210+AA211 -> 12462392.6 | AB198: =AB199+AB200+AB201+AB202+AB203+AB204+AB205+AB207+AB206+AB209+AB210+AB211 -> 17308721.75 | AE198: =AE199+AE200+AE201+AE202+AE203+AE204+AE205+AE207+AE206+AE209+AE210+AE211 -> 0 | AG198: =AG199+AG200+AG201+AG202+AG203+AG204+AG205+AG207+AG206+AG209+AG210+AG211 -> 0 | AH198: =AH199+AH200+AH201+AH202+AH203+AH204+AH205+AH207+AH206+AH209+AH210+AH211 -> 0 | AK198: =AK199+AK200+AK201+AK202+AK203+AK204+AK205+AK207+AK206+AK209+AK210+AK211 -> 0 | AM198: =AM199+AM200+AM201+AM202+AM203+AM204+AM205+AM207+AM206+AM209+AM210+AM211 -> 0 | AN198: =AN199+AN200+AN201+AN202+AN203+AN204+AN205+AN207+AN206+AN209+AN210+AN211 -> 0 | AQ198: =AQ199+AQ200+AQ201+AQ202+AQ203+AQ204+AQ205+AQ207+AQ206+AQ209+AQ210+AQ211 -> 0 | AS198: =AS199+AS200+AS201+AS202+AS203+AS204+AS205+AS207+AS206+AS209+AS210+AS211 -> 0 | AT198: =AT199+AT200+AT201+AT202+AT203+AT204+AT205+AT207+AT206+AT209+AT210+AT211 -> 0 | AW198: =AW199+AW200+AW201+AW202+AW203+AW204+AW205+AW207+AW206+AW209+AW210+AW211 -> 0 | AY198: =AY199+AY200+AY201+AY202+AY203+AY204+AY205+AY207+AY206+AY209+AY210+AY211 -> 0 | AZ198: =AZ199+AZ200+AZ201+AZ202+AZ203+AZ204+AZ205+AZ207+AZ206+AZ209+AZ210+AZ211 -> 0 | BC198: =BC199+BC200+BC201+BC202+BC203+BC204+BC205+BC207+BC206+BC209+BC210+BC211 -> 0 | BE198: =BE199+BE200+BE201+BE202+BE203+BE204+BE205+BE207+BE206+BE209+BE210+BE211 -> 0 | BF198: =BF199+BF200+BF201+BF202+BF203+BF204+BF205+BF207+BF206+BF209+BF210+BF211 -> 0 | BH198: 0 | BJ198: =BJ199+BJ200+BJ201+BJ202+BJ203+BJ204+BJ205+BJ207+BJ206+BJ209+BJ210+BJ211 -> 22678133.12 | BL198: =BL199+BL200+BL201+BL202+BL203+BL204+BL205+BL207+BL206+BL209+BL210+BL211 -> 57776503.4 | BM198: =BM199+BM200+BM201+BM202+BM203+BM204+BM205+BM207+BM206+BM209+BM210+BM211 -> 80454636.52 | BN198: 0 | BP198: =BP199+BP200+BP201+BP202+BP203+BP204+BP205+BP207+BP206+BP209+BP210+BP211 -> 2380922.022 | BR198: =BR199+BR200+BR201+BR202+BR203+BR204+BR205+BR207+BR206+BR209+BR210+BR211 -> 2491522.6 | BS198: =BS199+BS200+BS201+BS202+BS203+BS204+BS205+BS207+BS206+BS209+BS210+BS211 -> 4872444.622
A199: 1.5.1 | B199: Монтаж приточной системы | C199: к-т | D199: 6 | E199: 125450 | F199: =D199*E199 -> 752700 | G199: 982545 | H199: =D199*G199 -> 5895270 | I199: =E199*D199+G199*D199 -> 6647970 | K199: 6 | L199: 125450 | M199: =K199*L199 -> 752700 | N199: 982545 | O199: =K199*N199 -> 5895270 | P199: =L199*K199+N199*K199 -> 6647970 | R199: 125450 | S199: =Q199*R199 -> 0 | T199: 982545 | U199: =Q199*T199 -> 0 | V199: =R199*Q199+T199*Q199 -> 0 | X199: 125450 | Y199: =W199*X199 -> 0 | Z199: 982545 | AA199: =W199*Z199 -> 0 | AB199: =X199*W199+Z199*W199 -> 0 | AD199: 125450 | AE199: =AC199*AD199 -> 0 | AF199: 982545 | AG199: =AC199*AF199 -> 0 | AH199: =AD199*AC199+AF199*AC199 -> 0 | AJ199: 125450 | AK199: =AI199*AJ199 -> 0 | AL199: 982545 | AM199: =AI199*AL199 -> 0 | AN199: =AJ199*AI199+AL199*AI199 -> 0 | AP199: 125450 | AQ199: =AO199*AP199 -> 0 | AR199: 982545 | AS199: =AO199*AR199 -> 0 | AT199: =AP199*AO199+AR199*AO199 -> 0 | AV199: 125450 | AW199: =AU199*AV199 -> 0 | AX199: 982545 | AY199: =AU199*AX199 -> 0 | AZ199: =AV199*AU199+AX199*AU199 -> 0 | BB199: 125450 | BC199: =BA199*BB199 -> 0 | BD199: 982545 | BE199: =BA199*BD199 -> 0 | BF199: =BB199*BA199+BD199*BA199 -> 0 | BH199: 6 | BI199: 125450 | BJ199: =BH199*BI199 -> 752700 | BK199: 982545 | BL199: =BH199*BK199 -> 5895270 | BM199: =BI199*BH199+BK199*BH199 -> 6647970 | BN199: 0 | BO199: 125450 | BP199: =BN199*BO199 -> 0 | BQ199: 982545 | BR199: =BN199*BQ199 -> 0 | BS199: =BO199*BN199+BQ199*BN199 -> 0
A200: 1.5.2 | B200: Монтаж вытяжных и приточно-вытяжных систем | C200: к-т | D200: 7 | E200: 29545 | F200: 206815 | G200: 469586 | H200: 3287102 | I200: 3493917 | L200: 29545 | M200: 0 | N200: 469586 | O200: 0 | P200: 0 | Q200: 4 | R200: 29545 | S200: 118180 | T200: 469586 | U200: 1878344 | V200: 1996524 | W200: 3 | X200: 29545 | Y200: 88635 | Z200: 469586 | AA200: 1408758 | AB200: 1497393 | AD200: 29545 | AE200: 0 | AF200: 469586 | AG200: 0 | AH200: 0 | AJ200: 29545 | AK200: 0 | AL200: 469586 | AM200: 0 | AN200: 0 | AP200: 29545 | AQ200: 0 | AR200: 469586 | AS200: 0 | AT200: 0 | AV200: 29545 | AW200: 0 | AX200: 469586 | AY200: 0 | AZ200: 0 | BB200: 29545 | BC200: 0 | BD200: 469586 | BE200: 0 | BF200: 0 | BH200: 7 | BI200: 29545 | BJ200: 206815 | BK200: 469586 | BL200: 3287102 | BM200: 3493917 | BN200: 0 | BO200: 29545 | BP200: 0 | BQ200: 469586 | BR200: 0 | BS200: 0
A201: 1.5.3 | B201: Монтаж комплектов автоматики | C201: к-т | D201: 13 | E201: 102635.07 | F201: 1334255.91 | G201: 309219.34 | H201: 4019851.42 | I201: 5354107.33 | L201: 102635.07 | M201: 0 | N201: 309219.34 | O201: 0 | P201: 0 | R201: 102635.07 | S201: 0 | T201: 309219.34 | U201: 0 | V201: 0 | W201: 12 | X201: 102635.07 | Y201: 1231620.84 | Z201: 309219.34 | AA201: 3710632.08 | AB201: 4942252.92 | AD201: 102635.07 | AE201: 0 | AF201: 309219.34 | AG201: 0 | AH201: 0 | AJ201: 102635.07 | AK201: 0 | AL201: 309219.34 | AM201: 0 | AN201: 0 | AP201: 102635.07 | AQ201: 0 | AR201: 309219.34 | AS201: 0 | AT201: 0 | AV201: 102635.07 | AW201: 0 | AX201: 309219.34 | AY201: 0 | AZ201: 0 | BB201: 102635.07 | BC201: 0 | BD201: 309219.34 | BE201: 0 | BF201: 0 | BH201: 12 | BI201: 102635.07 | BJ201: 1231620.84 | BK201: 309219.34 | BL201: 3710632.08 | BM201: 4942252.92 | BN201: 1 | BO201: 102635.07 | BP201: 102635.07 | BQ201: 309219.34 | BR201: 309219.34 | BS201: 411854.41
A202: 1.5.4 | B202: Монтаж воздухораспределителей | C202: шт | D202: 80 | E202: 4332.6 | F202: 346608 | G202: 10463.97 | H202: 837117.6 | I202: 1183725.6 | L202: 4332.6 | M202: 0 | N202: 10463.97 | O202: 0 | P202: 0 | R202: 4332.6 | S202: 0 | T202: 10463.97 | U202: 0 | V202: 0 | W202: 54 | X202: 4332.6 | Y202: 233960.4 | Z202: 10463.97 | AA202: 565054.38 | AB202: 799014.78 | AD202: 4332.6 | AE202: 0 | AF202: 10463.97 | AG202: 0 | AH202: 0 | AJ202: 4332.6 | AK202: 0 | AL202: 10463.97 | AM202: 0 | AN202: 0 | AP202: 4332.6 | AQ202: 0 | AR202: 10463.97 | AS202: 0 | AT202: 0 | AV202: 4332.6 | AW202: 0 | AX202: 10463.97 | AY202: 0 | AZ202: 0 | BB202: 4332.6 | BC202: 0 | BD202: 10463.97 | BE202: 0 | BF202: 0 | BH202: 54 | BI202: 4332.6 | BJ202: 233960.4 | BK202: 10463.97 | BL202: 565054.38 | BM202: 799014.78 | BN202: 26 | BO202: 4332.6 | BP202: 112647.6 | BQ202: 10463.97 | BR202: 272063.22 | BS202: 384710.82
A203: 1.5.5 | B203: Прокладка воздуховодов из оцинкованой стали | C203: м2 | D203: 3033.8 | E203: 2655.59 | F203: 8056528.942 | G203: 1958 | H203: 5940180.4 | I203: 13996709.34 | K203: 1499 | L203: 2655.59 | M203: 3980729.41 | N203: 1958 | O203: 2935042 | P203: 6915771.41 | Q203: 1300 | R203: 2655.59 | S203: 3452267 | T203: 1958 | U203: 2545400 | V203: 5997667 | W203: 136 | X203: 2655.59 | Y203: 361160.24 | Z203: 1958 | AA203: 266288 | AB203: 627448.24 | AD203: 2655.59 | AE203: 0 | AF203: 1958 | AG203: 0 | AH203: 0 | AJ203: 2655.59 | AK203: 0 | AL203: 1958 | AM203: 0 | AN203: 0 | AP203: 2655.59 | AQ203: 0 | AR203: 1958 | AS203: 0 | AT203: 0 | AV203: 2655.59 | AW203: 0 | AX203: 1958 | AY203: 0 | AZ203: 0 | BB203: 2655.59 | BC203: 0 | BD203: 1958 | BE203: 0 | BF203: 0 | BH203: 2935 | BI203: 2655.59 | BJ203: 7794156.65 | BK203: 1958 | BL203: 5746730 | BM203: 13540886.65 | BN203: 98.8 | BO203: 2655.59 | BP203: 262372.292 | BQ203: 1958 | BR203: 193450.4 | BS203: 455822.692
A204: 1.5.6 | B204: Монтаж клапанов огнезадерживающих | C204: шт | D204: 8 | E204: 11973.06 | F204: 95784.48 | G204: 32008.28 | H204: 256066.24 | I204: 351850.72 | L204: 11973.06 | M204: 0 | N204: 32008.28 | O204: 0 | P204: 0 | R204: 11973.06 | S204: 0 | T204: 32008.28 | U204: 0 | V204: 0 | W204: 8 | X204: 11973.06 | Y204: 95784.48 | Z204: 32008.28 | AA204: 256066.24 | AB204: 351850.72 | AD204: 11973.06 | AE204: 0 | AF204: 32008.28 | AG204: 0 | AH204: 0 | AJ204: 11973.06 | AK204: 0 | AL204: 32008.28 | AM204: 0 | AN204: 0 | AP204: 11973.06 | AQ204: 0 | AR204: 32008.28 | AS204: 0 | AT204: 0 | AV204: 11973.06 | AW204: 0 | AX204: 32008.28 | AY204: 0 | AZ204: 0 | BB204: 11973.06 | BC204: 0 | BD204: 32008.28 | BE204: 0 | BF204: 0 | BH204: 8 | BI204: 11973.06 | BJ204: 95784.48 | BK204: 32008.28 | BL204: 256066.24 | BM204: 351850.72 | BN204: 0 | BO204: 11973.06 | BP204: 0 | BQ204: 32008.28 | BR204: 0 | BS204: 0
A205: 1.5.7 | B205: Монтаж фильтрационных агрегатов | C205: к-т | D205: 12 | E205: 637410.63 | F205: 7648927.56 | G205: 2625837.9 | H205: 31510054.8 | I205: 39158982.36 | K205: 10 | L205: 637410.63 | M205: 6374106.3 | N205: 2625837.9 | O205: 26258379 | P205: 32632485.3 | Q205: 2 | R205: 637410.63 | S205: 1274821.26 | T205: 2625837.9 | U205: 5251675.8 | V205: 6526497.06 | X205: 637410.63 | Y205: 0 | Z205: 2625837.9 | AA205: 0 | AB205: 0 | AD205: 637410.63 | AE205: 0 | AF205: 2625837.9 | AG205: 0 | AH205: 0 | AJ205: 637410.63 | AK205: 0 | AL205: 2625837.9 | AM205: 0 | AN205: 0 | AP205: 637410.63 | AQ205: 0 | AR205: 2625837.9 | AS205: 0 | AT205: 0 | AV205: 637410.63 | AW205: 0 | AX205: 2625837.9 | AY205: 0 | AZ205: 0 | BB205: 637410.63 | BC205: 0 | BD205: 2625837.9 | BE205: 0 | BF205: 0 | BH205: 12 | BI205: 637410.63 | BJ205: 7648927.56 | BK205: 2625837.9 | BL205: 31510054.8 | BM205: 39158982.36 | BN205: 0 | BO205: 637410.63 | BP205: 0 | BQ205: 2625837.9 | BR205: 0 | BS205: 0
... 630 more rows

Sheet кс-6 (2) (hidden)
A2: Инвестор | N2: Код | T2: Код | Z2: Код
B3: (организация, адрес, телефон, факс) | M3: Форма по ОКУД | N3: 0322005 | S3: Форма по ОКУД | T3: 0322005 | Y3: Форма по ОКУД | Z3: 0322005
A4: Заказчик (Генподрядчик) | B4: АО «МЕТРОВАГОНМАШ», 141009, Московская обл., г. о. Мытищи, г. Мытищи, ул. Колонцова, 4, 8 (498) 687-45-55
B5: (организация, адрес, телефон, факс) | M5: по ОКПО | S5: по ОКПО | Y5: по ОКПО
A6: Подрядчик (Субподрядчик) | B6: ООО «КиКГЕОСТРОЙ», 109004, г. Москва, ул. Земляной Вал, д.65, кв.59; +7 (495) 915-24-71
B7: (организация, адрес, телефон, факс) | M7: по ОКПО | N7: 05804803 | S7: по ОКПО | T7: 05804803 | Y7: по ОКПО | Z7: 05804803
A8: Стройка | B8: Цех №8, расположенный по адресу: Московская область, г.о. Мытищи, ул.Колонцова, д.4
B9: (наименование, адрес) | M9: по ОКПО | N9: 16673706 | S9: по ОКПО | T9: 16673706 | Y9: по ОКПО | Z9: 16673706
A10: Объект | B10: Ремонт цеха №8, расположенного по адресу: Московская область, г.о. Мытищи, ул.Колонцова, д.4
B11: (наименование)
M14: Вид деятельности по ОКДП | S14: Вид деятельности по ОКДП | Y14: Вид деятельности по ОКДП
L15: Договор подряда (контракт) | M15: номер | N15: МВМ/19-07 | R15: Договор подряда (контракт) | S15: номер | T15: МВМ/19-07 | X15: Договор подряда (контракт) | Y15: номер | Z15: МВМ/19-07
M16: дата | N16: 19.07.2023 | S16: дата | T16: 19.07.2023 | Y16: дата | Z16: 19.07.2023
L17: Дополнительное соглашение | M17: номер | N17: 4 | R17: Дополнительное соглашение | S17: номер | T17: 4 | X17: Дополнительное соглашение | Y17: номер | Z17: 4
M18: дата | N18: 08.02.2024 | S18: дата | T18: 08.02.2024 | Y18: дата | Z18: 08.02.2024
M19: Вид операции | S19: Вид операции | Y19: Вид операции
M21: Номер документа | N21: Дата составления | O21: Отчетный период | S21: Номер документа | T21: Дата составления | U21: Отчетный период | Y21: Номер документа | Z21: Дата составления | AA21: Отчетный период
O22: с | P22: по | U22: с | V22: по | AA22: с | AB22: по
M23: 1 | N23: =P23 -> 2024-03-20 | O23: 2023-07-19 | P23: 2024-03-20 | S23: 2 | T23: =V23 -> 2024-05-02 | U23: 2024-03-21 | V23: 2024-05-02 | Y23: 3 | Z23: =AB23 -> 00:00:00
K25: АКТ | Q25: АКТ | W25: АКТ
K26: О ПРИЕМКЕ ВЫПОЛНЕННЫХ РАБОТ | Q26: О ПРИЕМКЕ ВЫПОЛНЕННЫХ РАБОТ | W26: О ПРИЕМКЕ ВЫПОЛНЕННЫХ РАБОТ
K27: за МАРТ 2024 г. | Q27: за МАЙ 2024 г. | W27: за 2024 г.
K28: кс-3 №1 от 20.03.24г. | Q28: кс-3 №2 от 02.05.24г. | W28: кс-3 №3 от 23.05.24г. | AC28: кс-3 № | AI28: кс-3 № | AO28: кс-3 № | AU28: кс-3 № | BA28: кс-3 № | BH28: Выполнено ВСЕГО | BN28: ОСТАТОК
E29: Стоимость работ, руб. с НДС | G29: Стоимость материалов, руб. с НДС | L29: Стоимость работ, руб. с НДС | N29: Стоимость материалов, руб. с НДС | R29: Стоимость работ, руб. с НДС | T29: Стоимость материалов, руб. с НДС | X29: Стоимость работ, руб. с НДС | Z29: Стоимость материалов, руб. с НДС | AD29: Стоимость работ, руб. с НДС | AF29: Стоимость материалов, руб. с НДС | AJ29: Стоимость работ, руб. с НДС | AL29: Стоимость материалов, руб. с НДС | AP29: Стоимость работ, руб. с НДС | AR29: Стоимость материалов, руб. с НДС | AV29: Стоимость работ, руб. с НДС | AX29: Стоимость материалов, руб. с НДС | BB29: Стоимость работ, руб. с НДС | BD29: Стоимость материалов, руб. с НДС | BI29: Стоимость работ, руб. с НДС | BK29: Стоимость материалов, руб. с НДС | BO29: Стоимость работ, руб. с НДС | BQ29: Стоимость материалов, руб. с НДС
A30: № | B30: Наименовение | C30: Ед.изм | D30: Кол-во | E30: за ед. | F30: Итого | G30: за ед. | H30: Итого | I30: Итого, руб. с НДС | K30: Кол-во | L30: за ед. | M30: Итого | N30: за ед. | O30: Итого | P30: Итого, руб. с НДС | Q30: Кол-во | R30: за ед. | S30: Итого | T30: за ед. | U30: Итого | V30: Итого, руб. с НДС | W30: Кол-во | X30: за ед. | Y30: Итого | Z30: за ед. | AA30: Итого | AB30: Итого, руб. с НДС | AC30: Кол-во | AD30: за ед. | AE30: Итого | AF30: за ед. | AG30: Итого | AH30: Итого, руб. с НДС | AI30: Кол-во | AJ30: за ед. | AK30: Итого | AL30: за ед. | AM30: Итого | AN30: Итого, руб. с НДС | AO30: Кол-во | AP30: за ед. | AQ30: Итого | AR30: за ед. | AS30: Итого | AT30: Итого, руб. с НДС | AU30: Кол-во | AV30: за ед. | AW30: Итого | AX30: за ед. | AY30: Итого | AZ30: Итого, руб. с НДС | BA30: Кол-во | BB30: за ед. | BC30: Итого | BD30: за ед. | BE30: Итого | BF30: Итого, руб. с НДС | BH30: Кол-во | BI30: за ед. | BJ30: Итого | BK30: за ед. | BL30: Итого | BM30: Итого, руб. с НДС | BN30: Кол-во | BO30: за ед. | BP30: Итого | BQ30: за ед. | BR30: Итого | BS30: Итого, руб. с НДС
A31: 1 | B31: Основные объекты строительства, реконструкции, капитального ремонта, в том числе:
A32: 1.1 | B32: 130-23-АС3 Архитектурно-строительные решения | F32: =F34+F35+F36+F37+F39+F40+F42+F43+F44+F45+F46+F47+F48+F49+F51+F52+F53+F54+F55+F56+F57+F58+F59+F60+F61+F62+F63+F64+F65+F66+F67+F68+F69+F70+F71+F72+F74+F75+F76+F77+F79+F80+F81+F82+F83+F84+F85+F86+F87+F88+F89+F90+F91+F92+F93 -> 23834068.02 | H32: =H34+H35+H36+H37+H39+H40+H42+H43+H44+H45+H46+H47+H48+H49+H51+H52+H53+H54+H55+H56+H57+H58+H59+H60+H61+H62+H63+H64+H65+H66+H67+H68+H69+H70+H71+H72+H74+H75+H76+H77+H79+H80+H81+H82+H83+H84+H85+H86+H87+H88+H89+H90+H91+H92+H93 -> 21868543.3 | I32: =I34+I35+I36+I37+I39+I40+I42+I43+I44+I45+I46+I47+I48+I49+I51+I52+I53+I54+I55+I56+I57+I58+I59+I60+I61+I62+I63+I64+I65+I66+I67+I68+I69+I70+I71+I72+I74+I75+I76+I77+I79+I80+I81+I82+I83+I84+I85+I86+I87+I88+I89+I90+I91+I92+I93 -> 45702611.32 | M32: =M34+M35+M36+M37+M39+M40+M42+M43+M44+M45+M46+M47+M48+M49+M51+M52+M53+M54+M55+M56+M57+M58+M59+M60+M61+M62+M63+M64+M65+M66+M67+M68+M69+M70+M71+M72+M74+M75+M76+M77+M79+M80+M81+M82+M83+M84+M85+M86+M87+M88+M89+M90+M91+M92+M93 -> 6476170 | O32: =O34+O35+O36+O37+O39+O40+O42+O43+O44+O45+O46+O47+O48+O49+O51+O52+O53+O54+O55+O56+O57+O58+O59+O60+O61+O62+O63+O64+O65+O66+O67+O68+O69+O70+O71+O72+O74+O75+O76+O77+O79+O80+O81+O82+O83+O84+O85+O86+O87+O88+O89+O90+O91+O92+O93 -> 6962719.645 | P32: =P34+P35+P36+P37+P39+P40+P42+P43+P44+P45+P46+P47+P48+P49+P51+P52+P53+P54+P55+P56+P57+P58+P59+P60+P61+P62+P63+P64+P65+P66+P67+P68+P69+P70+P71+P72+P74+P75+P76+P77+P79+P80+P81+P82+P83+P84+P85+P86+P87+P88+P89+P90+P91+P92+P93 -> 13438889.64 | S32: =S34+S35+S36+S37+S39+S40+S42+S43+S44+S45+S46+S47+S48+S49+S51+S52+S53+S54+S55+S56+S57+S58+S59+S60+S61+S62+S63+S64+S65+S66+S67+S68+S69+S70+S71+S72+S74+S75+S76+S77+S79+S80+S81+S82+S83+S84+S85+S86+S87+S88+S89+S90+S91+S92+S93 -> 1864348.8 | U32: =U34+U35+U36+U37+U39+U40+U42+U43+U44+U45+U46+U47+U48+U49+U51+U52+U53+U54+U55+U56+U57+U58+U59+U60+U61+U62+U63+U64+U65+U66+U67+U68+U69+U70+U71+U72+U74+U75+U76+U77+U79+U80+U81+U82+U83+U84+U85+U86+U87+U88+U89+U90+U91+U92+U93 -> 1794786.96 | V32: =V34+V35+V36+V37+V39+V40+V42+V43+V44+V45+V46+V47+V48+V49+V51+V52+V53+V54+V55+V56+V57+V58+V59+V60+V61+V62+V63+V64+V65+V66+V67+V68+V69+V70+V71+V72+V74+V75+V76+V77+V79+V80+V81+V82+V83+V84+V85+V86+V87+V88+V89+V90+V91+V92+V93 -> 3659135.76 | Y32: =Y34+Y35+Y36+Y37+Y39+Y40+Y42+Y43+Y44+Y45+Y46+Y47+Y48+Y49+Y51+Y52+Y53+Y54+Y55+Y56+Y57+Y58+Y59+Y60+Y61+Y62+Y63+Y64+Y65+Y66+Y67+Y68+Y69+Y70+Y71+Y72+Y74+Y75+Y76+Y77+Y79+Y80+Y81+Y82+Y83+Y84+Y85+Y86+Y87+Y88+Y89+Y90+Y91+Y92+Y93 -> 10720245.66 | AA32: =AA34+AA35+AA36+AA37+AA39+AA40+AA42+AA43+AA44+AA45+AA46+AA47+AA48+AA49+AA51+AA52+AA53+AA54+AA55+AA56+AA57+AA58+AA59+AA60+AA61+AA62+AA63+AA64+AA65+AA66+AA67+AA68+AA69+AA70+AA71+AA72+AA74+AA75+AA76+AA77+AA79+AA80+AA81+AA82+AA83+AA84+AA85+AA86+AA87+AA88+AA89+AA90+AA91+AA92+AA93 -> 8589710.39 | AB32: =AB34+AB35+AB36+AB37+AB39+AB40+AB42+AB43+AB44+AB45+AB46+AB47+AB48+AB49+AB51+AB52+AB53+AB54+AB55+AB56+AB57+AB58+AB59+AB60+AB61+AB62+AB63+AB64+AB65+AB66+AB67+AB68+AB69+AB70+AB71+AB72+AB74+AB75+AB76+AB77+AB79+AB80+AB81+AB82+AB83+AB84+AB85+AB86+AB87+AB88+AB89+AB90+AB91+AB92+AB93 -> 19309956.05 | AE32: =AE34+AE35+AE36+AE37+AE39+AE40+AE42+AE43+AE44+AE45+AE46+AE47+AE48+AE49+AE51+AE52+AE53+AE54+AE55+AE56+AE57+AE58+AE59+AE60+AE61+AE62+AE63+AE64+AE65+AE66+AE67+AE68+AE69+AE70+AE71+AE72+AE74+AE75+AE76+AE77+AE79+AE80+AE81+AE82+AE83+AE84+AE85+AE86+AE87+AE88+AE89+AE90+AE91+AE92+AE93 -> 0 | AG32: =AG34+AG35+AG36+AG37+AG39+AG40+AG42+AG43+AG44+AG45+AG46+AG47+AG48+AG49+AG51+AG52+AG53+AG54+AG55+AG56+AG57+AG58+AG59+AG60+AG61+AG62+AG63+AG64+AG65+AG66+AG67+AG68+AG69+AG70+AG71+AG72+AG74+AG75+AG76+AG77+AG79+AG80+AG81+AG82+AG83+AG84+AG85+AG86+AG87+AG88+AG89+AG90+AG91+AG92+AG93 -> 0 | AH32: =AH34+AH35+AH36+AH37+AH39+AH40+AH42+AH43+AH44+AH45+AH46+AH47+AH48+AH49+AH51+AH52+AH53+AH54+AH55+AH56+AH57+AH58+AH59+AH60+AH61+AH62+AH63+AH64+AH65+AH66+AH67+AH68+AH69+AH70+AH71+AH72+AH74+AH75+AH76+AH77+AH79+AH80+AH81+AH82+AH83+AH84+AH85+AH86+AH87+AH88+AH89+AH90+AH91+AH92+AH93 -> 0 | AK32: =AK34+AK35+AK36+AK37+AK39+AK40+AK42+AK43+AK44+AK45+AK46+AK47+AK48+AK49+AK51+AK52+AK53+AK54+AK55+AK56+AK57+AK58+AK59+AK60+AK61+AK62+AK63+AK64+AK65+AK66+AK67+AK68+AK69+AK70+AK71+AK72+AK74+AK75+AK76+AK77+AK79+AK80+AK81+AK82+AK83+AK84+AK85+AK86+AK87+AK88+AK89+AK90+AK91+AK92+AK93 -> 0 | AM32: =AM34+AM35+AM36+AM37+AM39+AM40+AM42+AM43+AM44+AM45+AM46+AM47+AM48+AM49+AM51+AM52+AM53+AM54+AM55+AM56+AM57+AM58+AM59+AM60+AM61+AM62+AM63+AM64+AM65+AM66+AM67+AM68+AM69+AM70+AM71+AM72+AM74+AM75+AM76+AM77+AM79+AM80+AM81+AM82+AM83+AM84+AM85+AM86+AM87+AM88+AM89+AM90+AM91+AM92+AM93 -> 0 | AN32: =AN34+AN35+AN36+AN37+AN39+AN40+AN42+AN43+AN44+AN45+AN46+AN47+AN48+AN49+AN51+AN52+AN53+AN54+AN55+AN56+AN57+AN58+AN59+AN60+AN61+AN62+AN63+AN64+AN65+AN66+AN67+AN68+AN69+AN70+AN71+AN72+AN74+AN75+AN76+AN77+AN79+AN80+AN81+AN82+AN83+AN84+AN85+AN86+AN87+AN88+AN89+AN90+AN91+AN92+AN93 -> 0 | AQ32: =AQ34+AQ35+AQ36+AQ37+AQ39+AQ40+AQ42+AQ43+AQ44+AQ45+AQ46+AQ47+AQ48+AQ49+AQ51+AQ52+AQ53+AQ54+AQ55+AQ56+AQ57+AQ58+AQ59+AQ60+AQ61+AQ62+AQ63+AQ64+AQ65+AQ66+AQ67+AQ68+AQ69+AQ70+AQ71+AQ72+AQ74+AQ75+AQ76+AQ77+AQ79+AQ80+AQ81+AQ82+AQ83+AQ84+AQ85+AQ86+AQ87+AQ88+AQ89+AQ90+AQ91+AQ92+AQ93 -> 0 | AS32: =AS34+AS35+AS36+AS37+AS39+AS40+AS42+AS43+AS44+AS45+AS46+AS47+AS48+AS49+AS51+AS52+AS53+AS54+AS55+AS56+AS57+AS58+AS59+AS60+AS61+AS62+AS63+AS64+AS65+AS66+AS67+AS68+AS69+AS70+AS71+AS72+AS74+AS75+AS76+AS77+AS79+AS80+AS81+AS82+AS83+AS84+AS85+AS86+AS87+AS88+AS89+AS90+AS91+AS92+AS93 -> 0 | AT32: =AT34+AT35+AT36+AT37+AT39+AT40+AT42+AT43+AT44+AT45+AT46+AT47+AT48+AT49+AT51+AT52+AT53+AT54+AT55+AT56+AT57+AT58+AT59+AT60+AT61+AT62+AT63+AT64+AT65+AT66+AT67+AT68+AT69+AT70+AT71+AT72+AT74+AT75+AT76+AT77+AT79+AT80+AT81+AT82+AT83+AT84+AT85+AT86+AT87+AT88+AT89+AT90+AT91+AT92+AT93 -> 0 | AW32: =AW34+AW35+AW36+AW37+AW39+AW40+AW42+AW43+AW44+AW45+AW46+AW47+AW48+AW49+AW51+AW52+AW53+AW54+AW55+AW56+AW57+AW58+AW59+AW60+AW61+AW62+AW63+AW64+AW65+AW66+AW67+AW68+AW69+AW70+AW71+AW72+AW74+AW75+AW76+AW77+AW79+AW80+AW81+AW82+AW83+AW84+AW85+AW86+AW87+AW88+AW89+AW90+AW91+AW92+AW93 -> 0 | AY32: =AY34+AY35+AY36+AY37+AY39+AY40+AY42+AY43+AY44+AY45+AY46+AY47+AY48+AY49+AY51+AY52+AY53+AY54+AY55+AY56+AY57+AY58+AY59+AY60+AY61+AY62+AY63+AY64+AY65+AY66+AY67+AY68+AY69+AY70+AY71+AY72+AY74+AY75+AY76+AY77+AY79+AY80+AY81+AY82+AY83+AY84+AY85+AY86+AY87+AY88+AY89+AY90+AY91+AY92+AY93 -> 0 | AZ32: =AZ34+AZ35+AZ36+AZ37+AZ39+AZ40+AZ42+AZ43+AZ44+AZ45+AZ46+AZ47+AZ48+AZ49+AZ51+AZ52+AZ53+AZ54+AZ55+AZ56+AZ57+AZ58+AZ59+AZ60+AZ61+AZ62+AZ63+AZ64+AZ65+AZ66+AZ67+AZ68+AZ69+AZ70+AZ71+AZ72+AZ74+AZ75+AZ76+AZ77+AZ79+AZ80+AZ81+AZ82+AZ83+AZ84+AZ85+AZ86+AZ87+AZ88+AZ89+AZ90+AZ91+AZ92+AZ93 -> 0 | BC32: =BC34+BC35+BC36+BC37+BC39+BC40+BC42+BC43+BC44+BC45+BC46+BC47+BC48+BC49+BC51+BC52+BC53+BC54+BC55+BC56+BC57+BC58+BC59+BC60+BC61+BC62+BC63+BC64+BC65+BC66+BC67+BC68+BC69+BC70+BC71+BC72+BC74+BC75+BC76+BC77+BC79+BC80+BC81+BC82+BC83+BC84+BC85+BC86+BC87+BC88+BC89+BC90+BC91+BC92+BC93 -> 0 | BE32: =BE34+BE35+BE36+BE37+BE39+BE40+BE42+BE43+BE44+BE45+BE46+BE47+BE48+BE49+BE51+BE52+BE53+BE54+BE55+BE56+BE57+BE58+BE59+BE60+BE61+BE62+BE63+BE64+BE65+BE66+BE67+BE68+BE69+BE70+BE71+BE72+BE74+BE75+BE76+BE77+BE79+BE80+BE81+BE82+BE83+BE84+BE85+BE86+BE87+BE88+BE89+BE90+BE91+BE92+BE93 -> 0 | BF32: =BF34+BF35+BF36+BF37+BF39+BF40+BF42+BF43+BF44+BF45+BF46+BF47+BF48+BF49+BF51+BF52+BF53+BF54+BF55+BF56+BF57+BF58+BF59+BF60+BF61+BF62+BF63+BF64+BF65+BF66+BF67+BF68+BF69+BF70+BF71+BF72+BF74+BF75+BF76+BF77+BF79+BF80+BF81+BF82+BF83+BF84+BF85+BF86+BF87+BF88+BF89+BF90+BF91+BF92+BF93 -> 0 | BJ32: =BJ34+BJ35+BJ36+BJ37+BJ39+BJ40+BJ42+BJ43+BJ44+BJ45+BJ46+BJ47+BJ48+BJ49+BJ51+BJ52+BJ53+BJ54+BJ55+BJ56+BJ57+BJ58+BJ59+BJ60+BJ61+BJ62+BJ63+BJ64+BJ65+BJ66+BJ67+BJ68+BJ69+BJ70+BJ71+BJ72+BJ74+BJ75+BJ76+BJ77+BJ79+BJ80+BJ81+BJ82+BJ83+BJ84+BJ85+BJ86+BJ87+BJ88+BJ89+BJ90+BJ91+BJ92+BJ93 -> 19060764.46 | BL32: =BL34+BL35+BL36+BL37+BL39+BL40+BL42+BL43+BL44+BL45+BL46+BL47+BL48+BL49+BL51+BL52+BL53+BL54+BL55+BL56+BL57+BL58+BL59+BL60+BL61+BL62+BL63+BL64+BL65+BL66+BL67+BL68+BL69+BL70+BL71+BL72+BL74+BL75+BL76+BL77+BL79+BL80+BL81+BL82+BL83+BL84+BL85+BL86+BL87+BL88+BL89+BL90+BL91+BL92+BL93 -> 17347216.99 | BM32: =BM34+BM35+BM36+BM37+BM39+BM40+BM42+BM43+BM44+BM45+BM46+BM47+BM48+BM49+BM51+BM52+BM53+BM54+BM55+BM56+BM57+BM58+BM59+BM60+BM61+BM62+BM63+BM64+BM65+BM66+BM67+BM68+BM69+BM70+BM71+BM72+BM74+BM75+BM76+BM77+BM79+BM80+BM81+BM82+BM83+BM84+BM85+BM86+BM87+BM88+BM89+BM90+BM91+BM92+BM93 -> 36407981.45 | BP32: =BP34+BP35+BP36+BP37+BP39+BP40+BP42+BP43+BP44+BP45+BP46+BP47+BP48+BP49+BP51+BP52+BP53+BP54+BP55+BP56+BP57+BP58+BP59+BP60+BP61+BP62+BP63+BP64+BP65+BP66+BP67+BP68+BP69+BP70+BP71+BP72+BP74+BP75+BP76+BP77+BP79+BP80+BP81+BP82+BP83+BP84+BP85+BP86+BP87+BP88+BP89+BP90+BP91+BP92+BP93 -> 4773303.559 | BR32: =BR34+BR35+BR36+BR37+BR39+BR40+BR42+BR43+BR44+BR45+BR46+BR47+BR48+BR49+BR51+BR52+BR53+BR54+BR55+BR56+BR57+BR58+BR59+BR60+BR61+BR62+BR63+BR64+BR65+BR66+BR67+BR68+BR69+BR70+BR71+BR72+BR74+BR75+BR76+BR77+BR79+BR80+BR81+BR82+BR83+BR84+BR85+BR86+BR87+BR88+BR89+BR90+BR91+BR92+BR93 -> 4521326.306 | BS32: =BS34+BS35+BS36+BS37+BS39+BS40+BS42+BS43+BS44+BS45+BS46+BS47+BS48+BS49+BS51+BS52+BS53+BS54+BS55+BS56+BS57+BS58+BS59+BS60+BS61+BS62+BS63+BS64+BS65+BS66+BS67+BS68+BS69+BS70+BS71+BS72+BS74+BS75+BS76+BS77+BS79+BS80+BS81+BS82+BS83+BS84+BS85+BS86+BS87+BS88+BS89+BS90+BS91+BS92+BS93 -> 9294629.866
A33: 1.1.1 | B33: Демонтажные работы | BH33: =K33+Q33+W33+AC33+AI33+AO33+AU33+BA33 -> 0 | BN33: =D33-BH33 -> 0
A34: 1.1.1.1 | B34: Частичный демонтаж крестовых связей | C34: тн | D34: 0.44 | E34: 49415 | F34: =D34*E34 -> 21742.6 | G34: 0 | I34: =E34*D34+G34*D34 -> 21742.6 | K34: 0.44 | L34: 49415 | M34: =K34*L34 -> 21742.6 | N34: 0 | P34: =L34*K34+N34*K34 -> 21742.6 | R34: 49415 | S34: =Q34*R34 -> 0 | T34: 0 | V34: =R34*Q34+T34*Q34 -> 0 | X34: 49415 | Y34: =W34*X34 -> 0 | Z34: 0 | AB34: =X34*W34+Z34*W34 -> 0 | AD34: 49415 | AE34: =AC34*AD34 -> 0 | AF34: 0 | AH34: =AD34*AC34+AF34*AC34 -> 0 | AJ34: 49415 | AK34: =AI34*AJ34 -> 0 | AL34: 0 | AN34: =AJ34*AI34+AL34*AI34 -> 0 | AP34: 49415 | AQ34: =AO34*AP34 -> 0 | AR34: 0 | AT34: =AP34*AO34+AR34*AO34 -> 0 | AV34: 49415 | AW34: =AU34*AV34 -> 0 | AX34: 0 | AZ34: =AV34*AU34+AX34*AU34 -> 0 | BB34: 49415 | BC34: =BA34*BB34 -> 0 | BD34: 0 | BF34: =BB34*BA34+BD34*BA34 -> 0 | BH34: =K34+Q34+W34+AC34+AI34+AO34+AU34+BA34 -> 0.44 | BI34: 49415 | BJ34: =BH34*BI34 -> 21742.6 | BK34: 0 | BM34: =BI34*BH34+BK34*BH34 -> 21742.6 | BN34: =D34-BH34 -> 0 | BO34: 49415 | BP34: =BN34*BO34 -> 0 | BQ34: 0 | BS34: =BO34*BN34+BQ34*BN34 -> 0
A35: 1.1.1.2 | B35: Демонтаж сэндвич панелей | C35: м2 | D35: 389.4 | E35: 990 | F35: =D35*E35 -> 385506 | G35: 0 | I35: =E35*D35+G35*D35 -> 385506 | K35: 389.4 | L35: 990 | M35: =K35*L35 -> 385506 | N35: 0 | P35: =L35*K35+N35*K35 -> 385506 | R35: 990 | S35: =Q35*R35 -> 0 | T35: 0 | V35: =R35*Q35+T35*Q35 -> 0 | X35: 990 | Y35: =W35*X35 -> 0 | Z35: 0 | AB35: =X35*W35+Z35*W35 -> 0 | AD35: 990 | AE35: =AC35*AD35 -> 0 | AF35: 0 | AH35: =AD35*AC35+AF35*AC35 -> 0 | AJ35: 990 | AK35: =AI35*AJ35 -> 0 | AL35: 0 | AN35: =AJ35*AI35+AL35*AI35 -> 0 | AP35: 990 | AQ35: =AO35*AP35 -> 0 | AR35: 0 | AT35: =AP35*AO35+AR35*AO35 -> 0 | AV35: 990 | AW35: =AU35*AV35 -> 0 | AX35: 0 | AZ35: =AV35*AU35+AX35*AU35 -> 0 | BB35: 990 | BC35: =BA35*BB35 -> 0 | BD35: 0 | BF35: =BB35*BA35+BD35*BA35 -> 0 | BH35: 389.4 | BI35: 990 | BJ35: =BH35*BI35 -> 385506 | BK35: 0 | BM35: =BI35*BH35+BK35*BH35 -> 385506 | BN35: 0 | BO35: 990 | BP35: =BN35*BO35 -> 0 | BQ35: 0 | BS35: =BO35*BN35+BQ35*BN35 -> 0
A36: 1.1.2 | B36: Устройство фахверка | C36: тн | D36: 0.34 | E36: 95478 | F36: =D36*E36 -> 32462.52 | G36: 229000 | H36: =D36*G36 -> 77860 | I36: =E36*D36+G36*D36 -> 110322.52 | L36: 95478 | M36: =K36*L36 -> 0 | N36: 229000 | O36: =K36*N36 -> 0 | P36: =L36*K36+N36*K36 -> 0 | R36: 95478 | S36: =Q36*R36 -> 0 | T36: 229000 | U36: =Q36*T36 -> 0 | V36: =R36*Q36+T36*Q36 -> 0 | X36: 95478 | Y36: =W36*X36 -> 0 | Z36: 229000 | AA36: =W36*Z36 -> 0 | AB36: =X36*W36+Z36*W36 -> 0 | AD36: 95478 | AE36: =AC36*AD36 -> 0 | AF36: 229000 | AG36: =AC36*AF36 -> 0 | AH36: =AD36*AC36+AF36*AC36 -> 0 | AJ36: 95478 | AK36: =AI36*AJ36 -> 0 | AL36: 229000 | AM36: =AI36*AL36 -> 0 | AN36: =AJ36*AI36+AL36*AI36 -> 0 | AP36: 95478 | AQ36: =AO36*AP36 -> 0 | AR36: 229000 | AS36: =AO36*AR36 -> 0 | AT36: =AP36*AO36+AR36*AO36 -> 0 | AV36: 95478 | AW36: =AU36*AV36 -> 0 | AX36: 229000 | AY36: =AU36*AX36 -> 0 | AZ36: =AV36*AU36+AX36*AU36 -> 0 | BB36: 95478 | BC36: =BA36*BB36 -> 0 | BD36: 229000 | BE36: =BA36*BD36 -> 0 | BF36: =BB36*BA36+BD36*BA36 -> 0 | BH36: 0 | BI36: 95478 | BJ36: =BH36*BI36 -> 0 | BK36: 229000 | BL36: =BH36*BK36 -> 0 | BM36: =BI36*BH36+BK36*BH36 -> 0 | BN36: 0.34 | BO36: 95478 | BP36: =BN36*BO36 -> 32462.52 | BQ36: 229000 | BR36: =BN36*BQ36 -> 77860 | BS36: =BO36*BN36+BQ36*BN36 -> 110322.52
A37: 1.1.3 | B37: Устройство сэндвич панелей | C37: м2 | D37: 389.4 | E37: 2711 | F37: =D37*E37 -> 1055663.4 | G37: 6573 | H37: =D37*G37 -> 2559526.2 | I37: =E37*D37+G37*D37 -> 3615189.6 | K37: 389.4 | L37: 2711 | M37: =K37*L37 -> 1055663.4 | N37: 6573 | O37: =K37*N37 -> 2559526.2 | P37: =L37*K37+N37*K37 -> 3615189.6 | R37: 2711 | S37: =Q37*R37 -> 0 | T37: 6573 | U37: =Q37*T37 -> 0 | V37: =R37*Q37+T37*Q37 -> 0 | X37: 2711 | Y37: =W37*X37 -> 0 | Z37: 6573 | AA37: =W37*Z37 -> 0 | AB37: =X37*W37+Z37*W37 -> 0 | AD37: 2711 | AE37: =AC37*AD37 -> 0 | AF37: 6573 | AG37: =AC37*AF37 -> 0 | AH37: =AD37*AC37+AF37*AC37 -> 0 | AJ37: 2711 | AK37: =AI37*AJ37 -> 0 | AL37: 6573 | AM37: =AI37*AL37 -> 0 | AN37: =AJ37*AI37+AL37*AI37 -> 0 | AP37: 2711 | AQ37: =AO37*AP37 -> 0 | AR37: 6573 | AS37: =AO37*AR37 -> 0 | AT37: =AP37*AO37+AR37*AO37 -> 0 | AV37: 2711 | AW37: =AU37*AV37 -> 0 | AX37: 6573 | AY37: =AU37*AX37 -> 0 | AZ37: =AV37*AU37+AX37*AU37 -> 0 | BB37: 2711 | BC37: =BA37*BB37 -> 0 | BD37: 6573 | BE37: =BA37*BD37 -> 0 | BF37: =BB37*BA37+BD37*BA37 -> 0 | BH37: 389.4 | BI37: 2711 | BJ37: =BH37*BI37 -> 1055663.4 | BK37: 6573 | BL37: =BH37*BK37 -> 2559526.2 | BM37: =BI37*BH37+BK37*BH37 -> 3615189.6 | BN37: 0 | BO37: 2711 | BP37: =BN37*BO37 -> 0 | BQ37: 6573 | BR37: =BN37*BQ37 -> 0 | BS37: =BO37*BN37+BQ37*BN37 -> 0
A38: 1.1.4 | B38: Устройство перегородок | E38: 0 | G38: 0 | L38: 0 | N38: 0 | R38: 0 | T38: 0 | X38: 0 | Z38: 0 | AD38: 0 | AF38: 0 | AJ38: 0 | AL38: 0 | AP38: 0 | AR38: 0 | AV38: 0 | AX38: 0 | BB38: 0 | BD38: 0 | BH38: 0 | BI38: 0 | BK38: 0 | BN38: 0 | BO38: 0 | BQ38: 0
A39: 1.1.4.1 | B39: Перегородки гипсокартонные типа С112 комплексной системы КНАУФ толщиной 100 мм с облицовкой 2мя листами ГКЛ (толщиной 12,5мм) со звукоизолирующим слоем из минераловатных плит Лайт Баттс толщиной 50 мм | C39: м2 | D39: 536 | E39: 4955 | F39: =D39*E39 -> 2655880 | G39: 4501 | H39: =D39*G39 -> 2412536 | I39: =E39*D39+G39*D39 -> 5068416 | K39: 428.8 | L39: 4955 | M39: =K39*L39 -> 2124704 | N39: 4501 | O39: =K39*N39 -> 1930028.8 | P39: =L39*K39+N39*K39 -> 4054732.8 | Q39: 96.96 | R39: 4955 | S39: =Q39*R39 -> 480436.8 | T39: 4501 | U39: =Q39*T39 -> 436416.96 | V39: =R39*Q39+T39*Q39 -> 916853.76 | X39: 4955 | Y39: =W39*X39 -> 0 | Z39: 4501 | AA39: =W39*Z39 -> 0 | AB39: =X39*W39+Z39*W39 -> 0 | AD39: 4955 | AE39: =AC39*AD39 -> 0 | AF39: 4501 | AG39: =AC39*AF39 -> 0 | AH39: =AD39*AC39+AF39*AC39 -> 0 | AJ39: 4955 | AK39: =AI39*AJ39 -> 0 | AL39: 4501 | AM39: =AI39*AL39 -> 0 | AN39: =AJ39*AI39+AL39*AI39 -> 0 | AP39: 4955 | AQ39: =AO39*AP39 -> 0 | AR39: 4501 | AS39: =AO39*AR39 -> 0 | AT39: =AP39*AO39+AR39*AO39 -> 0 | AV39: 4955 | AW39: =AU39*AV39 -> 0 | AX39: 4501 | AY39: =AU39*AX39 -> 0 | AZ39: =AV39*AU39+AX39*AU39 -> 0 | BB39: 4955 | BC39: =BA39*BB39 -> 0 | BD39: 4501 | BE39: =BA39*BD39 -> 0 | BF39: =BB39*BA39+BD39*BA39 -> 0 | BH39: 525.76 | BI39: 4955 | BJ39: =BH39*BI39 -> 2605140.8 | BK39: 4501 | BL39: =BH39*BK39 -> 2366445.76 | BM39: =BI39*BH39+BK39*BH39 -> 4971586.56 | BN39: 10.24 | BO39: 4955 | BP39: =BN39*BO39 -> 50739.2 | BQ39: 4501 | BR39: =BN39*BQ39 -> 46090.24 | BS39: =BO39*BN39+BQ39*BN39 -> 96829.44
A40: 1.1.4.2 | B40: Устройство отверстий под воздуховоды | C40: шт | D40: 2 | E40: 8577.88 | F40: =D40*E40 -> 17155.76 | G40: 4657.25 | H40: =D40*G40 -> 9314.5 | I40: =E40*D40+G40*D40 -> 26470.26 | L40: 8577.88 | M40: =K40*L40 -> 0 | N40: 4657.25 | O40: =K40*N40 -> 0 | P40: =L40*K40+N40*K40 -> 0 | R40: 8577.88 | S40: =Q40*R40 -> 0 | T40: 4657.25 | U40: =Q40*T40 -> 0 | V40: =R40*Q40+T40*Q40 -> 0 | X40: 8577.88 | Y40: =W40*X40 -> 0 | Z40: 4657.25 | AA40: =W40*Z40 -> 0 | AB40: =X40*W40+Z40*W40 -> 0 | AD40: 8577.88 | AE40: =AC40*AD40 -> 0 | AF40: 4657.25 | AG40: =AC40*AF40 -> 0 | AH40: =AD40*AC40+AF40*AC40 -> 0 | AJ40: 8577.88 | AK40: =AI40*AJ40 -> 0 | AL40: 4657.25 | AM40: =AI40*AL40 -> 0 | AN40: =AJ40*AI40+AL40*AI40 -> 0 | AP40: 8577.88 | AQ40: =AO40*AP40 -> 0 | AR40: 4657.25 | AS40: =AO40*AR40 -> 0 | AT40: =AP40*AO40+AR40*AO40 -> 0 | AV40: 8577.88 | AW40: =AU40*AV40 -> 0 | AX40: 4657.25 | AY40: =AU40*AX40 -> 0 | AZ40: =AV40*AU40+AX40*AU40 -> 0 | BB40: 8577.88 | BC40: =BA40*BB40 -> 0 | BD40: 4657.25 | BE40: =BA40*BD40 -> 0 | BF40: =BB40*BA40+BD40*BA40 -> 0 | BH40: 0 | BI40: 8577.88 | BJ40: =BH40*BI40 -> 0 | BK40: 4657.25 | BL40: =BH40*BK40 -> 0 | BM40: =BI40*BH40+BK40*BH40 -> 0 | BN40: 2 | BO40: 8577.88 | BP40: =BN40*BO40 -> 17155.76 | BQ40: 4657.25 | BR40: =BN40*BQ40 -> 9314.5 | BS40: =BO40*BN40+BQ40*BN40 -> 26470.26
A41: 1.1.5 | B41: Отделка потолков помещений | E41: 0 | G41: 0 | L41: 0 | N41: 0 | R41: 0 | T41: 0 | X41: 0 | Z41: 0 | AD41: 0 | AF41: 0 | AJ41: 0 | AL41: 0 | AP41: 0 | AR41: 0 | AV41: 0 | AX41: 0 | BB41: 0 | BD41: 0 | BH41: 0 | BI41: 0 | BK41: 0 | BN41: 0 | BO41: 0 | BQ41: 0
A42: 1.1.5.1 | B42: Подвесной потолок системы "Армстронг" | C42: м2 | D42: 301.4 | E42: 3957.07 | F42: =D42*E42 -> 1192660.898 | G42: 0 | I42: =E42*D42+G42*D42 -> 1192660.898 | L42: 3957.07 | M42: =K42*L42 -> 0 | N42: 0 | P42: =L42*K42+N42*K42 -> 0 | R42: 3957.07 | S42: =Q42*R42 -> 0 | T42: 0 | V42: =R42*Q42+T42*Q42 -> 0 | W42: 301.4 | X42: 3957.07 | Y42: =W42*X42 -> 1192660.898 | Z42: 0 | AB42: =X42*W42+Z42*W42 -> 1192660.898 | AD42: 3957.07 | AE42: =AC42*AD42 -> 0 | AF42: 0 | AH42: =AD42*AC42+AF42*AC42 -> 0 | AJ42: 3957.07 | AK42: =AI42*AJ42 -> 0 | AL42: 0 | AN42: =AJ42*AI42+AL42*AI42 -> 0 | AP42: 3957.07 | AQ42: =AO42*AP42 -> 0 | AR42: 0 | AT42: =AP42*AO42+AR42*AO42 -> 0 | AV42: 3957.07 | AW42: =AU42*AV42 -> 0 | AX42: 0 | AZ42: =AV42*AU42+AX42*AU42 -> 0 | BB42: 3957.07 | BC42: =BA42*BB42 -> 0 | BD42: 0 | BF42: =BB42*BA42+BD42*BA42 -> 0 | BH42: 301.4 | BI42: 3957.07 | BJ42: =BH42*BI42 -> 1192660.898 | BK42: 0 | BM42: =BI42*BH42+BK42*BH42 -> 1192660.898 | BN42: 0 | BO42: 3957.07 | BP42: =BN42*BO42 -> 0 | BQ42: 0 | BS42: =BO42*BN42+BQ42*BN42 -> 0
A43: 1.1.5.2 | B43: Подвесной потолок системы с шумоглушением | C43: м2 | D43: 168.8 | E43: 1131.76 | F43: 191041.088 | G43: 3051.39 | H43: =D43*G43 -> 515074.632 | I43: 706115.72 | L43: 1131.76 | M43: 0 | N43: 3051.39 | O43: =K43*N43 -> 0 | P43: 0 | R43: 1131.76 | S43: 0 | T43: 3051.39 | U43: =Q43*T43 -> 0 | V43: 0 | W43: 168.8 | X43: 1131.76 | Y43: 191041.088 | Z43: 3051.39 | AA43: =W43*Z43 -> 515074.632 | AB43: 706115.72 | AD43: 1131.76 | AE43: 0 | AF43: 3051.39 | AG43: =AC43*AF43 -> 0 | AH43: 0 | AJ43: 1131.76 | AK43: 0 | AL43: 3051.39 | AM43: =AI43*AL43 -> 0 | AN43: 0 | AP43: 1131.76 | AQ43: 0 | AR43: 3051.39 | AS43: =AO43*AR43 -> 0 | AT43: 0 | AV43: 1131.76 | AW43: 0 | AX43: 3051.39 | AY43: =AU43*AX43 -> 0 | AZ43: 0 | BB43: 1131.76 | BC43: 0 | BD43: 3051.39 | BE43: =BA43*BD43 -> 0 | BF43: 0 | BH43: 168.8 | BI43: 1131.76 | BJ43: 191041.088 | BK43: 3051.39 | BL43: =BH43*BK43 -> 515074.632 | BM43: 706115.72 | BN43: 0 | BO43: 1131.76 | BP43: 0 | BQ43: 3051.39 | BR43: =BN43*BQ43 -> 0 | BS43: 0
A44: 1.1.5.3 | B44: Реечный алюминиевый потолок | C44: м2 | D44: 111.8 | E44: 7888.98 | F44: 881987.964 | G44: 0 | I44: 881987.964 | L44: 7888.98 | M44: 0 | N44: 0 | P44: 0 | R44: 7888.98 | S44: 0 | T44: 0 | V44: 0 | W44: 111.8 | X44: 7888.98 | Y44: 881987.964 | Z44: 0 | AB44: 881987.964 | AD44: 7888.98 | AE44: 0 | AF44: 0 | AH44: 0 | AJ44: 7888.98 | AK44: 0 | AL44: 0 | AN44: 0 | AP44: 7888.98 | AQ44: 0 | AR44: 0 | AT44: 0 | AV44: 7888.98 | AW44: 0 | AX44: 0 | AZ44: 0 | BB44: 7888.98 | BC44: 0 | BD44: 0 | BF44: 0 | BH44: 111.8 | BI44: 7888.98 | BJ44: 881987.964 | BK44: 0 | BM44: 881987.964 | BN44: 0 | BO44: 7888.98 | BP44: 0 | BQ44: 0 | BS44: 0
A45: 1.1.5.4 | B45: Затирка бетонной поверхности перекрытия перед устройством потолка | C45: м2 | D45: 206.75 | E45: 1134.79 | F45: 234617.8325 | G45: 719.09 | H45: =D45*G45 -> 148671.8575 | I45: 383289.69 | L45: 1134.79 | M45: 0 | N45: 719.09 | O45: =K45*N45 -> 0 | P45: 0 | R45: 1134.79 | S45: 0 | T45: 719.09 | U45: =Q45*T45 -> 0 | V45: 0 | X45: 1134.79 | Y45: 0 | Z45: 719.09 | AA45: =W45*Z45 -> 0 | AB45: 0 | AD45: 1134.79 | AE45: 0 | AF45: 719.09 | AG45: =AC45*AF45 -> 0 | AH45: 0 | AJ45: 1134.79 | AK45: 0 | AL45: 719.09 | AM45: =AI45*AL45 -> 0 | AN45: 0 | AP45: 1134.79 | AQ45: 0 | AR45: 719.09 | AS45: =AO45*AR45 -> 0 | AT45: 0 | AV45: 1134.79 | AW45: 0 | AX45: 719.09 | AY45: =AU45*AX45 -> 0 | AZ45: 0 | BB45: 1134.79 | BC45: 0 | BD45: 719.09 | BE45: =BA45*BD45 -> 0 | BF45: 0 | BH45: 0 | BI45: 1134.79 | BJ45: 0 | BK45: 719.09 | BL45: =BH45*BK45 -> 0 | BM45: 0 | BN45: 206.75 | BO45: 1134.79 | BP45: 234617.8325 | BQ45: 719.09 | BR45: =BN45*BQ45 -> 148671.8575 | BS45: 383289.69
A46: 1.1.5.5 | B46: Устроиство базового слоя шпаклевки | C46: м2 | D46: 69.4 | E46: 888.18 | F46: 61639.692 | G46: 462.8 | H46: =D46*G46 -> 32118.32 | I46: 93758.012 | L46: 888.18 | M46: 0 | N46: 462.8 | O46: =K46*N46 -> 0 | P46: 0 | R46: 888.18 | S46: 0 | T46: 462.8 | U46: =Q46*T46 -> 0 | V46: 0 | X46: 888.18 | Y46: 0 | Z46: 462.8 | AA46: =W46*Z46 -> 0 | AB46: 0 | AD46: 888.18 | AE46: 0 | AF46: 462.8 | AG46: =AC46*AF46 -> 0 | AH46: 0 | AJ46: 888.18 | AK46: 0 | AL46: 462.8 | AM46: =AI46*AL46 -> 0 | AN46: 0 | AP46: 888.18 | AQ46: 0 | AR46: 462.8 | AS46: =AO46*AR46 -> 0 | AT46: 0 | AV46: 888.18 | AW46: 0 | AX46: 462.8 | AY46: =AU46*AX46 -> 0 | AZ46: 0 | BB46: 888.18 | BC46: 0 | BD46: 462.8 | BE46: =BA46*BD46 -> 0 | BF46: 0 | BH46: 0 | BI46: 888.18 | BJ46: 0 | BK46: 462.8 | BL46: =BH46*BK46 -> 0 | BM46: 0 | BN46: 69.4 | BO46: 888.18 | BP46: 61639.692 | BQ46: 462.8 | BR46: =BN46*BQ46 -> 32118.32 | BS46: 93758.012
A47: 1.1.5.6 | B47: Устроиство финишного слоя шпаклевки | C47: м2 | D47: 69.4 | E47: 1277.25 | F47: 88641.15 | G47: 397.79 | H47: =D47*G47 -> 27606.626 | I47: 116247.776 | L47: 1277.25 | M47: 0 | N47: 397.79 | O47: =K47*N47 -> 0 | P47: 0 | R47: 1277.25 | S47: 0 | T47: 397.79 | U47: =Q47*T47 -> 0 | V47: 0 | X47: 1277.25 | Y47: 0 | Z47: 397.79 | AA47: =W47*Z47 -> 0 | AB47: 0 | AD47: 1277.25 | AE47: 0 | AF47: 397.79 | AG47: =AC47*AF47 -> 0 | AH47: 0 | AJ47: 1277.25 | AK47: 0 | AL47: 397.79 | AM47: =AI47*AL47 -> 0 | AN47: 0 | AP47: 1277.25 | AQ47: 0 | AR47: 397.79 | AS47: =AO47*AR47 -> 0 | AT47: 0 | AV47: 1277.25 | AW47: 0 | AX47: 397.79 | AY47: =AU47*AX47 -> 0 | AZ47: 0 | BB47: 1277.25 | BC47: 0 | BD47: 397.79 | BE47: =BA47*BD47 -> 0 | BF47: 0 | BH47: 0 | BI47: 1277.25 | BJ47: 0 | BK47: 397.79 | BL47: =BH47*BK47 -> 0 | BM47: 0 | BN47: 69.4 | BO47: 1277.25 | BP47: 88641.15 | BQ47: 397.79 | BR47: =BN47*BQ47 -> 27606.626 | BS47: 116247.776
A48: 1.1.5.7 | B48: Окраска потолка силикатной краской за 2 раза | C48: м2 | D48: 69.4 | E48: 635.48 | F48: =D48*E48 -> 44102.312 | G48: 740.97 | H48: =D48*G48 -> 51423.318 | I48: 95525.63 | L48: 635.48 | M48: =K48*L48 -> 0 | N48: 740.97 | O48: =K48*N48 -> 0 | P48: 0 | R48: 635.48 | S48: =Q48*R48 -> 0 | T48: 740.97 | U48: =Q48*T48 -> 0 | V48: 0 | X48: 635.48 | Y48: =W48*X48 -> 0 | Z48: 740.97 | AA48: =W48*Z48 -> 0 | AB48: 0 | AD48: 635.48 | AE48: =AC48*AD48 -> 0 | AF48: 740.97 | AG48: =AC48*AF48 -> 0 | AH48: 0 | AJ48: 635.48 | AK48: =AI48*AJ48 -> 0 | AL48: 740.97 | AM48: =AI48*AL48 -> 0 | AN48: 0 | AP48: 635.48 | AQ48: =AO48*AP48 -> 0 | AR48: 740.97 | AS48: =AO48*AR48 -> 0 | AT48: 0 | AV48: 635.48 | AW48: =AU48*AV48 -> 0 | AX48: 740.97 | AY48: =AU48*AX48 -> 0 | AZ48: 0 | BB48: 635.48 | BC48: =BA48*BB48 -> 0 | BD48: 740.97 | BE48: =BA48*BD48 -> 0 | BF48: 0 | BH48: 0 | BI48: 635.48 | BJ48: =BH48*BI48 -> 0 | BK48: 740.97 | BL48: =BH48*BK48 -> 0 | BM48: 0 | BN48: 69.4 | BO48: 635.48 | BP48: =BN48*BO48 -> 44102.312 | BQ48: 740.97 | BR48: =BN48*BQ48 -> 51423.318 | BS48: 95525.63
A49: 1.1.5.8 | B49: Грунтовка поверхностей перед окрашиванием | C49: м2 | D49: 69.4 | E49: 75.65 | F49: =D49*E49 -> 5250.11 | G49: 42.3 | H49: =D49*G49 -> 2935.62 | I49: 8185.73 | L49: 75.65 | M49: =K49*L49 -> 0 | N49: 42.3 | O49: =K49*N49 -> 0 | P49: 0 | R49: 75.65 | S49: =Q49*R49 -> 0 | T49: 42.3 | U49: =Q49*T49 -> 0 | V49: 0 | X49: 75.65 | Y49: =W49*X49 -> 0 | Z49: 42.3 | AA49: =W49*Z49 -> 0 | AB49: 0 | AD49: 75.65 | AE49: =AC49*AD49 -> 0 | AF49: 42.3 | AG49: =AC49*AF49 -> 0 | AH49: 0 | AJ49: 75.65 | AK49: =AI49*AJ49 -> 0 | AL49: 42.3 | AM49: =AI49*AL49 -> 0 | AN49: 0 | AP49: 75.65 | AQ49: =AO49*AP49 -> 0 | AR49: 42.3 | AS49: =AO49*AR49 -> 0 | AT49: 0 | AV49: 75.65 | AW49: =AU49*AV49 -> 0 | AX49: 42.3 | AY49: =AU49*AX49 -> 0 | AZ49: 0 | BB49: 75.65 | BC49: =BA49*BB49 -> 0 | BD49: 42.3 | BE49: =BA49*BD49 -> 0 | BF49: 0 | BH49: 0 | BI49: 75.65 | BJ49: =BH49*BI49 -> 0 | BK49: 42.3 | BL49: =BH49*BK49 -> 0 | BM49: 0 | BN49: 69.4 | BO49: 75.65 | BP49: =BN49*BO49 -> 5250.11 | BQ49: 42.3 | BR49: =BN49*BQ49 -> 2935.62 | BS49: 8185.73
A50: 1.1.6 | B50: Полы помещений | E50: 0 | G50: 0 | L50: 0 | N50: 0 | R50: 0 | T50: 0 | X50: 0 | Z50: 0 | AD50: 0 | AF50: 0 | AJ50: 0 | AL50: 0 | AP50: 0 | AR50: 0 | AV50: 0 | AX50: 0 | BB50: 0 | BD50: 0 | BH50: 0 | BI50: 0 | BK50: 0 | BN50: 0 | BO50: 0 | BQ50: 0
A51: 1.1.6.1 | B51: Очистка поверхности от грязи и мусора | C51: м2 | D51: 352.5 | E51: 378 | F51: =D51*E51 -> 133245 | G51: 72.93 | H51: =D51*G51 -> 25707.825 | I51: =E51*D51+G51*D51 -> 158952.825 | K51: 352.5 | L51: 378 | M51: =K51*L51 -> 133245 | N51: 72.93 | O51: =K51*N51 -> 25707.825 | P51: =L51*K51+N51*K51 -> 158952.825 | R51: 378 | S51: =Q51*R51 -> 0 | T51: 72.93 | U51: =Q51*T51 -> 0 | V51: =R51*Q51+T51*Q51 -> 0 | X51: 378 | Y51: =W51*X51 -> 0 | Z51: 72.93 | AA51: =W51*Z51 -> 0 | AB51: =X51*W51+Z51*W51 -> 0 | AD51: 378 | AE51: =AC51*AD51 -> 0 | AF51: 72.93 | AG51: =AC51*AF51 -> 0 | AH51: =AD51*AC51+AF51*AC51 -> 0 | AJ51: 378 | AK51: =AI51*AJ51 -> 0 | AL51: 72.93 | AM51: =AI51*AL51 -> 0 | AN51: =AJ51*AI51+AL51*AI51 -> 0 | AP51: 378 | AQ51: =AO51*AP51 -> 0 | AR51: 72.93 | AS51: =AO51*AR51 -> 0 | AT51: =AP51*AO51+AR51*AO51 -> 0 | AV51: 378 | AW51: =AU51*AV51 -> 0 | AX51: 72.93 | AY51: =AU51*AX51 -> 0 | AZ51: =AV51*AU51+AX51*AU51 -> 0 | BB51: 378 | BC51: =BA51*BB51 -> 0 | BD51: 72.93 | BE51: =BA51*BD51 -> 0 | BF51: =BB51*BA51+BD51*BA51 -> 0 | BH51: 352.5 | BI51: 378 | BJ51: =BH51*BI51 -> 133245 | BK51: 72.93 | BL51: =BH51*BK51 -> 25707.825 | BM51: =BI51*BH51+BK51*BH51 -> 158952.825 | BN51: 0 | BO51: 378 | BP51: =BN51*BO51 -> 0 | BQ51: 72.93 | BR51: =BN51*BQ51 -> 0 | BS51: =BO51*BN51+BQ51*BN51 -> 0
A52: 1.1.6.2 | B52: Устройство пола из бетона кл. В25 толщиной до 100 мм | C52: м3 | D52: 7.87 | E52: 13208 | F52: 103946.96 | G52: 14998 | H52: 118034.26 | I52: 221981.22 | K52: 7.87 | L52: 13208 | M52: 103946.96 | N52: 14998 | O52: 118034.26 | P52: 221981.22 | R52: 13208 | S52: 0 | T52: 14998 | U52: 0 | V52: 0 | X52: 13208 | Y52: 0 | Z52: 14998 | AA52: 0 | AB52: 0 | AD52: 13208 | AE52: 0 | AF52: 14998 | AG52: 0 | AH52: 0 | AJ52: 13208 | AK52: 0 | AL52: 14998 | AM52: 0 | AN52: 0 | AP52: 13208 | AQ52: 0 | AR52: 14998 | AS52: 0 | AT52: 0 | AV52: 13208 | AW52: 0 | AX52: 14998 | AY52: 0 | AZ52: 0 | BB52: 13208 | BC52: 0 | BD52: 14998 | BE52: 0 | BF52: 0 | BH52: 7.87 | BI52: 13208 | BJ52: 103946.96 | BK52: 14998 | BL52: 118034.26 | BM52: 221981.22 | BN52: 0 | BO52: 13208 | BP52: 0 | BQ52: 14998 | BR52: 0 | BS52: 0
A53: 1.1.6.3 | B53: Керамогранитная плитка | C53: м2 | D53: 187.8 | E53: 4772 | F53: 896181.6 | G53: 2131 | H53: 400201.8 | I53: 1296383.4 | L53: 4772 | M53: 0 | N53: 2131 | O53: 0 | P53: 0 | R53: 4772 | S53: 0 | T53: 2131 | U53: 0 | V53: 0 | W53: 187.8 | X53: 4772 | Y53: 896181.6 | Z53: 2131 | AA53: 400201.8 | AB53: 1296383.4 | AD53: 4772 | AE53: 0 | AF53: 2131 | AG53: 0 | AH53: 0 | AJ53: 4772 | AK53: 0 | AL53: 2131 | AM53: 0 | AN53: 0 | AP53: 4772 | AQ53: 0 | AR53: 2131 | AS53: 0 | AT53: 0 | AV53: 4772 | AW53: 0 | AX53: 2131 | AY53: 0 | AZ53: 0 | BB53: 4772 | BC53: 0 | BD53: 2131 | BE53: 0 | BF53: 0 | BH53: 187.8 | BI53: 4772 | BJ53: 896181.6 | BK53: 2131 | BL53: 400201.8 | BM53: 1296383.4 | BN53: 0 | BO53: 4772 | BP53: 0 | BQ53: 2131 | BR53: 0 | BS53: 0
A54: 1.1.6.4 | B54: Напольная керамическая плитка | C54: м2 | D54: 332.1 | E54: 2629 | F54: 873090.9 | G54: 3034 | H54: 1007591.4 | I54: 1880682.3 | L54: 2629 | M54: 0 | N54: 3034 | O54: 0 | P54: 0 | R54: 2629 | S54: 0 | T54: 3034 | U54: 0 | V54: 0 | X54: 2629 | Y54: 0 | Z54: 3034 | AA54: 0 | AB54: 0 | AD54: 2629 | AE54: 0 | AF54: 3034 | AG54: 0 | AH54: 0 | AJ54: 2629 | AK54: 0 | AL54: 3034 | AM54: 0 | AN54: 0 | AP54: 2629 | AQ54: 0 | AR54: 3034 | AS54: 0 | AT54: 0 | AV54: 2629 | AW54: 0 | AX54: 3034 | AY54: 0 | AZ54: 0 | BB54: 2629 | BC54: 0 | BD54: 3034 | BE54: 0 | BF54: 0 | BH54: 0 | BI54: 2629 | BJ54: 0 | BK54: 3034 | BL54: 0 | BM54: 0 | BN54: 332.1 | BO54: 2629 | BP54: 873090.9 | BQ54: 3034 | BR54: 1007591.4 | BS54: 1880682.3
A55: 1.1.6.5 | B55: Коммерческий линолеум (33-34 кл.) | C55: м2 | D55: 121.8 | E55: 708.11 | F55: 86247.798 | G55: 2641.52 | H55: 321737.136 | I55: 407984.934 | L55: 708.11 | M55: 0 | N55: 2641.52 | O55: 0 | P55: 0 | R55: 708.11 | S55: 0 | T55: 2641.52 | U55: 0 | V55: 0 | W55: 121.8 | X55: 708.11 | Y55: 86247.798 | Z55: 2641.52 | AA55: 321737.136 | AB55: 407984.934 | AD55: 708.11 | AE55: 0 | AF55: 2641.52 | AG55: 0 | AH55: 0 | AJ55: 708.11 | AK55: 0 | AL55: 2641.52 | AM55: 0 | AN55: 0 | AP55: 708.11 | AQ55: 0 | AR55: 2641.52 | AS55: 0 | AT55: 0 | AV55: 708.11 | AW55: 0 | AX55: 2641.52 | AY55: 0 | AZ55: 0 | BB55: 708.11 | BC55: 0 | BD55: 2641.52 | BE55: 0 | BF55: 0 | BH55: 121.8 | BI55: 708.11 | BJ55: 86247.798 | BK55: 2641.52 | BL55: 321737.136 | BM55: 407984.934 | BN55: 0 | BO55: 708.11 | BP55: 0 | BQ55: 2641.52 | BR55: 0 | BS55: 0
A56: 1.1.6.6 | B56: Гидроизоляция Гидроизол | C56: м2 | D56: 141.3 | E56: 680.87 | F56: 96206.931 | G56: 1083.74 | H56: 153132.462 | I56: 249339.393 | L56: 680.87 | M56: 0 | N56: 1083.74 | O56: 0 | P56: 0 | R56: 680.87 | S56: 0 | T56: 1083.74 | U56: 0 | V56: 0 | W56: 141.3 | X56: 680.87 | Y56: 96206.931 | Z56: 1083.74 | AA56: 153132.462 | AB56: 249339.393 | AD56: 680.87 | AE56: 0 | AF56: 1083.74 | AG56: 0 | AH56: 0 | AJ56: 680.87 | AK56: 0 | AL56: 1083.74 | AM56: 0 | AN56: 0 | AP56: 680.87 | AQ56: 0 | AR56: 1083.74 | AS56: 0 | AT56: 0 | AV56: 680.87 | AW56: 0 | AX56: 1083.74 | AY56: 0 | AZ56: 0 | BB56: 680.87 | BC56: 0 | BD56: 1083.74 | BE56: 0 | BF56: 0 | BH56: 141.3 | BI56: 680.87 | BJ56: 96206.931 | BK56: 1083.74 | BL56: 153132.462 | BM56: 249339.393 | BN56: 0 | BO56: 680.87 | BP56: 0 | BQ56: 1083.74 | BR56: 0 | BS56: 0
A57: 1.1.6.7 | B57: Наливной пол толщиной до 50мм | C57: м2 | D57: 355.6 | E57: 3576 | F57: 1271625.6 | G57: 1630 | H57: 579628 | I57: 1851253.6 | L57: 3576 | M57: 0 | N57: 1630 | O57: 0 | P57: 0 | R57: 3576 | S57: 0 | T57: 1630 | U57: 0 | V57: 0 | W57: 355.6 | X57: 3576 | Y57: 1271625.6 | Z57: 1630 | AA57: 579628 | AB57: 1851253.6 | AD57: 3576 | AE57: 0 | AF57: 1630 | AG57: 0 | AH57: 0 | AJ57: 3576 | AK57: 0 | AL57: 1630 | AM57: 0 | AN57: 0 | AP57: 3576 | AQ57: 0 | AR57: 1630 | AS57: 0 | AT57: 0 | AV57: 3576 | AW57: 0 | AX57: 1630 | AY57: 0 | AZ57: 0 | BB57: 3576 | BC57: 0 | BD57: 1630 | BE57: 0 | BF57: 0 | BH57: 355.6 | BI57: 3576 | BJ57: 1271625.6 | BK57: 1630 | BL57: 579628 | BM57: 1851253.6 | BN57: 0 | BO57: 3576 | BP57: 0 | BQ57: 1630 | BR57: 0 | BS57: 0
A58: 1.1.6.8 | B58: Керамогранитная плитка с шероховатой поверхностью | C58: м2 | D58: 2 | E58: 4149 | F58: 8298 | G58: 2131 | H58: 4262 | I58: 12560 | L58: 4149 | M58: 0 | N58: 2131 | O58: 0 | P58: 0 | R58: 4149 | S58: 0 | T58: 2131 | U58: 0 | V58: 0 | X58: 4149 | Y58: 0 | Z58: 2131 | AA58: 0 | AB58: 0 | AD58: 4149 | AE58: 0 | AF58: 2131 | AG58: 0 | AH58: 0 | AJ58: 4149 | AK58: 0 | AL58: 2131 | AM58: 0 | AN58: 0 | AP58: 4149 | AQ58: 0 | AR58: 2131 | AS58: 0 | AT58: 0 | AV58: 4149 | AW58: 0 | AX58: 2131 | AY58: 0 | AZ58: 0 | BB58: 4149 | BC58: 0 | BD58: 2131 | BE58: 0 | BF58: 0 | BH58: 0 | BI58: 4149 | BJ58: 0 | BK58: 2131 | BL58: 0 | BM58: 0 | BN58: 2 | BO58: 4149 | BP58: 8298 | BQ58: 2131 | BR58: 4262 | BS58: 12560
A59: 1.1.6.9 | B59: Наливной пол толщиной до 45мм армированный сеткой d4 В500 100х100 | C59: м2 | D59: 141.3 | E59: 3470 | F59: 490311 | G59: 1590 | H59: 224667 | I59: 714978 | L59: 3470 | M59: 0 | N59: 1590 | O59: 0 | P59: 0 | R59: 3470 | S59: 0 | T59: 1590 | U59: 0 | V59: 0 | X59: 3470 | Y59: 0 | Z59: 1590 | AA59: 0 | AB59: 0 | AD59: 3470 | AE59: 0 | AF59: 1590 | AG59: 0 | AH59: 0 | AJ59: 3470 | AK59: 0 | AL59: 1590 | AM59: 0 | AN59: 0 | AP59: 3470 | AQ59: 0 | AR59: 1590 | AS59: 0 | AT59: 0 | AV59: 3470 | AW59: 0 | AX59: 1590 | AY59: 0 | AZ59: 0 | BB59: 3470 | BC59: 0 | BD59: 1590 | BE59: 0 | BF59: 0 | BH59: 0 | BI59: 3470 | BJ59: 0 | BK59: 1590 | BL59: 0 | BM59: 0 | BN59: 141.3 | BO59: 3470 | BP59: 490311 | BQ59: 1590 | BR59: 224667 | BS59: 714978
A60: 1.1.6.10 | B60: Грунтовка поверхностей перед финишным покрытием | C60: м2 | D60: 1140.6 | E60: 75.65 | F60: 86286.39 | G60: 42.3 | H60: 48247.38 | I60: 134533.77 | L60: 75.65 | M60: 0 | N60: 42.3 | O60: 0 | P60: 0 | R60: 75.65 | S60: 0 | T60: 42.3 | U60: 0 | V60: 0 | X60: 75.65 | Y60: 0 | Z60: 42.3 | AA60: 0 | AB60: 0 | AD60: 75.65 | AE60: 0 | AF60: 42.3 | AG60: 0 | AH60: 0 | AJ60: 75.65 | AK60: 0 | AL60: 42.3 | AM60: 0 | AN60: 0 | AP60: 75.65 | AQ60: 0 | AR60: 42.3 | AS60: 0 | AT60: 0 | AV60: 75.65 | AW60: 0 | AX60: 42.3 | AY60: 0 | AZ60: 0 | BB60: 75.65 | BC60: 0 | BD60: 42.3 | BE60: 0 | BF60: 0 | BH60: 0 | BI60: 75.65 | BJ60: 0 | BK60: 42.3 | BL60: 0 | BM60: 0 | BN60: 1140.6 | BO60: 75.65 | BP60: 86286.39 | BQ60: 42.3 | BR60: 48247.38 | BS60: 134533.77
A61: 1.1.7 | B61: Отделка стен помещений | C61: м2 | D61: 1194.52 | E61: 4448 | F61: 5313224.96 | G61: 3702 | H61: 4422113.04 | I61: 9735338 | K61: 98.58 | L61: 4448 | M61: 438483.84 | N61: 3702 | O61: 364943.16 | P61: 803427 | R61: 4448 | S61: 0 | T61: 3702 | U61: 0 | V61: 0 | W61: 1095.94 | X61: 4448 | Y61: 4874741.12 | Z61: 3702 | AA61: 4057169.88 | AB61: 8931911 | AD61: 4448 | AE61: 0 | AF61: 3702 | AG61: 0 | AH61: 0 | AJ61: 4448 | AK61: 0 | AL61: 3702 | AM61: 0 | AN61: 0 | AP61: 4448 | AQ61: 0 | AR61: 3702 | AS61: 0 | AT61: 0 | AV61: 4448 | AW61: 0 | AX61: 3702 | AY61: 0 | AZ61: 0 | BB61: 4448 | BC61: 0 | BD61: 3702 | BE61: 0 | BF61: 0 | BH61: 1194.52 | BI61: 4448 | BJ61: 5313224.96 | BK61: 3702 | BL61: 4422113.04 | BM61: 9735338 | BN61: 0 | BO61: 4448 | BP61: 0 | BQ61: 3702 | BR61: 0 | BS61: 0
A62: 1.1.8 | B62: Установка потивопожарных окон | C62: шт | D62: 11 | E62: 34209 | F62: 376299 | G62: 89433 | H62: 983763 | I62: 1360062 | L62: 34209 | M62: 0 | N62: 89433 | O62: 0 | P62: 0 | R62: 34209 | S62: 0 | T62: 89433 | U62: 0 | V62: 0 | W62: 11 | X62: 34209 | Y62: 376299 | Z62: 89433 | AA62: 983763 | AB62: 1360062 | AD62: 34209 | AE62: 0 | AF62: 89433 | AG62: 0 | AH62: 0 | AJ62: 34209 | AK62: 0 | AL62: 89433 | AM62: 0 | AN62: 0 | AP62: 34209 | AQ62: 0 | AR62: 89433 | AS62: 0 | AT62: 0 | AV62: 34209 | AW62: 0 | AX62: 89433 | AY62: 0 | AZ62: 0 | BB62: 34209 | BC62: 0 | BD62: 89433 | BE62: 0 | BF62: 0 | BH62: 11 | BI62: 34209 | BJ62: 376299 | BK62: 89433 | BL62: 983763 | BM62: 1360062 | BN62: 0 | BO62: 34209 | BP62: 0 | BQ62: 89433 | BR62: 0 | BS62: 0
A63: 1.1.9 | B63: Установка внутренних окон | C63: шт | D63: 6 | E63: 18204 | F63: 109224 | G63: 79865 | H63: 479190 | I63: 588414 | L63: 18204 | M63: 0 | N63: 79865 | O63: 0 | P63: 0 | R63: 18204 | S63: 0 | T63: 79865 | U63: 0 | V63: 0 | W63: 6 | X63: 18204 | Y63: 109224 | Z63: 79865 | AA63: 479190 | AB63: 588414 | AD63: 18204 | AE63: 0 | AF63: 79865 | AG63: 0 | AH63: 0 | AJ63: 18204 | AK63: 0 | AL63: 79865 | AM63: 0 | AN63: 0 | AP63: 18204 | AQ63: 0 | AR63: 79865 | AS63: 0 | AT63: 0 | AV63: 18204 | AW63: 0 | AX63: 79865 | AY63: 0 | AZ63: 0 | BB63: 18204 | BC63: 0 | BD63: 79865 | BE63: 0 | BF63: 0 | BH63: 6 | BI63: 18204 | BJ63: 109224 | BK63: 79865 | BL63: 479190 | BM63: 588414 | BN63: 0 | BO63: 18204 | BP63: 0 | BQ63: 79865 | BR63: 0 | BS63: 0
A64: 1.1.10 | B64: Установка потивопожарных дверей | C64: шт | D64: 42 | E64: 14176 | F64: 595392 | G64: 34900 | H64: 1465800 | I64: 2061192 | L64: 14176 | M64: 0 | N64: 34900 | O64: 0 | P64: 0 | R64: 14176 | S64: 0 | T64: 34900 | U64: 0 | V64: 0 | W64: 5 | X64: 14176 | Y64: 70880 | Z64: 34900 | AA64: 174500 | AB64: 245380 | AD64: 14176 | AE64: 0 | AF64: 34900 | AG64: 0 | AH64: 0 | AJ64: 14176 | AK64: 0 | AL64: 34900 | AM64: 0 | AN64: 0 | AP64: 14176 | AQ64: 0 | AR64: 34900 | AS64: 0 | AT64: 0 | AV64: 14176 | AW64: 0 | AX64: 34900 | AY64: 0 | AZ64: 0 | BB64: 14176 | BC64: 0 | BD64: 34900 | BE64: 0 | BF64: 0 | BH64: 5 | BI64: 14176 | BJ64: 70880 | BK64: 34900 | BL64: 174500 | BM64: 245380 | BN64: 37 | BO64: 14176 | BP64: 524512 | BQ64: 34900 | BR64: 1291300 | BS64: 1815812
A65: 1.1.11 | B65: Лестничная клетка | C65: шт | D65: 1 | E65: 504288.43 | F65: 504288.43 | G65: 855301.2 | H65: 855301.2 | I65: 1359589.63 | L65: 504288.43 | M65: 0 | N65: 855301.2 | O65: 0 | P65: 0 | R65: 504288.43 | S65: 0 | T65: 855301.2 | U65: 0 | V65: 0 | W65: 0.9 | X65: 504288.43 | Y65: 453859.587 | Z65: 855301.2 | AA65: 769771.08 | AB65: 1223630.667 | AD65: 504288.43 | AE65: 0 | AF65: 855301.2 | AG65: 0 | AH65: 0 | AJ65: 504288.43 | AK65: 0 | AL65: 855301.2 | AM65: 0 | AN65: 0 | AP65: 504288.43 | AQ65: 0 | AR65: 855301.2 | AS65: 0 | AT65: 0 | AV65: 504288.43 | AW65: 0 | AX65: 855301.2 | AY65: 0 | AZ65: 0 | BB65: 504288.43 | BC65: 0 | BD65: 855301.2 | BE65: 0 | BF65: 0 | BH65: 0.9 | BI65: 504288.43 | BJ65: 453859.587 | BK65: 855301.2 | BL65: 769771.08 | BM65: 1223630.667 | BN65: 0.1 | BO65: 504288.43 | BP65: 50428.843 | BQ65: 855301.2 | BR65: 85530.12 | BS65: 135958.963
A66: 1.1.12 | B66: Устройство перекрытия | C66: м3 | D66: 41.2 | E66: 44343.5 | F66: 1826952.2 | G66: 47372 | H66: 1951726.4 | I66: 3778678.6 | K66: 41.2 | L66: 44343.5 | M66: 1826952.2 | N66: 47372 | O66: 1951726.4 | P66: 3778678.6 | R66: 44343.5 | S66: 0 | T66: 47372 | U66: 0 | V66: 0 | X66: 44343.5 | Y66: 0 | Z66: 47372 | AA66: 0 | AB66: 0 | AD66: 44343.5 | AE66: 0 | AF66: 47372 | AG66: 0 | AH66: 0 | AJ66: 44343.5 | AK66: 0 | AL66: 47372 | AM66: 0 | AN66: 0 | AP66: 44343.5 | AQ66: 0 | AR66: 47372 | AS66: 0 | AT66: 0 | AV66: 44343.5 | AW66: 0 | AX66: 47372 | AY66: 0 | AZ66: 0 | BB66: 44343.5 | BC66: 0 | BD66: 47372 | BE66: 0 | BF66: 0 | BH66: 41.2 | BI66: 44343.5 | BJ66: 1826952.2 | BK66: 47372 | BL66: 1951726.4 | BM66: 3778678.6 | BN66: 0 | BO66: 44343.5 | BP66: 0 | BQ66: 47372 | BR66: 0 | BS66: 0
A67: 1.1.13 | B67: Пол АБК | C67: м2 | D67: 387 | E67: 3576 | F67: 1383912 | G67: 3510 | H67: 1358370 | I67: 2742282 | L67: 3576 | M67: 0 | N67: 3510 | O67: 0 | P67: 0 | Q67: 387 | R67: 3576 | S67: 1383912 | T67: 3510 | U67: 1358370 | V67: 2742282 | X67: 3576 | Y67: 0 | Z67: 3510 | AA67: 0 | AB67: 0 | AD67: 3576 | AE67: 0 | AF67: 3510 | AG67: 0 | AH67: 0 | AJ67: 3576 | AK67: 0 | AL67: 3510 | AM67: 0 | AN67: 0 | AP67: 3576 | AQ67: 0 | AR67: 3510 | AS67: 0 | AT67: 0 | AV67: 3576 | AW67: 0 | AX67: 3510 | AY67: 0 | AZ67: 0 | BB67: 3576 | BC67: 0 | BD67: 3510 | BE67: 0 | BF67: 0 | BH67: 387 | BI67: 3576 | BJ67: 1383912 | BK67: 3510 | BL67: 1358370 | BM67: 2742282 | BN67: 0 | BO67: 3576 | BP67: 0 | BQ67: 3510 | BR67: 0 | BS67: 0
A68: 1.1.14 | B68: Прорезка проёмов дверных и оконных | C68: шт | D68: 15 | E68: 25728.4 | F68: 385926 | G68: 850.2 | H68: 12753 | I68: 398679 | K68: 15 | L68: 25728.4 | M68: 385926 | N68: 850.2 | O68: 12753 | P68: 398679 | R68: 25728.4 | S68: 0 | T68: 850.2 | U68: 0 | V68: 0 | X68: 25728.4 | Y68: 0 | Z68: 850.2 | AA68: 0 | AB68: 0 | AD68: 25728.4 | AE68: 0 | AF68: 850.2 | AG68: 0 | AH68: 0 | AJ68: 25728.4 | AK68: 0 | AL68: 850.2 | AM68: 0 | AN68: 0 | AP68: 25728.4 | AQ68: 0 | AR68: 850.2 | AS68: 0 | AT68: 0 | AV68: 25728.4 | AW68: 0 | AX68: 850.2 | AY68: 0 | AZ68: 0 | BB68: 25728.4 | BC68: 0 | BD68: 850.2 | BE68: 0 | BF68: 0 | BH68: 15 | BI68: 25728.4 | BJ68: 385926 | BK68: 850.2 | BL68: 12753 | BM68: 398679 | BN68: 0 | BO68: 25728.4 | BP68: 0 | BQ68: 850.2 | BR68: 0 | BS68: 0
A69: 1.1.15 | B69: Устройство отверстия на кровле в осях В/32-34 | C69: шт | D69: 1 | E69: 89509.68 | F69: 89509.68 | G69: 73184.8 | H69: 73184.8 | I69: 162694.48 | L69: 89509.68 | M69: 0 | N69: 73184.8 | O69: 0 | P69: 0 | R69: 89509.68 | S69: 0 | T69: 73184.8 | U69: 0 | V69: 0 | X69: 89509.68 | Y69: 0 | Z69: 73184.8 | AA69: 0 | AB69: 0 | AD69: 89509.68 | AE69: 0 | AF69: 73184.8 | AG69: 0 | AH69: 0 | AJ69: 89509.68 | AK69: 0 | AL69: 73184.8 | AM69: 0 | AN69: 0 | AP69: 89509.68 | AQ69: 0 | AR69: 73184.8 | AS69: 0 | AT69: 0 | AV69: 89509.68 | AW69: 0 | AX69: 73184.8 | AY69: 0 | AZ69: 0 | BB69: 89509.68 | BC69: 0 | BD69: 73184.8 | BE69: 0 | BF69: 0 | BH69: 0 | BI69: 89509.68 | BJ69: 0 | BK69: 73184.8 | BL69: 0 | BM69: 0 | BN69: 1 | BO69: 89509.68 | BP69: 89509.68 | BQ69: 73184.8 | BR69: 73184.8 | BS69: 162694.48
A70: 1.1.16 | B70: Проходка воздуховодов сквозь кровлю АБК | C70: шт | D70: 12 | E70: 11909.97 | F70: 142919.64 | G70: 4538.73 | H70: 54464.76 | I70: 197384.4 | L70: 11909.97 | M70: 0 | N70: 4538.73 | O70: 0 | P70: 0 | R70: 11909.97 | S70: 0 | T70: 4538.73 | U70: 0 | V70: 0 | X70: 11909.97 | Y70: 0 | Z70: 4538.73 | AA70: 0 | AB70: 0 | AD70: 11909.97 | AE70: 0 | AF70: 4538.73 | AG70: 0 | AH70: 0 | AJ70: 11909.97 | AK70: 0 | AL70: 4538.73 | AM70: 0 | AN70: 0 | AP70: 11909.97 | AQ70: 0 | AR70: 4538.73 | AS70: 0 | AT70: 0 | AV70: 11909.97 | AW70: 0 | AX70: 4538.73 | AY70: 0 | AZ70: 0 | BB70: 11909.97 | BC70: 0 | BD70: 4538.73 | BE70: 0 | BF70: 0 | BH70: 0 | BI70: 11909.97 | BJ70: 0 | BK70: 4538.73 | BL70: 0 | BM70: 0 | BN70: 12 | BO70: 11909.97 | BP70: 142919.64 | BQ70: 4538.73 | BR70: 54464.76 | BS70: 197384.4
A71: 1.1.17 | B71: Устройство мк отверстий диам. 400 мм в покрытии здания | C71: шт | D71: 5 | E71: 43829.72 | F71: 219148.6 | G71: 26306.28 | H71: 131531.4 | I71: 350680 | L71: 43829.72 | M71: 0 | N71: 26306.28 | O71: 0 | P71: 0 | R71: 43829.72 | S71: 0 | T71: 26306.28 | U71: 0 | V71: 0 | X71: 43829.72 | Y71: 0 | Z71: 26306.28 | AA71: 0 | AB71: 0 | AD71: 43829.72 | AE71: 0 | AF71: 26306.28 | AG71: 0 | AH71: 0 | AJ71: 43829.72 | AK71: 0 | AL71: 26306.28 | AM71: 0 | AN71: 0 | AP71: 43829.72 | AQ71: 0 | AR71: 26306.28 | AS71: 0 | AT71: 0 | AV71: 43829.72 | AW71: 0 | AX71: 26306.28 | AY71: 0 | AZ71: 0 | BB71: 43829.72 | BC71: 0 | BD71: 26306.28 | BE71: 0 | BF71: 0 | BH71: 0 | BI71: 43829.72 | BJ71: 0 | BK71: 26306.28 | BL71: 0 | BM71: 0 | BN71: 5 | BO71: 43829.72 | BP71: 219148.6 | BQ71: 26306.28 | BR71: 131531.4 | BS71: 350680
A72: 1.1.18 | B72: Устройство дверного проёма в стене цеха (пож.выход) | C72: шт | D72: 1 | E72: 219290.07 | F72: 219290.07 | G72: 155542.4 | H72: 155542.4 | I72: 374832.47 | L72: 219290.07 | M72: 0 | N72: 155542.4 | O72: 0 | P72: 0 | R72: 219290.07 | S72: 0 | T72: 155542.4 | U72: 0 | V72: 0 | W72: 1 | X72: 219290.07 | Y72: 219290.07 | Z72: 155542.4 | AA72: 155542.4 | AB72: 374832.47 | AD72: 219290.07 | AE72: 0 | AF72: 155542.4 | AG72: 0 | AH72: 0 | AJ72: 219290.07 | AK72: 0 | AL72: 155542.4 | AM72: 0 | AN72: 0 | AP72: 219290.07 | AQ72: 0 | AR72: 155542.4 | AS72: 0 | AT72: 0 | AV72: 219290.07 | AW72: 0 | AX72: 155542.4 | AY72: 0 | AZ72: 0 | BB72: 219290.07 | BC72: 0 | BD72: 155542.4 | BE72: 0 | BF72: 0 | BH72: 1 | BI72: 219290.07 | BJ72: 219290.07 | BK72: 155542.4 | BL72: 155542.4 | BM72: 374832.47 | BN72: 0 | BO72: 219290.07 | BP72: 0 | BQ72: 155542.4 | BR72: 0 | BS72: 0
A73: 1.1.19 | B73: Дополнительные работы | E73: 0 | G73: 0 | L73: 0 | N73: 0 | R73: 0 | T73: 0 | X73: 0 | Z73: 0 | AD73: 0 | AF73: 0 | AJ73: 0 | AL73: 0 | AP73: 0 | AR73: 0 | AV73: 0 | AX73: 0 | BB73: 0 | BD73: 0 | BH73: 0 | BI73: 0 | BK73: 0 | BN73: 0 | BO73: 0 | BQ73: 0
A74: 1.1.19.1 | B74: Обшивка стен Гипсокартон ГКЛ толщиной 12,5 мм в 2 слоя | C74: м2 | D74: 76 | E74: 2955 | F74: =D74*E74 -> 224580 | G74: 3501 | H74: =D74*G74 -> 266076 | I74: =E74*D74+G74*D74 -> 490656 | L74: 2955 | M74: =K74*L74 -> 0 | N74: 3501 | O74: =K74*N74 -> 0 | P74: =L74*K74+N74*K74 -> 0 | R74: 2955 | S74: =Q74*R74 -> 0 | T74: 3501 | U74: =Q74*T74 -> 0 | V74: =R74*Q74+T74*Q74 -> 0 | X74: 2955 | Y74: =W74*X74 -> 0 | Z74: 3501 | AA74: =W74*Z74 -> 0 | AB74: =X74*W74+Z74*W74 -> 0 | AD74: 2955 | AE74: =AC74*AD74 -> 0 | AF74: 3501 | AG74: =AC74*AF74 -> 0 | AH74: =AD74*AC74+AF74*AC74 -> 0 | AJ74: 2955 | AK74: =AI74*AJ74 -> 0 | AL74: 3501 | AM74: =AI74*AL74 -> 0 | AN74: =AJ74*AI74+AL74*AI74 -> 0 | AP74: 2955 | AQ74: =AO74*AP74 -> 0 | AR74: 3501 | AS74: =AO74*AR74 -> 0 | AT74: =AP74*AO74+AR74*AO74 -> 0 | AV74: 2955 | AW74: =AU74*AV74 -> 0 | AX74: 3501 | AY74: =AU74*AX74 -> 0 | AZ74: =AV74*AU74+AX74*AU74 -> 0 | BB74: 2955 | BC74: =BA74*BB74 -> 0 | BD74: 3501 | BE74: =BA74*BD74 -> 0 | BF74: =BB74*BA74+BD74*BA74 -> 0 | BH74: 0 | BI74: 2955 | BJ74: =BH74*BI74 -> 0 | BK74: 3501 | BL74: =BH74*BK74 -> 0 | BM74: =BI74*BH74+BK74*BH74 -> 0 | BN74: 76 | BO74: 2955 | BP74: =BN74*BO74 -> 224580 | BQ74: 3501 | BR74: =BN74*BQ74 -> 266076 | BS74: =BO74*BN74+BQ74*BN74 -> 490656
A75: 1.1.19.2 | B75: Перенос дверных проёмов | C75: шт | D75: 4 | E75: 42024.27 | F75: =D75*E75 -> 168097.08 | G75: 15381.6 | H75: =D75*G75 -> 61526.4 | I75: =E75*D75+G75*D75 -> 229623.48 | L75: 42024.27 | M75: =K75*L75 -> 0 | N75: 15381.6 | O75: =K75*N75 -> 0 | P75: =L75*K75+N75*K75 -> 0 | R75: 42024.27 | S75: =Q75*R75 -> 0 | T75: 15381.6 | U75: =Q75*T75 -> 0 | V75: =R75*Q75+T75*Q75 -> 0 | X75: 42024.27 | Y75: =W75*X75 -> 0 | Z75: 15381.6 | AA75: =W75*Z75 -> 0 | AB75: =X75*W75+Z75*W75 -> 0 | AD75: 42024.27 | AE75: =AC75*AD75 -> 0 | AF75: 15381.6 | AG75: =AC75*AF75 -> 0 | AH75: =AD75*AC75+AF75*AC75 -> 0 | AJ75: 42024.27 | AK75: =AI75*AJ75 -> 0 | AL75: 15381.6 | AM75: =AI75*AL75 -> 0 | AN75: =AJ75*AI75+AL75*AI75 -> 0 | AP75: 42024.27 | AQ75: =AO75*AP75 -> 0 | AR75: 15381.6 | AS75: =AO75*AR75 -> 0 | AT75: =AP75*AO75+AR75*AO75 -> 0 | AV75: 42024.27 | AW75: =AU75*AV75 -> 0 | AX75: 15381.6 | AY75: =AU75*AX75 -> 0 | AZ75: =AV75*AU75+AX75*AU75 -> 0 | BB75: 42024.27 | BC75: =BA75*BB75 -> 0 | BD75: 15381.6 | BE75: =BA75*BD75 -> 0 | BF75: =BB75*BA75+BD75*BA75 -> 0 | BH75: 0 | BI75: 42024.27 | BJ75: =BH75*BI75 -> 0 | BK75: 15381.6 | BL75: =BH75*BK75 -> 0 | BM75: =BI75*BH75+BK75*BH75 -> 0 | BN75: 4 | BO75: 42024.27 | BP75: =BN75*BO75 -> 168097.08 | BQ75: 15381.6 | BR75: =BN75*BQ75 -> 61526.4 | BS75: =BO75*BN75+BQ75*BN75 -> 229623.48
A76: 1.1.19.3 | B76: Обрамление оконных проёмов | C76: шт | D76: 11 | E76: 10938.3 | F76: =D76*E76 -> 120321.3 | G76: 8970 | H76: =D76*G76 -> 98670 | I76: =E76*D76+G76*D76 -> 218991.3 | L76: 10938.3 | M76: =K76*L76 -> 0 | N76: 8970 | O76: =K76*N76 -> 0 | P76: =L76*K76+N76*K76 -> 0 | R76: 10938.3 | S76: =Q76*R76 -> 0 | T76: 8970 | U76: =Q76*T76 -> 0 | V76: =R76*Q76+T76*Q76 -> 0 | X76: 10938.3 | Y76: =W76*X76 -> 0 | Z76: 8970 | AA76: =W76*Z76 -> 0 | AB76: =X76*W76+Z76*W76 -> 0 | AD76: 10938.3 | AE76: =AC76*AD76 -> 0 | AF76: 8970 | AG76: =AC76*AF76 -> 0 | AH76: =AD76*AC76+AF76*AC76 -> 0 | AJ76: 10938.3 | AK76: =AI76*AJ76 -> 0 | AL76: 8970 | AM76: =AI76*AL76 -> 0 | AN76: =AJ76*AI76+AL76*AI76 -> 0 | AP76: 10938.3 | AQ76: =AO76*AP76 -> 0 | AR76: 8970 | AS76: =AO76*AR76 -> 0 | AT76: =AP76*AO76+AR76*AO76 -> 0 | AV76: 10938.3 | AW76: =AU76*AV76 -> 0 | AX76: 8970 | AY76: =AU76*AX76 -> 0 | AZ76: =AV76*AU76+AX76*AU76 -> 0 | BB76: 10938.3 | BC76: =BA76*BB76 -> 0 | BD76: 8970 | BE76: =BA76*BD76 -> 0 | BF76: =BB76*BA76+BD76*BA76 -> 0 | BH76: 0 | BI76: 10938.3 | BJ76: =BH76*BI76 -> 0 | BK76: 8970 | BL76: =BH76*BK76 -> 0 | BM76: =BI76*BH76+BK76*BH76 -> 0 | BN76: 11 | BO76: 10938.3 | BP76: =BN76*BO76 -> 120321.3 | BQ76: 8970 | BR76: =BN76*BQ76 -> 98670 | BS76: =BO76*BN76+BQ76*BN76 -> 218991.3
A77: 1.1.19.4 | B77: Демонтаж и монтаж временных ворот | C77: шт | D77: 1 | E77: 73821.12 | F77: =D77*E77 -> 73821.12 | G77: 4750.2 | H77: =D77*G77 -> 4750.2 | I77: =E77*D77+G77*D77 -> 78571.32 | L77: 73821.12 | M77: =K77*L77 -> 0 | N77: 4750.2 | O77: =K77*N77 -> 0 | P77: =L77*K77+N77*K77 -> 0 | R77: 73821.12 | S77: =Q77*R77 -> 0 | T77: 4750.2 | U77: =Q77*T77 -> 0 | V77: =R77*Q77+T77*Q77 -> 0 | X77: 73821.12 | Y77: =W77*X77 -> 0 | Z77: 4750.2 | AA77: =W77*Z77 -> 0 | AB77: =X77*W77+Z77*W77 -> 0 | AD77: 73821.12 | AE77: =AC77*AD77 -> 0 | AF77: 4750.2 | AG77: =AC77*AF77 -> 0 | AH77: =AD77*AC77+AF77*AC77 -> 0 | AJ77: 73821.12 | AK77: =AI77*AJ77 -> 0 | AL77: 4750.2 | AM77: =AI77*AL77 -> 0 | AN77: =AJ77*AI77+AL77*AI77 -> 0 | AP77: 73821.12 | AQ77: =AO77*AP77 -> 0 | AR77: 4750.2 | AS77: =AO77*AR77 -> 0 | AT77: =AP77*AO77+AR77*AO77 -> 0 | AV77: 73821.12 | AW77: =AU77*AV77 -> 0 | AX77: 4750.2 | AY77: =AU77*AX77 -> 0 | AZ77: =AV77*AU77+AX77*AU77 -> 0 | BB77: 73821.12 | BC77: =BA77*BB77 -> 0 | BD77: 4750.2 | BE77: =BA77*BD77 -> 0 | BF77: =BB77*BA77+BD77*BA77 -> 0 | BH77: 0 | BI77: 73821.12 | BJ77: =BH77*BI77 -> 0 | BK77: 4750.2 | BL77: =BH77*BK77 -> 0 | BM77: =BI77*BH77+BK77*BH77 -> 0 | BN77: 1 | BO77: 73821.12 | BP77: =BN77*BO77 -> 73821.12 | BQ77: 4750.2 | BR77: =BN77*BQ77 -> 4750.2 | BS77: =BO77*BN77+BQ77*BN77 -> 78571.32
A78: 1.1.20 | B78: Монтаж фасоных элементов | E78: 0 | G78: 0 | L78: 0 | N78: 0 | R78: 0 | T78: 0 | X78: 0 | Z78: 0 | AD78: 0 | AF78: 0 | AJ78: 0 | AL78: 0 | AP78: 0 | AR78: 0 | AV78: 0 | AX78: 0 | BB78: 0 | BD78: 0 | BH78: 0 | BI78: 0 | BK78: 0 | BN78: =D78-BH78 ->  | BO78: 0 | BQ78: 0
A79: 1.1.20.1 | B79: Монтаж фасоного элемента Дз-1 | C79: м.п. | D79: 7.45 | E79: 600 | F79: =D79*E79 -> 4470 | G79: 1345.5 | H79: =D79*G79 -> 10023.975 | I79: =E79*D79+G79*D79 -> 14493.975 | L79: 600 | M79: =K79*L79 -> 0 | N79: 1345.5 | O79: =K79*N79 -> 0 | P79: =L79*K79+N79*K79 -> 0 | R79: 600 | S79: =Q79*R79 -> 0 | T79: 1345.5 | U79: =Q79*T79 -> 0 | V79: =R79*Q79+T79*Q79 -> 0 | X79: 600 | Y79: =W79*X79 -> 0 | Z79: 1345.5 | AA79: =W79*Z79 -> 0 | AB79: =X79*W79+Z79*W79 -> 0 | AD79: 600 | AE79: =AC79*AD79 -> 0 | AF79: 1345.5 | AG79: =AC79*AF79 -> 0 | AH79: =AD79*AC79+AF79*AC79 -> 0 | AJ79: 600 | AK79: =AI79*AJ79 -> 0 | AL79: 1345.5 | AM79: =AI79*AL79 -> 0 | AN79: =AJ79*AI79+AL79*AI79 -> 0 | AP79: 600 | AQ79: =AO79*AP79 -> 0 | AR79: 1345.5 | AS79: =AO79*AR79 -> 0 | AT79: =AP79*AO79+AR79*AO79 -> 0 | AV79: 600 | AW79: =AU79*AV79 -> 0 | AX79: 1345.5 | AY79: =AU79*AX79 -> 0 | AZ79: =AV79*AU79+AX79*AU79 -> 0 | BB79: 600 | BC79: =BA79*BB79 -> 0 | BD79: 1345.5 | BE79: =BA79*BD79 -> 0 | BF79: =BB79*BA79+BD79*BA79 -> 0 | BH79: 0 | BI79: 600 | BJ79: =BH79*BI79 -> 0 | BK79: 1345.5 | BL79: =BH79*BK79 -> 0 | BM79: =BI79*BH79+BK79*BH79 -> 0 | BN79: 7.45 | BO79: 600 | BP79: =BN79*BO79 -> 4470 | BQ79: 1345.5 | BR79: =BN79*BQ79 -> 10023.975 | BS79: =BO79*BN79+BQ79*BN79 -> 14493.975
A80: 1.1.20.2 | B80: Монтаж фасоного элемента Дз-2 | C80: м.п. | D80: 15 | E80: 600 | F80: 9000 | G80: 678.6 | H80: 10179 | I80: 19179 | L80: 600 | M80: 0 | N80: 678.6 | O80: 0 | P80: 0 | R80: 600 | S80: 0 | T80: 678.6 | U80: 0 | V80: 0 | X80: 600 | Y80: 0 | Z80: 678.6 | AA80: 0 | AB80: 0 | AD80: 600 | AE80: 0 | AF80: 678.6 | AG80: 0 | AH80: 0 | AJ80: 600 | AK80: 0 | AL80: 678.6 | AM80: 0 | AN80: 0 | AP80: 600 | AQ80: 0 | AR80: 678.6 | AS80: 0 | AT80: 0 | AV80: 600 | AW80: 0 | AX80: 678.6 | AY80: 0 | AZ80: 0 | BB80: 600 | BC80: 0 | BD80: 678.6 | BE80: 0 | BF80: 0 | BH80: 0 | BI80: 600 | BJ80: 0 | BK80: 678.6 | BL80: 0 | BM80: 0 | BN80: 15 | BO80: 600 | BP80: 9000 | BQ80: 678.6 | BR80: 10179 | BS80: 19179
A81: 1.1.20.3 | B81: Монтаж фасоного элемента Дз-3 | C81: м.п. | D81: 64 | E81: 600 | F81: 38400 | G81: 508.3 | H81: 32531.2 | I81: 70931.2 | L81: 600 | M81: 0 | N81: 508.3 | O81: 0 | P81: 0 | R81: 600 | S81: 0 | T81: 508.3 | U81: 0 | V81: 0 | X81: 600 | Y81: 0 | Z81: 508.3 | AA81: 0 | AB81: 0 | AD81: 600 | AE81: 0 | AF81: 508.3 | AG81: 0 | AH81: 0 | AJ81: 600 | AK81: 0 | AL81: 508.3 | AM81: 0 | AN81: 0 | AP81: 600 | AQ81: 0 | AR81: 508.3 | AS81: 0 | AT81: 0 | AV81: 600 | AW81: 0 | AX81: 508.3 | AY81: 0 | AZ81: 0 | BB81: 600 | BC81: 0 | BD81: 508.3 | BE81: 0 | BF81: 0 | BH81: 0 | BI81: 600 | BJ81: 0 | BK81: 508.3 | BL81: 0 | BM81: 0 | BN81: 64 | BO81: 600 | BP81: 38400 | BQ81: 508.3 | BR81: 32531.2 | BS81: 70931.2
A82: 1.1.20.4 | B82: Монтаж фасоного элемента Дз-4 | C82: м.п. | D82: 64 | E82: 600 | F82: 38400 | G82: 491.4 | H82: 31449.6 | I82: 69849.6 | L82: 600 | M82: 0 | N82: 491.4 | O82: 0 | P82: 0 | R82: 600 | S82: 0 | T82: 491.4 | U82: 0 | V82: 0 | X82: 600 | Y82: 0 | Z82: 491.4 | AA82: 0 | AB82: 0 | AD82: 600 | AE82: 0 | AF82: 491.4 | AG82: 0 | AH82: 0 | AJ82: 600 | AK82: 0 | AL82: 491.4 | AM82: 0 | AN82: 0 | AP82: 600 | AQ82: 0 | AR82: 491.4 | AS82: 0 | AT82: 0 | AV82: 600 | AW82: 0 | AX82: 491.4 | AY82: 0 | AZ82: 0 | BB82: 600 | BC82: 0 | BD82: 491.4 | BE82: 0 | BF82: 0 | BH82: 0 | BI82: 600 | BJ82: 0 | BK82: 491.4 | BL82: 0 | BM82: 0 | BN82: 64 | BO82: 600 | BP82: 38400 | BQ82: 491.4 | BR82: 31449.6 | BS82: 69849.6
A83: 1.1.20.5 | B83: Монтаж фасоного элемента Дз-5 | C83: м.п. | D83: 64 | E83: 600 | F83: 38400 | G83: 565.5 | H83: 36192 | I83: 74592 | L83: 600 | M83: 0 | N83: 565.5 | O83: 0 | P83: 0 | R83: 600 | S83: 0 | T83: 565.5 | U83: 0 | V83: 0 | X83: 600 | Y83: 0 | Z83: 565.5 | AA83: 0 | AB83: 0 | AD83: 600 | AE83: 0 | AF83: 565.5 | AG83: 0 | AH83: 0 | AJ83: 600 | AK83: 0 | AL83: 565.5 | AM83: 0 | AN83: 0 | AP83: 600 | AQ83: 0 | AR83: 565.5 | AS83: 0 | AT83: 0 | AV83: 600 | AW83: 0 | AX83: 565.5 | AY83: 0 | AZ83: 0 | BB83: 600 | BC83: 0 | BD83: 565.5 | BE83: 0 | BF83: 0 | BH83: 0 | BI83: 600 | BJ83: 0 | BK83: 565.5 | BL83: 0 | BM83: 0 | BN83: 64 | BO83: 600 | BP83: 38400 | BQ83: 565.5 | BR83: 36192 | BS83: 74592
A84: 1.1.20.6 | B84: Монтаж колонн (усиление перегородок) | C84: шт | D84: 7 | E84: 36465 | F84: 255255 | G84: 8931 | H84: 62517 | I84: 317772 | L84: 36465 | M84: 0 | N84: 8931 | O84: 0 | P84: 0 | R84: 36465 | S84: 0 | T84: 8931 | U84: 0 | V84: 0 | X84: 36465 | Y84: 0 | Z84: 8931 | AA84: 0 | AB84: 0 | AD84: 36465 | AE84: 0 | AF84: 8931 | AG84: 0 | AH84: 0 | AJ84: 36465 | AK84: 0 | AL84: 8931 | AM84: 0 | AN84: 0 | AP84: 36465 | AQ84: 0 | AR84: 8931 | AS84: 0 | AT84: 0 | AV84: 36465 | AW84: 0 | AX84: 8931 | AY84: 0 | AZ84: 0 | BB84: 36465 | BC84: 0 | BD84: 8931 | BE84: 0 | BF84: 0 | BH84: 0 | BI84: 36465 | BJ84: 0 | BK84: 8931 | BL84: 0 | BM84: 0 | BN84: 7 | BO84: 36465 | BP84: 255255 | BQ84: 8931 | BR84: 62517 | BS84: 317772
A85: 1.1.20.7 | B85: Демонтаж ГКЛ 2 слоя | C85: м2 | D85: 36 | E85: 1166 | F85: 41976 | G85: 0 | I85: 41976 | L85: 1166 | M85: 0 | N85: 0 | P85: 0 | R85: 1166 | S85: 0 | T85: 0 | V85: 0 | X85: 1166 | Y85: 0 | Z85: 0 | AB85: 0 | AD85: 1166 | AE85: 0 | AF85: 0 | AH85: 0 | AJ85: 1166 | AK85: 0 | AL85: 0 | AN85: 0 | AP85: 1166 | AQ85: 0 | AR85: 0 | AT85: 0 | AV85: 1166 | AW85: 0 | AX85: 0 | AZ85: 0 | BB85: 1166 | BC85: 0 | BD85: 0 | BF85: 0 | BH85: 0 | BI85: 1166 | BJ85: 0 | BK85: 0 | BM85: 0 | BN85: 36 | BO85: 1166 | BP85: 41976 | BQ85: 0 | BS85: 41976
A86: 1.1.20.8 | B86: Монтаж профильной трубы 40х40 | C86: м.п. | D86: 12 | E86: 904 | F86: 10848 | G86: 453 | H86: =D86*G86 -> 5436 | I86: 16284 | L86: 904 | M86: 0 | N86: 453 | O86: =K86*N86 -> 0 | P86: 0 | R86: 904 | S86: 0 | T86: 453 | U86: =Q86*T86 -> 0 | V86: 0 | X86: 904 | Y86: 0 | Z86: 453 | AA86: =W86*Z86 -> 0 | AB86: 0 | AD86: 904 | AE86: 0 | AF86: 453 | AG86: =AC86*AF86 -> 0 | AH86: 0 | AJ86: 904 | AK86: 0 | AL86: 453 | AM86: =AI86*AL86 -> 0 | AN86: 0 | AP86: 904 | AQ86: 0 | AR86: 453 | AS86: =AO86*AR86 -> 0 | AT86: 0 | AV86: 904 | AW86: 0 | AX86: 453 | AY86: =AU86*AX86 -> 0 | AZ86: 0 | BB86: 904 | BC86: 0 | BD86: 453 | BE86: =BA86*BD86 -> 0 | BF86: 0 | BH86: 0 | BI86: 904 | BJ86: 0 | BK86: 453 | BL86: =BH86*BK86 -> 0 | BM86: 0 | BN86: 12 | BO86: 904 | BP86: 10848 | BQ86: 453 | BR86: =BN86*BQ86 -> 5436 | BS86: 16284
A87: 1.1.20.9 | B87: Монтаж ГКЛ 2 слоя | C87: м2 | D87: 36 | E87: 1690 | F87: 60840 | G87: 1625 | H87: 58500 | I87: 119340 | L87: 1690 | M87: 0 | N87: 1625 | O87: 0 | P87: 0 | R87: 1690 | S87: 0 | T87: 1625 | U87: 0 | V87: 0 | X87: 1690 | Y87: 0 | Z87: 1625 | AA87: 0 | AB87: 0 | AD87: 1690 | AE87: 0 | AF87: 1625 | AG87: 0 | AH87: 0 | AJ87: 1690 | AK87: 0 | AL87: 1625 | AM87: 0 | AN87: 0 | AP87: 1690 | AQ87: 0 | AR87: 1625 | AS87: 0 | AT87: 0 | AV87: 1690 | AW87: 0 | AX87: 1625 | AY87: 0 | AZ87: 0 | BB87: 1690 | BC87: 0 | BD87: 1625 | BE87: 0 | BF87: 0 | BH87: 0 | BI87: 1690 | BJ87: 0 | BK87: 1625 | BL87: 0 | BM87: 0 | BN87: 36 | BO87: 1690 | BP87: 60840 | BQ87: 1625 | BR87: 58500 | BS87: 119340
A88: 1.1.20.10 | B88: Увеличение дверных проёмов | C88: шт | D88: 12 | E88: 7585 | F88: 91020 | G88: 1716 | H88: 20592 | I88: 111612 | L88: 7585 | M88: 0 | N88: 1716 | O88: 0 | P88: 0 | R88: 7585 | S88: 0 | T88: 1716 | U88: 0 | V88: 0 | X88: 7585 | Y88: 0 | Z88: 1716 | AA88: 0 | AB88: 0 | AD88: 7585 | AE88: 0 | AF88: 1716 | AG88: 0 | AH88: 0 | AJ88: 7585 | AK88: 0 | AL88: 1716 | AM88: 0 | AN88: 0 | AP88: 7585 | AQ88: 0 | AR88: 1716 | AS88: 0 | AT88: 0 | AV88: 7585 | AW88: 0 | AX88: 1716 | AY88: 0 | AZ88: 0 | BB88: 7585 | BC88: 0 | BD88: 1716 | BE88: 0 | BF88: 0 | BH88: 0 | BI88: 7585 | BJ88: 0 | BK88: 1716 | BL88: 0 | BM88: 0 | BN88: 12 | BO88: 7585 | BP88: 91020 | BQ88: 1716 | BR88: 20592 | BS88: 111612
A89: 1.1.20.11 | B89: Наливной пол толщиной до 50мм | C89: м2 | D89: 125.1 | E89: 1286 | F89: 160878.6 | G89: 2430 | H89: 303993 | I89: 464871.6 | L89: 1286 | M89: 0 | N89: 2430 | O89: 0 | P89: 0 | R89: 1286 | S89: 0 | T89: 2430 | U89: 0 | V89: 0 | X89: 1286 | Y89: 0 | Z89: 2430 | AA89: 0 | AB89: 0 | AD89: 1286 | AE89: 0 | AF89: 2430 | AG89: 0 | AH89: 0 | AJ89: 1286 | AK89: 0 | AL89: 2430 | AM89: 0 | AN89: 0 | AP89: 1286 | AQ89: 0 | AR89: 2430 | AS89: 0 | AT89: 0 | AV89: 1286 | AW89: 0 | AX89: 2430 | AY89: 0 | AZ89: 0 | BB89: 1286 | BC89: 0 | BD89: 2430 | BE89: 0 | BF89: 0 | BH89: 0 | BI89: 1286 | BJ89: 0 | BK89: 2430 | BL89: 0 | BM89: 0 | BN89: 125.1 | BO89: 1286 | BP89: 160878.6 | BQ89: 2430 | BR89: 303993 | BS89: 464871.6
A90: 1.1.20.12 | B90: Усиление площадки лестничного марша | C90: шт | D90: 4 | E90: 36465 | F90: 145860 | G90: 7524 | H90: 30096 | I90: 175956 | L90: 36465 | M90: 0 | N90: 7524 | O90: 0 | P90: 0 | R90: 36465 | S90: 0 | T90: 7524 | U90: 0 | V90: 0 | X90: 36465 | Y90: 0 | Z90: 7524 | AA90: 0 | AB90: 0 | AD90: 36465 | AE90: 0 | AF90: 7524 | AG90: 0 | AH90: 0 | AJ90: 36465 | AK90: 0 | AL90: 7524 | AM90: 0 | AN90: 0 | AP90: 36465 | AQ90: 0 | AR90: 7524 | AS90: 0 | AT90: 0 | AV90: 36465 | AW90: 0 | AX90: 7524 | AY90: 0 | AZ90: 0 | BB90: 36465 | BC90: 0 | BD90: 7524 | BE90: 0 | BF90: 0 | BH90: 0 | BI90: 36465 | BJ90: 0 | BK90: 7524 | BL90: 0 | BM90: 0 | BN90: 4 | BO90: 36465 | BP90: 145860 | BQ90: 7524 | BR90: 30096 | BS90: 175956
A91: 1.1.20.13 | B91: Устройство стен из газобетонных блоков | C91: м3 | D91: 1.87 | E91: 6809 | F91: 12732.83 | G91: 13857 | H91: 25912.59 | I91: 38645.42 | L91: 6809 | M91: 0 | N91: 13857 | O91: 0 | P91: 0 | R91: 6809 | S91: 0 | T91: 13857 | U91: 0 | V91: 0 | X91: 6809 | Y91: 0 | Z91: 13857 | AA91: 0 | AB91: 0 | AD91: 6809 | AE91: 0 | AF91: 13857 | AG91: 0 | AH91: 0 | AJ91: 6809 | AK91: 0 | AL91: 13857 | AM91: 0 | AN91: 0 | AP91: 6809 | AQ91: 0 | AR91: 13857 | AS91: 0 | AT91: 0 | AV91: 6809 | AW91: 0 | AX91: 13857 | AY91: 0 | AZ91: 0 | BB91: 6809 | BC91: 0 | BD91: 13857 | BE91: 0 | BF91: 0 | BH91: 0 | BI91: 6809 | BJ91: 0 | BK91: 13857 | BL91: 0 | BM91: 0 | BN91: 1.87 | BO91: 6809 | BP91: 12732.83 | BQ91: 13857 | BR91: 25912.59 | BS91: 38645.42
A92: 1.1.20.14 | B92: Облицовка ступеней плиткой на лестнечной клетке | C92: шт | D92: 24 | E92: 3710 | F92: 89040 | G92: 2543 | H92: 61032 | I92: 150072 | L92: 3710 | M92: 0 | N92: 2543 | O92: 0 | P92: 0 | R92: 3710 | S92: 0 | T92: 2543 | U92: 0 | V92: 0 | X92: 3710 | Y92: 0 | Z92: 2543 | AA92: 0 | AB92: 0 | AD92: 3710 | AE92: 0 | AF92: 2543 | AG92: 0 | AH92: 0 | AJ92: 3710 | AK92: 0 | AL92: 2543 | AM92: 0 | AN92: 0 | AP92: 3710 | AQ92: 0 | AR92: 2543 | AS92: 0 | AT92: 0 | AV92: 3710 | AW92: 0 | AX92: 2543 | AY92: 0 | AZ92: 0 | BB92: 3710 | BC92: 0 | BD92: 2543 | BE92: 0 | BF92: 0 | BH92: 0 | BI92: 3710 | BJ92: 0 | BK92: 2543 | BL92: 0 | BM92: 0 | BN92: 24 | BO92: 3710 | BP92: 89040 | BQ92: 2543 | BR92: 61032 | BS92: 150072
A93: 1.1.20.15 | B93: Штукатурка откосов Ролл ворот в цеху | C93: м.п. | D93: 150 | E93: 1135 | F93: 170250 | G93: 567 | H93: 85050 | I93: 255300 | L93: 1135 | M93: 0 | N93: 567 | O93: 0 | P93: 0 | R93: 1135 | S93: 0 | T93: 567 | U93: 0 | V93: 0 | X93: 1135 | Y93: 0 | Z93: 567 | AA93: 0 | AB93: 0 | AD93: 1135 | AE93: 0 | AF93: 567 | AG93: 0 | AH93: 0 | AJ93: 1135 | AK93: 0 | AL93: 567 | AM93: 0 | AN93: 0 | AP93: 1135 | AQ93: 0 | AR93: 567 | AS93: 0 | AT93: 0 | AV93: 1135 | AW93: 0 | AX93: 567 | AY93: 0 | AZ93: 0 | BB93: 1135 | BC93: 0 | BD93: 567 | BE93: 0 | BF93: 0 | BH93: 0 | BI93: 1135 | BJ93: 0 | BK93: 567 | BL93: 0 | BM93: 0 | BN93: 150 | BO93: 1135 | BP93: 170250 | BQ93: 567 | BR93: 85050 | BS93: 255300
A94: 1.2 | B94: 130-23-АС1 Архитектурно-строительные решения | F94: =F96+F97+F99+F101+F102+F105+F106+F108 -> 9370353.48 | H94: =H96+H97+H99+H101+H102+H105+H106+H108 -> 19579106 | I94: =I96+I97+I99+I101+I102+I105+I106+I108 -> 28949459.48 | M94: =M96+M97+M99+M101+M102+M105+M106+M108 -> 4084784.62 | O94: =O96+O97+O99+O101+O102+O105+O106+O108 -> 10885660 | P94: =P96+P97+P99+P101+P102+P105+P106+P108 -> 14970444.62 | S94: =S96+S97+S99+S101+S102+S105+S106+S108 -> 813300 | U94: =U96+U97+U99+U101+U102+U105+U106+U108 -> 2211900 | V94: =V96+V97+V99+V101+V102+V105+V106+V108 -> 3025200 | Y94: =Y96+Y97+Y99+Y101+Y102+Y105+Y106+Y108 -> 3109117.4 | AA94: =AA96+AA97+AA99+AA101+AA102+AA105+AA106+AA108 -> 4828757 | AB94: =AB96+AB97+AB99+AB101+AB102+AB105+AB106+AB108 -> 7937874.4 | AE94: =AE96+AE97+AE99+AE101+AE102+AE105+AE106+AE108 -> 0 | AG94: =AG96+AG97+AG99+AG101+AG102+AG105+AG106+AG108 -> 0 | AH94: =AH96+AH97+AH99+AH101+AH102+AH105+AH106+AH108 -> 0 | AK94: =AK96+AK97+AK99+AK101+AK102+AK105+AK106+AK108 -> 0 | AM94: =AM96+AM97+AM99+AM101+AM102+AM105+AM106+AM108 -> 0 | AN94: =AN96+AN97+AN99+AN101+AN102+AN105+AN106+AN108 -> 0 | AQ94: =AQ96+AQ97+AQ99+AQ101+AQ102+AQ105+AQ106+AQ108 -> 0 | AS94: =AS96+AS97+AS99+AS101+AS102+AS105+AS106+AS108 -> 0 | AT94: =AT96+AT97+AT99+AT101+AT102+AT105+AT106+AT108 -> 0 | AW94: =AW96+AW97+AW99+AW101+AW102+AW105+AW106+AW108 -> 0 | AY94: =AY96+AY97+AY99+AY101+AY102+AY105+AY106+AY108 -> 0 | AZ94: =AZ96+AZ97+AZ99+AZ101+AZ102+AZ105+AZ106+AZ108 -> 0 | BC94: =BC96+BC97+BC99+BC101+BC102+BC105+BC106+BC108 -> 0 | BE94: =BE96+BE97+BE99+BE101+BE102+BE105+BE106+BE108 -> 0 | BF94: =BF96+BF97+BF99+BF101+BF102+BF105+BF106+BF108 -> 0 | BH94: 0 | BJ94: =BJ96+BJ97+BJ99+BJ101+BJ102+BJ105+BJ106+BJ108 -> 8007202.02 | BL94: =BL96+BL97+BL99+BL101+BL102+BL105+BL106+BL108 -> 17926317 | BM94: =BM96+BM97+BM99+BM101+BM102+BM105+BM106+BM108 -> 25933519.02 | BN94: 0 | BP94: =BP96+BP97+BP99+BP101+BP102+BP105+BP106+BP108 -> 1363151.46 | BR94: =BR96+BR97+BR99+BR101+BR102+BR105+BR106+BR108 -> 1652789 | BS94: =BS96+BS97+BS99+BS101+BS102+BS105+BS106+BS108 -> 3015940.46
A95: 1.2.1 | B95: Металлоконструкции огрунтованные КМ | BH95: 0 | BN95: 0
A96: 1.2.1.1 | B96: Монтаж фахверковых стоек массой до 1,0 т. | C96: т. | D96: 10.5 | E96: 95478 | F96: =D96*E96 -> 1002519 | G96: 229000 | H96: =D96*G96 -> 2404500 | I96: =E96*D96+G96*D96 -> 3407019 | K96: 6.95 | L96: 95478 | M96: =K96*L96 -> 663572.1 | N96: 229000 | O96: =K96*N96 -> 1591550 | P96: =L96*K96+N96*K96 -> 2255122.1 | R96: 95478 | S96: =Q96*R96 -> 0 | T96: 229000 | U96: =Q96*T96 -> 0 | V96: =R96*Q96+T96*Q96 -> 0 | W96: 3.55 | X96: 95478 | Y96: =W96*X96 -> 338946.9 | Z96: 229000 | AA96: =W96*Z96 -> 812950 | AB96: =X96*W96+Z96*W96 -> 1151896.9 | AD96: 95478 | AE96: =AC96*AD96 -> 0 | AF96: 229000 | AG96: =AC96*AF96 -> 0 | AH96: =AD96*AC96+AF96*AC96 -> 0 | AJ96: 95478 | AK96: =AI96*AJ96 -> 0 | AL96: 229000 | AM96: =AI96*AL96 -> 0 | AN96: =AJ96*AI96+AL96*AI96 -> 0 | AP96: 95478 | AQ96: =AO96*AP96 -> 0 | AR96: 229000 | AS96: =AO96*AR96 -> 0 | AT96: =AP96*AO96+AR96*AO96 -> 0 | AV96: 95478 | AW96: =AU96*AV96 -> 0 | AX96: 229000 | AY96: =AU96*AX96 -> 0 | AZ96: =AV96*AU96+AX96*AU96 -> 0 | BB96: 95478 | BC96: =BA96*BB96 -> 0 | BD96: 229000 | BE96: =BA96*BD96 -> 0 | BF96: =BB96*BA96+BD96*BA96 -> 0 | BH96: 10.5 | BI96: 95478 | BJ96: =BH96*BI96 -> 1002519 | BK96: 229000 | BL96: =BH96*BK96 -> 2404500 | BM96: =BI96*BH96+BK96*BH96 -> 3407019 | BN96: 0 | BO96: 95478 | BP96: =BN96*BO96 -> 0 | BQ96: 229000 | BR96: =BN96*BQ96 -> 0 | BS96: =BO96*BN96+BQ96*BN96 -> 0
A97: 1.2.1.2 | B97: Монтаж распорок, ригелей, в том числе: Профили стальные гнутые замкнутые квадратные 100х4 | C97: т. | D97: 0.66 | E97: 95478 | F97: =D97*E97 -> 63015.48 | G97: 229000 | H97: =D97*G97 -> 151140 | I97: =E97*D97+G97*D97 -> 214155.48 | K97: 0.34 | L97: 95478 | M97: =K97*L97 -> 32462.52 | N97: 229000 | O97: =K97*N97 -> 77860 | P97: =L97*K97+N97*K97 -> 110322.52 | R97: 95478 | S97: =Q97*R97 -> 0 | T97: 229000 | U97: =Q97*T97 -> 0 | V97: =R97*Q97+T97*Q97 -> 0 | X97: 95478 | Y97: =W97*X97 -> 0 | Z97: 229000 | AA97: =W97*Z97 -> 0 | AB97: =X97*W97+Z97*W97 -> 0 | AD97: 95478 | AE97: =AC97*AD97 -> 0 | AF97: 229000 | AG97: =AC97*AF97 -> 0 | AH97: =AD97*AC97+AF97*AC97 -> 0 | AJ97: 95478 | AK97: =AI97*AJ97 -> 0 | AL97: 229000 | AM97: =AI97*AL97 -> 0 | AN97: =AJ97*AI97+AL97*AI97 -> 0 | AP97: 95478 | AQ97: =AO97*AP97 -> 0 | AR97: 229000 | AS97: =AO97*AR97 -> 0 | AT97: =AP97*AO97+AR97*AO97 -> 0 | AV97: 95478 | AW97: =AU97*AV97 -> 0 | AX97: 229000 | AY97: =AU97*AX97 -> 0 | AZ97: =AV97*AU97+AX97*AU97 -> 0 | BB97: 95478 | BC97: =BA97*BB97 -> 0 | BD97: 229000 | BE97: =BA97*BD97 -> 0 | BF97: =BB97*BA97+BD97*BA97 -> 0 | BH97: 0.34 | BI97: 95478 | BJ97: =BH97*BI97 -> 32462.52 | BK97: 229000 | BL97: =BH97*BK97 -> 77860 | BM97: =BI97*BH97+BK97*BH97 -> 110322.52 | BN97: 0.32 | BO97: 95478 | BP97: =BN97*BO97 -> 30552.96 | BQ97: 229000 | BR97: =BN97*BQ97 -> 73280 | BS97: =BO97*BN97+BQ97*BN97 -> 103832.96
A98: 1.2.2 | B98: Окраска металлоконструкций | BH98: =K98+Q98+W98+AC98+AI98+AO98+AU98+BA98 -> 0 | BN98: =D98-BH98 -> 0
A99: 1.2.2.1 | B99: Устройство огнезащитной краски по металлу | C99: м2 | D99: 384.2 | E99: 4150 | F99: =D99*E99 -> 1594430 | G99: 665 | H99: =D99*G99 -> 255493 | I99: =E99*D99+G99*D99 -> 1849923 | L99: 4150 | M99: =K99*L99 -> 0 | N99: 665 | O99: =K99*N99 -> 0 | P99: =L99*K99+N99*K99 -> 0 | R99: 4150 | S99: =Q99*R99 -> 0 | T99: 665 | U99: =Q99*T99 -> 0 | V99: =R99*Q99+T99*Q99 -> 0 | W99: 300 | X99: 4150 | Y99: =W99*X99 -> 1245000 | Z99: 665 | AA99: =W99*Z99 -> 199500 | AB99: =X99*W99+Z99*W99 -> 1444500 | AD99: 4150 | AE99: =AC99*AD99 -> 0 | AF99: 665 | AG99: =AC99*AF99 -> 0 | AH99: =AD99*AC99+AF99*AC99 -> 0 | AJ99: 4150 | AK99: =AI99*AJ99 -> 0 | AL99: 665 | AM99: =AI99*AL99 -> 0 | AN99: =AJ99*AI99+AL99*AI99 -> 0 | AP99: 4150 | AQ99: =AO99*AP99 -> 0 | AR99: 665 | AS99: =AO99*AR99 -> 0 | AT99: =AP99*AO99+AR99*AO99 -> 0 | AV99: 4150 | AW99: =AU99*AV99 -> 0 | AX99: 665 | AY99: =AU99*AX99 -> 0 | AZ99: =AV99*AU99+AX99*AU99 -> 0 | BB99: 4150 | BC99: =BA99*BB99 -> 0 | BD99: 665 | BE99: =BA99*BD99 -> 0 | BF99: =BB99*BA99+BD99*BA99 -> 0 | BH99: 300 | BI99: 4150 | BJ99: =BH99*BI99 -> 1245000 | BK99: 665 | BL99: =BH99*BK99 -> 199500 | BM99: =BI99*BH99+BK99*BH99 -> 1444500 | BN99: 84.2 | BO99: 4150 | BP99: =BN99*BO99 -> 349430 | BQ99: 665 | BR99: =BN99*BQ99 -> 55993 | BS99: =BO99*BN99+BQ99*BN99 -> 405423
A100: 1.2.3 | B100: Крепление металлоконструкций | BH100: 0 | BN100: 0
A101: 1.2.3.1 | B101: Сверление отверстий в железобетонных конструкциях | C101: шт. | D101: 811 | E101: 393 | F101: =D101*E101 -> 318723 | G101: 0 | I101: =E101*D101+G101*D101 -> 318723 | L101: 393 | M101: =K101*L101 -> 0 | N101: 0 | P101: =L101*K101+N101*K101 -> 0 | R101: 393 | S101: =Q101*R101 -> 0 | T101: 0 | V101: =R101*Q101+T101*Q101 -> 0 | W101: 100 | X101: 393 | Y101: =W101*X101 -> 39300 | Z101: 0 | AB101: =X101*W101+Z101*W101 -> 39300 | AD101: 393 | AE101: =AC101*AD101 -> 0 | AF101: 0 | AH101: =AD101*AC101+AF101*AC101 -> 0 | AJ101: 393 | AK101: =AI101*AJ101 -> 0 | AL101: 0 | AN101: =AJ101*AI101+AL101*AI101 -> 0 | AP101: 393 | AQ101: =AO101*AP101 -> 0 | AR101: 0 | AT101: =AP101*AO101+AR101*AO101 -> 0 | AV101: 393 | AW101: =AU101*AV101 -> 0 | AX101: 0 | AZ101: =AV101*AU101+AX101*AU101 -> 0 | BB101: 393 | BC101: =BA101*BB101 -> 0 | BD101: 0 | BF101: =BB101*BA101+BD101*BA101 -> 0 | BH101: 100 | BI101: 393 | BJ101: =BH101*BI101 -> 39300 | BK101: 0 | BM101: =BI101*BH101+BK101*BH101 -> 39300 | BN101: 711 | BO101: 393 | BP101: =BN101*BO101 -> 279423 | BQ101: 0 | BS101: =BO101*BN101+BQ101*BN101 -> 279423
A102: 1.2.3.2 | B102: Устройство высокопрочных анкеров, закладных | C102: компл. | D102: 1 | E102: 260741 | F102: =D102*E102 -> 260741 | G102: 259614 | H102: =D102*G102 -> 259614 | I102: 520355 | L102: 260741 | M102: =K102*L102 -> 0 | N102: 259614 | O102: =K102*N102 -> 0 | P102: 0 | R102: 260741 | S102: =Q102*R102 -> 0 | T102: 259614 | U102: =Q102*T102 -> 0 | V102: 0 | W102: 0.5 | X102: 260741 | Y102: =W102*X102 -> 130370.5 | Z102: 259614 | AA102: =W102*Z102 -> 129807 | AB102: 260177.5 | AD102: 260741 | AE102: =AC102*AD102 -> 0 | AF102: 259614 | AG102: =AC102*AF102 -> 0 | AH102: 0 | AJ102: 260741 | AK102: =AI102*AJ102 -> 0 | AL102: 259614 | AM102: =AI102*AL102 -> 0 | AN102: 0 | AP102: 260741 | AQ102: =AO102*AP102 -> 0 | AR102: 259614 | AS102: =AO102*AR102 -> 0 | AT102: 0 | AV102: 260741 | AW102: =AU102*AV102 -> 0 | AX102: 259614 | AY102: =AU102*AX102 -> 0 | AZ102: 0 | BB102: 260741 | BC102: =BA102*BB102 -> 0 | BD102: 259614 | BE102: =BA102*BD102 -> 0 | BF102: 0 | BH102: 0.5 | BI102: 260741 | BJ102: =BH102*BI102 -> 130370.5 | BK102: 259614 | BL102: =BH102*BK102 -> 129807 | BM102: 260177.5 | BN102: 0.5 | BO102: 260741 | BP102: =BN102*BO102 -> 130370.5 | BQ102: 259614 | BR102: =BN102*BQ102 -> 129807 | BS102: 260177.5
A103: 1.2.4 | B103: Демонтаж металлоконструкций | BH103: 0 | BN103: 0
A104: 1.2.5 | B104: Устройство перегородки | BH104: 0 | BN104: 0
A105: 1.2.5.1 | B105: Стеновые сэндвич-панели 100-1000-Г-Г | C105: м2 | D105: 2215 | E105: 2711 | F105: =D105*E105 -> 6004865 | G105: 7373 | H105: =D105*G105 -> 16331195 | I105: =E105*D105+G105*D105 -> 22336060 | K105: 1250 | L105: 2711 | M105: =K105*L105 -> 3388750 | N105: 7373 | O105: =K105*N105 -> 9216250 | P105: =L105*K105+N105*K105 -> 12605000 | Q105: 300 | R105: 2711 | S105: =Q105*R105 -> 813300 | T105: 7373 | U105: =Q105*T105 -> 2211900 | V105: =R105*Q105+T105*Q105 -> 3025200 | W105: 500 | X105: 2711 | Y105: =W105*X105 -> 1355500 | Z105: 7373 | AA105: =W105*Z105 -> 3686500 | AB105: =X105*W105+Z105*W105 -> 5042000 | AD105: 2711 | AE105: =AC105*AD105 -> 0 | AF105: 7373 | AG105: =AC105*AF105 -> 0 | AH105: =AD105*AC105+AF105*AC105 -> 0 | AJ105: 2711 | AK105: =AI105*AJ105 -> 0 | AL105: 7373 | AM105: =AI105*AL105 -> 0 | AN105: =AJ105*AI105+AL105*AI105 -> 0 | AP105: 2711 | AQ105: =AO105*AP105 -> 0 | AR105: 7373 | AS105: =AO105*AR105 -> 0 | AT105: =AP105*AO105+AR105*AO105 -> 0 | AV105: 2711 | AW105: =AU105*AV105 -> 0 | AX105: 7373 | AY105: =AU105*AX105 -> 0 | AZ105: =AV105*AU105+AX105*AU105 -> 0 | BB105: 2711 | BC105: =BA105*BB105 -> 0 | BD105: 7373 | BE105: =BA105*BD105 -> 0 | BF105: =BB105*BA105+BD105*BA105 -> 0 | BH105: 2050 | BI105: 2711 | BJ105: =BH105*BI105 -> 5557550 | BK105: 7373 | BL105: =BH105*BK105 -> 15114650 | BM105: =BI105*BH105+BK105*BH105 -> 20672200 | BN105: 165 | BO105: 2711 | BP105: =BN105*BO105 -> 447315 | BQ105: 7373 | BR105: =BN105*BQ105 -> 1216545 | BS105: =BO105*BN105+BQ105*BN105 -> 1663860
A106: 1.2.5.2 | B106: Устройство противопожарной перегородки «Knauf» С112 с двухслойной обшивкой с каждой стороны | C106: м2 | D106: 4 | E106: 5055 | F106: =D106*E106 -> 20220 | G106: 4601 | H106: =D106*G106 -> 18404 | I106: =E106*D106+G106*D106 -> 38624 | L106: 5055 | M106: =K106*L106 -> 0 | N106: 4601 | O106: =K106*N106 -> 0 | P106: =L106*K106+N106*K106 -> 0 | R106: 5055 | S106: =Q106*R106 -> 0 | T106: 4601 | U106: =Q106*T106 -> 0 | V106: =R106*Q106+T106*Q106 -> 0 | X106: 5055 | Y106: =W106*X106 -> 0 | Z106: 4601 | AA106: =W106*Z106 -> 0 | AB106: =X106*W106+Z106*W106 -> 0 | AD106: 5055 | AE106: =AC106*AD106 -> 0 | AF106: 4601 | AG106: =AC106*AF106 -> 0 | AH106: =AD106*AC106+AF106*AC106 -> 0 | AJ106: 5055 | AK106: =AI106*AJ106 -> 0 | AL106: 4601 | AM106: =AI106*AL106 -> 0 | AN106: =AJ106*AI106+AL106*AI106 -> 0 | AP106: 5055 | AQ106: =AO106*AP106 -> 0 | AR106: 4601 | AS106: =AO106*AR106 -> 0 | AT106: =AP106*AO106+AR106*AO106 -> 0 | AV106: 5055 | AW106: =AU106*AV106 -> 0 | AX106: 4601 | AY106: =AU106*AX106 -> 0 | AZ106: =AV106*AU106+AX106*AU106 -> 0 | BB106: 5055 | BC106: =BA106*BB106 -> 0 | BD106: 4601 | BE106: =BA106*BD106 -> 0 | BF106: =BB106*BA106+BD106*BA106 -> 0 | BH106: 0 | BI106: 5055 | BJ106: =BH106*BI106 -> 0 | BK106: 4601 | BL106: =BH106*BK106 -> 0 | BM106: =BI106*BH106+BK106*BH106 -> 0 | BN106: 4 | BO106: 5055 | BP106: =BN106*BO106 -> 20220 | BQ106: 4601 | BR106: =BN106*BQ106 -> 18404 | BS106: =BO106*BN106+BQ106*BN106 -> 38624
A107: 1.2.6 | B107: Устройство бетонного плинтуса | BH107: 0 | BN107: 0
A108: 1.2.6.1 | B108: Устройство плинтуса из фасонного элемента | C108: м/п | D108: 378 | E108: 280 | F108: =D108*E108 -> 105840 | G108: 420 | H108: =D108*G108 -> 158760 | I108: =E108*D108+G108*D108 -> 264600 | L108: 280 | M108: =K108*L108 -> 0 | N108: 420 | O108: =K108*N108 -> 0 | P108: =L108*K108+N108*K108 -> 0 | R108: 280 | S108: =Q108*R108 -> 0 | T108: 420 | U108: =Q108*T108 -> 0 | V108: =R108*Q108+T108*Q108 -> 0 | X108: 280 | Y108: =W108*X108 -> 0 | Z108: 420 | AA108: =W108*Z108 -> 0 | AB108: =X108*W108+Z108*W108 -> 0 | AD108: 280 | AE108: =AC108*AD108 -> 0 | AF108: 420 | AG108: =AC108*AF108 -> 0 | AH108: =AD108*AC108+AF108*AC108 -> 0 | AJ108: 280 | AK108: =AI108*AJ108 -> 0 | AL108: 420 | AM108: =AI108*AL108 -> 0 | AN108: =AJ108*AI108+AL108*AI108 -> 0 | AP108: 280 | AQ108: =AO108*AP108 -> 0 | AR108: 420 | AS108: =AO108*AR108 -> 0 | AT108: =AP108*AO108+AR108*AO108 -> 0 | AV108: 280 | AW108: =AU108*AV108 -> 0 | AX108: 420 | AY108: =AU108*AX108 -> 0 | AZ108: =AV108*AU108+AX108*AU108 -> 0 | BB108: 280 | BC108: =BA108*BB108 -> 0 | BD108: 420 | BE108: =BA108*BD108 -> 0 | BF108: =BB108*BA108+BD108*BA108 -> 0 | BH108: 0 | BI108: 280 | BJ108: =BH108*BI108 -> 0 | BK108: 420 | BL108: =BH108*BK108 -> 0 | BM108: =BI108*BH108+BK108*BH108 -> 0 | BN108: 378 | BO108: 280 | BP108: =BN108*BO108 -> 105840 | BQ108: 420 | BR108: =BN108*BQ108 -> 158760 | BS108: =BO108*BN108+BQ108*BN108 -> 264600
A109: 1.3 | B109: 130-23-ВК Внутренние трубопроводы | F109: =SUM(F110:F113) -> 3943362 | H109: =SUM(H110:H113) -> 7445174 | I109: =SUM(I110:I113) -> 11388536 | M109: =SUM(M110:M113) -> 0 | O109: =SUM(O110:O113) -> 0 | P109: =SUM(P110:P113) -> 0 | S109: =SUM(S110:S113) -> 175081.5 | U109: =SUM(U110:U113) -> 369598.5 | V109: =SUM(V110:V113) -> 544680 | Y109: =SUM(Y110:Y113) -> 2979608.1 | AA109: =SUM(AA110:AA113) -> 5586540.7 | AB109: =SUM(AB110:AB113) -> 8566148.8 | AE109: =SUM(AE110:AE113) -> 0 | AG109: =SUM(AG110:AG113) -> 0 | AH109: =SUM(AH110:AH113) -> 0 | AK109: =SUM(AK110:AK113) -> 0 | AM109: =SUM(AM110:AM113) -> 0 | AN109: =SUM(AN110:AN113) -> 0 | AQ109: =SUM(AQ110:AQ113) -> 0 | AS109: =SUM(AS110:AS113) -> 0 | AT109: =SUM(AT110:AT113) -> 0 | AW109: =SUM(AW110:AW113) -> 0 | AY109: =SUM(AY110:AY113) -> 0 | AZ109: =SUM(AZ110:AZ113) -> 0 | BC109: =SUM(BC110:BC113) -> 0 | BE109: =SUM(BE110:BE113) -> 0 | BF109: =SUM(BF110:BF113) -> 0 | BH109: 0 | BJ109: =SUM(BJ110:BJ113) -> 3154689.6 | BL109: =SUM(BL110:BL113) -> 5956139.2 | BM109: =SUM(BM110:BM113) -> 9110828.8 | BN109: 0 | BP109: =SUM(BP110:BP113) -> 788672.4 | BR109: =SUM(BR110:BR113) -> 1489034.8 | BS109: =SUM(BS110:BS113) -> 2277707.2
A110: 1.3.1 | B110: Хозяйственно-питьевой водопровод В1. | C110: сис | D110: 1 | E110: 910581 | F110: =D110*E110 -> 910581 | G110: 979867 | H110: =D110*G110 -> 979867 | I110: =E110*D110+G110*D110 -> 1890448 | L110: 910581 | M110: =K110*L110 -> 0 | N110: 979867 | O110: =K110*N110 -> 0 | P110: =L110*K110+N110*K110 -> 0 | R110: 910581 | S110: =Q110*R110 -> 0 | T110: 979867 | U110: =Q110*T110 -> 0 | V110: =R110*Q110+T110*Q110 -> 0 | W110: 0.8 | X110: 910581 | Y110: =W110*X110 -> 728464.8 | Z110: 979867 | AA110: =W110*Z110 -> 783893.6 | AB110: =X110*W110+Z110*W110 -> 1512358.4 | AD110: 910581 | AE110: =AC110*AD110 -> 0 | AF110: 979867 | AG110: =AC110*AF110 -> 0 | AH110: =AD110*AC110+AF110*AC110 -> 0 | AJ110: 910581 | AK110: =AI110*AJ110 -> 0 | AL110: 979867 | AM110: =AI110*AL110 -> 0 | AN110: =AJ110*AI110+AL110*AI110 -> 0 | AP110: 910581 | AQ110: =AO110*AP110 -> 0 | AR110: 979867 | AS110: =AO110*AR110 -> 0 | AT110: =AP110*AO110+AR110*AO110 -> 0 | AV110: 910581 | AW110: =AU110*AV110 -> 0 | AX110: 979867 | AY110: =AU110*AX110 -> 0 | AZ110: =AV110*AU110+AX110*AU110 -> 0 | BB110: 910581 | BC110: =BA110*BB110 -> 0 | BD110: 979867 | BE110: =BA110*BD110 -> 0 | BF110: =BB110*BA110+BD110*BA110 -> 0 | BH110: 0.8 | BI110: 910581 | BJ110: =BH110*BI110 -> 728464.8 | BK110: 979867 | BL110: =BH110*BK110 -> 783893.6 | BM110: =BI110*BH110+BK110*BH110 -> 1512358.4 | BN110: 0.2 | BO110: 910581 | BP110: =BN110*BO110 -> 182116.2 | BQ110: 979867 | BR110: =BN110*BQ110 -> 195973.4 | BS110: =BO110*BN110+BQ110*BN110 -> 378089.6
A111: 1.3.2 | B111: Горячее водоснабжение (Т3, Т4) | C111: сис | D111: 1 | E111: 1137342 | F111: =D111*E111 -> 1137342 | G111: 1607675 | H111: =D111*G111 -> 1607675 | I111: =E111*D111+G111*D111 -> 2745017 | L111: 1137342 | M111: =K111*L111 -> 0 | N111: 1607675 | O111: =K111*N111 -> 0 | P111: =L111*K111+N111*K111 -> 0 | R111: 1137342 | S111: =Q111*R111 -> 0 | T111: 1607675 | U111: =Q111*T111 -> 0 | V111: =R111*Q111+T111*Q111 -> 0 | W111: 0.8 | X111: 1137342 | Y111: =W111*X111 -> 909873.6 | Z111: 1607675 | AA111: =W111*Z111 -> 1286140 | AB111: =X111*W111+Z111*W111 -> 2196013.6 | AD111: 1137342 | AE111: =AC111*AD111 -> 0 | AF111: 1607675 | AG111: =AC111*AF111 -> 0 | AH111: =AD111*AC111+AF111*AC111 -> 0 | AJ111: 1137342 | AK111: =AI111*AJ111 -> 0 | AL111: 1607675 | AM111: =AI111*AL111 -> 0 | AN111: =AJ111*AI111+AL111*AI111 -> 0 | AP111: 1137342 | AQ111: =AO111*AP111 -> 0 | AR111: 1607675 | AS111: =AO111*AR111 -> 0 | AT111: =AP111*AO111+AR111*AO111 -> 0 | AV111: 1137342 | AW111: =AU111*AV111 -> 0 | AX111: 1607675 | AY111: =AU111*AX111 -> 0 | AZ111: =AV111*AU111+AX111*AU111 -> 0 | BB111: 1137342 | BC111: =BA111*BB111 -> 0 | BD111: 1607675 | BE111: =BA111*BD111 -> 0 | BF111: =BB111*BA111+BD111*BA111 -> 0 | BH111: 0.8 | BI111: 1137342 | BJ111: =BH111*BI111 -> 909873.6 | BK111: 1607675 | BL111: =BH111*BK111 -> 1286140 | BM111: =BI111*BH111+BK111*BH111 -> 2196013.6 | BN111: 0.2 | BO111: 1137342 | BP111: =BN111*BO111 -> 227468.4 | BQ111: 1607675 | BR111: =BN111*BQ111 -> 321535 | BS111: =BO111*BN111+BQ111*BN111 -> 549003.4
A112: 1.3.3 | B112: Противопожарный водопровод, В2 | C112: сис | D112: 1 | E112: 1545276 | F112: =D112*E112 -> 1545276 | G112: 4118435 | H112: =D112*G112 -> 4118435 | I112: =E112*D112+G112*D112 -> 5663711 | L112: 1545276 | M112: =K112*L112 -> 0 | N112: 4118435 | O112: =K112*N112 -> 0 | P112: =L112*K112+N112*K112 -> 0 | R112: 1545276 | S112: =Q112*R112 -> 0 | T112: 4118435 | U112: =Q112*T112 -> 0 | V112: =R112*Q112+T112*Q112 -> 0 | W112: 0.8 | X112: 1545276 | Y112: =W112*X112 -> 1236220.8 | Z112: 4118435 | AA112: =W112*Z112 -> 3294748 | AB112: =X112*W112+Z112*W112 -> 4530968.8 | AD112: 1545276 | AE112: =AC112*AD112 -> 0 | AF112: 4118435 | AG112: =AC112*AF112 -> 0 | AH112: =AD112*AC112+AF112*AC112 -> 0 | AJ112: 1545276 | AK112: =AI112*AJ112 -> 0 | AL112: 4118435 | AM112: =AI112*AL112 -> 0 | AN112: =AJ112*AI112+AL112*AI112 -> 0 | AP112: 1545276 | AQ112: =AO112*AP112 -> 0 | AR112: 4118435 | AS112: =AO112*AR112 -> 0 | AT112: =AP112*AO112+AR112*AO112 -> 0 | AV112: 1545276 | AW112: =AU112*AV112 -> 0 | AX112: 4118435 | AY112: =AU112*AX112 -> 0 | AZ112: =AV112*AU112+AX112*AU112 -> 0 | BB112: 1545276 | BC112: =BA112*BB112 -> 0 | BD112: 4118435 | BE112: =BA112*BD112 -> 0 | BF112: =BB112*BA112+BD112*BA112 -> 0 | BH112: 0.8 | BI112: 1545276 | BJ112: =BH112*BI112 -> 1236220.8 | BK112: 4118435 | BL112: =BH112*BK112 -> 3294748 | BM112: =BI112*BH112+BK112*BH112 -> 4530968.8 | BN112: 0.2 | BO112: 1545276 | BP112: =BN112*BO112 -> 309055.2 | BQ112: 4118435 | BR112: =BN112*BQ112 -> 823687 | BS112: =BO112*BN112+BQ112*BN112 -> 1132742.2
A113: 1.3.4 | B113: Бытовая канализация К1 | C113: сис | D113: 1 | E113: 350163 | F113: =D113*E113 -> 350163 | G113: 739197 | H113: =D113*G113 -> 739197 | I113: =E113*D113+G113*D113 -> 1089360 | L113: 350163 | M113: =K113*L113 -> 0 | N113: 739197 | O113: =K113*N113 -> 0 | P113: =L113*K113+N113*K113 -> 0 | Q113: 0.5 | R113: 350163 | S113: =Q113*R113 -> 175081.5 | T113: 739197 | U113: =Q113*T113 -> 369598.5 | V113: =R113*Q113+T113*Q113 -> 544680 | W113: 0.3 | X113: 350163 | Y113: =W113*X113 -> 105048.9 | Z113: 739197 | AA113: =W113*Z113 -> 221759.1 | AB113: =X113*W113+Z113*W113 -> 326808 | AD113: 350163 | AE113: =AC113*AD113 -> 0 | AF113: 739197 | AG113: =AC113*AF113 -> 0 | AH113: =AD113*AC113+AF113*AC113 -> 0 | AJ113: 350163 | AK113: =AI113*AJ113 -> 0 | AL113: 739197 | AM113: =AI113*AL113 -> 0 | AN113: =AJ113*AI113+AL113*AI113 -> 0 | AP113: 350163 | AQ113: =AO113*AP113 -> 0 | AR113: 739197 | AS113: =AO113*AR113 -> 0 | AT113: =AP113*AO113+AR113*AO113 -> 0 | AV113: 350163 | AW113: =AU113*AV113 -> 0 | AX113: 739197 | AY113: =AU113*AX113 -> 0 | AZ113: =AV113*AU113+AX113*AU113 -> 0 | BB113: 350163 | BC113: =BA113*BB113 -> 0 | BD113: 739197 | BE113: =BA113*BD113 -> 0 | BF113: =BB113*BA113+BD113*BA113 -> 0 | BH113: 0.8 | BI113: 350163 | BJ113: =BH113*BI113 -> 280130.4 | BK113: 739197 | BL113: =BH113*BK113 -> 591357.6 | BM113: =BI113*BH113+BK113*BH113 -> 871488 | BN113: 0.2 | BO113: 350163 | BP113: =BN113*BO113 -> 70032.6 | BQ113: 739197 | BR113: =BN113*BQ113 -> 147839.4 | BS113: =BO113*BN113+BQ113*BN113 -> 217872
A114: 1.4 | B114: 130-23-ПС Пожарная сигнализация | F114: =F115+F116+F117+F118+F119+F120+F121+F122+F123+F124+SUM(F125:F131)+F132+F133+F134+F135+F136+F137+F138+F139+F140+F141+F142+F143+F144+F145+F146+F147+F148+F149+F150+F151+F152+F153+F154+SUM(F155:F166)+F167+F168+F169+F170+F171+F172+F173+F174+F175+F176+F177+F178+F179+F180+F181+SUM(F183:F197) -> 5567925.5 | H114: =H115+H116+H117+H118+H119+H120+H121+H122+H123+H124+SUM(H125:H131)+H132+H133+H134+H135+H136+H137+H138+H139+H140+H141+H142+H143+H144+H145+H146+H147+H148+H149+H150+H151+H152+H153+H154+SUM(H155:H166)+H167+H168+H169+H170+H171+H172+H173+H174+H175+H176+H177+H178+H179+H180+H181+SUM(H183:H197) -> 6146099.1 | I114: =I115+I116+I117+I118+I119+I120+I121+I122+I123+I124+SUM(I125:I131)+I132+I133+I134+I135+I136+I137+I138+I139+I140+I141+I142+I143+I144+I145+I146+I147+I148+I149+I150+I151+I152+I153+I154+SUM(I155:I166)+I167+I168+I169+I170+I171+I172+I173+I174+I175+I176+I177+I178+I179+I180+I181+SUM(I183:I197) -> 11714024.6 | M114: =M115+M116+M117+M118+M119+M120+M121+M122+M123+M124+SUM(M125:M131)+M132+M133+M134+M135+M136+M137+M138+M139+M140+M141+M142+M143+M144+M145+M146+M147+M148+M149+M150+M151+M152+M153+M154+SUM(M155:M166)+M167+M168+M169+M170+M171+M172+M173+M174+M175+M176+M177+M178+M179+M180+M181+SUM(M183:M197) -> 0 | O114: =O115+O116+O117+O118+O119+O120+O121+O122+O123+O124+SUM(O125:O131)+O132+O133+O134+O135+O136+O137+O138+O139+O140+O141+O142+O143+O144+O145+O146+O147+O148+O149+O150+O151+O152+O153+O154+SUM(O155:O166)+O167+O168+O169+O170+O171+O172+O173+O174+O175+O176+O177+O178+O179+O180+O181+SUM(O183:O197) -> 0 | P114: =P115+P116+P117+P118+P119+P120+P121+P122+P123+P124+SUM(P125:P131)+P132+P133+P134+P135+P136+P137+P138+P139+P140+P141+P142+P143+P144+P145+P146+P147+P148+P149+P150+P151+P152+P153+P154+SUM(P155:P166)+P167+P168+P169+P170+P171+P172+P173+P174+P175+P176+P177+P178+P179+P180+P181+SUM(P183:P197) -> 0 | S114: =S115+S116+S117+S118+S119+S120+S121+S122+S123+S124+SUM(S125:S131)+S132+S133+S134+S135+S136+S137+S138+S139+S140+S141+S142+S143+S144+S145+S146+S147+S148+S149+S150+S151+S152+S153+S154+SUM(S155:S166)+S167+S168+S169+S170+S171+S172+S173+S174+S175+S176+S177+S178+S179+S180+S181+SUM(S183:S197) -> 0 | U114: =U115+U116+U117+U118+U119+U120+U121+U122+U123+U124+SUM(U125:U131)+U132+U133+U134+U135+U136+U137+U138+U139+U140+U141+U142+U143+U144+U145+U146+U147+U148+U149+U150+U151+U152+U153+U154+SUM(U155:U166)+U167+U168+U169+U170+U171+U172+U173+U174+U175+U176+U177+U178+U179+U180+U181+SUM(U183:U197) -> 0 | V114: =V115+V116+V117+V118+V119+V120+V121+V122+V123+V124+SUM(V125:V131)+V132+V133+V134+V135+V136+V137+V138+V139+V140+V141+V142+V143+V144+V145+V146+V147+V148+V149+V150+V151+V152+V153+V154+SUM(V155:V166)+V167+V168+V169+V170+V171+V172+V173+V174+V175+V176+V177+V178+V179+V180+V181+SUM(V183:V197) -> 0 | Y114: =Y115+Y116+Y117+Y118+Y119+Y120+Y121+Y122+Y123+Y124+SUM(Y125:Y131)+Y132+Y133+Y134+Y135+Y136+Y137+Y138+Y139+Y140+Y141+Y142+Y143+Y144+Y145+Y146+Y147+Y148+Y149+Y150+Y151+Y152+Y153+Y154+SUM(Y155:Y166)+Y167+Y168+Y169+Y170+Y171+Y172+Y173+Y174+Y175+Y176+Y177+Y178+Y179+Y180+Y181+SUM(Y183:Y197) -> 460596 | AA114: =AA115+AA116+AA117+AA118+AA119+AA120+AA121+AA122+AA123+AA124+SUM(AA125:AA131)+AA132+AA133+AA134+AA135+AA136+AA137+AA138+AA139+AA140+AA141+AA142+AA143+AA144+AA145+AA146+AA147+AA148+AA149+AA150+AA151+AA152+AA153+AA154+SUM(AA155:AA166)+AA167+AA168+AA169+AA170+AA171+AA172+AA173+AA174+AA175+AA176+AA177+AA178+AA179+AA180+AA181+SUM(AA183:AA197) -> 1030533.96 | AB114: =AB115+AB116+AB117+AB118+AB119+AB120+AB121+AB122+AB123+AB124+SUM(AB125:AB131)+AB132+AB133+AB134+AB135+AB136+AB137+AB138+AB139+AB140+AB141+AB142+AB143+AB144+AB145+AB146+AB147+AB148+AB149+AB150+AB151+AB152+AB153+AB154+SUM(AB155:AB166)+AB167+AB168+AB169+AB170+AB171+AB172+AB173+AB174+AB175+AB176+AB177+AB178+AB179+AB180+AB181+SUM(AB183:AB197) -> 1491129.96 | AE114: =AE115+AE116+AE117+AE118+AE119+AE120+AE121+AE122+AE123+AE124+SUM(AE125:AE131)+AE132+AE133+AE134+AE135+AE136+AE137+AE138+AE139+AE140+AE141+AE142+AE143+AE144+AE145+AE146+AE147+AE148+AE149+AE150+AE151+AE152+AE153+AE154+SUM(AE155:AE166)+AE167+AE168+AE169+AE170+AE171+AE172+AE173+AE174+AE175+AE176+AE177+AE178+AE179+AE180+AE181+SUM(AE183:AE197) -> 0 | AG114: =AG115+AG116+AG117+AG118+AG119+AG120+AG121+AG122+AG123+AG124+SUM(AG125:AG131)+AG132+AG133+AG134+AG135+AG136+AG137+AG138+AG139+AG140+AG141+AG142+AG143+AG144+AG145+AG146+AG147+AG148+AG149+AG150+AG151+AG152+AG153+AG154+SUM(AG155:AG166)+AG167+AG168+AG169+AG170+AG171+AG172+AG173+AG174+AG175+AG176+AG177+AG178+AG179+AG180+AG181+SUM(AG183:AG197) -> 0 | AH114: =AH115+AH116+AH117+AH118+AH119+AH120+AH121+AH122+AH123+AH124+SUM(AH125:AH131)+AH132+AH133+AH134+AH135+AH136+AH137+AH138+AH139+AH140+AH141+AH142+AH143+AH144+AH145+AH146+AH147+AH148+AH149+AH150+AH151+AH152+AH153+AH154+SUM(AH155:AH166)+AH167+AH168+AH169+AH170+AH171+AH172+AH173+AH174+AH175+AH176+AH177+AH178+AH179+AH180+AH181+SUM(AH183:AH197) -> 0 | AK114: =AK115+AK116+AK117+AK118+AK119+AK120+AK121+AK122+AK123+AK124+SUM(AK125:AK131)+AK132+AK133+AK134+AK135+AK136+AK137+AK138+AK139+AK140+AK141+AK142+AK143+AK144+AK145+AK146+AK147+AK148+AK149+AK150+AK151+AK152+AK153+AK154+SUM(AK155:AK166)+AK167+AK168+AK169+AK170+AK171+AK172+AK173+AK174+AK175+AK176+AK177+AK178+AK179+AK180+AK181+SUM(AK183:AK197) -> 0 | AM114: =AM115+AM116+AM117+AM118+AM119+AM120+AM121+AM122+AM123+AM124+SUM(AM125:AM131)+AM132+AM133+AM134+AM135+AM136+AM137+AM138+AM139+AM140+AM141+AM142+AM143+AM144+AM145+AM146+AM147+AM148+AM149+AM150+AM151+AM152+AM153+AM154+SUM(AM155:AM166)+AM167+AM168+AM169+AM170+AM171+AM172+AM173+AM174+AM175+AM176+AM177+AM178+AM179+AM180+AM181+SUM(AM183:AM197) -> 0 | AN114: =AN115+AN116+AN117+AN118+AN119+AN120+AN121+AN122+AN123+AN124+SUM(AN125:AN131)+AN132+AN133+AN134+AN135+AN136+AN137+AN138+AN139+AN140+AN141+AN142+AN143+AN144+AN145+AN146+AN147+AN148+AN149+AN150+AN151+AN152+AN153+AN154+SUM(AN155:AN166)+AN167+AN168+AN169+AN170+AN171+AN172+AN173+AN174+AN175+AN176+AN177+AN178+AN179+AN180+AN181+SUM(AN183:AN197) -> 0 | AQ114: =AQ115+AQ116+AQ117+AQ118+AQ119+AQ120+AQ121+AQ122+AQ123+AQ124+SUM(AQ125:AQ131)+AQ132+AQ133+AQ134+AQ135+AQ136+AQ137+AQ138+AQ139+AQ140+AQ141+AQ142+AQ143+AQ144+AQ145+AQ146+AQ147+AQ148+AQ149+AQ150+AQ151+AQ152+AQ153+AQ154+SUM(AQ155:AQ166)+AQ167+AQ168+AQ169+AQ170+AQ171+AQ172+AQ173+AQ174+AQ175+AQ176+AQ177+AQ178+AQ179+AQ180+AQ181+SUM(AQ183:AQ197) -> 0 | AS114: =AS115+AS116+AS117+AS118+AS119+AS120+AS121+AS122+AS123+AS124+SUM(AS125:AS131)+AS132+AS133+AS134+AS135+AS136+AS137+AS138+AS139+AS140+AS141+AS142+AS143+AS144+AS145+AS146+AS147+AS148+AS149+AS150+AS151+AS152+AS153+AS154+SUM(AS155:AS166)+AS167+AS168+AS169+AS170+AS171+AS172+AS173+AS174+AS175+AS176+AS177+AS178+AS179+AS180+AS181+SUM(AS183:AS197) -> 0 | AT114: =AT115+AT116+AT117+AT118+AT119+AT120+AT121+AT122+AT123+AT124+SUM(AT125:AT131)+AT132+AT133+AT134+AT135+AT136+AT137+AT138+AT139+AT140+AT141+AT142+AT143+AT144+AT145+AT146+AT147+AT148+AT149+AT150+AT151+AT152+AT153+AT154+SUM(AT155:AT166)+AT167+AT168+AT169+AT170+AT171+AT172+AT173+AT174+AT175+AT176+AT177+AT178+AT179+AT180+AT181+SUM(AT183:AT197) -> 0 | AW114: =AW115+AW116+AW117+AW118+AW119+AW120+AW121+AW122+AW123+AW124+SUM(AW125:AW131)+AW132+AW133+AW134+AW135+AW136+AW137+AW138+AW139+AW140+AW141+AW142+AW143+AW144+AW145+AW146+AW147+AW148+AW149+AW150+AW151+AW152+AW153+AW154+SUM(AW155:AW166)+AW167+AW168+AW169+AW170+AW171+AW172+AW173+AW174+AW175+AW176+AW177+AW178+AW179+AW180+AW181+SUM(AW183:AW197) -> 0 | AY114: =AY115+AY116+AY117+AY118+AY119+AY120+AY121+AY122+AY123+AY124+SUM(AY125:AY131)+AY132+AY133+AY134+AY135+AY136+AY137+AY138+AY139+AY140+AY141+AY142+AY143+AY144+AY145+AY146+AY147+AY148+AY149+AY150+AY151+AY152+AY153+AY154+SUM(AY155:AY166)+AY167+AY168+AY169+AY170+AY171+AY172+AY173+AY174+AY175+AY176+AY177+AY178+AY179+AY180+AY181+SUM(AY183:AY197) -> 0 | AZ114: =AZ115+AZ116+AZ117+AZ118+AZ119+AZ120+AZ121+AZ122+AZ123+AZ124+SUM(AZ125:AZ131)+AZ132+AZ133+AZ134+AZ135+AZ136+AZ137+AZ138+AZ139+AZ140+AZ141+AZ142+AZ143+AZ144+AZ145+AZ146+AZ147+AZ148+AZ149+AZ150+AZ151+AZ152+AZ153+AZ154+SUM(AZ155:AZ166)+AZ167+AZ168+AZ169+AZ170+AZ171+AZ172+AZ173+AZ174+AZ175+AZ176+AZ177+AZ178+AZ179+AZ180+AZ181+SUM(AZ183:AZ197) -> 0 | BC114: =BC115+BC116+BC117+BC118+BC119+BC120+BC121+BC122+BC123+BC124+SUM(BC125:BC131)+BC132+BC133+BC134+BC135+BC136+BC137+BC138+BC139+BC140+BC141+BC142+BC143+BC144+BC145+BC146+BC147+BC148+BC149+BC150+BC151+BC152+BC153+BC154+SUM(BC155:BC166)+BC167+BC168+BC169+BC170+BC171+BC172+BC173+BC174+BC175+BC176+BC177+BC178+BC179+BC180+BC181+SUM(BC183:BC197) -> 0 | BE114: =BE115+BE116+BE117+BE118+BE119+BE120+BE121+BE122+BE123+BE124+SUM(BE125:BE131)+BE132+BE133+BE134+BE135+BE136+BE137+BE138+BE139+BE140+BE141+BE142+BE143+BE144+BE145+BE146+BE147+BE148+BE149+BE150+BE151+BE152+BE153+BE154+SUM(BE155:BE166)+BE167+BE168+BE169+BE170+BE171+BE172+BE173+BE174+BE175+BE176+BE177+BE178+BE179+BE180+BE181+SUM(BE183:BE197) -> 0 | BF114: =BF115+BF116+BF117+BF118+BF119+BF120+BF121+BF122+BF123+BF124+SUM(BF125:BF131)+BF132+BF133+BF134+BF135+BF136+BF137+BF138+BF139+BF140+BF141+BF142+BF143+BF144+BF145+BF146+BF147+BF148+BF149+BF150+BF151+BF152+BF153+BF154+SUM(BF155:BF166)+BF167+BF168+BF169+BF170+BF171+BF172+BF173+BF174+BF175+BF176+BF177+BF178+BF179+BF180+BF181+SUM(BF183:BF197) -> 0 | BH114: 0 | BJ114: =BJ115+BJ116+BJ117+BJ118+BJ119+BJ120+BJ121+BJ122+BJ123+BJ124+SUM(BJ125:BJ131)+BJ132+BJ133+BJ134+BJ135+BJ136+BJ137+BJ138+BJ139+BJ140+BJ141+BJ142+BJ143+BJ144+BJ145+BJ146+BJ147+BJ148+BJ149+BJ150+BJ151+BJ152+BJ153+BJ154+SUM(BJ155:BJ166)+BJ167+BJ168+BJ169+BJ170+BJ171+BJ172+BJ173+BJ174+BJ175+BJ176+BJ177+BJ178+BJ179+BJ180+BJ181+SUM(BJ183:BJ197) -> 460596 | BL114: =BL115+BL116+BL117+BL118+BL119+BL120+BL121+BL122+BL123+BL124+SUM(BL125:BL131)+BL132+BL133+BL134+BL135+BL136+BL137+BL138+BL139+BL140+BL141+BL142+BL143+BL144+BL145+BL146+BL147+BL148+BL149+BL150+BL151+BL152+BL153+BL154+SUM(BL155:BL166)+BL167+BL168+BL169+BL170+BL171+BL172+BL173+BL174+BL175+BL176+BL177+BL178+BL179+BL180+BL181+SUM(BL183:BL197) -> 1030533.96 | BM114: =BM115+BM116+BM117+BM118+BM119+BM120+BM121+BM122+BM123+BM124+SUM(BM125:BM131)+BM132+BM133+BM134+BM135+BM136+BM137+BM138+BM139+BM140+BM141+BM142+BM143+BM144+BM145+BM146+BM147+BM148+BM149+BM150+BM151+BM152+BM153+BM154+SUM(BM155:BM166)+BM167+BM168+BM169+BM170+BM171+BM172+BM173+BM174+BM175+BM176+BM177+BM178+BM179+BM180+BM181+SUM(BM183:BM197) -> 1491129.96 | BN114: 0 | BP114: =BP115+BP116+BP117+BP118+BP119+BP120+BP121+BP122+BP123+BP124+SUM(BP125:BP131)+BP132+BP133+BP134+BP135+BP136+BP137+BP138+BP139+BP140+BP141+BP142+BP143+BP144+BP145+BP146+BP147+BP148+BP149+BP150+BP151+BP152+BP153+BP154+SUM(BP155:BP166)+BP167+BP168+BP169+BP170+BP171+BP172+BP173+BP174+BP175+BP176+BP177+BP178+BP179+BP180+BP181+SUM(BP183:BP197) -> 5107329.5 | BR114: =BR115+BR116+BR117+BR118+BR119+BR120+BR121+BR122+BR123+BR124+SUM(BR125:BR131)+BR132+BR133+BR134+BR135+BR136+BR137+BR138+BR139+BR140+BR141+BR142+BR143+BR144+BR145+BR146+BR147+BR148+BR149+BR150+BR151+BR152+BR153+BR154+SUM(BR155:BR166)+BR167+BR168+BR169+BR170+BR171+BR172+BR173+BR174+BR175+BR176+BR177+BR178+BR179+BR180+BR181+SUM(BR183:BR197) -> 5115565.14 | BS114: =BS115+BS116+BS117+BS118+BS119+BS120+BS121+BS122+BS123+BS124+SUM(BS125:BS131)+BS132+BS133+BS134+BS135+BS136+BS137+BS138+BS139+BS140+BS141+BS142+BS143+BS144+BS145+BS146+BS147+BS148+BS149+BS150+BS151+BS152+BS153+BS154+SUM(BS155:BS166)+BS167+BS168+BS169+BS170+BS171+BS172+BS173+BS174+BS175+BS176+BS177+BS178+BS179+BS180+BS181+SUM(BS183:BS197) -> 10222894.64
A115: 1.4.1 | B115: Сервер "Орион Про" | C115: компл. | D115: 1 | E115: 50304 | F115: =D115*E115 -> 50304 | G115: 0 | I115: =E115*D115+G115*D115 -> 50304 | L115: 50304 | M115: =K115*L115 -> 0 | N115: 0 | P115: =L115*K115+N115*K115 -> 0 | R115: 50304 | S115: =Q115*R115 -> 0 | T115: 0 | V115: =R115*Q115+T115*Q115 -> 0 | X115: 50304 | Y115: =W115*X115 -> 0 | Z115: 0 | AB115: =X115*W115+Z115*W115 -> 0 | AD115: 50304 | AE115: =AC115*AD115 -> 0 | AF115: 0 | AH115: =AD115*AC115+AF115*AC115 -> 0 | AJ115: 50304 | AK115: =AI115*AJ115 -> 0 | AL115: 0 | AN115: =AJ115*AI115+AL115*AI115 -> 0 | AP115: 50304 | AQ115: =AO115*AP115 -> 0 | AR115: 0 | AT115: =AP115*AO115+AR115*AO115 -> 0 | AV115: 50304 | AW115: =AU115*AV115 -> 0 | AX115: 0 | AZ115: =AV115*AU115+AX115*AU115 -> 0 | BB115: 50304 | BC115: =BA115*BB115 -> 0 | BD115: 0 | BF115: =BB115*BA115+BD115*BA115 -> 0 | BH115: 0 | BI115: 50304 | BJ115: =BH115*BI115 -> 0 | BK115: 0 | BM115: =BI115*BH115+BK115*BH115 -> 0 | BN115: 1 | BO115: 50304 | BP115: =BN115*BO115 -> 50304 | BQ115: 0 | BS115: =BO115*BN115+BQ115*BN115 -> 50304
A116: 1.4.2 | B116: Шкаф пожарной сигнализации | C116: шт. | D116: 4 | E116: 5502 | F116: 22008 | G116: 36625.68 | H116: =D116*G116 -> 146502.72 | I116: 168510.72 | L116: 5502 | M116: 0 | N116: 36625.68 | O116: =K116*N116 -> 0 | P116: 0 | R116: 5502 | S116: 0 | T116: 36625.68 | U116: =Q116*T116 -> 0 | V116: 0 | W116: 3 | X116: 5502 | Y116: 16506 | Z116: 36625.68 | AA116: =W116*Z116 -> 109877.04 | AB116: 126383.04 | AD116: 5502 | AE116: 0 | AF116: 36625.68 | AG116: =AC116*AF116 -> 0 | AH116: 0 | AJ116: 5502 | AK116: 0 | AL116: 36625.68 | AM116: =AI116*AL116 -> 0 | AN116: 0 | AP116: 5502 | AQ116: 0 | AR116: 36625.68 | AS116: =AO116*AR116 -> 0 | AT116: 0 | AV116: 5502 | AW116: 0 | AX116: 36625.68 | AY116: =AU116*AX116 -> 0 | AZ116: 0 | BB116: 5502 | BC116: 0 | BD116: 36625.68 | BE116: =BA116*BD116 -> 0 | BF116: 0 | BH116: 3 | BI116: 5502 | BJ116: 16506 | BK116: 36625.68 | BL116: =BH116*BK116 -> 109877.04 | BM116: 126383.04 | BN116: 1 | BO116: 5502 | BP116: 5502 | BQ116: 36625.68 | BR116: =BN116*BQ116 -> 36625.68 | BS116: 42127.68
A117: 1.4.3 | B117: Монтажный комплект | C117: шт. | D117: 4 | E117: 2358 | F117: 9432 | G117: 1456 | H117: 5824 | I117: 15256 | L117: 2358 | M117: 0 | N117: 1456 | O117: 0 | P117: 0 | R117: 2358 | S117: 0 | T117: 1456 | U117: 0 | V117: 0 | X117: 2358 | Y117: 0 | Z117: 1456 | AA117: 0 | AB117: 0 | AD117: 2358 | AE117: 0 | AF117: 1456 | AG117: 0 | AH117: 0 | AJ117: 2358 | AK117: 0 | AL117: 1456 | AM117: 0 | AN117: 0 | AP117: 2358 | AQ117: 0 | AR117: 1456 | AS117: 0 | AT117: 0 | AV117: 2358 | AW117: 0 | AX117: 1456 | AY117: 0 | AZ117: 0 | BB117: 2358 | BC117: 0 | BD117: 1456 | BE117: 0 | BF117: 0 | BH117: 0 | BI117: 2358 | BJ117: 0 | BK117: 1456 | BL117: 0 | BM117: 0 | BN117: 4 | BO117: 2358 | BP117: 9432 | BQ117: 1456 | BR117: 5824 | BS117: 15256
A118: 1.4.5 | B118: Прибор приемно-контрольный и управления пожарный | C118: шт. | D118: 1 | E118: 5502 | F118: 5502 | G118: 42033.68 | H118: 42033.68 | I118: 47535.68 | L118: 5502 | M118: 0 | N118: 42033.68 | O118: 0 | P118: 0 | R118: 5502 | S118: 0 | T118: 42033.68 | U118: 0 | V118: 0 | X118: 5502 | Y118: 0 | Z118: 42033.68 | AA118: 0 | AB118: 0 | AD118: 5502 | AE118: 0 | AF118: 42033.68 | AG118: 0 | AH118: 0 | AJ118: 5502 | AK118: 0 | AL118: 42033.68 | AM118: 0 | AN118: 0 | AP118: 5502 | AQ118: 0 | AR118: 42033.68 | AS118: 0 | AT118: 0 | AV118: 5502 | AW118: 0 | AX118: 42033.68 | AY118: 0 | AZ118: 0 | BB118: 5502 | BC118: 0 | BD118: 42033.68 | BE118: 0 | BF118: 0 | BH118: 0 | BI118: 5502 | BJ118: 0 | BK118: 42033.68 | BL118: 0 | BM118: 0 | BN118: 1 | BO118: 5502 | BP118: 5502 | BQ118: 42033.68 | BR118: 42033.68 | BS118: 47535.68
A119: 1.4.6 | B119: Аккумулятор 12 В, 17 А/ч | C119: шт. | D119: 10 | E119: 524 | F119: 5240 | G119: 7368.4 | H119: 73684 | I119: 78924 | L119: 524 | M119: 0 | N119: 7368.4 | O119: 0 | P119: 0 | R119: 524 | S119: 0 | T119: 7368.4 | U119: 0 | V119: 0 | X119: 524 | Y119: 0 | Z119: 7368.4 | AA119: 0 | AB119: 0 | AD119: 524 | AE119: 0 | AF119: 7368.4 | AG119: 0 | AH119: 0 | AJ119: 524 | AK119: 0 | AL119: 7368.4 | AM119: 0 | AN119: 0 | AP119: 524 | AQ119: 0 | AR119: 7368.4 | AS119: 0 | AT119: 0 | AV119: 524 | AW119: 0 | AX119: 7368.4 | AY119: 0 | AZ119: 0 | BB119: 524 | BC119: 0 | BD119: 7368.4 | BE119: 0 | BF119: 0 | BH119: 0 | BI119: 524 | BJ119: 0 | BK119: 7368.4 | BL119: 0 | BM119: 0 | BN119: 10 | BO119: 524 | BP119: 5240 | BQ119: 7368.4 | BR119: 73684 | BS119: 78924
A120: 1.4.7 | B120: Пульт контроля и управления | C120: шт. | D120: 1 | E120: 3406 | F120: 3406 | G120: 14788.18 | H120: 14788.18 | I120: 18194.18 | L120: 3406 | M120: 0 | N120: 14788.18 | O120: 0 | P120: 0 | R120: 3406 | S120: 0 | T120: 14788.18 | U120: 0 | V120: 0 | X120: 3406 | Y120: 0 | Z120: 14788.18 | AA120: 0 | AB120: 0 | AD120: 3406 | AE120: 0 | AF120: 14788.18 | AG120: 0 | AH120: 0 | AJ120: 3406 | AK120: 0 | AL120: 14788.18 | AM120: 0 | AN120: 0 | AP120: 3406 | AQ120: 0 | AR120: 14788.18 | AS120: 0 | AT120: 0 | AV120: 3406 | AW120: 0 | AX120: 14788.18 | AY120: 0 | AZ120: 0 | BB120: 3406 | BC120: 0 | BD120: 14788.18 | BE120: 0 | BF120: 0 | BH120: 0 | BI120: 3406 | BJ120: 0 | BK120: 14788.18 | BL120: 0 | BM120: 0 | BN120: 1 | BO120: 3406 | BP120: 3406 | BQ120: 14788.18 | BR120: 14788.18 | BS120: 18194.18
A121: 1.4.8 | B121: Контроллер двухпроводной линиии связи | C121: шт. | D121: 11 | E121: 3406 | F121: 37466 | G121: 6507.85 | H121: 71586.35 | I121: 109052.35 | L121: 3406 | M121: 0 | N121: 6507.85 | O121: 0 | P121: 0 | R121: 3406 | S121: 0 | T121: 6507.85 | U121: 0 | V121: 0 | X121: 3406 | Y121: 0 | Z121: 6507.85 | AA121: 0 | AB121: 0 | AD121: 3406 | AE121: 0 | AF121: 6507.85 | AG121: 0 | AH121: 0 | AJ121: 3406 | AK121: 0 | AL121: 6507.85 | AM121: 0 | AN121: 0 | AP121: 3406 | AQ121: 0 | AR121: 6507.85 | AS121: 0 | AT121: 0 | AV121: 3406 | AW121: 0 | AX121: 6507.85 | AY121: 0 | AZ121: 0 | BB121: 3406 | BC121: 0 | BD121: 6507.85 | BE121: 0 | BF121: 0 | BH121: 0 | BI121: 3406 | BJ121: 0 | BK121: 6507.85 | BL121: 0 | BM121: 0 | BN121: 11 | BO121: 3406 | BP121: 37466 | BQ121: 6507.85 | BR121: 71586.35 | BS121: 109052.35
A122: 1.4.9 | B122: Блок контрольно-пусковой | C122: шт. | D122: 4 | E122: 3406 | F122: 13624 | G122: 5933.93 | H122: 23735.72 | I122: 37359.72 | L122: 3406 | M122: 0 | N122: 5933.93 | O122: 0 | P122: 0 | R122: 3406 | S122: 0 | T122: 5933.93 | U122: 0 | V122: 0 | X122: 3406 | Y122: 0 | Z122: 5933.93 | AA122: 0 | AB122: 0 | AD122: 3406 | AE122: 0 | AF122: 5933.93 | AG122: 0 | AH122: 0 | AJ122: 3406 | AK122: 0 | AL122: 5933.93 | AM122: 0 | AN122: 0 | AP122: 3406 | AQ122: 0 | AR122: 5933.93 | AS122: 0 | AT122: 0 | AV122: 3406 | AW122: 0 | AX122: 5933.93 | AY122: 0 | AZ122: 0 | BB122: 3406 | BC122: 0 | BD122: 5933.93 | BE122: 0 | BF122: 0 | BH122: 0 | BI122: 3406 | BJ122: 0 | BK122: 5933.93 | BL122: 0 | BM122: 0 | BN122: 4 | BO122: 3406 | BP122: 13624 | BQ122: 5933.93 | BR122: 23735.72 | BS122: 37359.72
A123: 1.4.10 | B123: Извещатель пожарный дымовой оптико-электронный аналого-адресный | C123: шт. | D123: 137 | E123: 1572 | F123: 215364 | G123: 2472.34 | H123: 338710.58 | I123: 554074.58 | L123: 1572 | M123: 0 | N123: 2472.34 | O123: 0 | P123: 0 | R123: 1572 | S123: 0 | T123: 2472.34 | U123: 0 | V123: 0 | W123: 50 | X123: 1572 | Y123: 78600 | Z123: 2472.34 | AA123: 123617 | AB123: 202217 | AD123: 1572 | AE123: 0 | AF123: 2472.34 | AG123: 0 | AH123: 0 | AJ123: 1572 | AK123: 0 | AL123: 2472.34 | AM123: 0 | AN123: 0 | AP123: 1572 | AQ123: 0 | AR123: 2472.34 | AS123: 0 | AT123: 0 | AV123: 1572 | AW123: 0 | AX123: 2472.34 | AY123: 0 | AZ123: 0 | BB123: 1572 | BC123: 0 | BD123: 2472.34 | BE123: 0 | BF123: 0 | BH123: 50 | BI123: 1572 | BJ123: 78600 | BK123: 2472.34 | BL123: 123617 | BM123: 202217 | BN123: 87 | BO123: 1572 | BP123: 136764 | BQ123: 2472.34 | BR123: 215093.58 | BS123: 351857.58
A124: 1.4.11 | B124: Извещатель пожарный линейный однопозиционный адресный | C124: шт. | D124: 24 | E124: 4454 | F124: 106896 | G124: 37518 | H124: 900432 | I124: 1007328 | L124: 4454 | M124: 0 | N124: 37518 | O124: 0 | P124: 0 | R124: 4454 | S124: 0 | T124: 37518 | U124: 0 | V124: 0 | W124: 10 | X124: 4454 | Y124: 44540 | Z124: 37518 | AA124: 375180 | AB124: 419720 | AD124: 4454 | AE124: 0 | AF124: 37518 | AG124: 0 | AH124: 0 | AJ124: 4454 | AK124: 0 | AL124: 37518 | AM124: 0 | AN124: 0 | AP124: 4454 | AQ124: 0 | AR124: 37518 | AS124: 0 | AT124: 0 | AV124: 4454 | AW124: 0 | AX124: 37518 | AY124: 0 | AZ124: 0 | BB124: 4454 | BC124: 0 | BD124: 37518 | BE124: 0 | BF124: 0 | BH124: 10 | BI124: 4454 | BJ124: 44540 | BK124: 37518 | BL124: 375180 | BM124: 419720 | BN124: 14 | BO124: 4454 | BP124: 62356 | BQ124: 37518 | BR124: 525252 | BS124: 587608
A125: 1.4.13 | B125: Извещатель пожарный ручной адресный | C125: шт. | D125: 15 | E125: 1572 | F125: 23580 | G125: 1458.34 | H125: 21875.1 | I125: 45455.1 | L125: 1572 | M125: 0 | N125: 1458.34 | O125: 0 | P125: 0 | R125: 1572 | S125: 0 | T125: 1458.34 | U125: 0 | V125: 0 | W125: 5 | X125: 1572 | Y125: 7860 | Z125: 1458.34 | AA125: 7291.7 | AB125: 15151.7 | AD125: 1572 | AE125: 0 | AF125: 1458.34 | AG125: 0 | AH125: 0 | AJ125: 1572 | AK125: 0 | AL125: 1458.34 | AM125: 0 | AN125: 0 | AP125: 1572 | AQ125: 0 | AR125: 1458.34 | AS125: 0 | AT125: 0 | AV125: 1572 | AW125: 0 | AX125: 1458.34 | AY125: 0 | AZ125: 0 | BB125: 1572 | BC125: 0 | BD125: 1458.34 | BE125: 0 | BF125: 0 | BH125: 5 | BI125: 1572 | BJ125: 7860 | BK125: 1458.34 | BL125: 7291.7 | BM125: 15151.7 | BN125: 10 | BO125: 1572 | BP125: 15720 | BQ125: 1458.34 | BR125: 14583.4 | BS125: 30303.4
A126: 1.4.14 | B126: Аккумулятор 12 В, 40 А/ч | C126: шт. | D126: 4 | E126: 524 | F126: 2096 | G126: 8196.4 | H126: 32785.6 | I126: 34881.6 | L126: 524 | M126: 0 | N126: 8196.4 | O126: 0 | P126: 0 | R126: 524 | S126: 0 | T126: 8196.4 | U126: 0 | V126: 0 | X126: 524 | Y126: 0 | Z126: 8196.4 | AA126: 0 | AB126: 0 | AD126: 524 | AE126: 0 | AF126: 8196.4 | AG126: 0 | AH126: 0 | AJ126: 524 | AK126: 0 | AL126: 8196.4 | AM126: 0 | AN126: 0 | AP126: 524 | AQ126: 0 | AR126: 8196.4 | AS126: 0 | AT126: 0 | AV126: 524 | AW126: 0 | AX126: 8196.4 | AY126: 0 | AZ126: 0 | BB126: 524 | BC126: 0 | BD126: 8196.4 | BE126: 0 | BF126: 0 | BH126: 0 | BI126: 524 | BJ126: 0 | BK126: 8196.4 | BL126: 0 | BM126: 0 | BN126: 4 | BO126: 524 | BP126: 2096 | BQ126: 8196.4 | BR126: 32785.6 | BS126: 34881.6
A127: 1.4.15 | B127: Источник питания резервированный | C127: шт. | D127: 4 | E127: 3930 | F127: 15720 | G127: 16396.07 | H127: 65584.28 | I127: 81304.28 | L127: 3930 | M127: 0 | N127: 16396.07 | O127: 0 | P127: 0 | R127: 3930 | S127: 0 | T127: 16396.07 | U127: 0 | V127: 0 | X127: 3930 | Y127: 0 | Z127: 16396.07 | AA127: 0 | AB127: 0 | AD127: 3930 | AE127: 0 | AF127: 16396.07 | AG127: 0 | AH127: 0 | AJ127: 3930 | AK127: 0 | AL127: 16396.07 | AM127: 0 | AN127: 0 | AP127: 3930 | AQ127: 0 | AR127: 16396.07 | AS127: 0 | AT127: 0 | AV127: 3930 | AW127: 0 | AX127: 16396.07 | AY127: 0 | AZ127: 0 | BB127: 3930 | BC127: 0 | BD127: 16396.07 | BE127: 0 | BF127: 0 | BH127: 0 | BI127: 3930 | BJ127: 0 | BK127: 16396.07 | BL127: 0 | BM127: 0 | BN127: 4 | BO127: 3930 | BP127: 15720 | BQ127: 16396.07 | BR127: 65584.28 | BS127: 81304.28
A128: 1.4.16 | B128: Аккумулятор 12 В, 7 А/ч | C128: шт. | D128: 4 | E128: 524 | F128: 2096 | G128: 3129.1 | H128: 12516.4 | I128: 14612.4 | L128: 524 | M128: 0 | N128: 3129.1 | O128: 0 | P128: 0 | R128: 524 | S128: 0 | T128: 3129.1 | U128: 0 | V128: 0 | X128: 524 | Y128: 0 | Z128: 3129.1 | AA128: 0 | AB128: 0 | AD128: 524 | AE128: 0 | AF128: 3129.1 | AG128: 0 | AH128: 0 | AJ128: 524 | AK128: 0 | AL128: 3129.1 | AM128: 0 | AN128: 0 | AP128: 524 | AQ128: 0 | AR128: 3129.1 | AS128: 0 | AT128: 0 | AV128: 524 | AW128: 0 | AX128: 3129.1 | AY128: 0 | AZ128: 0 | BB128: 524 | BC128: 0 | BD128: 3129.1 | BE128: 0 | BF128: 0 | BH128: 0 | BI128: 524 | BJ128: 0 | BK128: 3129.1 | BL128: 0 | BM128: 0 | BN128: 4 | BO128: 524 | BP128: 2096 | BQ128: 3129.1 | BR128: 12516.4 | BS128: 14612.4
A129: 1.4.17 | B129: Блок контроля и индикации | C129: шт. | D129: 2 | E129: 3930 | F129: 7860 | G129: 11731.38 | H129: 23462.76 | I129: 31322.76 | L129: 3930 | M129: 0 | N129: 11731.38 | O129: 0 | P129: 0 | R129: 3930 | S129: 0 | T129: 11731.38 | U129: 0 | V129: 0 | X129: 3930 | Y129: 0 | Z129: 11731.38 | AA129: 0 | AB129: 0 | AD129: 3930 | AE129: 0 | AF129: 11731.38 | AG129: 0 | AH129: 0 | AJ129: 3930 | AK129: 0 | AL129: 11731.38 | AM129: 0 | AN129: 0 | AP129: 3930 | AQ129: 0 | AR129: 11731.38 | AS129: 0 | AT129: 0 | AV129: 3930 | AW129: 0 | AX129: 11731.38 | AY129: 0 | AZ129: 0 | BB129: 3930 | BC129: 0 | BD129: 11731.38 | BE129: 0 | BF129: 0 | BH129: 0 | BI129: 3930 | BJ129: 0 | BK129: 11731.38 | BL129: 0 | BM129: 0 | BN129: 2 | BO129: 3930 | BP129: 7860 | BQ129: 11731.38 | BR129: 23462.76 | BS129: 31322.76
A130: 1.4.18 | B130: Блок разветвительно-изолирующий | C130: шт. | D130: 4 | E130: 1310 | F130: 5240 | G130: 833.51 | H130: 3334.04 | I130: 8574.04 | L130: 1310 | M130: 0 | N130: 833.51 | O130: 0 | P130: 0 | R130: 1310 | S130: 0 | T130: 833.51 | U130: 0 | V130: 0 | X130: 1310 | Y130: 0 | Z130: 833.51 | AA130: 0 | AB130: 0 | AD130: 1310 | AE130: 0 | AF130: 833.51 | AG130: 0 | AH130: 0 | AJ130: 1310 | AK130: 0 | AL130: 833.51 | AM130: 0 | AN130: 0 | AP130: 1310 | AQ130: 0 | AR130: 833.51 | AS130: 0 | AT130: 0 | AV130: 1310 | AW130: 0 | AX130: 833.51 | AY130: 0 | AZ130: 0 | BB130: 1310 | BC130: 0 | BD130: 833.51 | BE130: 0 | BF130: 0 | BH130: 0 | BI130: 1310 | BJ130: 0 | BK130: 833.51 | BL130: 0 | BM130: 0 | BN130: 4 | BO130: 1310 | BP130: 5240 | BQ130: 833.51 | BR130: 3334.04 | BS130: 8574.04
A131: 1.4.19 | B131: Преобразователь интерфейсов | C131: шт. | D131: 4 | E131: 4192 | F131: 16768 | G131: 15047.76 | H131: 60191.04 | I131: 76959.04 | L131: 4192 | M131: 0 | N131: 15047.76 | O131: 0 | P131: 0 | R131: 4192 | S131: 0 | T131: 15047.76 | U131: 0 | V131: 0 | X131: 4192 | Y131: 0 | Z131: 15047.76 | AA131: 0 | AB131: 0 | AD131: 4192 | AE131: 0 | AF131: 15047.76 | AG131: 0 | AH131: 0 | AJ131: 4192 | AK131: 0 | AL131: 15047.76 | AM131: 0 | AN131: 0 | AP131: 4192 | AQ131: 0 | AR131: 15047.76 | AS131: 0 | AT131: 0 | AV131: 4192 | AW131: 0 | AX131: 15047.76 | AY131: 0 | AZ131: 0 | BB131: 4192 | BC131: 0 | BD131: 15047.76 | BE131: 0 | BF131: 0 | BH131: 0 | BI131: 4192 | BJ131: 0 | BK131: 15047.76 | BL131: 0 | BM131: 0 | BN131: 4 | BO131: 4192 | BP131: 16768 | BQ131: 15047.76 | BR131: 60191.04 | BS131: 76959.04
A132: 1.4.20 | B132: Патч-корд волоконно-оптический LC/UPC-LC/UPC 50 м | C132: шт. | D132: 4 | E132: 393 | F132: 1572 | G132: 3672.55 | H132: 14690.2 | I132: 16262.2 | L132: 393 | M132: 0 | N132: 3672.55 | O132: 0 | P132: 0 | R132: 393 | S132: 0 | T132: 3672.55 | U132: 0 | V132: 0 | X132: 393 | Y132: 0 | Z132: 3672.55 | AA132: 0 | AB132: 0 | AD132: 393 | AE132: 0 | AF132: 3672.55 | AG132: 0 | AH132: 0 | AJ132: 393 | AK132: 0 | AL132: 3672.55 | AM132: 0 | AN132: 0 | AP132: 393 | AQ132: 0 | AR132: 3672.55 | AS132: 0 | AT132: 0 | AV132: 393 | AW132: 0 | AX132: 3672.55 | AY132: 0 | AZ132: 0 | BB132: 393 | BC132: 0 | BD132: 3672.55 | BE132: 0 | BF132: 0 | BH132: 0 | BI132: 393 | BJ132: 0 | BK132: 3672.55 | BL132: 0 | BM132: 0 | BN132: 4 | BO132: 393 | BP132: 1572 | BQ132: 3672.55 | BR132: 14690.2 | BS132: 16262.2
A133: 1.4.21 | B133: Патч-корд волоконно-оптический LC/UPC-LC/UPC 1 м | C133: шт. | D133: 4 | E133: 393 | F133: 1572 | G133: 1027 | H133: 4108 | I133: 5680 | L133: 393 | M133: 0 | N133: 1027 | O133: 0 | P133: 0 | R133: 393 | S133: 0 | T133: 1027 | U133: 0 | V133: 0 | X133: 393 | Y133: 0 | Z133: 1027 | AA133: 0 | AB133: 0 | AD133: 393 | AE133: 0 | AF133: 1027 | AG133: 0 | AH133: 0 | AJ133: 393 | AK133: 0 | AL133: 1027 | AM133: 0 | AN133: 0 | AP133: 393 | AQ133: 0 | AR133: 1027 | AS133: 0 | AT133: 0 | AV133: 393 | AW133: 0 | AX133: 1027 | AY133: 0 | AZ133: 0 | BB133: 393 | BC133: 0 | BD133: 1027 | BE133: 0 | BF133: 0 | BH133: 0 | BI133: 393 | BJ133: 0 | BK133: 1027 | BL133: 0 | BM133: 0 | BN133: 4 | BO133: 393 | BP133: 1572 | BQ133: 1027 | BR133: 4108 | BS133: 5680
A134: 1.4.22 | B134: Устройство коммутационное | C134: шт. | D134: 24 | E134: 3406 | F134: 81744 | G134: 1774.5 | H134: 42588 | I134: 124332 | L134: 3406 | M134: 0 | N134: 1774.5 | O134: 0 | P134: 0 | R134: 3406 | S134: 0 | T134: 1774.5 | U134: 0 | V134: 0 | X134: 3406 | Y134: 0 | Z134: 1774.5 | AA134: 0 | AB134: 0 | AD134: 3406 | AE134: 0 | AF134: 1774.5 | AG134: 0 | AH134: 0 | AJ134: 3406 | AK134: 0 | AL134: 1774.5 | AM134: 0 | AN134: 0 | AP134: 3406 | AQ134: 0 | AR134: 1774.5 | AS134: 0 | AT134: 0 | AV134: 3406 | AW134: 0 | AX134: 1774.5 | AY134: 0 | AZ134: 0 | BB134: 3406 | BC134: 0 | BD134: 1774.5 | BE134: 0 | BF134: 0 | BH134: 0 | BI134: 3406 | BJ134: 0 | BK134: 1774.5 | BL134: 0 | BM134: 0 | BN134: 24 | BO134: 3406 | BP134: 81744 | BQ134: 1774.5 | BR134: 42588 | BS134: 124332
A135: 1.4.23 | B135: Оповещатель охранно-пожарный световой (табло) ЛЮКС-24 "Выход" | C135: шт. | D135: 10 | E135: 1572 | F135: 15720 | G135: 478.4 | H135: 4784 | I135: 20504 | L135: 1572 | M135: 0 | N135: 478.4 | O135: 0 | P135: 0 | R135: 1572 | S135: 0 | T135: 478.4 | U135: 0 | V135: 0 | X135: 1572 | Y135: 0 | Z135: 478.4 | AA135: 0 | AB135: 0 | AD135: 1572 | AE135: 0 | AF135: 478.4 | AG135: 0 | AH135: 0 | AJ135: 1572 | AK135: 0 | AL135: 478.4 | AM135: 0 | AN135: 0 | AP135: 1572 | AQ135: 0 | AR135: 478.4 | AS135: 0 | AT135: 0 | AV135: 1572 | AW135: 0 | AX135: 478.4 | AY135: 0 | AZ135: 0 | BB135: 1572 | BC135: 0 | BD135: 478.4 | BE135: 0 | BF135: 0 | BH135: 0 | BI135: 1572 | BJ135: 0 | BK135: 478.4 | BL135: 0 | BM135: 0 | BN135: 10 | BO135: 1572 | BP135: 15720 | BQ135: 478.4 | BR135: 4784 | BS135: 20504
A136: 1.4.24 | B136: Оповещатель охранно-пожарный световой (табло) ЛЮКС-24 "Стрелка влево" | C136: шт. | D136: 9 | E136: 1572 | F136: 14148 | G136: 478.4 | H136: 4305.6 | I136: 18453.6 | L136: 1572 | M136: 0 | N136: 478.4 | O136: 0 | P136: 0 | R136: 1572 | S136: 0 | T136: 478.4 | U136: 0 | V136: 0 | X136: 1572 | Y136: 0 | Z136: 478.4 | AA136: 0 | AB136: 0 | AD136: 1572 | AE136: 0 | AF136: 478.4 | AG136: 0 | AH136: 0 | AJ136: 1572 | AK136: 0 | AL136: 478.4 | AM136: 0 | AN136: 0 | AP136: 1572 | AQ136: 0 | AR136: 478.4 | AS136: 0 | AT136: 0 | AV136: 1572 | AW136: 0 | AX136: 478.4 | AY136: 0 | AZ136: 0 | BB136: 1572 | BC136: 0 | BD136: 478.4 | BE136: 0 | BF136: 0 | BH136: 0 | BI136: 1572 | BJ136: 0 | BK136: 478.4 | BL136: 0 | BM136: 0 | BN136: 9 | BO136: 1572 | BP136: 14148 | BQ136: 478.4 | BR136: 4305.6 | BS136: 18453.6
A137: 1.4.25 | B137: Оповещатель охранно-пожарный световой (табло) ЛЮКС-24 "Стрелка вправо" | C137: шт. | D137: 9 | E137: 1572 | F137: 14148 | G137: 478.4 | H137: 4305.6 | I137: 18453.6 | L137: 1572 | M137: 0 | N137: 478.4 | O137: 0 | P137: 0 | R137: 1572 | S137: 0 | T137: 478.4 | U137: 0 | V137: 0 | X137: 1572 | Y137: 0 | Z137: 478.4 | AA137: 0 | AB137: 0 | AD137: 1572 | AE137: 0 | AF137: 478.4 | AG137: 0 | AH137: 0 | AJ137: 1572 | AK137: 0 | AL137: 478.4 | AM137: 0 | AN137: 0 | AP137: 1572 | AQ137: 0 | AR137: 478.4 | AS137: 0 | AT137: 0 | AV137: 1572 | AW137: 0 | AX137: 478.4 | AY137: 0 | AZ137: 0 | BB137: 1572 | BC137: 0 | BD137: 478.4 | BE137: 0 | BF137: 0 | BH137: 0 | BI137: 1572 | BJ137: 0 | BK137: 478.4 | BL137: 0 | BM137: 0 | BN137: 9 | BO137: 1572 | BP137: 14148 | BQ137: 478.4 | BR137: 4305.6 | BS137: 18453.6
A138: 1.4.26 | B138: Оповещатель охранно-пожарный звуковой Маяк-24-ЗМ2 | C138: шт. | D138: 54 | E138: 1572 | F138: 84888 | G138: 351 | H138: 18954 | I138: 103842 | L138: 1572 | M138: 0 | N138: 351 | O138: 0 | P138: 0 | R138: 1572 | S138: 0 | T138: 351 | U138: 0 | V138: 0 | X138: 1572 | Y138: 0 | Z138: 351 | AA138: 0 | AB138: 0 | AD138: 1572 | AE138: 0 | AF138: 351 | AG138: 0 | AH138: 0 | AJ138: 1572 | AK138: 0 | AL138: 351 | AM138: 0 | AN138: 0 | AP138: 1572 | AQ138: 0 | AR138: 351 | AS138: 0 | AT138: 0 | AV138: 1572 | AW138: 0 | AX138: 351 | AY138: 0 | AZ138: 0 | BB138: 1572 | BC138: 0 | BD138: 351 | BE138: 0 | BF138: 0 | BH138: 0 | BI138: 1572 | BJ138: 0 | BK138: 351 | BL138: 0 | BM138: 0 | BN138: 54 | BO138: 1572 | BP138: 84888 | BQ138: 351 | BR138: 18954 | BS138: 103842
A139: 1.4.27 | B139: Комбинированный оповещатель со стробовспышкой Г-24КПР | C139: шт. | D139: 30 | E139: 1572 | F139: 47160 | G139: 708.55 | H139: 21256.5 | I139: 68416.5 | L139: 1572 | M139: 0 | N139: 708.55 | O139: 0 | P139: 0 | R139: 1572 | S139: 0 | T139: 708.55 | U139: 0 | V139: 0 | X139: 1572 | Y139: 0 | Z139: 708.55 | AA139: 0 | AB139: 0 | AD139: 1572 | AE139: 0 | AF139: 708.55 | AG139: 0 | AH139: 0 | AJ139: 1572 | AK139: 0 | AL139: 708.55 | AM139: 0 | AN139: 0 | AP139: 1572 | AQ139: 0 | AR139: 708.55 | AS139: 0 | AT139: 0 | AV139: 1572 | AW139: 0 | AX139: 708.55 | AY139: 0 | AZ139: 0 | BB139: 1572 | BC139: 0 | BD139: 708.55 | BE139: 0 | BF139: 0 | BH139: 0 | BI139: 1572 | BJ139: 0 | BK139: 708.55 | BL139: 0 | BM139: 0 | BN139: 30 | BO139: 1572 | BP139: 47160 | BQ139: 708.55 | BR139: 21256.5 | BS139: 68416.5
A140: 1.4.28 | B140: Оповещатель охранно-пожарный комбинированный свето-звуковой Маяк-24-КПМ2 | C140: шт. | D140: 39 | E140: 1572 | F140: 61308 | G140: 852.8 | H140: 33259.2 | I140: 94567.2 | L140: 1572 | M140: 0 | N140: 852.8 | O140: 0 | P140: 0 | R140: 1572 | S140: 0 | T140: 852.8 | U140: 0 | V140: 0 | X140: 1572 | Y140: 0 | Z140: 852.8 | AA140: 0 | AB140: 0 | AD140: 1572 | AE140: 0 | AF140: 852.8 | AG140: 0 | AH140: 0 | AJ140: 1572 | AK140: 0 | AL140: 852.8 | AM140: 0 | AN140: 0 | AP140: 1572 | AQ140: 0 | AR140: 852.8 | AS140: 0 | AT140: 0 | AV140: 1572 | AW140: 0 | AX140: 852.8 | AY140: 0 | AZ140: 0 | BB140: 1572 | BC140: 0 | BD140: 852.8 | BE140: 0 | BF140: 0 | BH140: 0 | BI140: 1572 | BJ140: 0 | BK140: 852.8 | BL140: 0 | BM140: 0 | BN140: 39 | BO140: 1572 | BP140: 61308 | BQ140: 852.8 | BR140: 33259.2 | BS140: 94567.2
A141: 1.4.29 | B141: Полка 19" перфорированная консольная 1U | C141: шт. | D141: 1 | E141: 2620 | F141: 2620 | G141: 1900.6 | H141: 1900.6 | I141: 4520.6 | L141: 2620 | M141: 0 | N141: 1900.6 | O141: 0 | P141: 0 | R141: 2620 | S141: 0 | T141: 1900.6 | U141: 0 | V141: 0 | X141: 2620 | Y141: 0 | Z141: 1900.6 | AA141: 0 | AB141: 0 | AD141: 2620 | AE141: 0 | AF141: 1900.6 | AG141: 0 | AH141: 0 | AJ141: 2620 | AK141: 0 | AL141: 1900.6 | AM141: 0 | AN141: 0 | AP141: 2620 | AQ141: 0 | AR141: 1900.6 | AS141: 0 | AT141: 0 | AV141: 2620 | AW141: 0 | AX141: 1900.6 | AY141: 0 | AZ141: 0 | BB141: 2620 | BC141: 0 | BD141: 1900.6 | BE141: 0 | BF141: 0 | BH141: 0 | BI141: 2620 | BJ141: 0 | BK141: 1900.6 | BL141: 0 | BM141: 0 | BN141: 1 | BO141: 2620 | BP141: 2620 | BQ141: 1900.6 | BR141: 1900.6 | BS141: 4520.6
A142: 1.4.30 | B142: Модуль подключения нагрузки | C142: шт. | D142: 87 | E142: 131 | F142: 11397 | G142: 93.29 | H142: 8116.23 | I142: 19513.23 | L142: 131 | M142: 0 | N142: 93.29 | O142: 0 | P142: 0 | R142: 131 | S142: 0 | T142: 93.29 | U142: 0 | V142: 0 | X142: 131 | Y142: 0 | Z142: 93.29 | AA142: 0 | AB142: 0 | AD142: 131 | AE142: 0 | AF142: 93.29 | AG142: 0 | AH142: 0 | AJ142: 131 | AK142: 0 | AL142: 93.29 | AM142: 0 | AN142: 0 | AP142: 131 | AQ142: 0 | AR142: 93.29 | AS142: 0 | AT142: 0 | AV142: 131 | AW142: 0 | AX142: 93.29 | AY142: 0 | AZ142: 0 | BB142: 131 | BC142: 0 | BD142: 93.29 | BE142: 0 | BF142: 0 | BH142: 0 | BI142: 131 | BJ142: 0 | BK142: 93.29 | BL142: 0 | BM142: 0 | BN142: 87 | BO142: 131 | BP142: 11397 | BQ142: 93.29 | BR142: 8116.23 | BS142: 19513.23
